Workbook

Sheet Home
AO1: Trial ends
B2: www.maintainflow.pro | W2: Lite CMMS · v1.2 · Testing | AO2: 2026-06-26
B4: MAINTENANCE OPERATIONS · BUILT IN EXCEL
B5: Plan it. Track it. Prove it.
B6: Work orders, preventive maintenance, parts inventory and uptime metrics — orchestrated in a single workbook.
B8: ● Live | G8: =COUNTIF(WorkOrdersDatabase[Status],"Open")&" open WOs" -> 34 open WOs | N8: ="Last activity: "&TEXT(MAX(WorkOrdersDatabase[Date Created]),"mmm d, yyyy") -> Last activity: Jun 14, 2026
B10: Today at a glance | AN10: www.maintainflow.pro
B11: Open WOs | K11: PMs Due | T11: Low Stock | AC11: PM Compliance
B12: =COUNTIF(WorkOrdersDatabase[Status],"Open") -> 34 | K12: =COUNTIF('PM Master'!$P$2:$P$1000,"DUE SOON")+COUNTIF('PM Master'!$P$2:$P$1000,"OVERDUE") -> 29 | T12: =COUNTIF('Parts List'!$F$2:$F$1000,"LOW STOCK")+COUNTIF('Parts List'!$F$2:$F$1000,"OUT OF STOCK") -> 8 | AC12: =IFERROR(1-COUNTIF('PM Master'!$P$2:$P$1000,"OVERDUE")/COUNTIF('PM Master'!$O$2:$O$1000,"Active"),0) -> 0.9791666667
B13: From WO Database | K13: From PM Master | T13: From Parts List | AC13: From PM Master
B16: WORKSPACE
B20: ➕ | I20: ✅ | P20: 🗓 | W20: 📋 | AD20: 📦
B22: Create WO | I22: Complete WO | P22: Weekly Schedule | W22: Planner | AD22: Parts
B23: Start a new request | I23: Close out a job | P23: Plan the week | W23: All work orders | AD23: Stock and reorders
B24: Open › | I24: Open › | P24: Open › | W24: Open › | AD24: Open ›

Sheet Work Order Form
A1: WORK ORDER ENTRY FORM
A3: Field | B3: Entry | C3: Notes
A5: Work Order Number | C5: Auto-generated
A6: Date | B6: 2026-06-13
A8: Requested By | C8: Request Information
A9: Work Type
A10: Priority
A12: Asset ID | C12: Asset Information
A13: Asset Name | B13: =IF(B12="","",_xlfn.XLOOKUP(B12,'Asset Master List'!A:A,'Asset Master List'!B:B,"")) -> 
A14: Area/Line | B14: =IF(B12="","",_xlfn.XLOOKUP(B12,'Asset Master List'!A:A,'Asset Master List'!C:C,"")) -> 
A15: Location | B15: =IF(B12="","",_xlfn.XLOOKUP(B12,'Asset Master List'!A:A,'Asset Master List'!D:D,"")) -> 
A16: Department | B16: =IF(B12="","",_xlfn.XLOOKUP(B12,'Asset Master List'!A:A,'Asset Master List'!E:E,"")) -> 
A17: Criticality | B17: =IF(B12="","",_xlfn.XLOOKUP(B12,'Asset Master List'!A:A,'Asset Master List'!H:H,"")) -> 
A18: Parent Asset ID | B18: =IF(B12="","",_xlfn.XLOOKUP(B12,'Asset Master List'!A:A,'Asset Master List'!F:F,"")) -> 
A19: Hierarchy Level | B19: =IF(B12="","",_xlfn.XLOOKUP(B12,'Asset Master List'!A:A,'Asset Master List'!G:G,"")) -> 
A21: Problem Description | C21: Planning Information
A22: Assigned Technician

Sheet Status List (hidden)
A1: Status | B1: Meaning
A2: Open | B2: Work request has been created but not yet planned.
A3: Ready to Schedule | B3: Work has enough information to be scheduled.
A4: Scheduled | B4: Work has been assigned to a date or shift.
A5: In Progress | B5: Work is currently being executed.
A6: Waiting Parts | B6: Work is delayed because parts are not available.
A7: Waiting Production | B7: Work is delayed due to production availability or access.
A8: Completed | B8: Work has been physically completed.
A9: Closed | B9: Work has been reviewed, documented, and finalized.
A10: Cancelled | B10: Work order is no longer required.

Sheet WO Completion
A1: WORK ORDER COMPLETION | E1: MANUAL LOAD — confirm WO
A2: WO No. | C2: Locked Cells | E2: Asset | F2: =IF($B$2="","—",IFERROR(INDEX(WorkOrdersDatabase[Asset Name],MATCH($B$2,WorkOrdersDatabase[WO Number],0)),"WO not found")) -> —
A3: Asset | E3: Work Type | F3: =IF($B$2="","—",IFERROR(INDEX(WorkOrdersDatabase[Work Type],MATCH($B$2,WorkOrdersDatabase[WO Number],0)),"")) -> —
A4: Work Type | E4: Priority | F4: =IF($B$2="","—",IFERROR(INDEX(WorkOrdersDatabase[Priority],MATCH($B$2,WorkOrdersDatabase[WO Number],0)),"")) -> —
A5: Priority | E5: Status | F5: =IF($B$2="","—",IFERROR(INDEX(WorkOrdersDatabase[Status],MATCH($B$2,WorkOrdersDatabase[WO Number],0)),"")) -> —
A6: Job Description | E6: Description | F6: =IF($B$2="","—",IFERROR(INDEX(WorkOrdersDatabase[Problem Description],MATCH($B$2,WorkOrdersDatabase[WO Number],0)),"")) -> —
A7: Failure Type | C7: Editable Cells
A8: Failure Category
A9: Failed Component
A10: Failure Mode
A11: Cause Code
A12: Remedy Code
A13: Completion Notes
A14: Completed By
A15: Downtime
A16: Actual Hours
A17: Parts (summary)
A19: Status
A21: PARTS USED - one line per part (up to 5)
B22: Part ID | C22: Qty
A23: Part # 1:
A24: Part # 2:
A25: Part # 3:
A26: Part # 4:
A27: Part # 5:

Sheet Planner
A1: WO Number | B1: Work Type | C1: Status | D1: Priority | E1: Asset ID | F1: Asset Name | G1: Location | H1: Problem/Work Description | I1: Required Parts | J1: Parts Status | K1: Estimated Labour Hours | L1: Assigned Technician | M1: Planned Start Time | N1: Planned Finish Time | O1: Planned Start Date | P1: Planned Finish Date | Q1: Production Impact | R1: Schedule Status | S1: Ready? | T1: Missing Before Scheduling | U1: Planner Notes | W1: Conditional Formatting Legend
A2: =WOList -> WO-000011 | B2: =IF($A2="","",_xlfn.XLOOKUP($A2,WorkOrdersDatabase[WO Number],WorkOrdersDatabase[Work Type],"")) -> Preventive | C2: =IF($A2="","",_xlfn.XLOOKUP($A2,WorkOrdersDatabase[WO Number],WorkOrdersDatabase[Status],"")) -> Completed | D2: =IF($A2="","",_xlfn.XLOOKUP($A2,WorkOrdersDatabase[WO Number],WorkOrdersDatabase[Priority],"")) -> P1 - Emergency | E2: =IF($A2="","",_xlfn.XLOOKUP($A2,WorkOrdersDatabase[WO Number],WorkOrdersDatabase[Asset ID],"")) -> OVN-001 | F2: =IF($A2="","",_xlfn.XLOOKUP($A2,WorkOrdersDatabase[WO Number],WorkOrdersDatabase[Asset Name],"")) -> Oven | G2: =IF($A2="","",_xlfn.LET(_xlpm.v,_xlfn.XLOOKUP($A2,WorkOrdersDatabase[WO Number],WorkOrdersDatabase[Location],""),IF(OR(_xlpm.v=0,_xlpm.v=""),"",_xlpm.v))) -> Building 1 | H2: =IF($A2="","",_xlfn.LET(_xlpm.v,_xlfn.XLOOKUP($A2,WorkOrdersDatabase[WO Number],WorkOrdersDatabase[Problem Description],""),IF(OR(_xlpm.v=0,_xlpm.v=""),"",_xlpm.v))) -> It isi not working | I2: =IF($A2="","",_xlfn.LET(_xlpm.v,_xlfn.XLOOKUP($A2,WorkOrdersDatabase[WO Number],WorkOrdersDatabase[Parts Used],""),IF(OR(_xlpm.v=0,_xlpm.v=""),"",_xlpm.v))) -> LUB-EP2-001 | J2: =IF($A2="","",IF(OR(I2="",I2=0,I2="0"),"Not Required",IFERROR(_xlfn.XLOOKUP(I2,'Parts List'!A:A,'Parts List'!F:F,"Check Parts List"),"Check Parts List"))) -> LOW STOCK | K2: =IF($A2="","",_xlfn.LET(_xlpm.v,_xlfn.XLOOKUP($A2,WorkOrdersDatabase[WO Number],WorkOrdersDatabase[Labour Hours],""),IF(OR(_xlpm.v=0,_xlpm.v=""),"",_xlpm.v))) -> 2 | L2: =IF($A2="","",_xlfn.LET(_xlpm.v,_xlfn.XLOOKUP($A2,WorkOrdersDatabase[WO Number],WorkOrdersDatabase[Assigned To],""),IF(OR(_xlpm.v=0,_xlpm.v=""),"",_xlpm.v))) -> Adam Smith | M2: 07:00:00 | N2: =IF(OR(M2="",K2=""),"",M2+(K2/24)) -> 09:00:00 | O2: 2026-05-29 | Q2: Low | R2: Completed | S2: =IF($A2="","",IF(AND(OR($J2="IN STOCK",$J2="LOW STOCK",$J2="Not Required"),$L2<>"",$M2<>"",$O2<>"",$R2<>"Completed",$R2<>"Cancelled"),"READY","NOT READY")) -> NOT READY | T2: =IF($A2="","",_xlfn.LET(_xlpm.miss,_xlfn.TEXTJOIN(", ",TRUE,IF($J2="OUT OF STOCK","Parts out of stock",""),IF($J2="Check Parts List","Check parts master",""),IF($L2="","Assign technician",""),IF($M2="","Add start time",""),IF($K2="","Add labour hours","")),IF($R2="Completed","Completed",IF($R2="Cancelled","Cancelled",IF($R2="Scheduled","Scheduled",IF(_xlpm.miss="","Ready to schedule",_xlpm.miss)))))) -> Completed | X2: Overdue — planned date has passed and work is not completed
A3: WO-000002 | B3: =IF($A3="","",_xlfn.XLOOKUP($A3,WorkOrdersDatabase[WO Number],WorkOrdersDatabase[Work Type],"")) -> Emergency | C3: =IF($A3="","",_xlfn.XLOOKUP($A3,WorkOrdersDatabase[WO Number],WorkOrdersDatabase[Status],"")) -> Open | D3: =IF($A3="","",_xlfn.XLOOKUP($A3,WorkOrdersDatabase[WO Number],WorkOrdersDatabase[Priority],"")) -> P2 - 1 day | E3: =IF($A3="","",_xlfn.XLOOKUP($A3,WorkOrdersDatabase[WO Number],WorkOrdersDatabase[Asset ID],"")) -> PRF-201 | F3: =IF($A3="","",_xlfn.XLOOKUP($A3,WorkOrdersDatabase[WO Number],WorkOrdersDatabase[Asset Name],"")) -> Proofer 1 | G3: =IF($A3="","",_xlfn.LET(_xlpm.v,_xlfn.XLOOKUP($A3,WorkOrdersDatabase[WO Number],WorkOrdersDatabase[Location],""),IF(OR(_xlpm.v=0,_xlpm.v=""),"",_xlpm.v))) -> Building 2 | H3: =IF($A3="","",_xlfn.LET(_xlpm.v,_xlfn.XLOOKUP($A3,WorkOrdersDatabase[WO Number],WorkOrdersDatabase[Problem Description],""),IF(OR(_xlpm.v=0,_xlpm.v=""),"",_xlpm.v))) -> Sensor not sensing | I3: =IF($A3="","",_xlfn.LET(_xlpm.v,_xlfn.XLOOKUP($A3,WorkOrdersDatabase[WO Number],WorkOrdersDatabase[Parts Used],""),IF(OR(_xlpm.v=0,_xlpm.v=""),"",_xlpm.v))) -> SNS-PROX-M12-001 | J3: =IF($A3="","",IF(OR(I3="",I3=0,I3="0"),"Not Required",IFERROR(_xlfn.XLOOKUP(I3,'Parts List'!A:A,'Parts List'!F:F,"Check Parts List"),"Check Parts List"))) -> IN STOCK | K3: =IF($A3="","",_xlfn.LET(_xlpm.v,_xlfn.XLOOKUP($A3,WorkOrdersDatabase[WO Number],WorkOrdersDatabase[Labour Hours],""),IF(OR(_xlpm.v=0,_xlpm.v=""),"",_xlpm.v))) -> 2 | L3: =IF($A3="","",_xlfn.LET(_xlpm.v,_xlfn.XLOOKUP($A3,WorkOrdersDatabase[WO Number],WorkOrdersDatabase[Assigned To],""),IF(OR(_xlpm.v=0,_xlpm.v=""),"",_xlpm.v))) -> Rest Exter | M3: 09:00:00 | N3: =IF(OR(M3="",K3=""),"",M3+(K3/24)) -> 11:00:00 | O3: 2026-05-29 | P3: =IF(OR(O3="",M3="",K3=""),"",O3+M3+(K3/24)) -> 2026-05-29T11:00:00 | Q3: Medium | S3: =IF($A3="","",IF(AND(OR($J3="IN STOCK",$J3="LOW STOCK",$J3="Not Required"),$L3<>"",$M3<>"",$O3<>"",$R3<>"Completed",$R3<>"Cancelled"),"READY","NOT READY")) -> READY | T3: =IF($A3="","",_xlfn.LET(_xlpm.miss,_xlfn.TEXTJOIN(", ",TRUE,IF($J3="OUT OF STOCK","Parts out of stock",""),IF($J3="Check Parts List","Check parts master",""),IF($L3="","Assign technician",""),IF($M3="","Add start time",""),IF($K3="","Add labour hours","")),IF($R3="Completed","Completed",IF($R3="Cancelled","Cancelled",IF($R3="Scheduled","Scheduled",IF(_xlpm.miss="","Ready to schedule",_xlpm.miss)))))) -> Ready to schedule | X3: Parts OUT OF STOCK — cannot schedule until restocked
A4: WO-000005 | B4: =IF($A4="","",_xlfn.XLOOKUP($A4,WorkOrdersDatabase[WO Number],WorkOrdersDatabase[Work Type],"")) -> Compliance / Safety | C4: =IF($A4="","",_xlfn.XLOOKUP($A4,WorkOrdersDatabase[WO Number],WorkOrdersDatabase[Status],"")) -> Completed | D4: =IF($A4="","",_xlfn.XLOOKUP($A4,WorkOrdersDatabase[WO Number],WorkOrdersDatabase[Priority],"")) -> P3 - 7 Days | E4: =IF($A4="","",_xlfn.XLOOKUP($A4,WorkOrdersDatabase[WO Number],WorkOrdersDatabase[Asset ID],"")) -> PUL-201 | F4: =IF($A4="","",_xlfn.XLOOKUP($A4,WorkOrdersDatabase[WO Number],WorkOrdersDatabase[Asset Name],"")) -> Puller | G4: =IF($A4="","",_xlfn.LET(_xlpm.v,_xlfn.XLOOKUP($A4,WorkOrdersDatabase[WO Number],WorkOrdersDatabase[Location],""),IF(OR(_xlpm.v=0,_xlpm.v=""),"",_xlpm.v))) -> Building 1 | H4: =IF($A4="","",_xlfn.LET(_xlpm.v,_xlfn.XLOOKUP($A4,WorkOrdersDatabase[WO Number],WorkOrdersDatabase[Problem Description],""),IF(OR(_xlpm.v=0,_xlpm.v=""),"",_xlpm.v))) -> Puller is slipping | I4: =IF($A4="","",_xlfn.LET(_xlpm.v,_xlfn.XLOOKUP($A4,WorkOrdersDatabase[WO Number],WorkOrdersDatabase[Parts Used],""),IF(OR(_xlpm.v=0,_xlpm.v=""),"",_xlpm.v))) -> BR-6210-001 | J4: =IF($A4="","",IF(OR(I4="",I4=0,I4="0"),"Not Required",IFERROR(_xlfn.XLOOKUP(I4,'Parts List'!A:A,'Parts List'!F:F,"Check Parts List"),"Check Parts List"))) -> OUT OF STOCK | K4: =IF($A4="","",_xlfn.LET(_xlpm.v,_xlfn.XLOOKUP($A4,WorkOrdersDatabase[WO Number],WorkOrdersDatabase[Labour Hours],""),IF(OR(_xlpm.v=0,_xlpm.v=""),"",_xlpm.v))) -> 2 | L4: =IF($A4="","",_xlfn.LET(_xlpm.v,_xlfn.XLOOKUP($A4,WorkOrdersDatabase[WO Number],WorkOrdersDatabase[Assigned To],""),IF(OR(_xlpm.v=0,_xlpm.v=""),"",_xlpm.v))) -> Kyle owry | S4: NOT READY | T4: =IF($A4="","",_xlfn.LET(_xlpm.miss,_xlfn.TEXTJOIN(", ",TRUE,IF($J4="OUT OF STOCK","Parts out of stock",""),IF($J4="Check Parts List","Check parts master",""),IF($L4="","Assign technician",""),IF($M4="","Add start time",""),IF($K4="","Add labour hours","")),IF($R4="Completed","Completed",IF($R4="Cancelled","Cancelled",IF($R4="Scheduled","Scheduled",IF(_xlpm.miss="","Ready to schedule",_xlpm.miss)))))) -> Parts out of stock, Add start time | X4: Parts LOW STOCK — can schedule, but reorder soon
A5: WO-000004 | B5: =IF($A5="","",_xlfn.XLOOKUP($A5,WorkOrdersDatabase[WO Number],WorkOrdersDatabase[Work Type],"")) -> Shutdown | C5: =IF($A5="","",_xlfn.XLOOKUP($A5,WorkOrdersDatabase[WO Number],WorkOrdersDatabase[Status],"")) -> Completed | D5: =IF($A5="","",_xlfn.XLOOKUP($A5,WorkOrdersDatabase[WO Number],WorkOrdersDatabase[Priority],"")) -> P2 - 1 day | E5: =IF($A5="","",_xlfn.XLOOKUP($A5,WorkOrdersDatabase[WO Number],WorkOrdersDatabase[Asset ID],"")) -> PUL-201 | F5: =IF($A5="","",_xlfn.XLOOKUP($A5,WorkOrdersDatabase[WO Number],WorkOrdersDatabase[Asset Name],"")) -> Puller | G5: =IF($A5="","",_xlfn.LET(_xlpm.v,_xlfn.XLOOKUP($A5,WorkOrdersDatabase[WO Number],WorkOrdersDatabase[Location],""),IF(OR(_xlpm.v=0,_xlpm.v=""),"",_xlpm.v))) -> Building 1 | H5: =IF($A5="","",_xlfn.LET(_xlpm.v,_xlfn.XLOOKUP($A5,WorkOrdersDatabase[WO Number],WorkOrdersDatabase[Problem Description],""),IF(OR(_xlpm.v=0,_xlpm.v=""),"",_xlpm.v))) -> Belt is broken | I5: =IF($A5="","",_xlfn.LET(_xlpm.v,_xlfn.XLOOKUP($A5,WorkOrdersDatabase[WO Number],WorkOrdersDatabase[Parts Used],""),IF(OR(_xlpm.v=0,_xlpm.v=""),"",_xlpm.v))) -> CH-40-001 | J5: =IF($A5="","",IF(OR(I5="",I5=0,I5="0"),"Not Required",IFERROR(_xlfn.XLOOKUP(I5,'Parts List'!A:A,'Parts List'!F:F,"Check Parts List"),"Check Parts List"))) -> IN STOCK | K5: =IF($A5="","",_xlfn.LET(_xlpm.v,_xlfn.XLOOKUP($A5,WorkOrdersDatabase[WO Number],WorkOrdersDatabase[Labour Hours],""),IF(OR(_xlpm.v=0,_xlpm.v=""),"",_xlpm.v))) -> 2 | L5: =IF($A5="","",_xlfn.LET(_xlpm.v,_xlfn.XLOOKUP($A5,WorkOrdersDatabase[WO Number],WorkOrdersDatabase[Assigned To],""),IF(OR(_xlpm.v=0,_xlpm.v=""),"",_xlpm.v))) -> Celine Doing | S5: NOT READY | T5: =IF($A5="","",_xlfn.LET(_xlpm.miss,_xlfn.TEXTJOIN(", ",TRUE,IF($J5="OUT OF STOCK","Parts out of stock",""),IF($J5="Check Parts List","Check parts master",""),IF($L5="","Assign technician",""),IF($M5="","Add start time",""),IF($K5="","Add labour hours","")),IF($R5="Completed","Completed",IF($R5="Cancelled","Cancelled",IF($R5="Scheduled","Scheduled",IF(_xlpm.miss="","Ready to schedule",_xlpm.miss)))))) -> Add start time | X5: READY to schedule — all requirements met
A6: WO-000005 | B6: =IF($A6="","",_xlfn.XLOOKUP($A6,WorkOrdersDatabase[WO Number],WorkOrdersDatabase[Work Type],"")) -> Compliance / Safety | C6: =IF($A6="","",_xlfn.XLOOKUP($A6,WorkOrdersDatabase[WO Number],WorkOrdersDatabase[Status],"")) -> Completed | D6: =IF($A6="","",_xlfn.XLOOKUP($A6,WorkOrdersDatabase[WO Number],WorkOrdersDatabase[Priority],"")) -> P3 - 7 Days | E6: =IF($A6="","",_xlfn.XLOOKUP($A6,WorkOrdersDatabase[WO Number],WorkOrdersDatabase[Asset ID],"")) -> PUL-201 | F6: =IF($A6="","",_xlfn.XLOOKUP($A6,WorkOrdersDatabase[WO Number],WorkOrdersDatabase[Asset Name],"")) -> Puller | G6: =IF($A6="","",_xlfn.LET(_xlpm.v,_xlfn.XLOOKUP($A6,WorkOrdersDatabase[WO Number],WorkOrdersDatabase[Location],""),IF(OR(_xlpm.v=0,_xlpm.v=""),"",_xlpm.v))) -> Building 1 | H6: =IF($A6="","",_xlfn.LET(_xlpm.v,_xlfn.XLOOKUP($A6,WorkOrdersDatabase[WO Number],WorkOrdersDatabase[Problem Description],""),IF(OR(_xlpm.v=0,_xlpm.v=""),"",_xlpm.v))) -> Puller is slipping | I6: =IF($A6="","",_xlfn.LET(_xlpm.v,_xlfn.XLOOKUP($A6,WorkOrdersDatabase[WO Number],WorkOrdersDatabase[Parts Used],""),IF(OR(_xlpm.v=0,_xlpm.v=""),"",_xlpm.v))) -> BR-6210-001 | J6: =IF($A6="","",IF(OR(I6="",I6=0,I6="0"),"Not Required",IFERROR(_xlfn.XLOOKUP(I6,'Parts List'!A:A,'Parts List'!F:F,"Check Parts List"),"Check Parts List"))) -> OUT OF STOCK | K6: =IF($A6="","",_xlfn.LET(_xlpm.v,_xlfn.XLOOKUP($A6,WorkOrdersDatabase[WO Number],WorkOrdersDatabase[Labour Hours],""),IF(OR(_xlpm.v=0,_xlpm.v=""),"",_xlpm.v))) -> 2 | L6: =IF($A6="","",_xlfn.LET(_xlpm.v,_xlfn.XLOOKUP($A6,WorkOrdersDatabase[WO Number],WorkOrdersDatabase[Assigned To],""),IF(OR(_xlpm.v=0,_xlpm.v=""),"",_xlpm.v))) -> Kyle owry | S6: NOT READY | T6: =IF($A6="","",_xlfn.LET(_xlpm.miss,_xlfn.TEXTJOIN(", ",TRUE,IF($J6="OUT OF STOCK","Parts out of stock",""),IF($J6="Check Parts List","Check parts master",""),IF($L6="","Assign technician",""),IF($M6="","Add start time",""),IF($K6="","Add labour hours","")),IF($R6="Completed","Completed",IF($R6="Cancelled","Cancelled",IF($R6="Scheduled","Scheduled",IF(_xlpm.miss="","Ready to schedule",_xlpm.miss)))))) -> Parts out of stock, Add start time | X6: Scheduled — already placed on the Weekly Schedule
A7: WO-000006 | B7: =IF($A7="","",_xlfn.XLOOKUP($A7,WorkOrdersDatabase[WO Number],WorkOrdersDatabase[Work Type],"")) -> Corrective | C7: =IF($A7="","",_xlfn.XLOOKUP($A7,WorkOrdersDatabase[WO Number],WorkOrdersDatabase[Status],"")) -> Open | D7: =IF($A7="","",_xlfn.XLOOKUP($A7,WorkOrdersDatabase[WO Number],WorkOrdersDatabase[Priority],"")) -> P5 - 45 Days | E7: =IF($A7="","",_xlfn.XLOOKUP($A7,WorkOrdersDatabase[WO Number],WorkOrdersDatabase[Asset ID],"")) -> OVN-001 | F7: =IF($A7="","",_xlfn.XLOOKUP($A7,WorkOrdersDatabase[WO Number],WorkOrdersDatabase[Asset Name],"")) -> Oven | G7: =IF($A7="","",_xlfn.LET(_xlpm.v,_xlfn.XLOOKUP($A7,WorkOrdersDatabase[WO Number],WorkOrdersDatabase[Location],""),IF(OR(_xlpm.v=0,_xlpm.v=""),"",_xlpm.v))) -> Building 2 | H7: =IF($A7="","",_xlfn.LET(_xlpm.v,_xlfn.XLOOKUP($A7,WorkOrdersDatabase[WO Number],WorkOrdersDatabase[Problem Description],""),IF(OR(_xlpm.v=0,_xlpm.v=""),"",_xlpm.v))) -> fd v fewf f rerer regef fdgsdfds | I7: =IF($A7="","",_xlfn.LET(_xlpm.v,_xlfn.XLOOKUP($A7,WorkOrdersDatabase[WO Number],WorkOrdersDatabase[Parts Used],""),IF(OR(_xlpm.v=0,_xlpm.v=""),"",_xlpm.v))) -> VB-5VX850-001 | J7: =IF($A7="","",IF(OR(I7="",I7=0,I7="0"),"Not Required",IFERROR(_xlfn.XLOOKUP(I7,'Parts List'!A:A,'Parts List'!F:F,"Check Parts List"),"Check Parts List"))) -> IN STOCK | K7: =IF($A7="","",_xlfn.LET(_xlpm.v,_xlfn.XLOOKUP($A7,WorkOrdersDatabase[WO Number],WorkOrdersDatabase[Labour Hours],""),IF(OR(_xlpm.v=0,_xlpm.v=""),"",_xlpm.v))) -> 1 | L7: =IF($A7="","",_xlfn.LET(_xlpm.v,_xlfn.XLOOKUP($A7,WorkOrdersDatabase[WO Number],WorkOrdersDatabase[Assigned To],""),IF(OR(_xlpm.v=0,_xlpm.v=""),"",_xlpm.v))) -> Celine Doing | M7: 10:00:00 | N7: 11:00:00 | O7: 2026-05-29 | P7: 2026-05-29T11:00:00 | Q7: Low | R7: Scheduled | S7: READY | T7: =IF($A7="","",_xlfn.LET(_xlpm.miss,_xlfn.TEXTJOIN(", ",TRUE,IF($J7="OUT OF STOCK","Parts out of stock",""),IF($J7="Check Parts List","Check parts master",""),IF($L7="","Assign technician",""),IF($M7="","Add start time",""),IF($K7="","Add labour hours","")),IF($R7="Completed","Completed",IF($R7="Cancelled","Cancelled",IF($R7="Scheduled","Scheduled",IF(_xlpm.miss="","Ready to schedule",_xlpm.miss)))))) -> Scheduled | W7: P1 | X7: P1 — Emergency priority (shown as red text)
A8: WO-000007 | B8: =IF($A8="","",_xlfn.XLOOKUP($A8,WorkOrdersDatabase[WO Number],WorkOrdersDatabase[Work Type],"")) -> Corrective | C8: =IF($A8="","",_xlfn.XLOOKUP($A8,WorkOrdersDatabase[WO Number],WorkOrdersDatabase[Status],"")) -> Closed | D8: =IF($A8="","",_xlfn.XLOOKUP($A8,WorkOrdersDatabase[WO Number],WorkOrdersDatabase[Priority],"")) -> P2 - 1 day | E8: =IF($A8="","",_xlfn.XLOOKUP($A8,WorkOrdersDatabase[WO Number],WorkOrdersDatabase[Asset ID],"")) -> PUL-201 | F8: =IF($A8="","",_xlfn.XLOOKUP($A8,WorkOrdersDatabase[WO Number],WorkOrdersDatabase[Asset Name],"")) -> Puller | G8: =IF($A8="","",_xlfn.LET(_xlpm.v,_xlfn.XLOOKUP($A8,WorkOrdersDatabase[WO Number],WorkOrdersDatabase[Location],""),IF(OR(_xlpm.v=0,_xlpm.v=""),"",_xlpm.v))) -> Building 2 | H8: =IF($A8="","",_xlfn.LET(_xlpm.v,_xlfn.XLOOKUP($A8,WorkOrdersDatabase[WO Number],WorkOrdersDatabase[Problem Description],""),IF(OR(_xlpm.v=0,_xlpm.v=""),"",_xlpm.v))) -> Pulling very slowly and jerky | I8: =IF($A8="","",_xlfn.LET(_xlpm.v,_xlfn.XLOOKUP($A8,WorkOrdersDatabase[WO Number],WorkOrdersDatabase[Parts Used],""),IF(OR(_xlpm.v=0,_xlpm.v=""),"",_xlpm.v))) -> VB-5VX850-001 | J8: =IF($A8="","",IF(OR(I8="",I8=0,I8="0"),"Not Required",IFERROR(_xlfn.XLOOKUP(I8,'Parts List'!A:A,'Parts List'!F:F,"Check Parts List"),"Check Parts List"))) -> IN STOCK | K8: =IF($A8="","",_xlfn.LET(_xlpm.v,_xlfn.XLOOKUP($A8,WorkOrdersDatabase[WO Number],WorkOrdersDatabase[Labour Hours],""),IF(OR(_xlpm.v=0,_xlpm.v=""),"",_xlpm.v))) -> 1 | L8: =IF($A8="","",_xlfn.LET(_xlpm.v,_xlfn.XLOOKUP($A8,WorkOrdersDatabase[WO Number],WorkOrdersDatabase[Assigned To],""),IF(OR(_xlpm.v=0,_xlpm.v=""),"",_xlpm.v))) -> Celine Doing | M8: 08:00:00 | N8: 09:00:00 | O8: 2026-05-29 | P8: 2026-05-29T09:00:00 | Q8: Low | R8: Scheduled | S8: READY | T8: =IF($A8="","",_xlfn.LET(_xlpm.miss,_xlfn.TEXTJOIN(", ",TRUE,IF($J8="OUT OF STOCK","Parts out of stock",""),IF($J8="Check Parts List","Check parts master",""),IF($L8="","Assign technician",""),IF($M8="","Add start time",""),IF($K8="","Add labour hours","")),IF($R8="Completed","Completed",IF($R8="Cancelled","Cancelled",IF($R8="Scheduled","Scheduled",IF(_xlpm.miss="","Ready to schedule",_xlpm.miss)))))) -> Scheduled | X8: Empty required field — technician or start time still missing
A9: WO-000008 | B9: =IF($A9="","",_xlfn.XLOOKUP($A9,WorkOrdersDatabase[WO Number],WorkOrdersDatabase[Work Type],"")) -> Corrective | C9: =IF($A9="","",_xlfn.XLOOKUP($A9,WorkOrdersDatabase[WO Number],WorkOrdersDatabase[Status],"")) -> Completed | D9: =IF($A9="","",_xlfn.XLOOKUP($A9,WorkOrdersDatabase[WO Number],WorkOrdersDatabase[Priority],"")) -> P1 - Emergency | E9: =IF($A9="","",_xlfn.XLOOKUP($A9,WorkOrdersDatabase[WO Number],WorkOrdersDatabase[Asset ID],"")) -> OVN-001 | F9: =IF($A9="","",_xlfn.XLOOKUP($A9,WorkOrdersDatabase[WO Number],WorkOrdersDatabase[Asset Name],"")) -> Oven | G9: =IF($A9="","",_xlfn.LET(_xlpm.v,_xlfn.XLOOKUP($A9,WorkOrdersDatabase[WO Number],WorkOrdersDatabase[Location],""),IF(OR(_xlpm.v=0,_xlpm.v=""),"",_xlpm.v))) -> Building 2 | H9: =IF($A9="","",_xlfn.LET(_xlpm.v,_xlfn.XLOOKUP($A9,WorkOrdersDatabase[WO Number],WorkOrdersDatabase[Problem Description],""),IF(OR(_xlpm.v=0,_xlpm.v=""),"",_xlpm.v))) -> Overheating always. | I9: =IF($A9="","",_xlfn.LET(_xlpm.v,_xlfn.XLOOKUP($A9,WorkOrdersDatabase[WO Number],WorkOrdersDatabase[Parts Used],""),IF(OR(_xlpm.v=0,_xlpm.v=""),"",_xlpm.v))) -> VLV-SOL-24VDC-001 | J9: =IF($A9="","",IF(OR(I9="",I9=0,I9="0"),"Not Required",IFERROR(_xlfn.XLOOKUP(I9,'Parts List'!A:A,'Parts List'!F:F,"Check Parts List"),"Check Parts List"))) -> IN STOCK | K9: =IF($A9="","",_xlfn.LET(_xlpm.v,_xlfn.XLOOKUP($A9,WorkOrdersDatabase[WO Number],WorkOrdersDatabase[Labour Hours],""),IF(OR(_xlpm.v=0,_xlpm.v=""),"",_xlpm.v))) -> 2 | L9: =IF($A9="","",_xlfn.LET(_xlpm.v,_xlfn.XLOOKUP($A9,WorkOrdersDatabase[WO Number],WorkOrdersDatabase[Assigned To],""),IF(OR(_xlpm.v=0,_xlpm.v=""),"",_xlpm.v))) -> Adam Smith | M9: 07:00:00 | N9: 09:00:00 | O9: 2026-06-01 | P9: 2026-06-01T09:00:00 | Q9: Low | R9: Scheduled | S9: READY | T9: =IF($A9="","",_xlfn.LET(_xlpm.miss,_xlfn.TEXTJOIN(", ",TRUE,IF($J9="OUT OF STOCK","Parts out of stock",""),IF($J9="Check Parts List","Check parts master",""),IF($L9="","Assign technician",""),IF($M9="","Add start time",""),IF($K9="","Add labour hours","")),IF($R9="Completed","Completed",IF($R9="Cancelled","Cancelled",IF($R9="Scheduled","Scheduled",IF(_xlpm.miss="","Ready to schedule",_xlpm.miss)))))) -> Scheduled
A10: WO-000009 | B10: =IF($A10="","",_xlfn.XLOOKUP($A10,WorkOrdersDatabase[WO Number],WorkOrdersDatabase[Work Type],"")) -> Corrective | C10: =IF($A10="","",_xlfn.XLOOKUP($A10,WorkOrdersDatabase[WO Number],WorkOrdersDatabase[Status],"")) -> Open | D10: =IF($A10="","",_xlfn.XLOOKUP($A10,WorkOrdersDatabase[WO Number],WorkOrdersDatabase[Priority],"")) -> P1 - Emergency | E10: =IF($A10="","",_xlfn.XLOOKUP($A10,WorkOrdersDatabase[WO Number],WorkOrdersDatabase[Asset ID],"")) -> PUL-201 | F10: =IF($A10="","",_xlfn.XLOOKUP($A10,WorkOrdersDatabase[WO Number],WorkOrdersDatabase[Asset Name],"")) -> Puller | G10: =IF($A10="","",_xlfn.LET(_xlpm.v,_xlfn.XLOOKUP($A10,WorkOrdersDatabase[WO Number],WorkOrdersDatabase[Location],""),IF(OR(_xlpm.v=0,_xlpm.v=""),"",_xlpm.v))) -> Building 3 | H10: =IF($A10="","",_xlfn.LET(_xlpm.v,_xlfn.XLOOKUP($A10,WorkOrdersDatabase[WO Number],WorkOrdersDatabase[Problem Description],""),IF(OR(_xlpm.v=0,_xlpm.v=""),"",_xlpm.v))) -> Chain broken, again | I10: =IF($A10="","",_xlfn.LET(_xlpm.v,_xlfn.XLOOKUP($A10,WorkOrdersDatabase[WO Number],WorkOrdersDatabase[Parts Used],""),IF(OR(_xlpm.v=0,_xlpm.v=""),"",_xlpm.v))) ->  | J10: =IF($A10="","",IF(OR(I10="",I10=0,I10="0"),"Not Required",IFERROR(_xlfn.XLOOKUP(I10,'Parts List'!A:A,'Parts List'!F:F,"Check Parts List"),"Check Parts List"))) -> Not Required | K10: =IF($A10="","",_xlfn.LET(_xlpm.v,_xlfn.XLOOKUP($A10,WorkOrdersDatabase[WO Number],WorkOrdersDatabase[Labour Hours],""),IF(OR(_xlpm.v=0,_xlpm.v=""),"",_xlpm.v))) ->  | L10: =IF($A10="","",_xlfn.LET(_xlpm.v,_xlfn.XLOOKUP($A10,WorkOrdersDatabase[WO Number],WorkOrdersDatabase[Assigned To],""),IF(OR(_xlpm.v=0,_xlpm.v=""),"",_xlpm.v))) -> Adam Smith | S10: NOT READY | T10: =IF($A10="","",_xlfn.LET(_xlpm.miss,_xlfn.TEXTJOIN(", ",TRUE,IF($J10="OUT OF STOCK","Parts out of stock",""),IF($J10="Check Parts List","Check parts master",""),IF($L10="","Assign technician",""),IF($M10="","Add start time",""),IF($K10="","Add labour hours","")),IF($R10="Completed","Completed",IF($R10="Cancelled","Cancelled",IF($R10="Scheduled","Scheduled",IF(_xlpm.miss="","Ready to schedule",_xlpm.miss)))))) -> Add start time, Add labour hours
A11: WO-000010 | B11: =IF($A11="","",_xlfn.XLOOKUP($A11,WorkOrdersDatabase[WO Number],WorkOrdersDatabase[Work Type],"")) -> Corrective | C11: =IF($A11="","",_xlfn.XLOOKUP($A11,WorkOrdersDatabase[WO Number],WorkOrdersDatabase[Status],"")) -> Completed | D11: =IF($A11="","",_xlfn.XLOOKUP($A11,WorkOrdersDatabase[WO Number],WorkOrdersDatabase[Priority],"")) -> P4 - 30 Days | E11: =IF($A11="","",_xlfn.XLOOKUP($A11,WorkOrdersDatabase[WO Number],WorkOrdersDatabase[Asset ID],"")) -> PRF-411 | F11: =IF($A11="","",_xlfn.XLOOKUP($A11,WorkOrdersDatabase[WO Number],WorkOrdersDatabase[Asset Name],"")) -> Proofer | G11: =IF($A11="","",_xlfn.LET(_xlpm.v,_xlfn.XLOOKUP($A11,WorkOrdersDatabase[WO Number],WorkOrdersDatabase[Location],""),IF(OR(_xlpm.v=0,_xlpm.v=""),"",_xlpm.v))) -> Building 3 | H11: =IF($A11="","",_xlfn.LET(_xlpm.v,_xlfn.XLOOKUP($A11,WorkOrdersDatabase[WO Number],WorkOrdersDatabase[Problem Description],""),IF(OR(_xlpm.v=0,_xlpm.v=""),"",_xlpm.v))) -> Not raising fast enough | I11: =IF($A11="","",_xlfn.LET(_xlpm.v,_xlfn.XLOOKUP($A11,WorkOrdersDatabase[WO Number],WorkOrdersDatabase[Parts Used],""),IF(OR(_xlpm.v=0,_xlpm.v=""),"",_xlpm.v))) -> CH-40-001 | J11: =IF($A11="","",IF(OR(I11="",I11=0,I11="0"),"Not Required",IFERROR(_xlfn.XLOOKUP(I11,'Parts List'!A:A,'Parts List'!F:F,"Check Parts List"),"Check Parts List"))) -> IN STOCK | K11: =IF($A11="","",_xlfn.LET(_xlpm.v,_xlfn.XLOOKUP($A11,WorkOrdersDatabase[WO Number],WorkOrdersDatabase[Labour Hours],""),IF(OR(_xlpm.v=0,_xlpm.v=""),"",_xlpm.v))) -> 2 | L11: =IF($A11="","",_xlfn.LET(_xlpm.v,_xlfn.XLOOKUP($A11,WorkOrdersDatabase[WO Number],WorkOrdersDatabase[Assigned To],""),IF(OR(_xlpm.v=0,_xlpm.v=""),"",_xlpm.v))) -> Kyle owry | S11: NOT READY | T11: =IF($A11="","",_xlfn.LET(_xlpm.miss,_xlfn.TEXTJOIN(", ",TRUE,IF($J11="OUT OF STOCK","Parts out of stock",""),IF($J11="Check Parts List","Check parts master",""),IF($L11="","Assign technician",""),IF($M11="","Add start time",""),IF($K11="","Add labour hours","")),IF($R11="Completed","Completed",IF($R11="Cancelled","Cancelled",IF($R11="Scheduled","Scheduled",IF(_xlpm.miss="","Ready to schedule",_xlpm.miss)))))) -> Add start time
A12: WO-000011 | B12: =IF($A12="","",_xlfn.XLOOKUP($A12,WorkOrdersDatabase[WO Number],WorkOrdersDatabase[Work Type],"")) -> Preventive | C12: =IF($A12="","",_xlfn.XLOOKUP($A12,WorkOrdersDatabase[WO Number],WorkOrdersDatabase[Status],"")) -> Completed | D12: =IF($A12="","",_xlfn.XLOOKUP($A12,WorkOrdersDatabase[WO Number],WorkOrdersDatabase[Priority],"")) -> P1 - Emergency | E12: =IF($A12="","",_xlfn.XLOOKUP($A12,WorkOrdersDatabase[WO Number],WorkOrdersDatabase[Asset ID],"")) -> OVN-001 | F12: =IF($A12="","",_xlfn.XLOOKUP($A12,WorkOrdersDatabase[WO Number],WorkOrdersDatabase[Asset Name],"")) -> Oven | G12: =IF($A12="","",_xlfn.LET(_xlpm.v,_xlfn.XLOOKUP($A12,WorkOrdersDatabase[WO Number],WorkOrdersDatabase[Location],""),IF(OR(_xlpm.v=0,_xlpm.v=""),"",_xlpm.v))) -> Building 1 | H12: =IF($A12="","",_xlfn.LET(_xlpm.v,_xlfn.XLOOKUP($A12,WorkOrdersDatabase[WO Number],WorkOrdersDatabase[Problem Description],""),IF(OR(_xlpm.v=0,_xlpm.v=""),"",_xlpm.v))) -> It isi not working | I12: =IF($A12="","",_xlfn.LET(_xlpm.v,_xlfn.XLOOKUP($A12,WorkOrdersDatabase[WO Number],WorkOrdersDatabase[Parts Used],""),IF(OR(_xlpm.v=0,_xlpm.v=""),"",_xlpm.v))) -> LUB-EP2-001 | J12: =IF($A12="","",IF(OR(I12="",I12=0,I12="0"),"Not Required",IFERROR(_xlfn.XLOOKUP(I12,'Parts List'!A:A,'Parts List'!F:F,"Check Parts List"),"Check Parts List"))) -> LOW STOCK | K12: =IF($A12="","",_xlfn.LET(_xlpm.v,_xlfn.XLOOKUP($A12,WorkOrdersDatabase[WO Number],WorkOrdersDatabase[Labour Hours],""),IF(OR(_xlpm.v=0,_xlpm.v=""),"",_xlpm.v))) -> 2 | L12: =IF($A12="","",_xlfn.LET(_xlpm.v,_xlfn.XLOOKUP($A12,WorkOrdersDatabase[WO Number],WorkOrdersDatabase[Assigned To],""),IF(OR(_xlpm.v=0,_xlpm.v=""),"",_xlpm.v))) -> Adam Smith | S12: NOT READY | T12: =IF($A12="","",_xlfn.LET(_xlpm.miss,_xlfn.TEXTJOIN(", ",TRUE,IF($J12="OUT OF STOCK","Parts out of stock",""),IF($J12="Check Parts List","Check parts master",""),IF($L12="","Assign technician",""),IF($M12="","Add start time",""),IF($K12="","Add labour hours","")),IF($R12="Completed","Completed",IF($R12="Cancelled","Cancelled",IF($R12="Scheduled","Scheduled",IF(_xlpm.miss="","Ready to schedule",_xlpm.miss)))))) -> Add start time
A13: WO-000012 | B13: =IF($A13="","",_xlfn.XLOOKUP($A13,WorkOrdersDatabase[WO Number],WorkOrdersDatabase[Work Type],"")) -> Corrective | C13: =IF($A13="","",_xlfn.XLOOKUP($A13,WorkOrdersDatabase[WO Number],WorkOrdersDatabase[Status],"")) -> Completed | D13: =IF($A13="","",_xlfn.XLOOKUP($A13,WorkOrdersDatabase[WO Number],WorkOrdersDatabase[Priority],"")) -> P2 - 1 day | E13: =IF($A13="","",_xlfn.XLOOKUP($A13,WorkOrdersDatabase[WO Number],WorkOrdersDatabase[Asset ID],"")) -> EXT-311 | F13: =IF($A13="","",_xlfn.XLOOKUP($A13,WorkOrdersDatabase[WO Number],WorkOrdersDatabase[Asset Name],"")) -> Extruder | G13: =IF($A13="","",_xlfn.LET(_xlpm.v,_xlfn.XLOOKUP($A13,WorkOrdersDatabase[WO Number],WorkOrdersDatabase[Location],""),IF(OR(_xlpm.v=0,_xlpm.v=""),"",_xlpm.v))) -> Building 1 | H13: =IF($A13="","",_xlfn.LET(_xlpm.v,_xlfn.XLOOKUP($A13,WorkOrdersDatabase[WO Number],WorkOrdersDatabase[Problem Description],""),IF(OR(_xlpm.v=0,_xlpm.v=""),"",_xlpm.v))) -> Not extruding product | I13: =IF($A13="","",_xlfn.LET(_xlpm.v,_xlfn.XLOOKUP($A13,WorkOrdersDatabase[WO Number],WorkOrdersDatabase[Parts Used],""),IF(OR(_xlpm.v=0,_xlpm.v=""),"",_xlpm.v))) -> MTR-1HP-575V-001 | J13: =IF($A13="","",IF(OR(I13="",I13=0,I13="0"),"Not Required",IFERROR(_xlfn.XLOOKUP(I13,'Parts List'!A:A,'Parts List'!F:F,"Check Parts List"),"Check Parts List"))) -> LOW STOCK | K13: =IF($A13="","",_xlfn.LET(_xlpm.v,_xlfn.XLOOKUP($A13,WorkOrdersDatabase[WO Number],WorkOrdersDatabase[Labour Hours],""),IF(OR(_xlpm.v=0,_xlpm.v=""),"",_xlpm.v))) -> 2 | L13: =IF($A13="","",_xlfn.LET(_xlpm.v,_xlfn.XLOOKUP($A13,WorkOrdersDatabase[WO Number],WorkOrdersDatabase[Assigned To],""),IF(OR(_xlpm.v=0,_xlpm.v=""),"",_xlpm.v))) -> King Kong | S13: NOT READY | T13: =IF($A13="","",_xlfn.LET(_xlpm.miss,_xlfn.TEXTJOIN(", ",TRUE,IF($J13="OUT OF STOCK","Parts out of stock",""),IF($J13="Check Parts List","Check parts master",""),IF($L13="","Assign technician",""),IF($M13="","Add start time",""),IF($K13="","Add labour hours","")),IF($R13="Completed","Completed",IF($R13="Cancelled","Cancelled",IF($R13="Scheduled","Scheduled",IF(_xlpm.miss="","Ready to schedule",_xlpm.miss)))))) -> Add start time
A14: WO-000013 | B14: =IF($A14="","",_xlfn.XLOOKUP($A14,WorkOrdersDatabase[WO Number],WorkOrdersDatabase[Work Type],"")) -> Corrective | C14: =IF($A14="","",_xlfn.XLOOKUP($A14,WorkOrdersDatabase[WO Number],WorkOrdersDatabase[Status],"")) -> Open | D14: =IF($A14="","",_xlfn.XLOOKUP($A14,WorkOrdersDatabase[WO Number],WorkOrdersDatabase[Priority],"")) -> P1 - Emergency | E14: =IF($A14="","",_xlfn.XLOOKUP($A14,WorkOrdersDatabase[WO Number],WorkOrdersDatabase[Asset ID],"")) -> OVN-001 | F14: =IF($A14="","",_xlfn.XLOOKUP($A14,WorkOrdersDatabase[WO Number],WorkOrdersDatabase[Asset Name],"")) -> Oven | G14: =IF($A14="","",_xlfn.LET(_xlpm.v,_xlfn.XLOOKUP($A14,WorkOrdersDatabase[WO Number],WorkOrdersDatabase[Location],""),IF(OR(_xlpm.v=0,_xlpm.v=""),"",_xlpm.v))) -> Building 2 | H14: =IF($A14="","",_xlfn.LET(_xlpm.v,_xlfn.XLOOKUP($A14,WorkOrdersDatabase[WO Number],WorkOrdersDatabase[Problem Description],""),IF(OR(_xlpm.v=0,_xlpm.v=""),"",_xlpm.v))) -> not heating fast enough | I14: =IF($A14="","",_xlfn.LET(_xlpm.v,_xlfn.XLOOKUP($A14,WorkOrdersDatabase[WO Number],WorkOrdersDatabase[Parts Used],""),IF(OR(_xlpm.v=0,_xlpm.v=""),"",_xlpm.v))) ->  | J14: =IF($A14="","",IF(OR(I14="",I14=0,I14="0"),"Not Required",IFERROR(_xlfn.XLOOKUP(I14,'Parts List'!A:A,'Parts List'!F:F,"Check Parts List"),"Check Parts List"))) -> Not Required | K14: =IF($A14="","",_xlfn.LET(_xlpm.v,_xlfn.XLOOKUP($A14,WorkOrdersDatabase[WO Number],WorkOrdersDatabase[Labour Hours],""),IF(OR(_xlpm.v=0,_xlpm.v=""),"",_xlpm.v))) ->  | L14: =IF($A14="","",_xlfn.LET(_xlpm.v,_xlfn.XLOOKUP($A14,WorkOrdersDatabase[WO Number],WorkOrdersDatabase[Assigned To],""),IF(OR(_xlpm.v=0,_xlpm.v=""),"",_xlpm.v))) -> Celine Doing | S14: =IF($A14="","",IF(AND(OR($J14="IN STOCK",$J14="ORDER",$J14="Not Required"),$L14<>"",$M14<>"",$O14<>"",$R14<>"Completed",$R14<>"Cancelled"),"READY","NOT READY")) -> NOT READY | T14: =IF($A14="","",_xlfn.LET(_xlpm.miss,_xlfn.TEXTJOIN(", ",TRUE,IF($J14="OUT OF STOCK","Parts out of stock",""),IF($J14="Check Parts List","Check parts master",""),IF($L14="","Assign technician",""),IF($M14="","Add start time",""),IF($K14="","Add labour hours","")),IF($R14="Completed","Completed",IF($R14="Cancelled","Cancelled",IF($R14="Scheduled","Scheduled",IF(_xlpm.miss="","Ready to schedule",_xlpm.miss)))))) -> Add start time, Add labour hours
A15: WO-000014 | B15: =IF($A15="","",_xlfn.XLOOKUP($A15,WorkOrdersDatabase[WO Number],WorkOrdersDatabase[Work Type],"")) -> Preventive | C15: =IF($A15="","",_xlfn.XLOOKUP($A15,WorkOrdersDatabase[WO Number],WorkOrdersDatabase[Status],"")) -> Completed | D15: =IF($A15="","",_xlfn.XLOOKUP($A15,WorkOrdersDatabase[WO Number],WorkOrdersDatabase[Priority],"")) -> P5 - 45 Days | E15: =IF($A15="","",_xlfn.XLOOKUP($A15,WorkOrdersDatabase[WO Number],WorkOrdersDatabase[Asset ID],"")) -> OVN-001 | F15: =IF($A15="","",_xlfn.XLOOKUP($A15,WorkOrdersDatabase[WO Number],WorkOrdersDatabase[Asset Name],"")) -> Oven | G15: =IF($A15="","",_xlfn.LET(_xlpm.v,_xlfn.XLOOKUP($A15,WorkOrdersDatabase[WO Number],WorkOrdersDatabase[Location],""),IF(OR(_xlpm.v=0,_xlpm.v=""),"",_xlpm.v))) ->  | H15: =IF($A15="","",_xlfn.LET(_xlpm.v,_xlfn.XLOOKUP($A15,WorkOrdersDatabase[WO Number],WorkOrdersDatabase[Problem Description],""),IF(OR(_xlpm.v=0,_xlpm.v=""),"",_xlpm.v))) -> Weekly Oven Conveyor Inspection & Lubrication PM ID: PM-00001 Instructions: Inspect belts, chains, bearings, lubrication points, guards, and abnormal vibration/noise. | I15: =IF($A15="","",_xlfn.LET(_xlpm.v,_xlfn.XLOOKUP($A15,WorkOrdersDatabase[WO Number],WorkOrdersDatabase[Parts Used],""),IF(OR(_xlpm.v=0,_xlpm.v=""),"",_xlpm.v))) -> BR-6201 | J15: =IF($A15="","",IF(OR(I15="",I15=0,I15="0"),"Not Required",IFERROR(_xlfn.XLOOKUP(I15,'Parts List'!A:A,'Parts List'!F:F,"Check Parts List"),"Check Parts List"))) -> LOW STOCK | K15: =IF($A15="","",_xlfn.LET(_xlpm.v,_xlfn.XLOOKUP($A15,WorkOrdersDatabase[WO Number],WorkOrdersDatabase[Labour Hours],""),IF(OR(_xlpm.v=0,_xlpm.v=""),"",_xlpm.v))) -> 1.5 | L15: =IF($A15="","",_xlfn.LET(_xlpm.v,_xlfn.XLOOKUP($A15,WorkOrdersDatabase[WO Number],WorkOrdersDatabase[Assigned To],""),IF(OR(_xlpm.v=0,_xlpm.v=""),"",_xlpm.v))) ->  | M15: 06:00:00 | N15: 07:30:00 | O15: 2026-06-03 | P15: 2026-06-03T07:30:00 | Q15: None | R15: Scheduled | S15: NOT READY | T15: =IF($A15="","",_xlfn.LET(_xlpm.miss,_xlfn.TEXTJOIN(", ",TRUE,IF($J15="OUT OF STOCK","Parts out of stock",""),IF($J15="Check Parts List","Check parts master",""),IF($L15="","Assign technician",""),IF($M15="","Add start time",""),IF($K15="","Add labour hours","")),IF($R15="Completed","Completed",IF($R15="Cancelled","Cancelled",IF($R15="Scheduled","Scheduled",IF(_xlpm.miss="","Ready to schedule",_xlpm.miss)))))) -> Scheduled
A16: WO-000015 | B16: =IF($A16="","",_xlfn.XLOOKUP($A16,WorkOrdersDatabase[WO Number],WorkOrdersDatabase[Work Type],"")) -> Inspection | C16: =IF($A16="","",_xlfn.XLOOKUP($A16,WorkOrdersDatabase[WO Number],WorkOrdersDatabase[Status],"")) -> Completed | D16: =IF($A16="","",_xlfn.XLOOKUP($A16,WorkOrdersDatabase[WO Number],WorkOrdersDatabase[Priority],"")) -> P5 - 45 Days | E16: =IF($A16="","",_xlfn.XLOOKUP($A16,WorkOrdersDatabase[WO Number],WorkOrdersDatabase[Asset ID],"")) -> PUL-201 | F16: =IF($A16="","",_xlfn.XLOOKUP($A16,WorkOrdersDatabase[WO Number],WorkOrdersDatabase[Asset Name],"")) -> Puller | G16: =IF($A16="","",_xlfn.LET(_xlpm.v,_xlfn.XLOOKUP($A16,WorkOrdersDatabase[WO Number],WorkOrdersDatabase[Location],""),IF(OR(_xlpm.v=0,_xlpm.v=""),"",_xlpm.v))) ->  | H16: =IF($A16="","",_xlfn.LET(_xlpm.v,_xlfn.XLOOKUP($A16,WorkOrdersDatabase[WO Number],WorkOrdersDatabase[Problem Description],""),IF(OR(_xlpm.v=0,_xlpm.v=""),"",_xlpm.v))) -> Monthly Electrical Puller PM PM ID: PM-00002 Instructions: Perform thermography of cabinets | I16: =IF($A16="","",_xlfn.LET(_xlpm.v,_xlfn.XLOOKUP($A16,WorkOrdersDatabase[WO Number],WorkOrdersDatabase[Parts Used],""),IF(OR(_xlpm.v=0,_xlpm.v=""),"",_xlpm.v))) -> VLV-SOL-24VDC-001 | J16: =IF($A16="","",IF(OR(I16="",I16=0,I16="0"),"Not Required",IFERROR(_xlfn.XLOOKUP(I16,'Parts List'!A:A,'Parts List'!F:F,"Check Parts List"),"Check Parts List"))) -> IN STOCK | K16: =IF($A16="","",_xlfn.LET(_xlpm.v,_xlfn.XLOOKUP($A16,WorkOrdersDatabase[WO Number],WorkOrdersDatabase[Labour Hours],""),IF(OR(_xlpm.v=0,_xlpm.v=""),"",_xlpm.v))) -> 3 | L16: =IF($A16="","",_xlfn.LET(_xlpm.v,_xlfn.XLOOKUP($A16,WorkOrdersDatabase[WO Number],WorkOrdersDatabase[Assigned To],""),IF(OR(_xlpm.v=0,_xlpm.v=""),"",_xlpm.v))) ->  | M16: 08:00:00 | N16: 11:00:00 | O16: 2026-06-04 | P16: 2026-06-04T11:00:00 | Q16: Shutdown Required | R16: Scheduled | S16: NOT READY | T16: =IF($A16="","",_xlfn.LET(_xlpm.miss,_xlfn.TEXTJOIN(", ",TRUE,IF($J16="OUT OF STOCK","Parts out of stock",""),IF($J16="Check Parts List","Check parts master",""),IF($L16="","Assign technician",""),IF($M16="","Add start time",""),IF($K16="","Add labour hours","")),IF($R16="Completed","Completed",IF($R16="Cancelled","Cancelled",IF($R16="Scheduled","Scheduled",IF(_xlpm.miss="","Ready to schedule",_xlpm.miss)))))) -> Scheduled
A17: WO-000016 | B17: =IF($A17="","",_xlfn.XLOOKUP($A17,WorkOrdersDatabase[WO Number],WorkOrdersDatabase[Work Type],"")) -> Preventive | C17: =IF($A17="","",_xlfn.XLOOKUP($A17,WorkOrdersDatabase[WO Number],WorkOrdersDatabase[Status],"")) -> Completed | D17: =IF($A17="","",_xlfn.XLOOKUP($A17,WorkOrdersDatabase[WO Number],WorkOrdersDatabase[Priority],"")) -> P5 - 45 Days | E17: =IF($A17="","",_xlfn.XLOOKUP($A17,WorkOrdersDatabase[WO Number],WorkOrdersDatabase[Asset ID],"")) -> OVN-001 | F17: =IF($A17="","",_xlfn.XLOOKUP($A17,WorkOrdersDatabase[WO Number],WorkOrdersDatabase[Asset Name],"")) -> Oven | G17: =IF($A17="","",_xlfn.LET(_xlpm.v,_xlfn.XLOOKUP($A17,WorkOrdersDatabase[WO Number],WorkOrdersDatabase[Location],""),IF(OR(_xlpm.v=0,_xlpm.v=""),"",_xlpm.v))) ->  | H17: =IF($A17="","",_xlfn.LET(_xlpm.v,_xlfn.XLOOKUP($A17,WorkOrdersDatabase[WO Number],WorkOrdersDatabase[Problem Description],""),IF(OR(_xlpm.v=0,_xlpm.v=""),"",_xlpm.v))) -> Weekly Oven Conveyor Inspection & Lubrication PM ID: PM-00001 Instructions: | I17: =IF($A17="","",_xlfn.LET(_xlpm.v,_xlfn.XLOOKUP($A17,WorkOrdersDatabase[WO Number],WorkOrdersDatabase[Parts Used],""),IF(OR(_xlpm.v=0,_xlpm.v=""),"",_xlpm.v))) -> VB-B65 x2 | J17: =IF($A17="","",IF(OR(I17="",I17=0,I17="0"),"Not Required",IFERROR(_xlfn.XLOOKUP(I17,'Parts List'!A:A,'Parts List'!F:F,"Check Parts List"),"Check Parts List"))) -> Check Parts List | K17: =IF($A17="","",_xlfn.LET(_xlpm.v,_xlfn.XLOOKUP($A17,WorkOrdersDatabase[WO Number],WorkOrdersDatabase[Labour Hours],""),IF(OR(_xlpm.v=0,_xlpm.v=""),"",_xlpm.v))) -> 1.5 | L17: =IF($A17="","",_xlfn.LET(_xlpm.v,_xlfn.XLOOKUP($A17,WorkOrdersDatabase[WO Number],WorkOrdersDatabase[Assigned To],""),IF(OR(_xlpm.v=0,_xlpm.v=""),"",_xlpm.v))) -> Adam Smith | M17: 10:00:00 | N17: 11:30:00 | O17: 2026-06-06 | P17: 2026-06-06T11:30:00 | Q17: Medium | R17: Scheduled | S17: NOT READY | T17: =IF($A17="","",_xlfn.LET(_xlpm.miss,_xlfn.TEXTJOIN(", ",TRUE,IF($J17="OUT OF STOCK","Parts out of stock",""),IF($J17="Check Parts List","Check parts master",""),IF($L17="","Assign technician",""),IF($M17="","Add start time",""),IF($K17="","Add labour hours","")),IF($R17="Completed","Completed",IF($R17="Cancelled","Cancelled",IF($R17="Scheduled","Scheduled",IF(_xlpm.miss="","Ready to schedule",_xlpm.miss)))))) -> Scheduled
A18: WO-000017 | B18: =IF($A18="","",_xlfn.XLOOKUP($A18,WorkOrdersDatabase[WO Number],WorkOrdersDatabase[Work Type],"")) -> Preventive | C18: =IF($A18="","",_xlfn.XLOOKUP($A18,WorkOrdersDatabase[WO Number],WorkOrdersDatabase[Status],"")) -> Open | D18: =IF($A18="","",_xlfn.XLOOKUP($A18,WorkOrdersDatabase[WO Number],WorkOrdersDatabase[Priority],"")) -> P5 - 45 Days | E18: =IF($A18="","",_xlfn.XLOOKUP($A18,WorkOrdersDatabase[WO Number],WorkOrdersDatabase[Asset ID],"")) -> SAW-211 | F18: =IF($A18="","",_xlfn.XLOOKUP($A18,WorkOrdersDatabase[WO Number],WorkOrdersDatabase[Asset Name],"")) -> Saw | G18: =IF($A18="","",_xlfn.LET(_xlpm.v,_xlfn.XLOOKUP($A18,WorkOrdersDatabase[WO Number],WorkOrdersDatabase[Location],""),IF(OR(_xlpm.v=0,_xlpm.v=""),"",_xlpm.v))) ->  | H18: =IF($A18="","",_xlfn.LET(_xlpm.v,_xlfn.XLOOKUP($A18,WorkOrdersDatabase[WO Number],WorkOrdersDatabase[Problem Description],""),IF(OR(_xlpm.v=0,_xlpm.v=""),"",_xlpm.v))) -> Bi-Weekly Mechanical Saw PM PM ID: PM-00001 Instructions: | I18: =IF($A18="","",_xlfn.LET(_xlpm.v,_xlfn.XLOOKUP($A18,WorkOrdersDatabase[WO Number],WorkOrdersDatabase[Parts Used],""),IF(OR(_xlpm.v=0,_xlpm.v=""),"",_xlpm.v))) ->  | J18: =IF($A18="","",IF(OR(I18="",I18=0,I18="0"),"Not Required",IFERROR(_xlfn.XLOOKUP(I18,'Parts List'!A:A,'Parts List'!F:F,"Check Parts List"),"Check Parts List"))) -> Not Required | K18: =IF($A18="","",_xlfn.LET(_xlpm.v,_xlfn.XLOOKUP($A18,WorkOrdersDatabase[WO Number],WorkOrdersDatabase[Labour Hours],""),IF(OR(_xlpm.v=0,_xlpm.v=""),"",_xlpm.v))) -> 2 | L18: =IF($A18="","",_xlfn.LET(_xlpm.v,_xlfn.XLOOKUP($A18,WorkOrdersDatabase[WO Number],WorkOrdersDatabase[Assigned To],""),IF(OR(_xlpm.v=0,_xlpm.v=""),"",_xlpm.v))) -> Celine Doing | M18: 06:00:00 | N18: 08:00:00 | O18: 2026-06-05 | P18: 2026-06-05T08:00:00 | Q18: None | R18: Scheduled | S18: =IF($A18="","",IF(AND(OR($J18="IN STOCK",$J18="ORDER",$J18="Not Required"),$L18<>"",$M18<>"",$O18<>"",$R18<>"Completed",$R18<>"Cancelled"),"READY","NOT READY")) -> READY | T18: =IF($A18="","",_xlfn.LET(_xlpm.miss,_xlfn.TEXTJOIN(", ",TRUE,IF($J18="OUT OF STOCK","Parts out of stock",""),IF($J18="Check Parts List","Check parts master",""),IF($L18="","Assign technician",""),IF($M18="","Add start time",""),IF($K18="","Add labour hours","")),IF($R18="Completed","Completed",IF($R18="Cancelled","Cancelled",IF($R18="Scheduled","Scheduled",IF(_xlpm.miss="","Ready to schedule",_xlpm.miss)))))) -> Scheduled
A19: WO-000018 | B19: =IF($A19="","",_xlfn.XLOOKUP($A19,WorkOrdersDatabase[WO Number],WorkOrdersDatabase[Work Type],"")) -> Preventive | C19: =IF($A19="","",_xlfn.XLOOKUP($A19,WorkOrdersDatabase[WO Number],WorkOrdersDatabase[Status],"")) -> Completed | D19: =IF($A19="","",_xlfn.XLOOKUP($A19,WorkOrdersDatabase[WO Number],WorkOrdersDatabase[Priority],"")) -> P5 - 45 Days | E19: =IF($A19="","",_xlfn.XLOOKUP($A19,WorkOrdersDatabase[WO Number],WorkOrdersDatabase[Asset ID],"")) -> OVN-001 | F19: =IF($A19="","",_xlfn.XLOOKUP($A19,WorkOrdersDatabase[WO Number],WorkOrdersDatabase[Asset Name],"")) -> Oven | G19: =IF($A19="","",_xlfn.LET(_xlpm.v,_xlfn.XLOOKUP($A19,WorkOrdersDatabase[WO Number],WorkOrdersDatabase[Location],""),IF(OR(_xlpm.v=0,_xlpm.v=""),"",_xlpm.v))) ->  | H19: =IF($A19="","",_xlfn.LET(_xlpm.v,_xlfn.XLOOKUP($A19,WorkOrdersDatabase[WO Number],WorkOrdersDatabase[Problem Description],""),IF(OR(_xlpm.v=0,_xlpm.v=""),"",_xlpm.v))) -> Weekly Oven Conveyor Inspection & Lubrication PM ID: PM-00001 Instructions: | I19: =IF($A19="","",_xlfn.LET(_xlpm.v,_xlfn.XLOOKUP($A19,WorkOrdersDatabase[WO Number],WorkOrdersDatabase[Parts Used],""),IF(OR(_xlpm.v=0,_xlpm.v=""),"",_xlpm.v))) -> LUB-EP2-001 | J19: =IF($A19="","",IF(OR(I19="",I19=0,I19="0"),"Not Required",IFERROR(_xlfn.XLOOKUP(I19,'Parts List'!A:A,'Parts List'!F:F,"Check Parts List"),"Check Parts List"))) -> LOW STOCK | K19: =IF($A19="","",_xlfn.LET(_xlpm.v,_xlfn.XLOOKUP($A19,WorkOrdersDatabase[WO Number],WorkOrdersDatabase[Labour Hours],""),IF(OR(_xlpm.v=0,_xlpm.v=""),"",_xlpm.v))) -> 1.5 | L19: =IF($A19="","",_xlfn.LET(_xlpm.v,_xlfn.XLOOKUP($A19,WorkOrdersDatabase[WO Number],WorkOrdersDatabase[Assigned To],""),IF(OR(_xlpm.v=0,_xlpm.v=""),"",_xlpm.v))) -> Adam Smith | M19: 14:00:00 | N19: 15:30:00 | O19: 2026-06-05 | P19: 2026-06-05T15:30:00 | Q19: Shutdown Required | R19: Scheduled | S19: NOT READY | T19: =IF($A19="","",_xlfn.LET(_xlpm.miss,_xlfn.TEXTJOIN(", ",TRUE,IF($J19="OUT OF STOCK","Parts out of stock",""),IF($J19="Check Parts List","Check parts master",""),IF($L19="","Assign technician",""),IF($M19="","Add start time",""),IF($K19="","Add labour hours","")),IF($R19="Completed","Completed",IF($R19="Cancelled","Cancelled",IF($R19="Scheduled","Scheduled",IF(_xlpm.miss="","Ready to schedule",_xlpm.miss)))))) -> Scheduled
A20: WO-000019 | B20: =IF($A20="","",_xlfn.XLOOKUP($A20,WorkOrdersDatabase[WO Number],WorkOrdersDatabase[Work Type],"")) -> Preventive | C20: =IF($A20="","",_xlfn.XLOOKUP($A20,WorkOrdersDatabase[WO Number],WorkOrdersDatabase[Status],"")) -> Completed | D20: =IF($A20="","",_xlfn.XLOOKUP($A20,WorkOrdersDatabase[WO Number],WorkOrdersDatabase[Priority],"")) -> P5 - 45 Days | E20: =IF($A20="","",_xlfn.XLOOKUP($A20,WorkOrdersDatabase[WO Number],WorkOrdersDatabase[Asset ID],"")) -> OVN-001 | F20: =IF($A20="","",_xlfn.XLOOKUP($A20,WorkOrdersDatabase[WO Number],WorkOrdersDatabase[Asset Name],"")) -> Oven | G20: =IF($A20="","",_xlfn.LET(_xlpm.v,_xlfn.XLOOKUP($A20,WorkOrdersDatabase[WO Number],WorkOrdersDatabase[Location],""),IF(OR(_xlpm.v=0,_xlpm.v=""),"",_xlpm.v))) ->  | H20: =IF($A20="","",_xlfn.LET(_xlpm.v,_xlfn.XLOOKUP($A20,WorkOrdersDatabase[WO Number],WorkOrdersDatabase[Problem Description],""),IF(OR(_xlpm.v=0,_xlpm.v=""),"",_xlpm.v))) -> Weekly Oven Conveyor Inspection & Lubrication PM ID: PM-00001 Instructions: 1. Inspect belts 2. Inspect roller chains 3. Lubricate bearings | I20: =IF($A20="","",_xlfn.LET(_xlpm.v,_xlfn.XLOOKUP($A20,WorkOrdersDatabase[WO Number],WorkOrdersDatabase[Parts Used],""),IF(OR(_xlpm.v=0,_xlpm.v=""),"",_xlpm.v))) ->  | J20: =IF($A20="","",IF(OR(I20="",I20=0,I20="0"),"Not Required",IFERROR(_xlfn.XLOOKUP(I20,'Parts List'!A:A,'Parts List'!F:F,"Check Parts List"),"Check Parts List"))) -> Not Required | K20: =IF($A20="","",_xlfn.LET(_xlpm.v,_xlfn.XLOOKUP($A20,WorkOrdersDatabase[WO Number],WorkOrdersDatabase[Labour Hours],""),IF(OR(_xlpm.v=0,_xlpm.v=""),"",_xlpm.v))) -> 1.5 | L20: =IF($A20="","",_xlfn.LET(_xlpm.v,_xlfn.XLOOKUP($A20,WorkOrdersDatabase[WO Number],WorkOrdersDatabase[Assigned To],""),IF(OR(_xlpm.v=0,_xlpm.v=""),"",_xlpm.v))) -> Adam Smith | M20: 16:00:00 | N20: 17:30:00 | O20: 2026-06-06 | P20: 2026-06-06T17:30:00 | Q20: Shutdown Required | R20: Scheduled | S20: READY | T20: =IF($A20="","",_xlfn.LET(_xlpm.miss,_xlfn.TEXTJOIN(", ",TRUE,IF($J20="OUT OF STOCK","Parts out of stock",""),IF($J20="Check Parts List","Check parts master",""),IF($L20="","Assign technician",""),IF($M20="","Add start time",""),IF($K20="","Add labour hours","")),IF($R20="Completed","Completed",IF($R20="Cancelled","Cancelled",IF($R20="Scheduled","Scheduled",IF(_xlpm.miss="","Ready to schedule",_xlpm.miss)))))) -> Scheduled
A21: WO-000020 | B21: =IF($A21="","",_xlfn.XLOOKUP($A21,WorkOrdersDatabase[WO Number],WorkOrdersDatabase[Work Type],"")) -> Preventive | C21: =IF($A21="","",_xlfn.XLOOKUP($A21,WorkOrdersDatabase[WO Number],WorkOrdersDatabase[Status],"")) -> Completed | D21: =IF($A21="","",_xlfn.XLOOKUP($A21,WorkOrdersDatabase[WO Number],WorkOrdersDatabase[Priority],"")) -> P5 - 45 Days | E21: =IF($A21="","",_xlfn.XLOOKUP($A21,WorkOrdersDatabase[WO Number],WorkOrdersDatabase[Asset ID],"")) -> OVN-001 | F21: =IF($A21="","",_xlfn.XLOOKUP($A21,WorkOrdersDatabase[WO Number],WorkOrdersDatabase[Asset Name],"")) -> Oven | G21: =IF($A21="","",_xlfn.LET(_xlpm.v,_xlfn.XLOOKUP($A21,WorkOrdersDatabase[WO Number],WorkOrdersDatabase[Location],""),IF(OR(_xlpm.v=0,_xlpm.v=""),"",_xlpm.v))) ->  | H21: =IF($A21="","",_xlfn.LET(_xlpm.v,_xlfn.XLOOKUP($A21,WorkOrdersDatabase[WO Number],WorkOrdersDatabase[Problem Description],""),IF(OR(_xlpm.v=0,_xlpm.v=""),"",_xlpm.v))) -> Weekly Oven Conveyor Inspection & Lubrication PM ID: PM-00001 Instructions: 1. Inspect conveyor belts 2. Inspect chains 3. Lubricate bearings | I21: =IF($A21="","",_xlfn.LET(_xlpm.v,_xlfn.XLOOKUP($A21,WorkOrdersDatabase[WO Number],WorkOrdersDatabase[Parts Used],""),IF(OR(_xlpm.v=0,_xlpm.v=""),"",_xlpm.v))) -> CH-40-001 | J21: =IF($A21="","",IF(OR(I21="",I21=0,I21="0"),"Not Required",IFERROR(_xlfn.XLOOKUP(I21,'Parts List'!A:A,'Parts List'!F:F,"Check Parts List"),"Check Parts List"))) -> IN STOCK | K21: =IF($A21="","",_xlfn.LET(_xlpm.v,_xlfn.XLOOKUP($A21,WorkOrdersDatabase[WO Number],WorkOrdersDatabase[Labour Hours],""),IF(OR(_xlpm.v=0,_xlpm.v=""),"",_xlpm.v))) -> 1.5 | L21: =IF($A21="","",_xlfn.LET(_xlpm.v,_xlfn.XLOOKUP($A21,WorkOrdersDatabase[WO Number],WorkOrdersDatabase[Assigned To],""),IF(OR(_xlpm.v=0,_xlpm.v=""),"",_xlpm.v))) -> Adam Smith | M21: 12:00:00 | N21: 13:30:00 | O21: 2026-06-06 | P21: 2026-06-06T13:30:00 | Q21: Shutdown Required | R21: Scheduled | S21: READY | T21: =IF($A21="","",_xlfn.LET(_xlpm.miss,_xlfn.TEXTJOIN(", ",TRUE,IF($J21="OUT OF STOCK","Parts out of stock",""),IF($J21="Check Parts List","Check parts master",""),IF($L21="","Assign technician",""),IF($M21="","Add start time",""),IF($K21="","Add labour hours","")),IF($R21="Completed","Completed",IF($R21="Cancelled","Cancelled",IF($R21="Scheduled","Scheduled",IF(_xlpm.miss="","Ready to schedule",_xlpm.miss)))))) -> Scheduled
A22: WO-000021 | B22: =IF($A22="","",_xlfn.XLOOKUP($A22,WorkOrdersDatabase[WO Number],WorkOrdersDatabase[Work Type],"")) -> Preventive | C22: =IF($A22="","",_xlfn.XLOOKUP($A22,WorkOrdersDatabase[WO Number],WorkOrdersDatabase[Status],"")) -> Completed | D22: =IF($A22="","",_xlfn.XLOOKUP($A22,WorkOrdersDatabase[WO Number],WorkOrdersDatabase[Priority],"")) -> P5 - 45 Days | E22: =IF($A22="","",_xlfn.XLOOKUP($A22,WorkOrdersDatabase[WO Number],WorkOrdersDatabase[Asset ID],"")) -> SAW-211 | F22: =IF($A22="","",_xlfn.XLOOKUP($A22,WorkOrdersDatabase[WO Number],WorkOrdersDatabase[Asset Name],"")) -> Saw | G22: =IF($A22="","",_xlfn.LET(_xlpm.v,_xlfn.XLOOKUP($A22,WorkOrdersDatabase[WO Number],WorkOrdersDatabase[Location],""),IF(OR(_xlpm.v=0,_xlpm.v=""),"",_xlpm.v))) ->  | H22: =IF($A22="","",_xlfn.LET(_xlpm.v,_xlfn.XLOOKUP($A22,WorkOrdersDatabase[WO Number],WorkOrdersDatabase[Problem Description],""),IF(OR(_xlpm.v=0,_xlpm.v=""),"",_xlpm.v))) -> Bi-Weekly Mechanical Saw PM PM ID: PM-00003 Instructions: 1. Inspect saw blade condition 2. Check blade guard 3. Inspect drive belt tension | I22: =IF($A22="","",_xlfn.LET(_xlpm.v,_xlfn.XLOOKUP($A22,WorkOrdersDatabase[WO Number],WorkOrdersDatabase[Parts Used],""),IF(OR(_xlpm.v=0,_xlpm.v=""),"",_xlpm.v))) -> VB-5VX850-001 | J22: =IF($A22="","",IF(OR(I22="",I22=0,I22="0"),"Not Required",IFERROR(_xlfn.XLOOKUP(I22,'Parts List'!A:A,'Parts List'!F:F,"Check Parts List"),"Check Parts List"))) -> IN STOCK | K22: =IF($A22="","",_xlfn.LET(_xlpm.v,_xlfn.XLOOKUP($A22,WorkOrdersDatabase[WO Number],WorkOrdersDatabase[Labour Hours],""),IF(OR(_xlpm.v=0,_xlpm.v=""),"",_xlpm.v))) -> 2 | L22: =IF($A22="","",_xlfn.LET(_xlpm.v,_xlfn.XLOOKUP($A22,WorkOrdersDatabase[WO Number],WorkOrdersDatabase[Assigned To],""),IF(OR(_xlpm.v=0,_xlpm.v=""),"",_xlpm.v))) -> Celine Doing | M22: 07:00:00 | N22: 09:00:00 | O22: 2026-06-05 | P22: 2026-06-05T09:00:00 | Q22: Shutdown Required | R22: Scheduled | S22: READY | T22: =IF($A22="","",_xlfn.LET(_xlpm.miss,_xlfn.TEXTJOIN(", ",TRUE,IF($J22="OUT OF STOCK","Parts out of stock",""),IF($J22="Check Parts List","Check parts master",""),IF($L22="","Assign technician",""),IF($M22="","Add start time",""),IF($K22="","Add labour hours","")),IF($R22="Completed","Completed",IF($R22="Cancelled","Cancelled",IF($R22="Scheduled","Scheduled",IF(_xlpm.miss="","Ready to schedule",_xlpm.miss)))))) -> Scheduled
A23: WO-000022 | B23: =IF($A23="","",_xlfn.XLOOKUP($A23,WorkOrdersDatabase[WO Number],WorkOrdersDatabase[Work Type],"")) -> Corrective | C23: =IF($A23="","",_xlfn.XLOOKUP($A23,WorkOrdersDatabase[WO Number],WorkOrdersDatabase[Status],"")) -> Completed | D23: =IF($A23="","",_xlfn.XLOOKUP($A23,WorkOrdersDatabase[WO Number],WorkOrdersDatabase[Priority],"")) -> P1 - Emergency | E23: =IF($A23="","",_xlfn.XLOOKUP($A23,WorkOrdersDatabase[WO Number],WorkOrdersDatabase[Asset ID],"")) -> OVN-001 | F23: =IF($A23="","",_xlfn.XLOOKUP($A23,WorkOrdersDatabase[WO Number],WorkOrdersDatabase[Asset Name],"")) -> Oven | G23: =IF($A23="","",_xlfn.LET(_xlpm.v,_xlfn.XLOOKUP($A23,WorkOrdersDatabase[WO Number],WorkOrdersDatabase[Location],""),IF(OR(_xlpm.v=0,_xlpm.v=""),"",_xlpm.v))) -> Building 1 | H23: =IF($A23="","",_xlfn.LET(_xlpm.v,_xlfn.XLOOKUP($A23,WorkOrdersDatabase[WO Number],WorkOrdersDatabase[Problem Description],""),IF(OR(_xlpm.v=0,_xlpm.v=""),"",_xlpm.v))) -> Oven not heating up fast enough | I23: =IF($A23="","",_xlfn.LET(_xlpm.v,_xlfn.XLOOKUP($A23,WorkOrdersDatabase[WO Number],WorkOrdersDatabase[Parts Used],""),IF(OR(_xlpm.v=0,_xlpm.v=""),"",_xlpm.v))) ->  | J23: =IF($A23="","",IF(OR(I23="",I23=0,I23="0"),"Not Required",IFERROR(_xlfn.XLOOKUP(I23,'Parts List'!A:A,'Parts List'!F:F,"Check Parts List"),"Check Parts List"))) -> Not Required | K23: =IF($A23="","",_xlfn.LET(_xlpm.v,_xlfn.XLOOKUP($A23,WorkOrdersDatabase[WO Number],WorkOrdersDatabase[Labour Hours],""),IF(OR(_xlpm.v=0,_xlpm.v=""),"",_xlpm.v))) -> 2 | L23: =IF($A23="","",_xlfn.LET(_xlpm.v,_xlfn.XLOOKUP($A23,WorkOrdersDatabase[WO Number],WorkOrdersDatabase[Assigned To],""),IF(OR(_xlpm.v=0,_xlpm.v=""),"",_xlpm.v))) -> Adam Smith | S23: NOT READY | T23: =IF($A23="","",_xlfn.LET(_xlpm.miss,_xlfn.TEXTJOIN(", ",TRUE,IF($J23="OUT OF STOCK","Parts out of stock",""),IF($J23="Check Parts List","Check parts master",""),IF($L23="","Assign technician",""),IF($M23="","Add start time",""),IF($K23="","Add labour hours","")),IF($R23="Completed","Completed",IF($R23="Cancelled","Cancelled",IF($R23="Scheduled","Scheduled",IF(_xlpm.miss="","Ready to schedule",_xlpm.miss)))))) -> Add start time
A24: WO-000023 | B24: =IF($A24="","",_xlfn.XLOOKUP($A24,WorkOrdersDatabase[WO Number],WorkOrdersDatabase[Work Type],"")) -> Corrective | C24: =IF($A24="","",_xlfn.XLOOKUP($A24,WorkOrdersDatabase[WO Number],WorkOrdersDatabase[Status],"")) -> Open | D24: =IF($A24="","",_xlfn.XLOOKUP($A24,WorkOrdersDatabase[WO Number],WorkOrdersDatabase[Priority],"")) -> P1 - Emergency | E24: =IF($A24="","",_xlfn.XLOOKUP($A24,WorkOrdersDatabase[WO Number],WorkOrdersDatabase[Asset ID],"")) -> EXT-WH-004 | F24: =IF($A24="","",_xlfn.XLOOKUP($A24,WorkOrdersDatabase[WO Number],WorkOrdersDatabase[Asset Name],"")) -> Overhead Crane | G24: =IF($A24="","",_xlfn.LET(_xlpm.v,_xlfn.XLOOKUP($A24,WorkOrdersDatabase[WO Number],WorkOrdersDatabase[Location],""),IF(OR(_xlpm.v=0,_xlpm.v=""),"",_xlpm.v))) -> Production / Yard | H24: =IF($A24="","",_xlfn.LET(_xlpm.v,_xlfn.XLOOKUP($A24,WorkOrdersDatabase[WO Number],WorkOrdersDatabase[Problem Description],""),IF(OR(_xlpm.v=0,_xlpm.v=""),"",_xlpm.v))) ->  | I24: =IF($A24="","",_xlfn.LET(_xlpm.v,_xlfn.XLOOKUP($A24,WorkOrdersDatabase[WO Number],WorkOrdersDatabase[Parts Used],""),IF(OR(_xlpm.v=0,_xlpm.v=""),"",_xlpm.v))) ->  | J24: =IF($A24="","",IF(OR(I24="",I24=0,I24="0"),"Not Required",IFERROR(_xlfn.XLOOKUP(I24,'Parts List'!A:A,'Parts List'!F:F,"Check Parts List"),"Check Parts List"))) -> Not Required | K24: =IF($A24="","",_xlfn.LET(_xlpm.v,_xlfn.XLOOKUP($A24,WorkOrdersDatabase[WO Number],WorkOrdersDatabase[Labour Hours],""),IF(OR(_xlpm.v=0,_xlpm.v=""),"",_xlpm.v))) ->  | L24: =IF($A24="","",_xlfn.LET(_xlpm.v,_xlfn.XLOOKUP($A24,WorkOrdersDatabase[WO Number],WorkOrdersDatabase[Assigned To],""),IF(OR(_xlpm.v=0,_xlpm.v=""),"",_xlpm.v))) ->  | S24: NOT READY | T24: =IF($A24="","",_xlfn.LET(_xlpm.miss,_xlfn.TEXTJOIN(", ",TRUE,IF($J24="OUT OF STOCK","Parts out of stock",""),IF($J24="Check Parts List","Check parts master",""),IF($L24="","Assign technician",""),IF($M24="","Add start time",""),IF($K24="","Add labour hours","")),IF($R24="Completed","Completed",IF($R24="Cancelled","Cancelled",IF($R24="Scheduled","Scheduled",IF(_xlpm.miss="","Ready to schedule",_xlpm.miss)))))) -> Assign technician, Add start time, Add labour hours
A25: WO-000024 | B25: =IF($A25="","",_xlfn.XLOOKUP($A25,WorkOrdersDatabase[WO Number],WorkOrdersDatabase[Work Type],"")) -> Installation | C25: =IF($A25="","",_xlfn.XLOOKUP($A25,WorkOrdersDatabase[WO Number],WorkOrdersDatabase[Status],"")) -> Open | D25: =IF($A25="","",_xlfn.XLOOKUP($A25,WorkOrdersDatabase[WO Number],WorkOrdersDatabase[Priority],"")) -> P4 - 30 Days | E25: =IF($A25="","",_xlfn.XLOOKUP($A25,WorkOrdersDatabase[WO Number],WorkOrdersDatabase[Asset ID],"")) -> EXT-WH-003 | F25: =IF($A25="","",_xlfn.XLOOKUP($A25,WorkOrdersDatabase[WO Number],WorkOrdersDatabase[Asset Name],"")) -> Pipe Rack System | G25: =IF($A25="","",_xlfn.LET(_xlpm.v,_xlfn.XLOOKUP($A25,WorkOrdersDatabase[WO Number],WorkOrdersDatabase[Location],""),IF(OR(_xlpm.v=0,_xlpm.v=""),"",_xlpm.v))) -> Yard | H25: =IF($A25="","",_xlfn.LET(_xlpm.v,_xlfn.XLOOKUP($A25,WorkOrdersDatabase[WO Number],WorkOrdersDatabase[Problem Description],""),IF(OR(_xlpm.v=0,_xlpm.v=""),"",_xlpm.v))) ->  | I25: =IF($A25="","",_xlfn.LET(_xlpm.v,_xlfn.XLOOKUP($A25,WorkOrdersDatabase[WO Number],WorkOrdersDatabase[Parts Used],""),IF(OR(_xlpm.v=0,_xlpm.v=""),"",_xlpm.v))) ->  | J25: =IF($A25="","",IF(OR(I25="",I25=0,I25="0"),"Not Required",IFERROR(_xlfn.XLOOKUP(I25,'Parts List'!A:A,'Parts List'!F:F,"Check Parts List"),"Check Parts List"))) -> Not Required | K25: =IF($A25="","",_xlfn.LET(_xlpm.v,_xlfn.XLOOKUP($A25,WorkOrdersDatabase[WO Number],WorkOrdersDatabase[Labour Hours],""),IF(OR(_xlpm.v=0,_xlpm.v=""),"",_xlpm.v))) ->  | L25: =IF($A25="","",_xlfn.LET(_xlpm.v,_xlfn.XLOOKUP($A25,WorkOrdersDatabase[WO Number],WorkOrdersDatabase[Assigned To],""),IF(OR(_xlpm.v=0,_xlpm.v=""),"",_xlpm.v))) -> Adam Smith | S25: NOT READY | T25: =IF($A25="","",_xlfn.LET(_xlpm.miss,_xlfn.TEXTJOIN(", ",TRUE,IF($J25="OUT OF STOCK","Parts out of stock",""),IF($J25="Check Parts List","Check parts master",""),IF($L25="","Assign technician",""),IF($M25="","Add start time",""),IF($K25="","Add labour hours","")),IF($R25="Completed","Completed",IF($R25="Cancelled","Cancelled",IF($R25="Scheduled","Scheduled",IF(_xlpm.miss="","Ready to schedule",_xlpm.miss)))))) -> Add start time, Add labour hours
A26: WO-000025 | B26: =IF($A26="","",_xlfn.XLOOKUP($A26,WorkOrdersDatabase[WO Number],WorkOrdersDatabase[Work Type],"")) -> Shutdown | C26: =IF($A26="","",_xlfn.XLOOKUP($A26,WorkOrdersDatabase[WO Number],WorkOrdersDatabase[Status],"")) -> Open | D26: =IF($A26="","",_xlfn.XLOOKUP($A26,WorkOrdersDatabase[WO Number],WorkOrdersDatabase[Priority],"")) -> P5 - 45 Days | E26: =IF($A26="","",_xlfn.XLOOKUP($A26,WorkOrdersDatabase[WO Number],WorkOrdersDatabase[Asset ID],"")) -> EXT-WH-005 | F26: =IF($A26="","",_xlfn.XLOOKUP($A26,WorkOrdersDatabase[WO Number],WorkOrdersDatabase[Asset Name],"")) -> Dock Door 1 | G26: =IF($A26="","",_xlfn.LET(_xlpm.v,_xlfn.XLOOKUP($A26,WorkOrdersDatabase[WO Number],WorkOrdersDatabase[Location],""),IF(OR(_xlpm.v=0,_xlpm.v=""),"",_xlpm.v))) -> Shipping Dock | H26: =IF($A26="","",_xlfn.LET(_xlpm.v,_xlfn.XLOOKUP($A26,WorkOrdersDatabase[WO Number],WorkOrdersDatabase[Problem Description],""),IF(OR(_xlpm.v=0,_xlpm.v=""),"",_xlpm.v))) -> Door is not closing. Seems like the v-belt is broken. | I26: =IF($A26="","",_xlfn.LET(_xlpm.v,_xlfn.XLOOKUP($A26,WorkOrdersDatabase[WO Number],WorkOrdersDatabase[Parts Used],""),IF(OR(_xlpm.v=0,_xlpm.v=""),"",_xlpm.v))) ->  | J26: =IF($A26="","",IF(OR(I26="",I26=0,I26="0"),"Not Required",IFERROR(_xlfn.XLOOKUP(I26,'Parts List'!A:A,'Parts List'!F:F,"Check Parts List"),"Check Parts List"))) -> Not Required | K26: =IF($A26="","",_xlfn.LET(_xlpm.v,_xlfn.XLOOKUP($A26,WorkOrdersDatabase[WO Number],WorkOrdersDatabase[Labour Hours],""),IF(OR(_xlpm.v=0,_xlpm.v=""),"",_xlpm.v))) ->  | L26: =IF($A26="","",_xlfn.LET(_xlpm.v,_xlfn.XLOOKUP($A26,WorkOrdersDatabase[WO Number],WorkOrdersDatabase[Assigned To],""),IF(OR(_xlpm.v=0,_xlpm.v=""),"",_xlpm.v))) -> King Kong | S26: NOT READY | T26: =IF($A26="","",_xlfn.LET(_xlpm.miss,_xlfn.TEXTJOIN(", ",TRUE,IF($J26="OUT OF STOCK","Parts out of stock",""),IF($J26="Check Parts List","Check parts master",""),IF($L26="","Assign technician",""),IF($M26="","Add start time",""),IF($K26="","Add labour hours","")),IF($R26="Completed","Completed",IF($R26="Cancelled","Cancelled",IF($R26="Scheduled","Scheduled",IF(_xlpm.miss="","Ready to schedule",_xlpm.miss)))))) -> Add start time, Add labour hours
A27: WO-000026 | B27: =IF($A27="","",_xlfn.XLOOKUP($A27,WorkOrdersDatabase[WO Number],WorkOrdersDatabase[Work Type],"")) -> Calibration | C27: =IF($A27="","",_xlfn.XLOOKUP($A27,WorkOrdersDatabase[WO Number],WorkOrdersDatabase[Status],"")) -> Open | D27: =IF($A27="","",_xlfn.XLOOKUP($A27,WorkOrdersDatabase[WO Number],WorkOrdersDatabase[Priority],"")) -> P3 - 7 Days | E27: =IF($A27="","",_xlfn.XLOOKUP($A27,WorkOrdersDatabase[WO Number],WorkOrdersDatabase[Asset ID],"")) -> EXT-WH-003 | F27: =IF($A27="","",_xlfn.XLOOKUP($A27,WorkOrdersDatabase[WO Number],WorkOrdersDatabase[Asset Name],"")) -> Pipe Rack System | G27: =IF($A27="","",_xlfn.LET(_xlpm.v,_xlfn.XLOOKUP($A27,WorkOrdersDatabase[WO Number],WorkOrdersDatabase[Location],""),IF(OR(_xlpm.v=0,_xlpm.v=""),"",_xlpm.v))) -> Yard | H27: =IF($A27="","",_xlfn.LET(_xlpm.v,_xlfn.XLOOKUP($A27,WorkOrdersDatabase[WO Number],WorkOrdersDatabase[Problem Description],""),IF(OR(_xlpm.v=0,_xlpm.v=""),"",_xlpm.v))) -> Racking needs re-anchoring. | I27: =IF($A27="","",_xlfn.LET(_xlpm.v,_xlfn.XLOOKUP($A27,WorkOrdersDatabase[WO Number],WorkOrdersDatabase[Parts Used],""),IF(OR(_xlpm.v=0,_xlpm.v=""),"",_xlpm.v))) ->  | J27: =IF($A27="","",IF(OR(I27="",I27=0,I27="0"),"Not Required",IFERROR(_xlfn.XLOOKUP(I27,'Parts List'!A:A,'Parts List'!F:F,"Check Parts List"),"Check Parts List"))) -> Not Required | K27: =IF($A27="","",_xlfn.LET(_xlpm.v,_xlfn.XLOOKUP($A27,WorkOrdersDatabase[WO Number],WorkOrdersDatabase[Labour Hours],""),IF(OR(_xlpm.v=0,_xlpm.v=""),"",_xlpm.v))) ->  | L27: =IF($A27="","",_xlfn.LET(_xlpm.v,_xlfn.XLOOKUP($A27,WorkOrdersDatabase[WO Number],WorkOrdersDatabase[Assigned To],""),IF(OR(_xlpm.v=0,_xlpm.v=""),"",_xlpm.v))) -> Adam Smith | S27: NOT READY | T27: =IF($A27="","",_xlfn.LET(_xlpm.miss,_xlfn.TEXTJOIN(", ",TRUE,IF($J27="OUT OF STOCK","Parts out of stock",""),IF($J27="Check Parts List","Check parts master",""),IF($L27="","Assign technician",""),IF($M27="","Add start time",""),IF($K27="","Add labour hours","")),IF($R27="Completed","Completed",IF($R27="Cancelled","Cancelled",IF($R27="Scheduled","Scheduled",IF(_xlpm.miss="","Ready to schedule",_xlpm.miss)))))) -> Add start time, Add labour hours
A28: PM-000001 | B28: =IF($A28="","",_xlfn.XLOOKUP($A28,WorkOrdersDatabase[WO Number],WorkOrdersDatabase[Work Type],"")) -> Preventive | C28: =IF($A28="","",_xlfn.XLOOKUP($A28,WorkOrdersDatabase[WO Number],WorkOrdersDatabase[Status],"")) -> Open | D28: =IF($A28="","",_xlfn.XLOOKUP($A28,WorkOrdersDatabase[WO Number],WorkOrdersDatabase[Priority],"")) -> P5 - Planned | E28: =IF($A28="","",_xlfn.XLOOKUP($A28,WorkOrdersDatabase[WO Number],WorkOrdersDatabase[Asset ID],"")) -> OVN-001 | F28: Oven | G28: =IF($A28="","",_xlfn.LET(_xlpm.v,_xlfn.XLOOKUP($A28,WorkOrdersDatabase[WO Number],WorkOrdersDatabase[Location],""),IF(OR(_xlpm.v=0,_xlpm.v=""),"",_xlpm.v))) ->  | H28: =IF($A28="","",_xlfn.LET(_xlpm.v,_xlfn.XLOOKUP($A28,WorkOrdersDatabase[WO Number],WorkOrdersDatabase[Problem Description],""),IF(OR(_xlpm.v=0,_xlpm.v=""),"",_xlpm.v))) -> Weekly Oven Conveyor Inspection & Lubrication PM ID: PM-00001 Instructions: Inspect belts, chains, bearings, lubrication points, guards, and abnormal vibration/noise. | I28: =IF($A28="","",_xlfn.LET(_xlpm.v,_xlfn.XLOOKUP($A28,WorkOrdersDatabase[WO Number],WorkOrdersDatabase[Parts Used],""),IF(OR(_xlpm.v=0,_xlpm.v=""),"",_xlpm.v))) ->  | J28: =IF($A28="","",IF(OR(I28="",I28=0,I28="0"),"Not Required",IFERROR(_xlfn.XLOOKUP(I28,'Parts List'!A:A,'Parts List'!F:F,"Check Parts List"),"Check Parts List"))) -> Not Required | K28: =IF($A28="","",_xlfn.LET(_xlpm.v,_xlfn.XLOOKUP($A28,WorkOrdersDatabase[WO Number],WorkOrdersDatabase[Labour Hours],""),IF(OR(_xlpm.v=0,_xlpm.v=""),"",_xlpm.v))) ->  | L28: =IF($A28="","",_xlfn.LET(_xlpm.v,_xlfn.XLOOKUP($A28,WorkOrdersDatabase[WO Number],WorkOrdersDatabase[Assigned To],""),IF(OR(_xlpm.v=0,_xlpm.v=""),"",_xlpm.v))) -> Adam Smith | S28: NOT READY | T28: =IF($A28="","",_xlfn.LET(_xlpm.miss,_xlfn.TEXTJOIN(", ",TRUE,IF($J28="OUT OF STOCK","Parts out of stock",""),IF($J28="Check Parts List","Check parts master",""),IF($L28="","Assign technician",""),IF($M28="","Add start time",""),IF($K28="","Add labour hours","")),IF($R28="Completed","Completed",IF($R28="Cancelled","Cancelled",IF($R28="Scheduled","Scheduled",IF(_xlpm.miss="","Ready to schedule",_xlpm.miss)))))) -> Add start time, Add labour hours
A29: PM-000002 | B29: =IF($A29="","",_xlfn.XLOOKUP($A29,WorkOrdersDatabase[WO Number],WorkOrdersDatabase[Work Type],"")) -> Inspection | C29: =IF($A29="","",_xlfn.XLOOKUP($A29,WorkOrdersDatabase[WO Number],WorkOrdersDatabase[Status],"")) -> Open | D29: =IF($A29="","",_xlfn.XLOOKUP($A29,WorkOrdersDatabase[WO Number],WorkOrdersDatabase[Priority],"")) -> P5 - Planned | E29: =IF($A29="","",_xlfn.XLOOKUP($A29,WorkOrdersDatabase[WO Number],WorkOrdersDatabase[Asset ID],"")) -> PUL-201 | F29: Puller | G29: =IF($A29="","",_xlfn.LET(_xlpm.v,_xlfn.XLOOKUP($A29,WorkOrdersDatabase[WO Number],WorkOrdersDatabase[Location],""),IF(OR(_xlpm.v=0,_xlpm.v=""),"",_xlpm.v))) ->  | H29: =IF($A29="","",_xlfn.LET(_xlpm.v,_xlfn.XLOOKUP($A29,WorkOrdersDatabase[WO Number],WorkOrdersDatabase[Problem Description],""),IF(OR(_xlpm.v=0,_xlpm.v=""),"",_xlpm.v))) -> Monthly Electrical Puller PM PM ID: PM-00006 Instructions: Perform thermography of cabinets | I29: =IF($A29="","",_xlfn.LET(_xlpm.v,_xlfn.XLOOKUP($A29,WorkOrdersDatabase[WO Number],WorkOrdersDatabase[Parts Used],""),IF(OR(_xlpm.v=0,_xlpm.v=""),"",_xlpm.v))) ->  | J29: =IF($A29="","",IF(OR(I29="",I29=0,I29="0"),"Not Required",IFERROR(_xlfn.XLOOKUP(I29,'Parts List'!A:A,'Parts List'!F:F,"Check Parts List"),"Check Parts List"))) -> Not Required | K29: =IF($A29="","",_xlfn.LET(_xlpm.v,_xlfn.XLOOKUP($A29,WorkOrdersDatabase[WO Number],WorkOrdersDatabase[Labour Hours],""),IF(OR(_xlpm.v=0,_xlpm.v=""),"",_xlpm.v))) ->  | L29: =IF($A29="","",_xlfn.LET(_xlpm.v,_xlfn.XLOOKUP($A29,WorkOrdersDatabase[WO Number],WorkOrdersDatabase[Assigned To],""),IF(OR(_xlpm.v=0,_xlpm.v=""),"",_xlpm.v))) -> King Kong | S29: NOT READY | T29: =IF($A29="","",_xlfn.LET(_xlpm.miss,_xlfn.TEXTJOIN(", ",TRUE,IF($J29="OUT OF STOCK","Parts out of stock",""),IF($J29="Check Parts List","Check parts master",""),IF($L29="","Assign technician",""),IF($M29="","Add start time",""),IF($K29="","Add labour hours","")),IF($R29="Completed","Completed",IF($R29="Cancelled","Cancelled",IF($R29="Scheduled","Scheduled",IF(_xlpm.miss="","Ready to schedule",_xlpm.miss)))))) -> Add start time, Add labour hours
A30: PM-000003 | B30: =IF($A30="","",_xlfn.XLOOKUP($A30,WorkOrdersDatabase[WO Number],WorkOrdersDatabase[Work Type],"")) -> Preventive | C30: =IF($A30="","",_xlfn.XLOOKUP($A30,WorkOrdersDatabase[WO Number],WorkOrdersDatabase[Status],"")) -> Open | D30: =IF($A30="","",_xlfn.XLOOKUP($A30,WorkOrdersDatabase[WO Number],WorkOrdersDatabase[Priority],"")) -> P5 - Planned | E30: =IF($A30="","",_xlfn.XLOOKUP($A30,WorkOrdersDatabase[WO Number],WorkOrdersDatabase[Asset ID],"")) -> SAW-211 | F30: Saw | G30: =IF($A30="","",_xlfn.LET(_xlpm.v,_xlfn.XLOOKUP($A30,WorkOrdersDatabase[WO Number],WorkOrdersDatabase[Location],""),IF(OR(_xlpm.v=0,_xlpm.v=""),"",_xlpm.v))) ->  | H30: =IF($A30="","",_xlfn.LET(_xlpm.v,_xlfn.XLOOKUP($A30,WorkOrdersDatabase[WO Number],WorkOrdersDatabase[Problem Description],""),IF(OR(_xlpm.v=0,_xlpm.v=""),"",_xlpm.v))) -> Bi-Weekly Mechanical Saw PM PM ID: PM-00003 Instructions: Replace blade, replace drive belts | I30: =IF($A30="","",_xlfn.LET(_xlpm.v,_xlfn.XLOOKUP($A30,WorkOrdersDatabase[WO Number],WorkOrdersDatabase[Parts Used],""),IF(OR(_xlpm.v=0,_xlpm.v=""),"",_xlpm.v))) ->  | J30: =IF($A30="","",IF(OR(I30="",I30=0,I30="0"),"Not Required",IFERROR(_xlfn.XLOOKUP(I30,'Parts List'!A:A,'Parts List'!F:F,"Check Parts List"),"Check Parts List"))) -> Not Required | K30: =IF($A30="","",_xlfn.LET(_xlpm.v,_xlfn.XLOOKUP($A30,WorkOrdersDatabase[WO Number],WorkOrdersDatabase[Labour Hours],""),IF(OR(_xlpm.v=0,_xlpm.v=""),"",_xlpm.v))) ->  | L30: =IF($A30="","",_xlfn.LET(_xlpm.v,_xlfn.XLOOKUP($A30,WorkOrdersDatabase[WO Number],WorkOrdersDatabase[Assigned To],""),IF(OR(_xlpm.v=0,_xlpm.v=""),"",_xlpm.v))) -> Celine Doing | S30: NOT READY | T30: =IF($A30="","",_xlfn.LET(_xlpm.miss,_xlfn.TEXTJOIN(", ",TRUE,IF($J30="OUT OF STOCK","Parts out of stock",""),IF($J30="Check Parts List","Check parts master",""),IF($L30="","Assign technician",""),IF($M30="","Add start time",""),IF($K30="","Add labour hours","")),IF($R30="Completed","Completed",IF($R30="Cancelled","Cancelled",IF($R30="Scheduled","Scheduled",IF(_xlpm.miss="","Ready to schedule",_xlpm.miss)))))) -> Add start time, Add labour hours
A31: PM-000004 | B31: =IF($A31="","",_xlfn.XLOOKUP($A31,WorkOrdersDatabase[WO Number],WorkOrdersDatabase[Work Type],"")) -> Inspection | C31: =IF($A31="","",_xlfn.XLOOKUP($A31,WorkOrdersDatabase[WO Number],WorkOrdersDatabase[Status],"")) -> Open | D31: =IF($A31="","",_xlfn.XLOOKUP($A31,WorkOrdersDatabase[WO Number],WorkOrdersDatabase[Priority],"")) -> P5 - Planned | E31: =IF($A31="","",_xlfn.XLOOKUP($A31,WorkOrdersDatabase[WO Number],WorkOrdersDatabase[Asset ID],"")) -> EXT-WH-001 | F31: =IF($A31="","",_xlfn.XLOOKUP($A31,WorkOrdersDatabase[WO Number],WorkOrdersDatabase[Asset Name],"")) -> Forklift 1 | G31: =IF($A31="","",_xlfn.LET(_xlpm.v,_xlfn.XLOOKUP($A31,WorkOrdersDatabase[WO Number],WorkOrdersDatabase[Location],""),IF(OR(_xlpm.v=0,_xlpm.v=""),"",_xlpm.v))) -> Warehouse / Yard | H31: =IF($A31="","",_xlfn.LET(_xlpm.v,_xlfn.XLOOKUP($A31,WorkOrdersDatabase[WO Number],WorkOrdersDatabase[Problem Description],""),IF(OR(_xlpm.v=0,_xlpm.v=""),"",_xlpm.v))) -> Daily Forklift Inspection PM ID: PM-00002 Instructions: 1. Inspect mast weld for crack 2. Check hydraulic fittings and cylinders for leaks 3. Inspect tires for excessive wear | I31: =IF($A31="","",_xlfn.LET(_xlpm.v,_xlfn.XLOOKUP($A31,WorkOrdersDatabase[WO Number],WorkOrdersDatabase[Parts Used],""),IF(OR(_xlpm.v=0,_xlpm.v=""),"",_xlpm.v))) ->  | J31: =IF($A31="","",IF(OR(I31="",I31=0,I31="0"),"Not Required",IFERROR(_xlfn.XLOOKUP(I31,'Parts List'!A:A,'Parts List'!F:F,"Check Parts List"),"Check Parts List"))) -> Not Required | K31: =IF($A31="","",_xlfn.LET(_xlpm.v,_xlfn.XLOOKUP($A31,WorkOrdersDatabase[WO Number],WorkOrdersDatabase[Labour Hours],""),IF(OR(_xlpm.v=0,_xlpm.v=""),"",_xlpm.v))) ->  | L31: =IF($A31="","",_xlfn.LET(_xlpm.v,_xlfn.XLOOKUP($A31,WorkOrdersDatabase[WO Number],WorkOrdersDatabase[Assigned To],""),IF(OR(_xlpm.v=0,_xlpm.v=""),"",_xlpm.v))) -> Kyle Lowry | S31: NOT READY | T31: =IF($A31="","",_xlfn.LET(_xlpm.miss,_xlfn.TEXTJOIN(", ",TRUE,IF($J31="OUT OF STOCK","Parts out of stock",""),IF($J31="Check Parts List","Check parts master",""),IF($L31="","Assign technician",""),IF($M31="","Add start time",""),IF($K31="","Add labour hours","")),IF($R31="Completed","Completed",IF($R31="Cancelled","Cancelled",IF($R31="Scheduled","Scheduled",IF(_xlpm.miss="","Ready to schedule",_xlpm.miss)))))) -> Add start time, Add labour hours
A32: PM-000005 | B32: =IF($A32="","",_xlfn.XLOOKUP($A32,WorkOrdersDatabase[WO Number],WorkOrdersDatabase[Work Type],"")) -> Inspection | C32: =IF($A32="","",_xlfn.XLOOKUP($A32,WorkOrdersDatabase[WO Number],WorkOrdersDatabase[Status],"")) -> Open | D32: =IF($A32="","",_xlfn.XLOOKUP($A32,WorkOrdersDatabase[WO Number],WorkOrdersDatabase[Priority],"")) -> P5 - Planned | E32: =IF($A32="","",_xlfn.XLOOKUP($A32,WorkOrdersDatabase[WO Number],WorkOrdersDatabase[Asset ID],"")) -> EXT-311 | F32: =IF($A32="","",_xlfn.XLOOKUP($A32,WorkOrdersDatabase[WO Number],WorkOrdersDatabase[Asset Name],"")) -> Extruder | G32: =IF($A32="","",_xlfn.LET(_xlpm.v,_xlfn.XLOOKUP($A32,WorkOrdersDatabase[WO Number],WorkOrdersDatabase[Location],""),IF(OR(_xlpm.v=0,_xlpm.v=""),"",_xlpm.v))) -> Building 1 | H32: =IF($A32="","",_xlfn.LET(_xlpm.v,_xlfn.XLOOKUP($A32,WorkOrdersDatabase[WO Number],WorkOrdersDatabase[Problem Description],""),IF(OR(_xlpm.v=0,_xlpm.v=""),"",_xlpm.v))) -> Weekly Extruder PM PM ID: PM-00101 Instructions: 1. Check barrel/die temperatures and cooling water flow 2. Inspect for leaks, abnormal noise, and vibration 3. Clean die face and screw drive area | I32: =IF($A32="","",_xlfn.LET(_xlpm.v,_xlfn.XLOOKUP($A32,WorkOrdersDatabase[WO Number],WorkOrdersDatabase[Parts Used],""),IF(OR(_xlpm.v=0,_xlpm.v=""),"",_xlpm.v))) ->  | J32: =IF($A32="","",IF(OR(I32="",I32=0,I32="0"),"Not Required",IFERROR(_xlfn.XLOOKUP(I32,'Parts List'!A:A,'Parts List'!F:F,"Check Parts List"),"Check Parts List"))) -> Not Required | K32: =IF($A32="","",_xlfn.LET(_xlpm.v,_xlfn.XLOOKUP($A32,WorkOrdersDatabase[WO Number],WorkOrdersDatabase[Labour Hours],""),IF(OR(_xlpm.v=0,_xlpm.v=""),"",_xlpm.v))) ->  | L32: =IF($A32="","",_xlfn.LET(_xlpm.v,_xlfn.XLOOKUP($A32,WorkOrdersDatabase[WO Number],WorkOrdersDatabase[Assigned To],""),IF(OR(_xlpm.v=0,_xlpm.v=""),"",_xlpm.v))) -> Adam Smith | S32: NOT READY | T32: =IF($A32="","",_xlfn.LET(_xlpm.miss,_xlfn.TEXTJOIN(", ",TRUE,IF($J32="OUT OF STOCK","Parts out of stock",""),IF($J32="Check Parts List","Check parts master",""),IF($L32="","Assign technician",""),IF($M32="","Add start time",""),IF($K32="","Add labour hours","")),IF($R32="Completed","Completed",IF($R32="Cancelled","Cancelled",IF($R32="Scheduled","Scheduled",IF(_xlpm.miss="","Ready to schedule",_xlpm.miss)))))) -> Add start time, Add labour hours
A33: PM-000006 | B33: =IF($A33="","",_xlfn.XLOOKUP($A33,WorkOrdersDatabase[WO Number],WorkOrdersDatabase[Work Type],"")) -> Inspection | C33: =IF($A33="","",_xlfn.XLOOKUP($A33,WorkOrdersDatabase[WO Number],WorkOrdersDatabase[Status],"")) -> Open | D33: =IF($A33="","",_xlfn.XLOOKUP($A33,WorkOrdersDatabase[WO Number],WorkOrdersDatabase[Priority],"")) -> P5 - Planned | E33: =IF($A33="","",_xlfn.XLOOKUP($A33,WorkOrdersDatabase[WO Number],WorkOrdersDatabase[Asset ID],"")) -> PUL-201 | F33: =IF($A33="","",_xlfn.XLOOKUP($A33,WorkOrdersDatabase[WO Number],WorkOrdersDatabase[Asset Name],"")) -> Puller | G33: =IF($A33="","",_xlfn.LET(_xlpm.v,_xlfn.XLOOKUP($A33,WorkOrdersDatabase[WO Number],WorkOrdersDatabase[Location],""),IF(OR(_xlpm.v=0,_xlpm.v=""),"",_xlpm.v))) -> Building 1 | H33: =IF($A33="","",_xlfn.LET(_xlpm.v,_xlfn.XLOOKUP($A33,WorkOrdersDatabase[WO Number],WorkOrdersDatabase[Problem Description],""),IF(OR(_xlpm.v=0,_xlpm.v=""),"",_xlpm.v))) -> Weekly Puller PM PM ID: PM-00104 Instructions: 1. Inspect belts/tracks for wear and tension 2. Check guarding, E-stops, and operator controls 3. Verify speed control and smooth operation | I33: =IF($A33="","",_xlfn.LET(_xlpm.v,_xlfn.XLOOKUP($A33,WorkOrdersDatabase[WO Number],WorkOrdersDatabase[Parts Used],""),IF(OR(_xlpm.v=0,_xlpm.v=""),"",_xlpm.v))) ->  | J33: =IF($A33="","",IF(OR(I33="",I33=0,I33="0"),"Not Required",IFERROR(_xlfn.XLOOKUP(I33,'Parts List'!A:A,'Parts List'!F:F,"Check Parts List"),"Check Parts List"))) -> Not Required | K33: =IF($A33="","",_xlfn.LET(_xlpm.v,_xlfn.XLOOKUP($A33,WorkOrdersDatabase[WO Number],WorkOrdersDatabase[Labour Hours],""),IF(OR(_xlpm.v=0,_xlpm.v=""),"",_xlpm.v))) ->  | L33: =IF($A33="","",_xlfn.LET(_xlpm.v,_xlfn.XLOOKUP($A33,WorkOrdersDatabase[WO Number],WorkOrdersDatabase[Assigned To],""),IF(OR(_xlpm.v=0,_xlpm.v=""),"",_xlpm.v))) -> King Kong | S33: NOT READY | T33: =IF($A33="","",_xlfn.LET(_xlpm.miss,_xlfn.TEXTJOIN(", ",TRUE,IF($J33="OUT OF STOCK","Parts out of stock",""),IF($J33="Check Parts List","Check parts master",""),IF($L33="","Assign technician",""),IF($M33="","Add start time",""),IF($K33="","Add labour hours","")),IF($R33="Completed","Completed",IF($R33="Cancelled","Cancelled",IF($R33="Scheduled","Scheduled",IF(_xlpm.miss="","Ready to schedule",_xlpm.miss)))))) -> Add start time, Add labour hours
A34: PM-000007 | B34: =IF($A34="","",_xlfn.XLOOKUP($A34,WorkOrdersDatabase[WO Number],WorkOrdersDatabase[Work Type],"")) -> Inspection | C34: =IF($A34="","",_xlfn.XLOOKUP($A34,WorkOrdersDatabase[WO Number],WorkOrdersDatabase[Status],"")) -> Open | D34: =IF($A34="","",_xlfn.XLOOKUP($A34,WorkOrdersDatabase[WO Number],WorkOrdersDatabase[Priority],"")) -> P5 - Planned | E34: =IF($A34="","",_xlfn.XLOOKUP($A34,WorkOrdersDatabase[WO Number],WorkOrdersDatabase[Asset ID],"")) -> SAW-211 | F34: =IF($A34="","",_xlfn.XLOOKUP($A34,WorkOrdersDatabase[WO Number],WorkOrdersDatabase[Asset Name],"")) -> Saw | G34: =IF($A34="","",_xlfn.LET(_xlpm.v,_xlfn.XLOOKUP($A34,WorkOrdersDatabase[WO Number],WorkOrdersDatabase[Location],""),IF(OR(_xlpm.v=0,_xlpm.v=""),"",_xlpm.v))) -> Building 1 | H34: =IF($A34="","",_xlfn.LET(_xlpm.v,_xlfn.XLOOKUP($A34,WorkOrdersDatabase[WO Number],WorkOrdersDatabase[Problem Description],""),IF(OR(_xlpm.v=0,_xlpm.v=""),"",_xlpm.v))) -> Weekly Saw PM PM ID: PM-00107 Instructions: 1. Inspect blade condition, sharpness, and secure mounting 2. Check blade guard, clamps, and safety covers 3. Verify cut quality and smooth travel | I34: =IF($A34="","",_xlfn.LET(_xlpm.v,_xlfn.XLOOKUP($A34,WorkOrdersDatabase[WO Number],WorkOrdersDatabase[Parts Used],""),IF(OR(_xlpm.v=0,_xlpm.v=""),"",_xlpm.v))) ->  | J34: =IF($A34="","",IF(OR(I34="",I34=0,I34="0"),"Not Required",IFERROR(_xlfn.XLOOKUP(I34,'Parts List'!A:A,'Parts List'!F:F,"Check Parts List"),"Check Parts List"))) -> Not Required | K34: =IF($A34="","",_xlfn.LET(_xlpm.v,_xlfn.XLOOKUP($A34,WorkOrdersDatabase[WO Number],WorkOrdersDatabase[Labour Hours],""),IF(OR(_xlpm.v=0,_xlpm.v=""),"",_xlpm.v))) ->  | L34: =IF($A34="","",_xlfn.LET(_xlpm.v,_xlfn.XLOOKUP($A34,WorkOrdersDatabase[WO Number],WorkOrdersDatabase[Assigned To],""),IF(OR(_xlpm.v=0,_xlpm.v=""),"",_xlpm.v))) -> Celine Doing | S34: NOT READY | T34: =IF($A34="","",_xlfn.LET(_xlpm.miss,_xlfn.TEXTJOIN(", ",TRUE,IF($J34="OUT OF STOCK","Parts out of stock",""),IF($J34="Check Parts List","Check parts master",""),IF($L34="","Assign technician",""),IF($M34="","Add start time",""),IF($K34="","Add labour hours","")),IF($R34="Completed","Completed",IF($R34="Cancelled","Cancelled",IF($R34="Scheduled","Scheduled",IF(_xlpm.miss="","Ready to schedule",_xlpm.miss)))))) -> Add start time, Add labour hours
A35: PM-000008 | B35: =IF($A35="","",_xlfn.XLOOKUP($A35,WorkOrdersDatabase[WO Number],WorkOrdersDatabase[Work Type],"")) -> Inspection | C35: =IF($A35="","",_xlfn.XLOOKUP($A35,WorkOrdersDatabase[WO Number],WorkOrdersDatabase[Status],"")) -> Open | D35: =IF($A35="","",_xlfn.XLOOKUP($A35,WorkOrdersDatabase[WO Number],WorkOrdersDatabase[Priority],"")) -> P5 - Planned | E35: =IF($A35="","",_xlfn.XLOOKUP($A35,WorkOrdersDatabase[WO Number],WorkOrdersDatabase[Asset ID],"")) -> DIE-311 | F35: =IF($A35="","",_xlfn.XLOOKUP($A35,WorkOrdersDatabase[WO Number],WorkOrdersDatabase[Asset Name],"")) -> Die Head | G35: =IF($A35="","",_xlfn.LET(_xlpm.v,_xlfn.XLOOKUP($A35,WorkOrdersDatabase[WO Number],WorkOrdersDatabase[Location],""),IF(OR(_xlpm.v=0,_xlpm.v=""),"",_xlpm.v))) -> Building 1 | H35: =IF($A35="","",_xlfn.LET(_xlpm.v,_xlfn.XLOOKUP($A35,WorkOrdersDatabase[WO Number],WorkOrdersDatabase[Problem Description],""),IF(OR(_xlpm.v=0,_xlpm.v=""),"",_xlpm.v))) -> Weekly Die Head PM PM ID: PM-00110 Instructions: 1. Inspect die face and land for buildup or damage 2. Check heater bands and thermocouple readings | I35: =IF($A35="","",_xlfn.LET(_xlpm.v,_xlfn.XLOOKUP($A35,WorkOrdersDatabase[WO Number],WorkOrdersDatabase[Parts Used],""),IF(OR(_xlpm.v=0,_xlpm.v=""),"",_xlpm.v))) ->  | J35: =IF($A35="","",IF(OR(I35="",I35=0,I35="0"),"Not Required",IFERROR(_xlfn.XLOOKUP(I35,'Parts List'!A:A,'Parts List'!F:F,"Check Parts List"),"Check Parts List"))) -> Not Required | K35: =IF($A35="","",_xlfn.LET(_xlpm.v,_xlfn.XLOOKUP($A35,WorkOrdersDatabase[WO Number],WorkOrdersDatabase[Labour Hours],""),IF(OR(_xlpm.v=0,_xlpm.v=""),"",_xlpm.v))) ->  | L35: =IF($A35="","",_xlfn.LET(_xlpm.v,_xlfn.XLOOKUP($A35,WorkOrdersDatabase[WO Number],WorkOrdersDatabase[Assigned To],""),IF(OR(_xlpm.v=0,_xlpm.v=""),"",_xlpm.v))) -> Adam Smith | S35: NOT READY | T35: =IF($A35="","",_xlfn.LET(_xlpm.miss,_xlfn.TEXTJOIN(", ",TRUE,IF($J35="OUT OF STOCK","Parts out of stock",""),IF($J35="Check Parts List","Check parts master",""),IF($L35="","Assign technician",""),IF($M35="","Add start time",""),IF($K35="","Add labour hours","")),IF($R35="Completed","Completed",IF($R35="Cancelled","Cancelled",IF($R35="Scheduled","Scheduled",IF(_xlpm.miss="","Ready to schedule",_xlpm.miss)))))) -> Add start time, Add labour hours
A36: PM-000009 | B36: =IF($A36="","",_xlfn.XLOOKUP($A36,WorkOrdersDatabase[WO Number],WorkOrdersDatabase[Work Type],"")) -> Inspection | C36: =IF($A36="","",_xlfn.XLOOKUP($A36,WorkOrdersDatabase[WO Number],WorkOrdersDatabase[Status],"")) -> Open | D36: =IF($A36="","",_xlfn.XLOOKUP($A36,WorkOrdersDatabase[WO Number],WorkOrdersDatabase[Priority],"")) -> P5 - Planned | E36: =IF($A36="","",_xlfn.XLOOKUP($A36,WorkOrdersDatabase[WO Number],WorkOrdersDatabase[Asset ID],"")) -> CNV-311 | F36: =IF($A36="","",_xlfn.XLOOKUP($A36,WorkOrdersDatabase[WO Number],WorkOrdersDatabase[Asset Name],"")) -> Take-off Conveyor | G36: =IF($A36="","",_xlfn.LET(_xlpm.v,_xlfn.XLOOKUP($A36,WorkOrdersDatabase[WO Number],WorkOrdersDatabase[Location],""),IF(OR(_xlpm.v=0,_xlpm.v=""),"",_xlpm.v))) -> Building 1 | H36: =IF($A36="","",_xlfn.LET(_xlpm.v,_xlfn.XLOOKUP($A36,WorkOrdersDatabase[WO Number],WorkOrdersDatabase[Problem Description],""),IF(OR(_xlpm.v=0,_xlpm.v=""),"",_xlpm.v))) -> Weekly Conveyor PM PM ID: PM-00119 Instructions: 1. Inspect belt tracking, tension, and surface 2. Check for abnormal noise at rollers/bearings | I36: =IF($A36="","",_xlfn.LET(_xlpm.v,_xlfn.XLOOKUP($A36,WorkOrdersDatabase[WO Number],WorkOrdersDatabase[Parts Used],""),IF(OR(_xlpm.v=0,_xlpm.v=""),"",_xlpm.v))) ->  | J36: =IF($A36="","",IF(OR(I36="",I36=0,I36="0"),"Not Required",IFERROR(_xlfn.XLOOKUP(I36,'Parts List'!A:A,'Parts List'!F:F,"Check Parts List"),"Check Parts List"))) -> Not Required | K36: =IF($A36="","",_xlfn.LET(_xlpm.v,_xlfn.XLOOKUP($A36,WorkOrdersDatabase[WO Number],WorkOrdersDatabase[Labour Hours],""),IF(OR(_xlpm.v=0,_xlpm.v=""),"",_xlpm.v))) ->  | L36: =IF($A36="","",_xlfn.LET(_xlpm.v,_xlfn.XLOOKUP($A36,WorkOrdersDatabase[WO Number],WorkOrdersDatabase[Assigned To],""),IF(OR(_xlpm.v=0,_xlpm.v=""),"",_xlpm.v))) -> Dame Time | S36: NOT READY | T36: =IF($A36="","",_xlfn.LET(_xlpm.miss,_xlfn.TEXTJOIN(", ",TRUE,IF($J36="OUT OF STOCK","Parts out of stock",""),IF($J36="Check Parts List","Check parts master",""),IF($L36="","Assign technician",""),IF($M36="","Add start time",""),IF($K36="","Add labour hours","")),IF($R36="Completed","Completed",IF($R36="Cancelled","Cancelled",IF($R36="Scheduled","Scheduled",IF(_xlpm.miss="","Ready to schedule",_xlpm.miss)))))) -> Add start time, Add labour hours
A37: PM-000010 | B37: =IF($A37="","",_xlfn.XLOOKUP($A37,WorkOrdersDatabase[WO Number],WorkOrdersDatabase[Work Type],"")) -> Inspection | C37: =IF($A37="","",_xlfn.XLOOKUP($A37,WorkOrdersDatabase[WO Number],WorkOrdersDatabase[Status],"")) -> Open | D37: =IF($A37="","",_xlfn.XLOOKUP($A37,WorkOrdersDatabase[WO Number],WorkOrdersDatabase[Priority],"")) -> P5 - Planned | E37: =IF($A37="","",_xlfn.XLOOKUP($A37,WorkOrdersDatabase[WO Number],WorkOrdersDatabase[Asset ID],"")) -> OVN-001 | F37: =IF($A37="","",_xlfn.XLOOKUP($A37,WorkOrdersDatabase[WO Number],WorkOrdersDatabase[Asset Name],"")) -> Oven | G37: =IF($A37="","",_xlfn.LET(_xlpm.v,_xlfn.XLOOKUP($A37,WorkOrdersDatabase[WO Number],WorkOrdersDatabase[Location],""),IF(OR(_xlpm.v=0,_xlpm.v=""),"",_xlpm.v))) -> Production | H37: =IF($A37="","",_xlfn.LET(_xlpm.v,_xlfn.XLOOKUP($A37,WorkOrdersDatabase[WO Number],WorkOrdersDatabase[Problem Description],""),IF(OR(_xlpm.v=0,_xlpm.v=""),"",_xlpm.v))) -> Weekly Oven PM PM ID: PM-00122 Instructions: 1. Inspect conveyor belt for wear, tracking, and tension 2. Check burners/elements and temperature uniformity 3. Inspect chains, sprockets, and guards | I37: =IF($A37="","",_xlfn.LET(_xlpm.v,_xlfn.XLOOKUP($A37,WorkOrdersDatabase[WO Number],WorkOrdersDatabase[Parts Used],""),IF(OR(_xlpm.v=0,_xlpm.v=""),"",_xlpm.v))) ->  | J37: =IF($A37="","",IF(OR(I37="",I37=0,I37="0"),"Not Required",IFERROR(_xlfn.XLOOKUP(I37,'Parts List'!A:A,'Parts List'!F:F,"Check Parts List"),"Check Parts List"))) -> Not Required | K37: =IF($A37="","",_xlfn.LET(_xlpm.v,_xlfn.XLOOKUP($A37,WorkOrdersDatabase[WO Number],WorkOrdersDatabase[Labour Hours],""),IF(OR(_xlpm.v=0,_xlpm.v=""),"",_xlpm.v))) ->  | L37: =IF($A37="","",_xlfn.LET(_xlpm.v,_xlfn.XLOOKUP($A37,WorkOrdersDatabase[WO Number],WorkOrdersDatabase[Assigned To],""),IF(OR(_xlpm.v=0,_xlpm.v=""),"",_xlpm.v))) -> Adam Smith | S37: NOT READY | T37: =IF($A37="","",_xlfn.LET(_xlpm.miss,_xlfn.TEXTJOIN(", ",TRUE,IF($J37="OUT OF STOCK","Parts out of stock",""),IF($J37="Check Parts List","Check parts master",""),IF($L37="","Assign technician",""),IF($M37="","Add start time",""),IF($K37="","Add labour hours","")),IF($R37="Completed","Completed",IF($R37="Cancelled","Cancelled",IF($R37="Scheduled","Scheduled",IF(_xlpm.miss="","Ready to schedule",_xlpm.miss)))))) -> Add start time, Add labour hours
A38: PM-000011 | B38: =IF($A38="","",_xlfn.XLOOKUP($A38,WorkOrdersDatabase[WO Number],WorkOrdersDatabase[Work Type],"")) -> Inspection | C38: =IF($A38="","",_xlfn.XLOOKUP($A38,WorkOrdersDatabase[WO Number],WorkOrdersDatabase[Status],"")) -> Open | D38: =IF($A38="","",_xlfn.XLOOKUP($A38,WorkOrdersDatabase[WO Number],WorkOrdersDatabase[Priority],"")) -> P5 - Planned | E38: =IF($A38="","",_xlfn.XLOOKUP($A38,WorkOrdersDatabase[WO Number],WorkOrdersDatabase[Asset ID],"")) -> PRF-201 | F38: =IF($A38="","",_xlfn.XLOOKUP($A38,WorkOrdersDatabase[WO Number],WorkOrdersDatabase[Asset Name],"")) -> Proofer 1 | G38: =IF($A38="","",_xlfn.LET(_xlpm.v,_xlfn.XLOOKUP($A38,WorkOrdersDatabase[WO Number],WorkOrdersDatabase[Location],""),IF(OR(_xlpm.v=0,_xlpm.v=""),"",_xlpm.v))) -> Building 2 | H38: =IF($A38="","",_xlfn.LET(_xlpm.v,_xlfn.XLOOKUP($A38,WorkOrdersDatabase[WO Number],WorkOrdersDatabase[Problem Description],""),IF(OR(_xlpm.v=0,_xlpm.v=""),"",_xlpm.v))) -> Weekly Proofer PM PM ID: PM-00125 Instructions: 1. Inspect panels, doors, seals, and hinges 2. Check humidity/temperature readings and water lines 3. Inspect interior cleanliness and drains | I38: =IF($A38="","",_xlfn.LET(_xlpm.v,_xlfn.XLOOKUP($A38,WorkOrdersDatabase[WO Number],WorkOrdersDatabase[Parts Used],""),IF(OR(_xlpm.v=0,_xlpm.v=""),"",_xlpm.v))) ->  | J38: =IF($A38="","",IF(OR(I38="",I38=0,I38="0"),"Not Required",IFERROR(_xlfn.XLOOKUP(I38,'Parts List'!A:A,'Parts List'!F:F,"Check Parts List"),"Check Parts List"))) -> Not Required | K38: =IF($A38="","",_xlfn.LET(_xlpm.v,_xlfn.XLOOKUP($A38,WorkOrdersDatabase[WO Number],WorkOrdersDatabase[Labour Hours],""),IF(OR(_xlpm.v=0,_xlpm.v=""),"",_xlpm.v))) ->  | L38: =IF($A38="","",_xlfn.LET(_xlpm.v,_xlfn.XLOOKUP($A38,WorkOrdersDatabase[WO Number],WorkOrdersDatabase[Assigned To],""),IF(OR(_xlpm.v=0,_xlpm.v=""),"",_xlpm.v))) -> Rest Exter | S38: NOT READY | T38: =IF($A38="","",_xlfn.LET(_xlpm.miss,_xlfn.TEXTJOIN(", ",TRUE,IF($J38="OUT OF STOCK","Parts out of stock",""),IF($J38="Check Parts List","Check parts master",""),IF($L38="","Assign technician",""),IF($M38="","Add start time",""),IF($K38="","Add labour hours","")),IF($R38="Completed","Completed",IF($R38="Cancelled","Cancelled",IF($R38="Scheduled","Scheduled",IF(_xlpm.miss="","Ready to schedule",_xlpm.miss)))))) -> Add start time, Add labour hours
A39: PM-000012 | B39: =IF($A39="","",_xlfn.XLOOKUP($A39,WorkOrdersDatabase[WO Number],WorkOrdersDatabase[Work Type],"")) -> Inspection | C39: =IF($A39="","",_xlfn.XLOOKUP($A39,WorkOrdersDatabase[WO Number],WorkOrdersDatabase[Status],"")) -> Open | D39: =IF($A39="","",_xlfn.XLOOKUP($A39,WorkOrdersDatabase[WO Number],WorkOrdersDatabase[Priority],"")) -> P5 - Planned | E39: =IF($A39="","",_xlfn.XLOOKUP($A39,WorkOrdersDatabase[WO Number],WorkOrdersDatabase[Asset ID],"")) -> DEP-201 | F39: =IF($A39="","",_xlfn.XLOOKUP($A39,WorkOrdersDatabase[WO Number],WorkOrdersDatabase[Asset Name],"")) -> Depositor | G39: =IF($A39="","",_xlfn.LET(_xlpm.v,_xlfn.XLOOKUP($A39,WorkOrdersDatabase[WO Number],WorkOrdersDatabase[Location],""),IF(OR(_xlpm.v=0,_xlpm.v=""),"",_xlpm.v))) -> Building 2 | H39: =IF($A39="","",_xlfn.LET(_xlpm.v,_xlfn.XLOOKUP($A39,WorkOrdersDatabase[WO Number],WorkOrdersDatabase[Problem Description],""),IF(OR(_xlpm.v=0,_xlpm.v=""),"",_xlpm.v))) -> Weekly Depositor PM PM ID: PM-00128 Instructions: 1. Inspect nozzles, pistons, and hopper for wear/buildup 2. Check for leaks and deposit accuracy | I39: =IF($A39="","",_xlfn.LET(_xlpm.v,_xlfn.XLOOKUP($A39,WorkOrdersDatabase[WO Number],WorkOrdersDatabase[Parts Used],""),IF(OR(_xlpm.v=0,_xlpm.v=""),"",_xlpm.v))) ->  | J39: =IF($A39="","",IF(OR(I39="",I39=0,I39="0"),"Not Required",IFERROR(_xlfn.XLOOKUP(I39,'Parts List'!A:A,'Parts List'!F:F,"Check Parts List"),"Check Parts List"))) -> Not Required | K39: =IF($A39="","",_xlfn.LET(_xlpm.v,_xlfn.XLOOKUP($A39,WorkOrdersDatabase[WO Number],WorkOrdersDatabase[Labour Hours],""),IF(OR(_xlpm.v=0,_xlpm.v=""),"",_xlpm.v))) ->  | L39: =IF($A39="","",_xlfn.LET(_xlpm.v,_xlfn.XLOOKUP($A39,WorkOrdersDatabase[WO Number],WorkOrdersDatabase[Assigned To],""),IF(OR(_xlpm.v=0,_xlpm.v=""),"",_xlpm.v))) -> Celine Doing | S39: NOT READY | T39: =IF($A39="","",_xlfn.LET(_xlpm.miss,_xlfn.TEXTJOIN(", ",TRUE,IF($J39="OUT OF STOCK","Parts out of stock",""),IF($J39="Check Parts List","Check parts master",""),IF($L39="","Assign technician",""),IF($M39="","Add start time",""),IF($K39="","Add labour hours","")),IF($R39="Completed","Completed",IF($R39="Cancelled","Cancelled",IF($R39="Scheduled","Scheduled",IF(_xlpm.miss="","Ready to schedule",_xlpm.miss)))))) -> Add start time, Add labour hours
A40: PM-000013 | B40: =IF($A40="","",_xlfn.XLOOKUP($A40,WorkOrdersDatabase[WO Number],WorkOrdersDatabase[Work Type],"")) -> Inspection | C40: =IF($A40="","",_xlfn.XLOOKUP($A40,WorkOrdersDatabase[WO Number],WorkOrdersDatabase[Status],"")) -> Open | D40: =IF($A40="","",_xlfn.XLOOKUP($A40,WorkOrdersDatabase[WO Number],WorkOrdersDatabase[Priority],"")) -> P5 - Planned | E40: =IF($A40="","",_xlfn.XLOOKUP($A40,WorkOrdersDatabase[WO Number],WorkOrdersDatabase[Asset ID],"")) -> CHL-001 | F40: =IF($A40="","",_xlfn.XLOOKUP($A40,WorkOrdersDatabase[WO Number],WorkOrdersDatabase[Asset Name],"")) -> Chiller 1 | G40: =IF($A40="","",_xlfn.LET(_xlpm.v,_xlfn.XLOOKUP($A40,WorkOrdersDatabase[WO Number],WorkOrdersDatabase[Location],""),IF(OR(_xlpm.v=0,_xlpm.v=""),"",_xlpm.v))) -> Roof | H40: =IF($A40="","",_xlfn.LET(_xlpm.v,_xlfn.XLOOKUP($A40,WorkOrdersDatabase[WO Number],WorkOrdersDatabase[Problem Description],""),IF(OR(_xlpm.v=0,_xlpm.v=""),"",_xlpm.v))) -> Weekly Chiller PM PM ID: PM-00137 Instructions: 1. Check refrigerant pressures and temperatures 2. Inspect for leaks and unusual noise | I40: =IF($A40="","",_xlfn.LET(_xlpm.v,_xlfn.XLOOKUP($A40,WorkOrdersDatabase[WO Number],WorkOrdersDatabase[Parts Used],""),IF(OR(_xlpm.v=0,_xlpm.v=""),"",_xlpm.v))) ->  | J40: =IF($A40="","",IF(OR(I40="",I40=0,I40="0"),"Not Required",IFERROR(_xlfn.XLOOKUP(I40,'Parts List'!A:A,'Parts List'!F:F,"Check Parts List"),"Check Parts List"))) -> Not Required | K40: =IF($A40="","",_xlfn.LET(_xlpm.v,_xlfn.XLOOKUP($A40,WorkOrdersDatabase[WO Number],WorkOrdersDatabase[Labour Hours],""),IF(OR(_xlpm.v=0,_xlpm.v=""),"",_xlpm.v))) ->  | L40: =IF($A40="","",_xlfn.LET(_xlpm.v,_xlfn.XLOOKUP($A40,WorkOrdersDatabase[WO Number],WorkOrdersDatabase[Assigned To],""),IF(OR(_xlpm.v=0,_xlpm.v=""),"",_xlpm.v))) -> Rest Exter | S40: NOT READY | T40: =IF($A40="","",_xlfn.LET(_xlpm.miss,_xlfn.TEXTJOIN(", ",TRUE,IF($J40="OUT OF STOCK","Parts out of stock",""),IF($J40="Check Parts List","Check parts master",""),IF($L40="","Assign technician",""),IF($M40="","Add start time",""),IF($K40="","Add labour hours","")),IF($R40="Completed","Completed",IF($R40="Cancelled","Cancelled",IF($R40="Scheduled","Scheduled",IF(_xlpm.miss="","Ready to schedule",_xlpm.miss)))))) -> Add start time, Add labour hours
A41: PM-000014 | B41: =IF($A41="","",_xlfn.XLOOKUP($A41,WorkOrdersDatabase[WO Number],WorkOrdersDatabase[Work Type],"")) -> Inspection | C41: =IF($A41="","",_xlfn.XLOOKUP($A41,WorkOrdersDatabase[WO Number],WorkOrdersDatabase[Status],"")) -> Open | D41: =IF($A41="","",_xlfn.XLOOKUP($A41,WorkOrdersDatabase[WO Number],WorkOrdersDatabase[Priority],"")) -> P5 - Planned | E41: =IF($A41="","",_xlfn.XLOOKUP($A41,WorkOrdersDatabase[WO Number],WorkOrdersDatabase[Asset ID],"")) -> BLR-001 | F41: =IF($A41="","",_xlfn.XLOOKUP($A41,WorkOrdersDatabase[WO Number],WorkOrdersDatabase[Asset Name],"")) -> Boiler 1 | G41: =IF($A41="","",_xlfn.LET(_xlpm.v,_xlfn.XLOOKUP($A41,WorkOrdersDatabase[WO Number],WorkOrdersDatabase[Location],""),IF(OR(_xlpm.v=0,_xlpm.v=""),"",_xlpm.v))) -> Mechanical Room | H41: =IF($A41="","",_xlfn.LET(_xlpm.v,_xlfn.XLOOKUP($A41,WorkOrdersDatabase[WO Number],WorkOrdersDatabase[Problem Description],""),IF(OR(_xlpm.v=0,_xlpm.v=""),"",_xlpm.v))) -> Weekly Boiler PM PM ID: PM-00140 Instructions: 1. Check water level, pressure, and blowdown 2. Inspect burner flame and safety controls | I41: =IF($A41="","",_xlfn.LET(_xlpm.v,_xlfn.XLOOKUP($A41,WorkOrdersDatabase[WO Number],WorkOrdersDatabase[Parts Used],""),IF(OR(_xlpm.v=0,_xlpm.v=""),"",_xlpm.v))) ->  | J41: =IF($A41="","",IF(OR(I41="",I41=0,I41="0"),"Not Required",IFERROR(_xlfn.XLOOKUP(I41,'Parts List'!A:A,'Parts List'!F:F,"Check Parts List"),"Check Parts List"))) -> Not Required | K41: =IF($A41="","",_xlfn.LET(_xlpm.v,_xlfn.XLOOKUP($A41,WorkOrdersDatabase[WO Number],WorkOrdersDatabase[Labour Hours],""),IF(OR(_xlpm.v=0,_xlpm.v=""),"",_xlpm.v))) ->  | L41: =IF($A41="","",_xlfn.LET(_xlpm.v,_xlfn.XLOOKUP($A41,WorkOrdersDatabase[WO Number],WorkOrdersDatabase[Assigned To],""),IF(OR(_xlpm.v=0,_xlpm.v=""),"",_xlpm.v))) -> Adam Smith | S41: NOT READY | T41: =IF($A41="","",_xlfn.LET(_xlpm.miss,_xlfn.TEXTJOIN(", ",TRUE,IF($J41="OUT OF STOCK","Parts out of stock",""),IF($J41="Check Parts List","Check parts master",""),IF($L41="","Assign technician",""),IF($M41="","Add start time",""),IF($K41="","Add labour hours","")),IF($R41="Completed","Completed",IF($R41="Cancelled","Cancelled",IF($R41="Scheduled","Scheduled",IF(_xlpm.miss="","Ready to schedule",_xlpm.miss)))))) -> Add start time, Add labour hours
A42: PM-000015 | B42: =IF($A42="","",_xlfn.XLOOKUP($A42,WorkOrdersDatabase[WO Number],WorkOrdersDatabase[Work Type],"")) -> Inspection | C42: =IF($A42="","",_xlfn.XLOOKUP($A42,WorkOrdersDatabase[WO Number],WorkOrdersDatabase[Status],"")) -> Open | D42: =IF($A42="","",_xlfn.XLOOKUP($A42,WorkOrdersDatabase[WO Number],WorkOrdersDatabase[Priority],"")) -> P5 - Planned | E42: =IF($A42="","",_xlfn.XLOOKUP($A42,WorkOrdersDatabase[WO Number],WorkOrdersDatabase[Asset ID],"")) -> CLT-TWR-001 | F42: =IF($A42="","",_xlfn.XLOOKUP($A42,WorkOrdersDatabase[WO Number],WorkOrdersDatabase[Asset Name],"")) -> Cooling Tower 1 | G42: =IF($A42="","",_xlfn.LET(_xlpm.v,_xlfn.XLOOKUP($A42,WorkOrdersDatabase[WO Number],WorkOrdersDatabase[Location],""),IF(OR(_xlpm.v=0,_xlpm.v=""),"",_xlpm.v))) -> Roof | H42: =IF($A42="","",_xlfn.LET(_xlpm.v,_xlfn.XLOOKUP($A42,WorkOrdersDatabase[WO Number],WorkOrdersDatabase[Problem Description],""),IF(OR(_xlpm.v=0,_xlpm.v=""),"",_xlpm.v))) -> Weekly Cooling Tower PM PM ID: PM-00143 Instructions: 1. Check water level, flow, and basin cleanliness 2. Inspect fan and drift eliminators | I42: =IF($A42="","",_xlfn.LET(_xlpm.v,_xlfn.XLOOKUP($A42,WorkOrdersDatabase[WO Number],WorkOrdersDatabase[Parts Used],""),IF(OR(_xlpm.v=0,_xlpm.v=""),"",_xlpm.v))) ->  | J42: =IF($A42="","",IF(OR(I42="",I42=0,I42="0"),"Not Required",IFERROR(_xlfn.XLOOKUP(I42,'Parts List'!A:A,'Parts List'!F:F,"Check Parts List"),"Check Parts List"))) -> Not Required | K42: =IF($A42="","",_xlfn.LET(_xlpm.v,_xlfn.XLOOKUP($A42,WorkOrdersDatabase[WO Number],WorkOrdersDatabase[Labour Hours],""),IF(OR(_xlpm.v=0,_xlpm.v=""),"",_xlpm.v))) ->  | L42: =IF($A42="","",_xlfn.LET(_xlpm.v,_xlfn.XLOOKUP($A42,WorkOrdersDatabase[WO Number],WorkOrdersDatabase[Assigned To],""),IF(OR(_xlpm.v=0,_xlpm.v=""),"",_xlpm.v))) -> Dame Time | S42: NOT READY | T42: =IF($A42="","",_xlfn.LET(_xlpm.miss,_xlfn.TEXTJOIN(", ",TRUE,IF($J42="OUT OF STOCK","Parts out of stock",""),IF($J42="Check Parts List","Check parts master",""),IF($L42="","Assign technician",""),IF($M42="","Add start time",""),IF($K42="","Add labour hours","")),IF($R42="Completed","Completed",IF($R42="Cancelled","Cancelled",IF($R42="Scheduled","Scheduled",IF(_xlpm.miss="","Ready to schedule",_xlpm.miss)))))) -> Add start time, Add labour hours
A43: PM-000016 | B43: =IF($A43="","",_xlfn.XLOOKUP($A43,WorkOrdersDatabase[WO Number],WorkOrdersDatabase[Work Type],"")) -> Inspection | C43: =IF($A43="","",_xlfn.XLOOKUP($A43,WorkOrdersDatabase[WO Number],WorkOrdersDatabase[Status],"")) -> Open | D43: =IF($A43="","",_xlfn.XLOOKUP($A43,WorkOrdersDatabase[WO Number],WorkOrdersDatabase[Priority],"")) -> P5 - Planned | E43: =IF($A43="","",_xlfn.XLOOKUP($A43,WorkOrdersDatabase[WO Number],WorkOrdersDatabase[Asset ID],"")) -> PMP-001 | F43: =IF($A43="","",_xlfn.XLOOKUP($A43,WorkOrdersDatabase[WO Number],WorkOrdersDatabase[Asset Name],"")) -> Process Water Pump | G43: =IF($A43="","",_xlfn.LET(_xlpm.v,_xlfn.XLOOKUP($A43,WorkOrdersDatabase[WO Number],WorkOrdersDatabase[Location],""),IF(OR(_xlpm.v=0,_xlpm.v=""),"",_xlpm.v))) -> Mechanical Room | H43: =IF($A43="","",_xlfn.LET(_xlpm.v,_xlfn.XLOOKUP($A43,WorkOrdersDatabase[WO Number],WorkOrdersDatabase[Problem Description],""),IF(OR(_xlpm.v=0,_xlpm.v=""),"",_xlpm.v))) -> Weekly Pump PM PM ID: PM-00146 Instructions: 1. Check for leaks, noise, and vibration 2. Verify flow/pressure and seal condition | I43: =IF($A43="","",_xlfn.LET(_xlpm.v,_xlfn.XLOOKUP($A43,WorkOrdersDatabase[WO Number],WorkOrdersDatabase[Parts Used],""),IF(OR(_xlpm.v=0,_xlpm.v=""),"",_xlpm.v))) ->  | J43: =IF($A43="","",IF(OR(I43="",I43=0,I43="0"),"Not Required",IFERROR(_xlfn.XLOOKUP(I43,'Parts List'!A:A,'Parts List'!F:F,"Check Parts List"),"Check Parts List"))) -> Not Required | K43: =IF($A43="","",_xlfn.LET(_xlpm.v,_xlfn.XLOOKUP($A43,WorkOrdersDatabase[WO Number],WorkOrdersDatabase[Labour Hours],""),IF(OR(_xlpm.v=0,_xlpm.v=""),"",_xlpm.v))) ->  | L43: =IF($A43="","",_xlfn.LET(_xlpm.v,_xlfn.XLOOKUP($A43,WorkOrdersDatabase[WO Number],WorkOrdersDatabase[Assigned To],""),IF(OR(_xlpm.v=0,_xlpm.v=""),"",_xlpm.v))) -> Celine Doing | S43: NOT READY | T43: =IF($A43="","",_xlfn.LET(_xlpm.miss,_xlfn.TEXTJOIN(", ",TRUE,IF($J43="OUT OF STOCK","Parts out of stock",""),IF($J43="Check Parts List","Check parts master",""),IF($L43="","Assign technician",""),IF($M43="","Add start time",""),IF($K43="","Add labour hours","")),IF($R43="Completed","Completed",IF($R43="Cancelled","Cancelled",IF($R43="Scheduled","Scheduled",IF(_xlpm.miss="","Ready to schedule",_xlpm.miss)))))) -> Add start time, Add labour hours
A44: PM-000017 | B44: =IF($A44="","",_xlfn.XLOOKUP($A44,WorkOrdersDatabase[WO Number],WorkOrdersDatabase[Work Type],"")) -> Inspection | C44: =IF($A44="","",_xlfn.XLOOKUP($A44,WorkOrdersDatabase[WO Number],WorkOrdersDatabase[Status],"")) -> Open | D44: =IF($A44="","",_xlfn.XLOOKUP($A44,WorkOrdersDatabase[WO Number],WorkOrdersDatabase[Priority],"")) -> P5 - Planned | E44: =IF($A44="","",_xlfn.XLOOKUP($A44,WorkOrdersDatabase[WO Number],WorkOrdersDatabase[Asset ID],"")) -> HVAC-001 | F44: =IF($A44="","",_xlfn.XLOOKUP($A44,WorkOrdersDatabase[WO Number],WorkOrdersDatabase[Asset Name],"")) -> HVAC Unit 1 | G44: =IF($A44="","",_xlfn.LET(_xlpm.v,_xlfn.XLOOKUP($A44,WorkOrdersDatabase[WO Number],WorkOrdersDatabase[Location],""),IF(OR(_xlpm.v=0,_xlpm.v=""),"",_xlpm.v))) -> Roof | H44: =IF($A44="","",_xlfn.LET(_xlpm.v,_xlfn.XLOOKUP($A44,WorkOrdersDatabase[WO Number],WorkOrdersDatabase[Problem Description],""),IF(OR(_xlpm.v=0,_xlpm.v=""),"",_xlpm.v))) -> Weekly HVAC Unit PM PM ID: PM-00155 Instructions: 1. Check operation, airflow, and unusual noise | I44: =IF($A44="","",_xlfn.LET(_xlpm.v,_xlfn.XLOOKUP($A44,WorkOrdersDatabase[WO Number],WorkOrdersDatabase[Parts Used],""),IF(OR(_xlpm.v=0,_xlpm.v=""),"",_xlpm.v))) ->  | J44: =IF($A44="","",IF(OR(I44="",I44=0,I44="0"),"Not Required",IFERROR(_xlfn.XLOOKUP(I44,'Parts List'!A:A,'Parts List'!F:F,"Check Parts List"),"Check Parts List"))) -> Not Required | K44: =IF($A44="","",_xlfn.LET(_xlpm.v,_xlfn.XLOOKUP($A44,WorkOrdersDatabase[WO Number],WorkOrdersDatabase[Labour Hours],""),IF(OR(_xlpm.v=0,_xlpm.v=""),"",_xlpm.v))) ->  | L44: =IF($A44="","",_xlfn.LET(_xlpm.v,_xlfn.XLOOKUP($A44,WorkOrdersDatabase[WO Number],WorkOrdersDatabase[Assigned To],""),IF(OR(_xlpm.v=0,_xlpm.v=""),"",_xlpm.v))) -> Dame Time | S44: NOT READY | T44: =IF($A44="","",_xlfn.LET(_xlpm.miss,_xlfn.TEXTJOIN(", ",TRUE,IF($J44="OUT OF STOCK","Parts out of stock",""),IF($J44="Check Parts List","Check parts master",""),IF($L44="","Assign technician",""),IF($M44="","Add start time",""),IF($K44="","Add labour hours","")),IF($R44="Completed","Completed",IF($R44="Cancelled","Cancelled",IF($R44="Scheduled","Scheduled",IF(_xlpm.miss="","Ready to schedule",_xlpm.miss)))))) -> Add start time, Add labour hours
A45: PM-000018 | B45: =IF($A45="","",_xlfn.XLOOKUP($A45,WorkOrdersDatabase[WO Number],WorkOrdersDatabase[Work Type],"")) -> Inspection | C45: =IF($A45="","",_xlfn.XLOOKUP($A45,WorkOrdersDatabase[WO Number],WorkOrdersDatabase[Status],"")) -> Open | D45: =IF($A45="","",_xlfn.XLOOKUP($A45,WorkOrdersDatabase[WO Number],WorkOrdersDatabase[Priority],"")) -> P5 - Planned | E45: =IF($A45="","",_xlfn.XLOOKUP($A45,WorkOrdersDatabase[WO Number],WorkOrdersDatabase[Asset ID],"")) -> GEN-001 | F45: =IF($A45="","",_xlfn.XLOOKUP($A45,WorkOrdersDatabase[WO Number],WorkOrdersDatabase[Asset Name],"")) -> Standby Generator | G45: =IF($A45="","",_xlfn.LET(_xlpm.v,_xlfn.XLOOKUP($A45,WorkOrdersDatabase[WO Number],WorkOrdersDatabase[Location],""),IF(OR(_xlpm.v=0,_xlpm.v=""),"",_xlpm.v))) -> Yard | H45: =IF($A45="","",_xlfn.LET(_xlpm.v,_xlfn.XLOOKUP($A45,WorkOrdersDatabase[WO Number],WorkOrdersDatabase[Problem Description],""),IF(OR(_xlpm.v=0,_xlpm.v=""),"",_xlpm.v))) -> Weekly Generator PM PM ID: PM-00158 Instructions: 1. Check fuel, oil, and coolant levels 2. Inspect battery and run no-load test | I45: =IF($A45="","",_xlfn.LET(_xlpm.v,_xlfn.XLOOKUP($A45,WorkOrdersDatabase[WO Number],WorkOrdersDatabase[Parts Used],""),IF(OR(_xlpm.v=0,_xlpm.v=""),"",_xlpm.v))) ->  | J45: =IF($A45="","",IF(OR(I45="",I45=0,I45="0"),"Not Required",IFERROR(_xlfn.XLOOKUP(I45,'Parts List'!A:A,'Parts List'!F:F,"Check Parts List"),"Check Parts List"))) -> Not Required | K45: =IF($A45="","",_xlfn.LET(_xlpm.v,_xlfn.XLOOKUP($A45,WorkOrdersDatabase[WO Number],WorkOrdersDatabase[Labour Hours],""),IF(OR(_xlpm.v=0,_xlpm.v=""),"",_xlpm.v))) ->  | L45: =IF($A45="","",_xlfn.LET(_xlpm.v,_xlfn.XLOOKUP($A45,WorkOrdersDatabase[WO Number],WorkOrdersDatabase[Assigned To],""),IF(OR(_xlpm.v=0,_xlpm.v=""),"",_xlpm.v))) -> Rest Exter | S45: NOT READY | T45: =IF($A45="","",_xlfn.LET(_xlpm.miss,_xlfn.TEXTJOIN(", ",TRUE,IF($J45="OUT OF STOCK","Parts out of stock",""),IF($J45="Check Parts List","Check parts master",""),IF($L45="","Assign technician",""),IF($M45="","Add start time",""),IF($K45="","Add labour hours","")),IF($R45="Completed","Completed",IF($R45="Cancelled","Cancelled",IF($R45="Scheduled","Scheduled",IF(_xlpm.miss="","Ready to schedule",_xlpm.miss)))))) -> Add start time, Add labour hours
A46: PM-000019 | B46: =IF($A46="","",_xlfn.XLOOKUP($A46,WorkOrdersDatabase[WO Number],WorkOrdersDatabase[Work Type],"")) -> Inspection | C46: =IF($A46="","",_xlfn.XLOOKUP($A46,WorkOrdersDatabase[WO Number],WorkOrdersDatabase[Status],"")) -> Open | D46: =IF($A46="","",_xlfn.XLOOKUP($A46,WorkOrdersDatabase[WO Number],WorkOrdersDatabase[Priority],"")) -> P5 - Planned | E46: =IF($A46="","",_xlfn.XLOOKUP($A46,WorkOrdersDatabase[WO Number],WorkOrdersDatabase[Asset ID],"")) -> XFMR-001 | F46: =IF($A46="","",_xlfn.XLOOKUP($A46,WorkOrdersDatabase[WO Number],WorkOrdersDatabase[Asset Name],"")) -> Main Transformer | G46: =IF($A46="","",_xlfn.LET(_xlpm.v,_xlfn.XLOOKUP($A46,WorkOrdersDatabase[WO Number],WorkOrdersDatabase[Location],""),IF(OR(_xlpm.v=0,_xlpm.v=""),"",_xlpm.v))) -> Yard | H46: =IF($A46="","",_xlfn.LET(_xlpm.v,_xlfn.XLOOKUP($A46,WorkOrdersDatabase[WO Number],WorkOrdersDatabase[Problem Description],""),IF(OR(_xlpm.v=0,_xlpm.v=""),"",_xlpm.v))) -> Weekly Transformer PM PM ID: PM-00161 Instructions: 1. Visual check for alarms, leaks, and abnormal temperature | I46: =IF($A46="","",_xlfn.LET(_xlpm.v,_xlfn.XLOOKUP($A46,WorkOrdersDatabase[WO Number],WorkOrdersDatabase[Parts Used],""),IF(OR(_xlpm.v=0,_xlpm.v=""),"",_xlpm.v))) ->  | J46: =IF($A46="","",IF(OR(I46="",I46=0,I46="0"),"Not Required",IFERROR(_xlfn.XLOOKUP(I46,'Parts List'!A:A,'Parts List'!F:F,"Check Parts List"),"Check Parts List"))) -> Not Required | K46: =IF($A46="","",_xlfn.LET(_xlpm.v,_xlfn.XLOOKUP($A46,WorkOrdersDatabase[WO Number],WorkOrdersDatabase[Labour Hours],""),IF(OR(_xlpm.v=0,_xlpm.v=""),"",_xlpm.v))) ->  | L46: =IF($A46="","",_xlfn.LET(_xlpm.v,_xlfn.XLOOKUP($A46,WorkOrdersDatabase[WO Number],WorkOrdersDatabase[Assigned To],""),IF(OR(_xlpm.v=0,_xlpm.v=""),"",_xlpm.v))) -> Kyle Lowry | S46: NOT READY | T46: =IF($A46="","",_xlfn.LET(_xlpm.miss,_xlfn.TEXTJOIN(", ",TRUE,IF($J46="OUT OF STOCK","Parts out of stock",""),IF($J46="Check Parts List","Check parts master",""),IF($L46="","Assign technician",""),IF($M46="","Add start time",""),IF($K46="","Add labour hours","")),IF($R46="Completed","Completed",IF($R46="Cancelled","Cancelled",IF($R46="Scheduled","Scheduled",IF(_xlpm.miss="","Ready to schedule",_xlpm.miss)))))) -> Add start time, Add labour hours
A47: PM-000020 | B47: =IF($A47="","",_xlfn.XLOOKUP($A47,WorkOrdersDatabase[WO Number],WorkOrdersDatabase[Work Type],"")) -> Inspection | C47: =IF($A47="","",_xlfn.XLOOKUP($A47,WorkOrdersDatabase[WO Number],WorkOrdersDatabase[Status],"")) -> Open | D47: =IF($A47="","",_xlfn.XLOOKUP($A47,WorkOrdersDatabase[WO Number],WorkOrdersDatabase[Priority],"")) -> P5 - Planned | E47: =IF($A47="","",_xlfn.XLOOKUP($A47,WorkOrdersDatabase[WO Number],WorkOrdersDatabase[Asset ID],"")) -> FP-001 | F47: =IF($A47="","",_xlfn.XLOOKUP($A47,WorkOrdersDatabase[WO Number],WorkOrdersDatabase[Asset Name],"")) -> Fire Pump | G47: =IF($A47="","",_xlfn.LET(_xlpm.v,_xlfn.XLOOKUP($A47,WorkOrdersDatabase[WO Number],WorkOrdersDatabase[Location],""),IF(OR(_xlpm.v=0,_xlpm.v=""),"",_xlpm.v))) -> Mechanical Room | H47: =IF($A47="","",_xlfn.LET(_xlpm.v,_xlfn.XLOOKUP($A47,WorkOrdersDatabase[WO Number],WorkOrdersDatabase[Problem Description],""),IF(OR(_xlpm.v=0,_xlpm.v=""),"",_xlpm.v))) -> Weekly Fire Pump PM PM ID: PM-00164 Instructions: 1. Run weekly no-flow test and check pressure 2. Inspect for leaks and valve positions | I47: =IF($A47="","",_xlfn.LET(_xlpm.v,_xlfn.XLOOKUP($A47,WorkOrdersDatabase[WO Number],WorkOrdersDatabase[Parts Used],""),IF(OR(_xlpm.v=0,_xlpm.v=""),"",_xlpm.v))) ->  | J47: =IF($A47="","",IF(OR(I47="",I47=0,I47="0"),"Not Required",IFERROR(_xlfn.XLOOKUP(I47,'Parts List'!A:A,'Parts List'!F:F,"Check Parts List"),"Check Parts List"))) -> Not Required | K47: =IF($A47="","",_xlfn.LET(_xlpm.v,_xlfn.XLOOKUP($A47,WorkOrdersDatabase[WO Number],WorkOrdersDatabase[Labour Hours],""),IF(OR(_xlpm.v=0,_xlpm.v=""),"",_xlpm.v))) ->  | L47: =IF($A47="","",_xlfn.LET(_xlpm.v,_xlfn.XLOOKUP($A47,WorkOrdersDatabase[WO Number],WorkOrdersDatabase[Assigned To],""),IF(OR(_xlpm.v=0,_xlpm.v=""),"",_xlpm.v))) -> Adam Smith | S47: NOT READY | T47: =IF($A47="","",_xlfn.LET(_xlpm.miss,_xlfn.TEXTJOIN(", ",TRUE,IF($J47="OUT OF STOCK","Parts out of stock",""),IF($J47="Check Parts List","Check parts master",""),IF($L47="","Assign technician",""),IF($M47="","Add start time",""),IF($K47="","Add labour hours","")),IF($R47="Completed","Completed",IF($R47="Cancelled","Cancelled",IF($R47="Scheduled","Scheduled",IF(_xlpm.miss="","Ready to schedule",_xlpm.miss)))))) -> Add start time, Add labour hours
A48: PM-000021 | B48: =IF($A48="","",_xlfn.XLOOKUP($A48,WorkOrdersDatabase[WO Number],WorkOrdersDatabase[Work Type],"")) -> Inspection | C48: =IF($A48="","",_xlfn.XLOOKUP($A48,WorkOrdersDatabase[WO Number],WorkOrdersDatabase[Status],"")) -> Open | D48: =IF($A48="","",_xlfn.XLOOKUP($A48,WorkOrdersDatabase[WO Number],WorkOrdersDatabase[Priority],"")) -> P5 - Planned | E48: =IF($A48="","",_xlfn.XLOOKUP($A48,WorkOrdersDatabase[WO Number],WorkOrdersDatabase[Asset ID],"")) -> CHK-001 | F48: =IF($A48="","",_xlfn.XLOOKUP($A48,WorkOrdersDatabase[WO Number],WorkOrdersDatabase[Asset Name],"")) -> Checkweigher | G48: =IF($A48="","",_xlfn.LET(_xlpm.v,_xlfn.XLOOKUP($A48,WorkOrdersDatabase[WO Number],WorkOrdersDatabase[Location],""),IF(OR(_xlpm.v=0,_xlpm.v=""),"",_xlpm.v))) -> Building 3 | H48: =IF($A48="","",_xlfn.LET(_xlpm.v,_xlfn.XLOOKUP($A48,WorkOrdersDatabase[WO Number],WorkOrdersDatabase[Problem Description],""),IF(OR(_xlpm.v=0,_xlpm.v=""),"",_xlpm.v))) -> Weekly Checkweigher PM PM ID: PM-00173 Instructions: 1. Verify calibration with test weights 2. Inspect belt and reject mechanism | I48: =IF($A48="","",_xlfn.LET(_xlpm.v,_xlfn.XLOOKUP($A48,WorkOrdersDatabase[WO Number],WorkOrdersDatabase[Parts Used],""),IF(OR(_xlpm.v=0,_xlpm.v=""),"",_xlpm.v))) ->  | J48: =IF($A48="","",IF(OR(I48="",I48=0,I48="0"),"Not Required",IFERROR(_xlfn.XLOOKUP(I48,'Parts List'!A:A,'Parts List'!F:F,"Check Parts List"),"Check Parts List"))) -> Not Required | K48: =IF($A48="","",_xlfn.LET(_xlpm.v,_xlfn.XLOOKUP($A48,WorkOrdersDatabase[WO Number],WorkOrdersDatabase[Labour Hours],""),IF(OR(_xlpm.v=0,_xlpm.v=""),"",_xlpm.v))) ->  | L48: =IF($A48="","",_xlfn.LET(_xlpm.v,_xlfn.XLOOKUP($A48,WorkOrdersDatabase[WO Number],WorkOrdersDatabase[Assigned To],""),IF(OR(_xlpm.v=0,_xlpm.v=""),"",_xlpm.v))) -> King Kong | S48: NOT READY | T48: =IF($A48="","",_xlfn.LET(_xlpm.miss,_xlfn.TEXTJOIN(", ",TRUE,IF($J48="OUT OF STOCK","Parts out of stock",""),IF($J48="Check Parts List","Check parts master",""),IF($L48="","Assign technician",""),IF($M48="","Add start time",""),IF($K48="","Add labour hours","")),IF($R48="Completed","Completed",IF($R48="Cancelled","Cancelled",IF($R48="Scheduled","Scheduled",IF(_xlpm.miss="","Ready to schedule",_xlpm.miss)))))) -> Add start time, Add labour hours
A49: PM-000022 | B49: =IF($A49="","",_xlfn.XLOOKUP($A49,WorkOrdersDatabase[WO Number],WorkOrdersDatabase[Work Type],"")) -> Inspection | C49: =IF($A49="","",_xlfn.XLOOKUP($A49,WorkOrdersDatabase[WO Number],WorkOrdersDatabase[Status],"")) -> Open | D49: =IF($A49="","",_xlfn.XLOOKUP($A49,WorkOrdersDatabase[WO Number],WorkOrdersDatabase[Priority],"")) -> P5 - Planned | E49: =IF($A49="","",_xlfn.XLOOKUP($A49,WorkOrdersDatabase[WO Number],WorkOrdersDatabase[Asset ID],"")) -> MD-001 | F49: =IF($A49="","",_xlfn.XLOOKUP($A49,WorkOrdersDatabase[WO Number],WorkOrdersDatabase[Asset Name],"")) -> Metal Detector | G49: =IF($A49="","",_xlfn.LET(_xlpm.v,_xlfn.XLOOKUP($A49,WorkOrdersDatabase[WO Number],WorkOrdersDatabase[Location],""),IF(OR(_xlpm.v=0,_xlpm.v=""),"",_xlpm.v))) -> Building 3 | H49: =IF($A49="","",_xlfn.LET(_xlpm.v,_xlfn.XLOOKUP($A49,WorkOrdersDatabase[WO Number],WorkOrdersDatabase[Problem Description],""),IF(OR(_xlpm.v=0,_xlpm.v=""),"",_xlpm.v))) -> Weekly Metal Detector PM PM ID: PM-00176 Instructions: 1. Test with ferrous/non-ferrous/stainless samples 2. Verify reject and fail-safe operation | I49: =IF($A49="","",_xlfn.LET(_xlpm.v,_xlfn.XLOOKUP($A49,WorkOrdersDatabase[WO Number],WorkOrdersDatabase[Parts Used],""),IF(OR(_xlpm.v=0,_xlpm.v=""),"",_xlpm.v))) ->  | J49: =IF($A49="","",IF(OR(I49="",I49=0,I49="0"),"Not Required",IFERROR(_xlfn.XLOOKUP(I49,'Parts List'!A:A,'Parts List'!F:F,"Check Parts List"),"Check Parts List"))) -> Not Required | K49: =IF($A49="","",_xlfn.LET(_xlpm.v,_xlfn.XLOOKUP($A49,WorkOrdersDatabase[WO Number],WorkOrdersDatabase[Labour Hours],""),IF(OR(_xlpm.v=0,_xlpm.v=""),"",_xlpm.v))) ->  | L49: =IF($A49="","",_xlfn.LET(_xlpm.v,_xlfn.XLOOKUP($A49,WorkOrdersDatabase[WO Number],WorkOrdersDatabase[Assigned To],""),IF(OR(_xlpm.v=0,_xlpm.v=""),"",_xlpm.v))) -> Rest Exter | S49: NOT READY | T49: =IF($A49="","",_xlfn.LET(_xlpm.miss,_xlfn.TEXTJOIN(", ",TRUE,IF($J49="OUT OF STOCK","Parts out of stock",""),IF($J49="Check Parts List","Check parts master",""),IF($L49="","Assign technician",""),IF($M49="","Add start time",""),IF($K49="","Add labour hours","")),IF($R49="Completed","Completed",IF($R49="Cancelled","Cancelled",IF($R49="Scheduled","Scheduled",IF(_xlpm.miss="","Ready to schedule",_xlpm.miss)))))) -> Add start time, Add labour hours
A50: PM-000023 | B50: =IF($A50="","",_xlfn.XLOOKUP($A50,WorkOrdersDatabase[WO Number],WorkOrdersDatabase[Work Type],"")) -> Inspection | C50: =IF($A50="","",_xlfn.XLOOKUP($A50,WorkOrdersDatabase[WO Number],WorkOrdersDatabase[Status],"")) -> Open | D50: =IF($A50="","",_xlfn.XLOOKUP($A50,WorkOrdersDatabase[WO Number],WorkOrdersDatabase[Priority],"")) -> P5 - Planned | E50: =IF($A50="","",_xlfn.XLOOKUP($A50,WorkOrdersDatabase[WO Number],WorkOrdersDatabase[Asset ID],"")) -> EXT-WH-001 | F50: =IF($A50="","",_xlfn.XLOOKUP($A50,WorkOrdersDatabase[WO Number],WorkOrdersDatabase[Asset Name],"")) -> Forklift 1 | G50: =IF($A50="","",_xlfn.LET(_xlpm.v,_xlfn.XLOOKUP($A50,WorkOrdersDatabase[WO Number],WorkOrdersDatabase[Location],""),IF(OR(_xlpm.v=0,_xlpm.v=""),"",_xlpm.v))) -> Warehouse / Yard | H50: =IF($A50="","",_xlfn.LET(_xlpm.v,_xlfn.XLOOKUP($A50,WorkOrdersDatabase[WO Number],WorkOrdersDatabase[Problem Description],""),IF(OR(_xlpm.v=0,_xlpm.v=""),"",_xlpm.v))) -> Weekly Forklift / Mobile Equipment PM PM ID: PM-00179 Instructions: 1. Walk-around: tires, forks, mast, leaks 2. Check hydraulics, brakes, horn, and lights 3. Inspect battery/fuel and operator controls | I50: =IF($A50="","",_xlfn.LET(_xlpm.v,_xlfn.XLOOKUP($A50,WorkOrdersDatabase[WO Number],WorkOrdersDatabase[Parts Used],""),IF(OR(_xlpm.v=0,_xlpm.v=""),"",_xlpm.v))) ->  | J50: =IF($A50="","",IF(OR(I50="",I50=0,I50="0"),"Not Required",IFERROR(_xlfn.XLOOKUP(I50,'Parts List'!A:A,'Parts List'!F:F,"Check Parts List"),"Check Parts List"))) -> Not Required | K50: =IF($A50="","",_xlfn.LET(_xlpm.v,_xlfn.XLOOKUP($A50,WorkOrdersDatabase[WO Number],WorkOrdersDatabase[Labour Hours],""),IF(OR(_xlpm.v=0,_xlpm.v=""),"",_xlpm.v))) ->  | L50: =IF($A50="","",_xlfn.LET(_xlpm.v,_xlfn.XLOOKUP($A50,WorkOrdersDatabase[WO Number],WorkOrdersDatabase[Assigned To],""),IF(OR(_xlpm.v=0,_xlpm.v=""),"",_xlpm.v))) -> Kyle Lowry | S50: NOT READY | T50: =IF($A50="","",_xlfn.LET(_xlpm.miss,_xlfn.TEXTJOIN(", ",TRUE,IF($J50="OUT OF STOCK","Parts out of stock",""),IF($J50="Check Parts List","Check parts master",""),IF($L50="","Assign technician",""),IF($M50="","Add start time",""),IF($K50="","Add labour hours","")),IF($R50="Completed","Completed",IF($R50="Cancelled","Cancelled",IF($R50="Scheduled","Scheduled",IF(_xlpm.miss="","Ready to schedule",_xlpm.miss)))))) -> Add start time, Add labour hours
A51: PM-000024 | B51: =IF($A51="","",_xlfn.XLOOKUP($A51,WorkOrdersDatabase[WO Number],WorkOrdersDatabase[Work Type],"")) -> Inspection | C51: =IF($A51="","",_xlfn.XLOOKUP($A51,WorkOrdersDatabase[WO Number],WorkOrdersDatabase[Status],"")) -> Open | D51: =IF($A51="","",_xlfn.XLOOKUP($A51,WorkOrdersDatabase[WO Number],WorkOrdersDatabase[Priority],"")) -> P5 - Planned | E51: =IF($A51="","",_xlfn.XLOOKUP($A51,WorkOrdersDatabase[WO Number],WorkOrdersDatabase[Asset ID],"")) -> EXT-WH-004 | F51: =IF($A51="","",_xlfn.XLOOKUP($A51,WorkOrdersDatabase[WO Number],WorkOrdersDatabase[Asset Name],"")) -> Overhead Crane | G51: =IF($A51="","",_xlfn.LET(_xlpm.v,_xlfn.XLOOKUP($A51,WorkOrdersDatabase[WO Number],WorkOrdersDatabase[Location],""),IF(OR(_xlpm.v=0,_xlpm.v=""),"",_xlpm.v))) -> Production / Yard | H51: =IF($A51="","",_xlfn.LET(_xlpm.v,_xlfn.XLOOKUP($A51,WorkOrdersDatabase[WO Number],WorkOrdersDatabase[Problem Description],""),IF(OR(_xlpm.v=0,_xlpm.v=""),"",_xlpm.v))) -> Weekly Crane / Hoist PM PM ID: PM-00182 Instructions: 1. Inspect hook, chain/wire rope, and limit switches 2. Test controls, brakes, and E-stop | I51: =IF($A51="","",_xlfn.LET(_xlpm.v,_xlfn.XLOOKUP($A51,WorkOrdersDatabase[WO Number],WorkOrdersDatabase[Parts Used],""),IF(OR(_xlpm.v=0,_xlpm.v=""),"",_xlpm.v))) ->  | J51: =IF($A51="","",IF(OR(I51="",I51=0,I51="0"),"Not Required",IFERROR(_xlfn.XLOOKUP(I51,'Parts List'!A:A,'Parts List'!F:F,"Check Parts List"),"Check Parts List"))) -> Not Required | K51: =IF($A51="","",_xlfn.LET(_xlpm.v,_xlfn.XLOOKUP($A51,WorkOrdersDatabase[WO Number],WorkOrdersDatabase[Labour Hours],""),IF(OR(_xlpm.v=0,_xlpm.v=""),"",_xlpm.v))) ->  | L51: =IF($A51="","",_xlfn.LET(_xlpm.v,_xlfn.XLOOKUP($A51,WorkOrdersDatabase[WO Number],WorkOrdersDatabase[Assigned To],""),IF(OR(_xlpm.v=0,_xlpm.v=""),"",_xlpm.v))) -> Adam Smith | S51: NOT READY | T51: =IF($A51="","",_xlfn.LET(_xlpm.miss,_xlfn.TEXTJOIN(", ",TRUE,IF($J51="OUT OF STOCK","Parts out of stock",""),IF($J51="Check Parts List","Check parts master",""),IF($L51="","Assign technician",""),IF($M51="","Add start time",""),IF($K51="","Add labour hours","")),IF($R51="Completed","Completed",IF($R51="Cancelled","Cancelled",IF($R51="Scheduled","Scheduled",IF(_xlpm.miss="","Ready to schedule",_xlpm.miss)))))) -> Add start time, Add labour hours
B52: =IF($A52="","",_xlfn.XLOOKUP($A52,WorkOrdersDatabase[WO Number],WorkOrdersDatabase[Work Type],"")) ->  | C52: =IF($A52="","",_xlfn.XLOOKUP($A52,WorkOrdersDatabase[WO Number],WorkOrdersDatabase[Status],"")) ->  | D52: =IF($A52="","",_xlfn.XLOOKUP($A52,WorkOrdersDatabase[WO Number],WorkOrdersDatabase[Priority],"")) ->  | E52: =IF($A52="","",_xlfn.XLOOKUP($A52,WorkOrdersDatabase[WO Number],WorkOrdersDatabase[Asset ID],"")) ->  | F52: =IF($A52="","",_xlfn.XLOOKUP($A52,WorkOrdersDatabase[WO Number],WorkOrdersDatabase[Asset Name],"")) ->  | G52: =IF($A52="","",_xlfn.LET(_xlpm.v,_xlfn.XLOOKUP($A52,WorkOrdersDatabase[WO Number],WorkOrdersDatabase[Location],""),IF(OR(_xlpm.v=0,_xlpm.v=""),"",_xlpm.v))) ->  | H52: =IF($A52="","",_xlfn.LET(_xlpm.v,_xlfn.XLOOKUP($A52,WorkOrdersDatabase[WO Number],WorkOrdersDatabase[Problem Description],""),IF(OR(_xlpm.v=0,_xlpm.v=""),"",_xlpm.v))) ->  | I52: =IF($A52="","",_xlfn.LET(_xlpm.v,_xlfn.XLOOKUP($A52,WorkOrdersDatabase[WO Number],WorkOrdersDatabase[Parts Used],""),IF(OR(_xlpm.v=0,_xlpm.v=""),"",_xlpm.v))) ->  | J52: =IF($A52="","",IF(OR(I52="",I52=0,I52="0"),"Not Required",IFERROR(_xlfn.XLOOKUP(I52,'Parts List'!A:A,'Parts List'!F:F,"Check Parts List"),"Check Parts List"))) ->  | K52: =IF($A52="","",_xlfn.LET(_xlpm.v,_xlfn.XLOOKUP($A52,WorkOrdersDatabase[WO Number],WorkOrdersDatabase[Labour Hours],""),IF(OR(_xlpm.v=0,_xlpm.v=""),"",_xlpm.v))) ->  | L52: =IF($A52="","",_xlfn.LET(_xlpm.v,_xlfn.XLOOKUP($A52,WorkOrdersDatabase[WO Number],WorkOrdersDatabase[Assigned To],""),IF(OR(_xlpm.v=0,_xlpm.v=""),"",_xlpm.v))) ->  | T52: =IF($A52="","",_xlfn.LET(_xlpm.miss,_xlfn.TEXTJOIN(", ",TRUE,IF($J52="OUT OF STOCK","Parts out of stock",""),IF($J52="Check Parts List","Check parts master",""),IF($L52="","Assign technician",""),IF($M52="","Add start time",""),IF($K52="","Add labour hours","")),IF($R52="Completed","Completed",IF($R52="Cancelled","Cancelled",IF($R52="Scheduled","Scheduled",IF(_xlpm.miss="","Ready to schedule",_xlpm.miss)))))) -> 
B53: =IF($A53="","",_xlfn.XLOOKUP($A53,WorkOrdersDatabase[WO Number],WorkOrdersDatabase[Work Type],"")) ->  | C53: =IF($A53="","",_xlfn.XLOOKUP($A53,WorkOrdersDatabase[WO Number],WorkOrdersDatabase[Status],"")) ->  | D53: =IF($A53="","",_xlfn.XLOOKUP($A53,WorkOrdersDatabase[WO Number],WorkOrdersDatabase[Priority],"")) ->  | E53: =IF($A53="","",_xlfn.XLOOKUP($A53,WorkOrdersDatabase[WO Number],WorkOrdersDatabase[Asset ID],"")) ->  | F53: =IF($A53="","",_xlfn.XLOOKUP($A53,WorkOrdersDatabase[WO Number],WorkOrdersDatabase[Asset Name],"")) ->  | G53: =IF($A53="","",_xlfn.LET(_xlpm.v,_xlfn.XLOOKUP($A53,WorkOrdersDatabase[WO Number],WorkOrdersDatabase[Location],""),IF(OR(_xlpm.v=0,_xlpm.v=""),"",_xlpm.v))) ->  | H53: =IF($A53="","",_xlfn.LET(_xlpm.v,_xlfn.XLOOKUP($A53,WorkOrdersDatabase[WO Number],WorkOrdersDatabase[Problem Description],""),IF(OR(_xlpm.v=0,_xlpm.v=""),"",_xlpm.v))) ->  | I53: =IF($A53="","",_xlfn.LET(_xlpm.v,_xlfn.XLOOKUP($A53,WorkOrdersDatabase[WO Number],WorkOrdersDatabase[Parts Used],""),IF(OR(_xlpm.v=0,_xlpm.v=""),"",_xlpm.v))) ->  | J53: =IF($A53="","",IF(OR(I53="",I53=0,I53="0"),"Not Required",IFERROR(_xlfn.XLOOKUP(I53,'Parts List'!A:A,'Parts List'!F:F,"Check Parts List"),"Check Parts List"))) ->  | K53: =IF($A53="","",_xlfn.LET(_xlpm.v,_xlfn.XLOOKUP($A53,WorkOrdersDatabase[WO Number],WorkOrdersDatabase[Labour Hours],""),IF(OR(_xlpm.v=0,_xlpm.v=""),"",_xlpm.v))) ->  | L53: =IF($A53="","",_xlfn.LET(_xlpm.v,_xlfn.XLOOKUP($A53,WorkOrdersDatabase[WO Number],WorkOrdersDatabase[Assigned To],""),IF(OR(_xlpm.v=0,_xlpm.v=""),"",_xlpm.v))) ->  | T53: =IF($A53="","",_xlfn.LET(_xlpm.miss,_xlfn.TEXTJOIN(", ",TRUE,IF($J53="OUT OF STOCK","Parts out of stock",""),IF($J53="Check Parts List","Check parts master",""),IF($L53="","Assign technician",""),IF($M53="","Add start time",""),IF($K53="","Add labour hours","")),IF($R53="Completed","Completed",IF($R53="Cancelled","Cancelled",IF($R53="Scheduled","Scheduled",IF(_xlpm.miss="","Ready to schedule",_xlpm.miss)))))) -> 
B54: =IF($A54="","",_xlfn.XLOOKUP($A54,WorkOrdersDatabase[WO Number],WorkOrdersDatabase[Work Type],"")) ->  | C54: =IF($A54="","",_xlfn.XLOOKUP($A54,WorkOrdersDatabase[WO Number],WorkOrdersDatabase[Status],"")) ->  | D54: =IF($A54="","",_xlfn.XLOOKUP($A54,WorkOrdersDatabase[WO Number],WorkOrdersDatabase[Priority],"")) ->  | E54: =IF($A54="","",_xlfn.XLOOKUP($A54,WorkOrdersDatabase[WO Number],WorkOrdersDatabase[Asset ID],"")) ->  | F54: =IF($A54="","",_xlfn.XLOOKUP($A54,WorkOrdersDatabase[WO Number],WorkOrdersDatabase[Asset Name],"")) ->  | G54: =IF($A54="","",_xlfn.LET(_xlpm.v,_xlfn.XLOOKUP($A54,WorkOrdersDatabase[WO Number],WorkOrdersDatabase[Location],""),IF(OR(_xlpm.v=0,_xlpm.v=""),"",_xlpm.v))) ->  | H54: =IF($A54="","",_xlfn.LET(_xlpm.v,_xlfn.XLOOKUP($A54,WorkOrdersDatabase[WO Number],WorkOrdersDatabase[Problem Description],""),IF(OR(_xlpm.v=0,_xlpm.v=""),"",_xlpm.v))) ->  | I54: =IF($A54="","",_xlfn.LET(_xlpm.v,_xlfn.XLOOKUP($A54,WorkOrdersDatabase[WO Number],WorkOrdersDatabase[Parts Used],""),IF(OR(_xlpm.v=0,_xlpm.v=""),"",_xlpm.v))) ->  | J54: =IF($A54="","",IF(OR(I54="",I54=0,I54="0"),"Not Required",IFERROR(_xlfn.XLOOKUP(I54,'Parts List'!A:A,'Parts List'!F:F,"Check Parts List"),"Check Parts List"))) ->  | K54: =IF($A54="","",_xlfn.LET(_xlpm.v,_xlfn.XLOOKUP($A54,WorkOrdersDatabase[WO Number],WorkOrdersDatabase[Labour Hours],""),IF(OR(_xlpm.v=0,_xlpm.v=""),"",_xlpm.v))) ->  | L54: =IF($A54="","",_xlfn.LET(_xlpm.v,_xlfn.XLOOKUP($A54,WorkOrdersDatabase[WO Number],WorkOrdersDatabase[Assigned To],""),IF(OR(_xlpm.v=0,_xlpm.v=""),"",_xlpm.v))) ->  | T54: =IF($A54="","",_xlfn.LET(_xlpm.miss,_xlfn.TEXTJOIN(", ",TRUE,IF($J54="OUT OF STOCK","Parts out of stock",""),IF($J54="Check Parts List","Check parts master",""),IF($L54="","Assign technician",""),IF($M54="","Add start time",""),IF($K54="","Add labour hours","")),IF($R54="Completed","Completed",IF($R54="Cancelled","Cancelled",IF($R54="Scheduled","Scheduled",IF(_xlpm.miss="","Ready to schedule",_xlpm.miss)))))) -> 
B55: =IF($A55="","",_xlfn.XLOOKUP($A55,WorkOrdersDatabase[WO Number],WorkOrdersDatabase[Work Type],"")) ->  | C55: =IF($A55="","",_xlfn.XLOOKUP($A55,WorkOrdersDatabase[WO Number],WorkOrdersDatabase[Status],"")) ->  | D55: =IF($A55="","",_xlfn.XLOOKUP($A55,WorkOrdersDatabase[WO Number],WorkOrdersDatabase[Priority],"")) ->  | E55: =IF($A55="","",_xlfn.XLOOKUP($A55,WorkOrdersDatabase[WO Number],WorkOrdersDatabase[Asset ID],"")) ->  | F55: =IF($A55="","",_xlfn.XLOOKUP($A55,WorkOrdersDatabase[WO Number],WorkOrdersDatabase[Asset Name],"")) ->  | G55: =IF($A55="","",_xlfn.LET(_xlpm.v,_xlfn.XLOOKUP($A55,WorkOrdersDatabase[WO Number],WorkOrdersDatabase[Location],""),IF(OR(_xlpm.v=0,_xlpm.v=""),"",_xlpm.v))) ->  | H55: =IF($A55="","",_xlfn.LET(_xlpm.v,_xlfn.XLOOKUP($A55,WorkOrdersDatabase[WO Number],WorkOrdersDatabase[Problem Description],""),IF(OR(_xlpm.v=0,_xlpm.v=""),"",_xlpm.v))) ->  | I55: =IF($A55="","",_xlfn.LET(_xlpm.v,_xlfn.XLOOKUP($A55,WorkOrdersDatabase[WO Number],WorkOrdersDatabase[Parts Used],""),IF(OR(_xlpm.v=0,_xlpm.v=""),"",_xlpm.v))) ->  | J55: =IF($A55="","",IF(OR(I55="",I55=0,I55="0"),"Not Required",IFERROR(_xlfn.XLOOKUP(I55,'Parts List'!A:A,'Parts List'!F:F,"Check Parts List"),"Check Parts List"))) ->  | K55: =IF($A55="","",_xlfn.LET(_xlpm.v,_xlfn.XLOOKUP($A55,WorkOrdersDatabase[WO Number],WorkOrdersDatabase[Labour Hours],""),IF(OR(_xlpm.v=0,_xlpm.v=""),"",_xlpm.v))) ->  | L55: =IF($A55="","",_xlfn.LET(_xlpm.v,_xlfn.XLOOKUP($A55,WorkOrdersDatabase[WO Number],WorkOrdersDatabase[Assigned To],""),IF(OR(_xlpm.v=0,_xlpm.v=""),"",_xlpm.v))) ->  | T55: =IF($A55="","",_xlfn.LET(_xlpm.miss,_xlfn.TEXTJOIN(", ",TRUE,IF($J55="OUT OF STOCK","Parts out of stock",""),IF($J55="Check Parts List","Check parts master",""),IF($L55="","Assign technician",""),IF($M55="","Add start time",""),IF($K55="","Add labour hours","")),IF($R55="Completed","Completed",IF($R55="Cancelled","Cancelled",IF($R55="Scheduled","Scheduled",IF(_xlpm.miss="","Ready to schedule",_xlpm.miss)))))) -> 
B56: =IF($A56="","",_xlfn.XLOOKUP($A56,WorkOrdersDatabase[WO Number],WorkOrdersDatabase[Work Type],"")) ->  | C56: =IF($A56="","",_xlfn.XLOOKUP($A56,WorkOrdersDatabase[WO Number],WorkOrdersDatabase[Status],"")) ->  | D56: =IF($A56="","",_xlfn.XLOOKUP($A56,WorkOrdersDatabase[WO Number],WorkOrdersDatabase[Priority],"")) ->  | E56: =IF($A56="","",_xlfn.XLOOKUP($A56,WorkOrdersDatabase[WO Number],WorkOrdersDatabase[Asset ID],"")) ->  | F56: =IF($A56="","",_xlfn.XLOOKUP($A56,WorkOrdersDatabase[WO Number],WorkOrdersDatabase[Asset Name],"")) ->  | G56: =IF($A56="","",_xlfn.LET(_xlpm.v,_xlfn.XLOOKUP($A56,WorkOrdersDatabase[WO Number],WorkOrdersDatabase[Location],""),IF(OR(_xlpm.v=0,_xlpm.v=""),"",_xlpm.v))) ->  | H56: =IF($A56="","",_xlfn.LET(_xlpm.v,_xlfn.XLOOKUP($A56,WorkOrdersDatabase[WO Number],WorkOrdersDatabase[Problem Description],""),IF(OR(_xlpm.v=0,_xlpm.v=""),"",_xlpm.v))) ->  | I56: =IF($A56="","",_xlfn.LET(_xlpm.v,_xlfn.XLOOKUP($A56,WorkOrdersDatabase[WO Number],WorkOrdersDatabase[Parts Used],""),IF(OR(_xlpm.v=0,_xlpm.v=""),"",_xlpm.v))) ->  | J56: =IF($A56="","",IF(OR(I56="",I56=0,I56="0"),"Not Required",IFERROR(_xlfn.XLOOKUP(I56,'Parts List'!A:A,'Parts List'!F:F,"Check Parts List"),"Check Parts List"))) ->  | K56: =IF($A56="","",_xlfn.LET(_xlpm.v,_xlfn.XLOOKUP($A56,WorkOrdersDatabase[WO Number],WorkOrdersDatabase[Labour Hours],""),IF(OR(_xlpm.v=0,_xlpm.v=""),"",_xlpm.v))) ->  | L56: =IF($A56="","",_xlfn.LET(_xlpm.v,_xlfn.XLOOKUP($A56,WorkOrdersDatabase[WO Number],WorkOrdersDatabase[Assigned To],""),IF(OR(_xlpm.v=0,_xlpm.v=""),"",_xlpm.v))) ->  | T56: =IF($A56="","",_xlfn.LET(_xlpm.miss,_xlfn.TEXTJOIN(", ",TRUE,IF($J56="OUT OF STOCK","Parts out of stock",""),IF($J56="Check Parts List","Check parts master",""),IF($L56="","Assign technician",""),IF($M56="","Add start time",""),IF($K56="","Add labour hours","")),IF($R56="Completed","Completed",IF($R56="Cancelled","Cancelled",IF($R56="Scheduled","Scheduled",IF(_xlpm.miss="","Ready to schedule",_xlpm.miss)))))) -> 
B57: =IF($A57="","",_xlfn.XLOOKUP($A57,WorkOrdersDatabase[WO Number],WorkOrdersDatabase[Work Type],"")) ->  | C57: =IF($A57="","",_xlfn.XLOOKUP($A57,WorkOrdersDatabase[WO Number],WorkOrdersDatabase[Status],"")) ->  | D57: =IF($A57="","",_xlfn.XLOOKUP($A57,WorkOrdersDatabase[WO Number],WorkOrdersDatabase[Priority],"")) ->  | E57: =IF($A57="","",_xlfn.XLOOKUP($A57,WorkOrdersDatabase[WO Number],WorkOrdersDatabase[Asset ID],"")) ->  | F57: =IF($A57="","",_xlfn.XLOOKUP($A57,WorkOrdersDatabase[WO Number],WorkOrdersDatabase[Asset Name],"")) ->  | G57: =IF($A57="","",_xlfn.LET(_xlpm.v,_xlfn.XLOOKUP($A57,WorkOrdersDatabase[WO Number],WorkOrdersDatabase[Location],""),IF(OR(_xlpm.v=0,_xlpm.v=""),"",_xlpm.v))) ->  | H57: =IF($A57="","",_xlfn.LET(_xlpm.v,_xlfn.XLOOKUP($A57,WorkOrdersDatabase[WO Number],WorkOrdersDatabase[Problem Description],""),IF(OR(_xlpm.v=0,_xlpm.v=""),"",_xlpm.v))) ->  | I57: =IF($A57="","",_xlfn.LET(_xlpm.v,_xlfn.XLOOKUP($A57,WorkOrdersDatabase[WO Number],WorkOrdersDatabase[Parts Used],""),IF(OR(_xlpm.v=0,_xlpm.v=""),"",_xlpm.v))) ->  | J57: =IF($A57="","",IF(OR(I57="",I57=0,I57="0"),"Not Required",IFERROR(_xlfn.XLOOKUP(I57,'Parts List'!A:A,'Parts List'!F:F,"Check Parts List"),"Check Parts List"))) ->  | K57: =IF($A57="","",_xlfn.LET(_xlpm.v,_xlfn.XLOOKUP($A57,WorkOrdersDatabase[WO Number],WorkOrdersDatabase[Labour Hours],""),IF(OR(_xlpm.v=0,_xlpm.v=""),"",_xlpm.v))) ->  | L57: =IF($A57="","",_xlfn.LET(_xlpm.v,_xlfn.XLOOKUP($A57,WorkOrdersDatabase[WO Number],WorkOrdersDatabase[Assigned To],""),IF(OR(_xlpm.v=0,_xlpm.v=""),"",_xlpm.v))) ->  | T57: =IF($A57="","",_xlfn.LET(_xlpm.miss,_xlfn.TEXTJOIN(", ",TRUE,IF($J57="OUT OF STOCK","Parts out of stock",""),IF($J57="Check Parts List","Check parts master",""),IF($L57="","Assign technician",""),IF($M57="","Add start time",""),IF($K57="","Add labour hours","")),IF($R57="Completed","Completed",IF($R57="Cancelled","Cancelled",IF($R57="Scheduled","Scheduled",IF(_xlpm.miss="","Ready to schedule",_xlpm.miss)))))) -> 
B58: =IF($A58="","",_xlfn.XLOOKUP($A58,WorkOrdersDatabase[WO Number],WorkOrdersDatabase[Work Type],"")) ->  | C58: =IF($A58="","",_xlfn.XLOOKUP($A58,WorkOrdersDatabase[WO Number],WorkOrdersDatabase[Status],"")) ->  | D58: =IF($A58="","",_xlfn.XLOOKUP($A58,WorkOrdersDatabase[WO Number],WorkOrdersDatabase[Priority],"")) ->  | E58: =IF($A58="","",_xlfn.XLOOKUP($A58,WorkOrdersDatabase[WO Number],WorkOrdersDatabase[Asset ID],"")) ->  | F58: =IF($A58="","",_xlfn.XLOOKUP($A58,WorkOrdersDatabase[WO Number],WorkOrdersDatabase[Asset Name],"")) ->  | G58: =IF($A58="","",_xlfn.LET(_xlpm.v,_xlfn.XLOOKUP($A58,WorkOrdersDatabase[WO Number],WorkOrdersDatabase[Location],""),IF(OR(_xlpm.v=0,_xlpm.v=""),"",_xlpm.v))) ->  | H58: =IF($A58="","",_xlfn.LET(_xlpm.v,_xlfn.XLOOKUP($A58,WorkOrdersDatabase[WO Number],WorkOrdersDatabase[Problem Description],""),IF(OR(_xlpm.v=0,_xlpm.v=""),"",_xlpm.v))) ->  | I58: =IF($A58="","",_xlfn.LET(_xlpm.v,_xlfn.XLOOKUP($A58,WorkOrdersDatabase[WO Number],WorkOrdersDatabase[Parts Used],""),IF(OR(_xlpm.v=0,_xlpm.v=""),"",_xlpm.v))) ->  | J58: =IF($A58="","",IF(OR(I58="",I58=0,I58="0"),"Not Required",IFERROR(_xlfn.XLOOKUP(I58,'Parts List'!A:A,'Parts List'!F:F,"Check Parts List"),"Check Parts List"))) ->  | K58: =IF($A58="","",_xlfn.LET(_xlpm.v,_xlfn.XLOOKUP($A58,WorkOrdersDatabase[WO Number],WorkOrdersDatabase[Labour Hours],""),IF(OR(_xlpm.v=0,_xlpm.v=""),"",_xlpm.v))) ->  | L58: =IF($A58="","",_xlfn.LET(_xlpm.v,_xlfn.XLOOKUP($A58,WorkOrdersDatabase[WO Number],WorkOrdersDatabase[Assigned To],""),IF(OR(_xlpm.v=0,_xlpm.v=""),"",_xlpm.v))) ->  | T58: =IF($A58="","",_xlfn.LET(_xlpm.miss,_xlfn.TEXTJOIN(", ",TRUE,IF($J58="OUT OF STOCK","Parts out of stock",""),IF($J58="Check Parts List","Check parts master",""),IF($L58="","Assign technician",""),IF($M58="","Add start time",""),IF($K58="","Add labour hours","")),IF($R58="Completed","Completed",IF($R58="Cancelled","Cancelled",IF($R58="Scheduled","Scheduled",IF(_xlpm.miss="","Ready to schedule",_xlpm.miss)))))) -> 
B59: =IF($A59="","",_xlfn.XLOOKUP($A59,WorkOrdersDatabase[WO Number],WorkOrdersDatabase[Work Type],"")) ->  | C59: =IF($A59="","",_xlfn.XLOOKUP($A59,WorkOrdersDatabase[WO Number],WorkOrdersDatabase[Status],"")) ->  | D59: =IF($A59="","",_xlfn.XLOOKUP($A59,WorkOrdersDatabase[WO Number],WorkOrdersDatabase[Priority],"")) ->  | E59: =IF($A59="","",_xlfn.XLOOKUP($A59,WorkOrdersDatabase[WO Number],WorkOrdersDatabase[Asset ID],"")) ->  | F59: =IF($A59="","",_xlfn.XLOOKUP($A59,WorkOrdersDatabase[WO Number],WorkOrdersDatabase[Asset Name],"")) ->  | G59: =IF($A59="","",_xlfn.LET(_xlpm.v,_xlfn.XLOOKUP($A59,WorkOrdersDatabase[WO Number],WorkOrdersDatabase[Location],""),IF(OR(_xlpm.v=0,_xlpm.v=""),"",_xlpm.v))) ->  | H59: =IF($A59="","",_xlfn.LET(_xlpm.v,_xlfn.XLOOKUP($A59,WorkOrdersDatabase[WO Number],WorkOrdersDatabase[Problem Description],""),IF(OR(_xlpm.v=0,_xlpm.v=""),"",_xlpm.v))) ->  | I59: =IF($A59="","",_xlfn.LET(_xlpm.v,_xlfn.XLOOKUP($A59,WorkOrdersDatabase[WO Number],WorkOrdersDatabase[Parts Used],""),IF(OR(_xlpm.v=0,_xlpm.v=""),"",_xlpm.v))) ->  | J59: =IF($A59="","",IF(OR(I59="",I59=0,I59="0"),"Not Required",IFERROR(_xlfn.XLOOKUP(I59,'Parts List'!A:A,'Parts List'!F:F,"Check Parts List"),"Check Parts List"))) ->  | K59: =IF($A59="","",_xlfn.LET(_xlpm.v,_xlfn.XLOOKUP($A59,WorkOrdersDatabase[WO Number],WorkOrdersDatabase[Labour Hours],""),IF(OR(_xlpm.v=0,_xlpm.v=""),"",_xlpm.v))) ->  | L59: =IF($A59="","",_xlfn.LET(_xlpm.v,_xlfn.XLOOKUP($A59,WorkOrdersDatabase[WO Number],WorkOrdersDatabase[Assigned To],""),IF(OR(_xlpm.v=0,_xlpm.v=""),"",_xlpm.v))) ->  | T59: =IF($A59="","",_xlfn.LET(_xlpm.miss,_xlfn.TEXTJOIN(", ",TRUE,IF($J59="OUT OF STOCK","Parts out of stock",""),IF($J59="Check Parts List","Check parts master",""),IF($L59="","Assign technician",""),IF($M59="","Add start time",""),IF($K59="","Add labour hours","")),IF($R59="Completed","Completed",IF($R59="Cancelled","Cancelled",IF($R59="Scheduled","Scheduled",IF(_xlpm.miss="","Ready to schedule",_xlpm.miss)))))) -> 
B60: =IF($A60="","",_xlfn.XLOOKUP($A60,WorkOrdersDatabase[WO Number],WorkOrdersDatabase[Work Type],"")) ->  | C60: =IF($A60="","",_xlfn.XLOOKUP($A60,WorkOrdersDatabase[WO Number],WorkOrdersDatabase[Status],"")) ->  | D60: =IF($A60="","",_xlfn.XLOOKUP($A60,WorkOrdersDatabase[WO Number],WorkOrdersDatabase[Priority],"")) ->  | E60: =IF($A60="","",_xlfn.XLOOKUP($A60,WorkOrdersDatabase[WO Number],WorkOrdersDatabase[Asset ID],"")) ->  | F60: =IF($A60="","",_xlfn.XLOOKUP($A60,WorkOrdersDatabase[WO Number],WorkOrdersDatabase[Asset Name],"")) ->  | G60: =IF($A60="","",_xlfn.LET(_xlpm.v,_xlfn.XLOOKUP($A60,WorkOrdersDatabase[WO Number],WorkOrdersDatabase[Location],""),IF(OR(_xlpm.v=0,_xlpm.v=""),"",_xlpm.v))) ->  | H60: =IF($A60="","",_xlfn.LET(_xlpm.v,_xlfn.XLOOKUP($A60,WorkOrdersDatabase[WO Number],WorkOrdersDatabase[Problem Description],""),IF(OR(_xlpm.v=0,_xlpm.v=""),"",_xlpm.v))) ->  | I60: =IF($A60="","",_xlfn.LET(_xlpm.v,_xlfn.XLOOKUP($A60,WorkOrdersDatabase[WO Number],WorkOrdersDatabase[Parts Used],""),IF(OR(_xlpm.v=0,_xlpm.v=""),"",_xlpm.v))) ->  | J60: =IF($A60="","",IF(OR(I60="",I60=0,I60="0"),"Not Required",IFERROR(_xlfn.XLOOKUP(I60,'Parts List'!A:A,'Parts List'!F:F,"Check Parts List"),"Check Parts List"))) ->  | K60: =IF($A60="","",_xlfn.LET(_xlpm.v,_xlfn.XLOOKUP($A60,WorkOrdersDatabase[WO Number],WorkOrdersDatabase[Labour Hours],""),IF(OR(_xlpm.v=0,_xlpm.v=""),"",_xlpm.v))) ->  | L60: =IF($A60="","",_xlfn.LET(_xlpm.v,_xlfn.XLOOKUP($A60,WorkOrdersDatabase[WO Number],WorkOrdersDatabase[Assigned To],""),IF(OR(_xlpm.v=0,_xlpm.v=""),"",_xlpm.v))) ->  | T60: =IF($A60="","",_xlfn.LET(_xlpm.miss,_xlfn.TEXTJOIN(", ",TRUE,IF($J60="OUT OF STOCK","Parts out of stock",""),IF($J60="Check Parts List","Check parts master",""),IF($L60="","Assign technician",""),IF($M60="","Add start time",""),IF($K60="","Add labour hours","")),IF($R60="Completed","Completed",IF($R60="Cancelled","Cancelled",IF($R60="Scheduled","Scheduled",IF(_xlpm.miss="","Ready to schedule",_xlpm.miss)))))) -> 
B61: =IF($A61="","",_xlfn.XLOOKUP($A61,WorkOrdersDatabase[WO Number],WorkOrdersDatabase[Work Type],"")) ->  | C61: =IF($A61="","",_xlfn.XLOOKUP($A61,WorkOrdersDatabase[WO Number],WorkOrdersDatabase[Status],"")) ->  | D61: =IF($A61="","",_xlfn.XLOOKUP($A61,WorkOrdersDatabase[WO Number],WorkOrdersDatabase[Priority],"")) ->  | E61: =IF($A61="","",_xlfn.XLOOKUP($A61,WorkOrdersDatabase[WO Number],WorkOrdersDatabase[Asset ID],"")) ->  | F61: =IF($A61="","",_xlfn.XLOOKUP($A61,WorkOrdersDatabase[WO Number],WorkOrdersDatabase[Asset Name],"")) ->  | G61: =IF($A61="","",_xlfn.LET(_xlpm.v,_xlfn.XLOOKUP($A61,WorkOrdersDatabase[WO Number],WorkOrdersDatabase[Location],""),IF(OR(_xlpm.v=0,_xlpm.v=""),"",_xlpm.v))) ->  | H61: =IF($A61="","",_xlfn.LET(_xlpm.v,_xlfn.XLOOKUP($A61,WorkOrdersDatabase[WO Number],WorkOrdersDatabase[Problem Description],""),IF(OR(_xlpm.v=0,_xlpm.v=""),"",_xlpm.v))) ->  | I61: =IF($A61="","",_xlfn.LET(_xlpm.v,_xlfn.XLOOKUP($A61,WorkOrdersDatabase[WO Number],WorkOrdersDatabase[Parts Used],""),IF(OR(_xlpm.v=0,_xlpm.v=""),"",_xlpm.v))) ->  | J61: =IF($A61="","",IF(OR(I61="",I61=0,I61="0"),"Not Required",IFERROR(_xlfn.XLOOKUP(I61,'Parts List'!A:A,'Parts List'!F:F,"Check Parts List"),"Check Parts List"))) ->  | K61: =IF($A61="","",_xlfn.LET(_xlpm.v,_xlfn.XLOOKUP($A61,WorkOrdersDatabase[WO Number],WorkOrdersDatabase[Labour Hours],""),IF(OR(_xlpm.v=0,_xlpm.v=""),"",_xlpm.v))) ->  | L61: =IF($A61="","",_xlfn.LET(_xlpm.v,_xlfn.XLOOKUP($A61,WorkOrdersDatabase[WO Number],WorkOrdersDatabase[Assigned To],""),IF(OR(_xlpm.v=0,_xlpm.v=""),"",_xlpm.v))) ->  | T61: =IF($A61="","",_xlfn.LET(_xlpm.miss,_xlfn.TEXTJOIN(", ",TRUE,IF($J61="OUT OF STOCK","Parts out of stock",""),IF($J61="Check Parts List","Check parts master",""),IF($L61="","Assign technician",""),IF($M61="","Add start time",""),IF($K61="","Add labour hours","")),IF($R61="Completed","Completed",IF($R61="Cancelled","Cancelled",IF($R61="Scheduled","Scheduled",IF(_xlpm.miss="","Ready to schedule",_xlpm.miss)))))) -> 
B62: =IF($A62="","",_xlfn.XLOOKUP($A62,WorkOrdersDatabase[WO Number],WorkOrdersDatabase[Work Type],"")) ->  | C62: =IF($A62="","",_xlfn.XLOOKUP($A62,WorkOrdersDatabase[WO Number],WorkOrdersDatabase[Status],"")) ->  | D62: =IF($A62="","",_xlfn.XLOOKUP($A62,WorkOrdersDatabase[WO Number],WorkOrdersDatabase[Priority],"")) ->  | E62: =IF($A62="","",_xlfn.XLOOKUP($A62,WorkOrdersDatabase[WO Number],WorkOrdersDatabase[Asset ID],"")) ->  | F62: =IF($A62="","",_xlfn.XLOOKUP($A62,WorkOrdersDatabase[WO Number],WorkOrdersDatabase[Asset Name],"")) ->  | G62: =IF($A62="","",_xlfn.LET(_xlpm.v,_xlfn.XLOOKUP($A62,WorkOrdersDatabase[WO Number],WorkOrdersDatabase[Location],""),IF(OR(_xlpm.v=0,_xlpm.v=""),"",_xlpm.v))) ->  | H62: =IF($A62="","",_xlfn.LET(_xlpm.v,_xlfn.XLOOKUP($A62,WorkOrdersDatabase[WO Number],WorkOrdersDatabase[Problem Description],""),IF(OR(_xlpm.v=0,_xlpm.v=""),"",_xlpm.v))) ->  | I62: =IF($A62="","",_xlfn.LET(_xlpm.v,_xlfn.XLOOKUP($A62,WorkOrdersDatabase[WO Number],WorkOrdersDatabase[Parts Used],""),IF(OR(_xlpm.v=0,_xlpm.v=""),"",_xlpm.v))) ->  | J62: =IF($A62="","",IF(OR(I62="",I62=0,I62="0"),"Not Required",IFERROR(_xlfn.XLOOKUP(I62,'Parts List'!A:A,'Parts List'!F:F,"Check Parts List"),"Check Parts List"))) ->  | K62: =IF($A62="","",_xlfn.LET(_xlpm.v,_xlfn.XLOOKUP($A62,WorkOrdersDatabase[WO Number],WorkOrdersDatabase[Labour Hours],""),IF(OR(_xlpm.v=0,_xlpm.v=""),"",_xlpm.v))) ->  | L62: =IF($A62="","",_xlfn.LET(_xlpm.v,_xlfn.XLOOKUP($A62,WorkOrdersDatabase[WO Number],WorkOrdersDatabase[Assigned To],""),IF(OR(_xlpm.v=0,_xlpm.v=""),"",_xlpm.v))) ->  | T62: =IF($A62="","",_xlfn.LET(_xlpm.miss,_xlfn.TEXTJOIN(", ",TRUE,IF($J62="OUT OF STOCK","Parts out of stock",""),IF($J62="Check Parts List","Check parts master",""),IF($L62="","Assign technician",""),IF($M62="","Add start time",""),IF($K62="","Add labour hours","")),IF($R62="Completed","Completed",IF($R62="Cancelled","Cancelled",IF($R62="Scheduled","Scheduled",IF(_xlpm.miss="","Ready to schedule",_xlpm.miss)))))) -> 
B63: =IF($A63="","",_xlfn.XLOOKUP($A63,WorkOrdersDatabase[WO Number],WorkOrdersDatabase[Work Type],"")) ->  | C63: =IF($A63="","",_xlfn.XLOOKUP($A63,WorkOrdersDatabase[WO Number],WorkOrdersDatabase[Status],"")) ->  | D63: =IF($A63="","",_xlfn.XLOOKUP($A63,WorkOrdersDatabase[WO Number],WorkOrdersDatabase[Priority],"")) ->  | E63: =IF($A63="","",_xlfn.XLOOKUP($A63,WorkOrdersDatabase[WO Number],WorkOrdersDatabase[Asset ID],"")) ->  | F63: =IF($A63="","",_xlfn.XLOOKUP($A63,WorkOrdersDatabase[WO Number],WorkOrdersDatabase[Asset Name],"")) ->  | G63: =IF($A63="","",_xlfn.LET(_xlpm.v,_xlfn.XLOOKUP($A63,WorkOrdersDatabase[WO Number],WorkOrdersDatabase[Location],""),IF(OR(_xlpm.v=0,_xlpm.v=""),"",_xlpm.v))) ->  | H63: =IF($A63="","",_xlfn.LET(_xlpm.v,_xlfn.XLOOKUP($A63,WorkOrdersDatabase[WO Number],WorkOrdersDatabase[Problem Description],""),IF(OR(_xlpm.v=0,_xlpm.v=""),"",_xlpm.v))) ->  | I63: =IF($A63="","",_xlfn.LET(_xlpm.v,_xlfn.XLOOKUP($A63,WorkOrdersDatabase[WO Number],WorkOrdersDatabase[Parts Used],""),IF(OR(_xlpm.v=0,_xlpm.v=""),"",_xlpm.v))) ->  | J63: =IF($A63="","",IF(OR(I63="",I63=0,I63="0"),"Not Required",IFERROR(_xlfn.XLOOKUP(I63,'Parts List'!A:A,'Parts List'!F:F,"Check Parts List"),"Check Parts List"))) ->  | K63: =IF($A63="","",_xlfn.LET(_xlpm.v,_xlfn.XLOOKUP($A63,WorkOrdersDatabase[WO Number],WorkOrdersDatabase[Labour Hours],""),IF(OR(_xlpm.v=0,_xlpm.v=""),"",_xlpm.v))) ->  | L63: =IF($A63="","",_xlfn.LET(_xlpm.v,_xlfn.XLOOKUP($A63,WorkOrdersDatabase[WO Number],WorkOrdersDatabase[Assigned To],""),IF(OR(_xlpm.v=0,_xlpm.v=""),"",_xlpm.v))) ->  | T63: =IF($A63="","",_xlfn.LET(_xlpm.miss,_xlfn.TEXTJOIN(", ",TRUE,IF($J63="OUT OF STOCK","Parts out of stock",""),IF($J63="Check Parts List","Check parts master",""),IF($L63="","Assign technician",""),IF($M63="","Add start time",""),IF($K63="","Add labour hours","")),IF($R63="Completed","Completed",IF($R63="Cancelled","Cancelled",IF($R63="Scheduled","Scheduled",IF(_xlpm.miss="","Ready to schedule",_xlpm.miss)))))) -> 
B64: =IF($A64="","",_xlfn.XLOOKUP($A64,WorkOrdersDatabase[WO Number],WorkOrdersDatabase[Work Type],"")) ->  | C64: =IF($A64="","",_xlfn.XLOOKUP($A64,WorkOrdersDatabase[WO Number],WorkOrdersDatabase[Status],"")) ->  | D64: =IF($A64="","",_xlfn.XLOOKUP($A64,WorkOrdersDatabase[WO Number],WorkOrdersDatabase[Priority],"")) ->  | E64: =IF($A64="","",_xlfn.XLOOKUP($A64,WorkOrdersDatabase[WO Number],WorkOrdersDatabase[Asset ID],"")) ->  | F64: =IF($A64="","",_xlfn.XLOOKUP($A64,WorkOrdersDatabase[WO Number],WorkOrdersDatabase[Asset Name],"")) ->  | G64: =IF($A64="","",_xlfn.LET(_xlpm.v,_xlfn.XLOOKUP($A64,WorkOrdersDatabase[WO Number],WorkOrdersDatabase[Location],""),IF(OR(_xlpm.v=0,_xlpm.v=""),"",_xlpm.v))) ->  | H64: =IF($A64="","",_xlfn.LET(_xlpm.v,_xlfn.XLOOKUP($A64,WorkOrdersDatabase[WO Number],WorkOrdersDatabase[Problem Description],""),IF(OR(_xlpm.v=0,_xlpm.v=""),"",_xlpm.v))) ->  | I64: =IF($A64="","",_xlfn.LET(_xlpm.v,_xlfn.XLOOKUP($A64,WorkOrdersDatabase[WO Number],WorkOrdersDatabase[Parts Used],""),IF(OR(_xlpm.v=0,_xlpm.v=""),"",_xlpm.v))) ->  | J64: =IF($A64="","",IF(OR(I64="",I64=0,I64="0"),"Not Required",IFERROR(_xlfn.XLOOKUP(I64,'Parts List'!A:A,'Parts List'!F:F,"Check Parts List"),"Check Parts List"))) ->  | K64: =IF($A64="","",_xlfn.LET(_xlpm.v,_xlfn.XLOOKUP($A64,WorkOrdersDatabase[WO Number],WorkOrdersDatabase[Labour Hours],""),IF(OR(_xlpm.v=0,_xlpm.v=""),"",_xlpm.v))) ->  | L64: =IF($A64="","",_xlfn.LET(_xlpm.v,_xlfn.XLOOKUP($A64,WorkOrdersDatabase[WO Number],WorkOrdersDatabase[Assigned To],""),IF(OR(_xlpm.v=0,_xlpm.v=""),"",_xlpm.v))) ->  | T64: =IF($A64="","",_xlfn.LET(_xlpm.miss,_xlfn.TEXTJOIN(", ",TRUE,IF($J64="OUT OF STOCK","Parts out of stock",""),IF($J64="Check Parts List","Check parts master",""),IF($L64="","Assign technician",""),IF($M64="","Add start time",""),IF($K64="","Add labour hours","")),IF($R64="Completed","Completed",IF($R64="Cancelled","Cancelled",IF($R64="Scheduled","Scheduled",IF(_xlpm.miss="","Ready to schedule",_xlpm.miss)))))) -> 
B65: =IF($A65="","",_xlfn.XLOOKUP($A65,WorkOrdersDatabase[WO Number],WorkOrdersDatabase[Work Type],"")) ->  | C65: =IF($A65="","",_xlfn.XLOOKUP($A65,WorkOrdersDatabase[WO Number],WorkOrdersDatabase[Status],"")) ->  | D65: =IF($A65="","",_xlfn.XLOOKUP($A65,WorkOrdersDatabase[WO Number],WorkOrdersDatabase[Priority],"")) ->  | E65: =IF($A65="","",_xlfn.XLOOKUP($A65,WorkOrdersDatabase[WO Number],WorkOrdersDatabase[Asset ID],"")) ->  | F65: =IF($A65="","",_xlfn.XLOOKUP($A65,WorkOrdersDatabase[WO Number],WorkOrdersDatabase[Asset Name],"")) ->  | G65: =IF($A65="","",_xlfn.LET(_xlpm.v,_xlfn.XLOOKUP($A65,WorkOrdersDatabase[WO Number],WorkOrdersDatabase[Location],""),IF(OR(_xlpm.v=0,_xlpm.v=""),"",_xlpm.v))) ->  | H65: =IF($A65="","",_xlfn.LET(_xlpm.v,_xlfn.XLOOKUP($A65,WorkOrdersDatabase[WO Number],WorkOrdersDatabase[Problem Description],""),IF(OR(_xlpm.v=0,_xlpm.v=""),"",_xlpm.v))) ->  | I65: =IF($A65="","",_xlfn.LET(_xlpm.v,_xlfn.XLOOKUP($A65,WorkOrdersDatabase[WO Number],WorkOrdersDatabase[Parts Used],""),IF(OR(_xlpm.v=0,_xlpm.v=""),"",_xlpm.v))) ->  | J65: =IF($A65="","",IF(OR(I65="",I65=0,I65="0"),"Not Required",IFERROR(_xlfn.XLOOKUP(I65,'Parts List'!A:A,'Parts List'!F:F,"Check Parts List"),"Check Parts List"))) ->  | K65: =IF($A65="","",_xlfn.LET(_xlpm.v,_xlfn.XLOOKUP($A65,WorkOrdersDatabase[WO Number],WorkOrdersDatabase[Labour Hours],""),IF(OR(_xlpm.v=0,_xlpm.v=""),"",_xlpm.v))) ->  | L65: =IF($A65="","",_xlfn.LET(_xlpm.v,_xlfn.XLOOKUP($A65,WorkOrdersDatabase[WO Number],WorkOrdersDatabase[Assigned To],""),IF(OR(_xlpm.v=0,_xlpm.v=""),"",_xlpm.v))) ->  | T65: =IF($A65="","",_xlfn.LET(_xlpm.miss,_xlfn.TEXTJOIN(", ",TRUE,IF($J65="OUT OF STOCK","Parts out of stock",""),IF($J65="Check Parts List","Check parts master",""),IF($L65="","Assign technician",""),IF($M65="","Add start time",""),IF($K65="","Add labour hours","")),IF($R65="Completed","Completed",IF($R65="Cancelled","Cancelled",IF($R65="Scheduled","Scheduled",IF(_xlpm.miss="","Ready to schedule",_xlpm.miss)))))) -> 
B66: =IF($A66="","",_xlfn.XLOOKUP($A66,WorkOrdersDatabase[WO Number],WorkOrdersDatabase[Work Type],"")) ->  | C66: =IF($A66="","",_xlfn.XLOOKUP($A66,WorkOrdersDatabase[WO Number],WorkOrdersDatabase[Status],"")) ->  | D66: =IF($A66="","",_xlfn.XLOOKUP($A66,WorkOrdersDatabase[WO Number],WorkOrdersDatabase[Priority],"")) ->  | E66: =IF($A66="","",_xlfn.XLOOKUP($A66,WorkOrdersDatabase[WO Number],WorkOrdersDatabase[Asset ID],"")) ->  | F66: =IF($A66="","",_xlfn.XLOOKUP($A66,WorkOrdersDatabase[WO Number],WorkOrdersDatabase[Asset Name],"")) ->  | G66: =IF($A66="","",_xlfn.LET(_xlpm.v,_xlfn.XLOOKUP($A66,WorkOrdersDatabase[WO Number],WorkOrdersDatabase[Location],""),IF(OR(_xlpm.v=0,_xlpm.v=""),"",_xlpm.v))) ->  | H66: =IF($A66="","",_xlfn.LET(_xlpm.v,_xlfn.XLOOKUP($A66,WorkOrdersDatabase[WO Number],WorkOrdersDatabase[Problem Description],""),IF(OR(_xlpm.v=0,_xlpm.v=""),"",_xlpm.v))) ->  | I66: =IF($A66="","",_xlfn.LET(_xlpm.v,_xlfn.XLOOKUP($A66,WorkOrdersDatabase[WO Number],WorkOrdersDatabase[Parts Used],""),IF(OR(_xlpm.v=0,_xlpm.v=""),"",_xlpm.v))) ->  | J66: =IF($A66="","",IF(OR(I66="",I66=0,I66="0"),"Not Required",IFERROR(_xlfn.XLOOKUP(I66,'Parts List'!A:A,'Parts List'!F:F,"Check Parts List"),"Check Parts List"))) ->  | K66: =IF($A66="","",_xlfn.LET(_xlpm.v,_xlfn.XLOOKUP($A66,WorkOrdersDatabase[WO Number],WorkOrdersDatabase[Labour Hours],""),IF(OR(_xlpm.v=0,_xlpm.v=""),"",_xlpm.v))) ->  | L66: =IF($A66="","",_xlfn.LET(_xlpm.v,_xlfn.XLOOKUP($A66,WorkOrdersDatabase[WO Number],WorkOrdersDatabase[Assigned To],""),IF(OR(_xlpm.v=0,_xlpm.v=""),"",_xlpm.v))) ->  | T66: =IF($A66="","",_xlfn.LET(_xlpm.miss,_xlfn.TEXTJOIN(", ",TRUE,IF($J66="OUT OF STOCK","Parts out of stock",""),IF($J66="Check Parts List","Check parts master",""),IF($L66="","Assign technician",""),IF($M66="","Add start time",""),IF($K66="","Add labour hours","")),IF($R66="Completed","Completed",IF($R66="Cancelled","Cancelled",IF($R66="Scheduled","Scheduled",IF(_xlpm.miss="","Ready to schedule",_xlpm.miss)))))) -> 
B67: =IF($A67="","",_xlfn.XLOOKUP($A67,WorkOrdersDatabase[WO Number],WorkOrdersDatabase[Work Type],"")) ->  | C67: =IF($A67="","",_xlfn.XLOOKUP($A67,WorkOrdersDatabase[WO Number],WorkOrdersDatabase[Status],"")) ->  | D67: =IF($A67="","",_xlfn.XLOOKUP($A67,WorkOrdersDatabase[WO Number],WorkOrdersDatabase[Priority],"")) ->  | E67: =IF($A67="","",_xlfn.XLOOKUP($A67,WorkOrdersDatabase[WO Number],WorkOrdersDatabase[Asset ID],"")) ->  | F67: =IF($A67="","",_xlfn.XLOOKUP($A67,WorkOrdersDatabase[WO Number],WorkOrdersDatabase[Asset Name],"")) ->  | G67: =IF($A67="","",_xlfn.LET(_xlpm.v,_xlfn.XLOOKUP($A67,WorkOrdersDatabase[WO Number],WorkOrdersDatabase[Location],""),IF(OR(_xlpm.v=0,_xlpm.v=""),"",_xlpm.v))) ->  | H67: =IF($A67="","",_xlfn.LET(_xlpm.v,_xlfn.XLOOKUP($A67,WorkOrdersDatabase[WO Number],WorkOrdersDatabase[Problem Description],""),IF(OR(_xlpm.v=0,_xlpm.v=""),"",_xlpm.v))) ->  | I67: =IF($A67="","",_xlfn.LET(_xlpm.v,_xlfn.XLOOKUP($A67,WorkOrdersDatabase[WO Number],WorkOrdersDatabase[Parts Used],""),IF(OR(_xlpm.v=0,_xlpm.v=""),"",_xlpm.v))) ->  | J67: =IF($A67="","",IF(OR(I67="",I67=0,I67="0"),"Not Required",IFERROR(_xlfn.XLOOKUP(I67,'Parts List'!A:A,'Parts List'!F:F,"Check Parts List"),"Check Parts List"))) ->  | K67: =IF($A67="","",_xlfn.LET(_xlpm.v,_xlfn.XLOOKUP($A67,WorkOrdersDatabase[WO Number],WorkOrdersDatabase[Labour Hours],""),IF(OR(_xlpm.v=0,_xlpm.v=""),"",_xlpm.v))) ->  | L67: =IF($A67="","",_xlfn.LET(_xlpm.v,_xlfn.XLOOKUP($A67,WorkOrdersDatabase[WO Number],WorkOrdersDatabase[Assigned To],""),IF(OR(_xlpm.v=0,_xlpm.v=""),"",_xlpm.v))) ->  | N67: =IF(OR(M67="",K67=""),"",M67+(K67/24)) ->  | P67: =IF(OR(O67="",M67="",K67=""),"",O67+M67+(K67/24)) ->  | S67: =IF($A67="","",IF(AND(OR($J67="IN STOCK",$J67="ORDER",$J67="Not Required"),$L67<>"",$M67<>"",$O67<>"",$R67<>"Completed",$R67<>"Cancelled"),"READY","NOT READY")) ->  | T67: =IF($A67="","",_xlfn.LET(_xlpm.miss,_xlfn.TEXTJOIN(", ",TRUE,IF($J67="OUT OF STOCK","Parts out of stock",""),IF($J67="Check Parts List","Check parts master",""),IF($L67="","Assign technician",""),IF($M67="","Add start time",""),IF($K67="","Add labour hours","")),IF($R67="Completed","Completed",IF($R67="Cancelled","Cancelled",IF($R67="Scheduled","Scheduled",IF(_xlpm.miss="","Ready to schedule",_xlpm.miss)))))) -> 
B68: =IF($A68="","",_xlfn.XLOOKUP($A68,WorkOrdersDatabase[WO Number],WorkOrdersDatabase[Work Type],"")) ->  | C68: =IF($A68="","",_xlfn.XLOOKUP($A68,WorkOrdersDatabase[WO Number],WorkOrdersDatabase[Status],"")) ->  | D68: =IF($A68="","",_xlfn.XLOOKUP($A68,WorkOrdersDatabase[WO Number],WorkOrdersDatabase[Priority],"")) ->  | E68: =IF($A68="","",_xlfn.XLOOKUP($A68,WorkOrdersDatabase[WO Number],WorkOrdersDatabase[Asset ID],"")) ->  | F68: =IF($A68="","",_xlfn.XLOOKUP($A68,WorkOrdersDatabase[WO Number],WorkOrdersDatabase[Asset Name],"")) ->  | G68: =IF($A68="","",_xlfn.LET(_xlpm.v,_xlfn.XLOOKUP($A68,WorkOrdersDatabase[WO Number],WorkOrdersDatabase[Location],""),IF(OR(_xlpm.v=0,_xlpm.v=""),"",_xlpm.v))) ->  | H68: =IF($A68="","",_xlfn.LET(_xlpm.v,_xlfn.XLOOKUP($A68,WorkOrdersDatabase[WO Number],WorkOrdersDatabase[Problem Description],""),IF(OR(_xlpm.v=0,_xlpm.v=""),"",_xlpm.v))) ->  | I68: =IF($A68="","",_xlfn.LET(_xlpm.v,_xlfn.XLOOKUP($A68,WorkOrdersDatabase[WO Number],WorkOrdersDatabase[Parts Used],""),IF(OR(_xlpm.v=0,_xlpm.v=""),"",_xlpm.v))) ->  | J68: =IF($A68="","",IF(OR(I68="",I68=0,I68="0"),"Not Required",IFERROR(_xlfn.XLOOKUP(I68,'Parts List'!A:A,'Parts List'!F:F,"Check Parts List"),"Check Parts List"))) ->  | K68: =IF($A68="","",_xlfn.LET(_xlpm.v,_xlfn.XLOOKUP($A68,WorkOrdersDatabase[WO Number],WorkOrdersDatabase[Labour Hours],""),IF(OR(_xlpm.v=0,_xlpm.v=""),"",_xlpm.v))) ->  | L68: =IF($A68="","",_xlfn.LET(_xlpm.v,_xlfn.XLOOKUP($A68,WorkOrdersDatabase[WO Number],WorkOrdersDatabase[Assigned To],""),IF(OR(_xlpm.v=0,_xlpm.v=""),"",_xlpm.v))) ->  | T68: =IF($A68="","",_xlfn.LET(_xlpm.miss,_xlfn.TEXTJOIN(", ",TRUE,IF($J68="OUT OF STOCK","Parts out of stock",""),IF($J68="Check Parts List","Check parts master",""),IF($L68="","Assign technician",""),IF($M68="","Add start time",""),IF($K68="","Add labour hours","")),IF($R68="Completed","Completed",IF($R68="Cancelled","Cancelled",IF($R68="Scheduled","Scheduled",IF(_xlpm.miss="","Ready to schedule",_xlpm.miss)))))) -> 
B69: =IF($A69="","",_xlfn.XLOOKUP($A69,WorkOrdersDatabase[WO Number],WorkOrdersDatabase[Work Type],"")) ->  | C69: =IF($A69="","",_xlfn.XLOOKUP($A69,WorkOrdersDatabase[WO Number],WorkOrdersDatabase[Status],"")) ->  | D69: =IF($A69="","",_xlfn.XLOOKUP($A69,WorkOrdersDatabase[WO Number],WorkOrdersDatabase[Priority],"")) ->  | E69: =IF($A69="","",_xlfn.XLOOKUP($A69,WorkOrdersDatabase[WO Number],WorkOrdersDatabase[Asset ID],"")) ->  | F69: =IF($A69="","",_xlfn.XLOOKUP($A69,WorkOrdersDatabase[WO Number],WorkOrdersDatabase[Asset Name],"")) ->  | G69: =IF($A69="","",_xlfn.LET(_xlpm.v,_xlfn.XLOOKUP($A69,WorkOrdersDatabase[WO Number],WorkOrdersDatabase[Location],""),IF(OR(_xlpm.v=0,_xlpm.v=""),"",_xlpm.v))) ->  | H69: =IF($A69="","",_xlfn.LET(_xlpm.v,_xlfn.XLOOKUP($A69,WorkOrdersDatabase[WO Number],WorkOrdersDatabase[Problem Description],""),IF(OR(_xlpm.v=0,_xlpm.v=""),"",_xlpm.v))) ->  | I69: =IF($A69="","",_xlfn.LET(_xlpm.v,_xlfn.XLOOKUP($A69,WorkOrdersDatabase[WO Number],WorkOrdersDatabase[Parts Used],""),IF(OR(_xlpm.v=0,_xlpm.v=""),"",_xlpm.v))) ->  | J69: =IF($A69="","",IF(OR(I69="",I69=0,I69="0"),"Not Required",IFERROR(_xlfn.XLOOKUP(I69,'Parts List'!A:A,'Parts List'!F:F,"Check Parts List"),"Check Parts List"))) ->  | K69: =IF($A69="","",_xlfn.LET(_xlpm.v,_xlfn.XLOOKUP($A69,WorkOrdersDatabase[WO Number],WorkOrdersDatabase[Labour Hours],""),IF(OR(_xlpm.v=0,_xlpm.v=""),"",_xlpm.v))) ->  | L69: =IF($A69="","",_xlfn.LET(_xlpm.v,_xlfn.XLOOKUP($A69,WorkOrdersDatabase[WO Number],WorkOrdersDatabase[Assigned To],""),IF(OR(_xlpm.v=0,_xlpm.v=""),"",_xlpm.v))) ->  | T69: =IF($A69="","",_xlfn.LET(_xlpm.miss,_xlfn.TEXTJOIN(", ",TRUE,IF($J69="OUT OF STOCK","Parts out of stock",""),IF($J69="Check Parts List","Check parts master",""),IF($L69="","Assign technician",""),IF($M69="","Add start time",""),IF($K69="","Add labour hours","")),IF($R69="Completed","Completed",IF($R69="Cancelled","Cancelled",IF($R69="Scheduled","Scheduled",IF(_xlpm.miss="","Ready to schedule",_xlpm.miss)))))) -> 
B70: =IF($A70="","",_xlfn.XLOOKUP($A70,WorkOrdersDatabase[WO Number],WorkOrdersDatabase[Work Type],"")) ->  | C70: =IF($A70="","",_xlfn.XLOOKUP($A70,WorkOrdersDatabase[WO Number],WorkOrdersDatabase[Status],"")) ->  | D70: =IF($A70="","",_xlfn.XLOOKUP($A70,WorkOrdersDatabase[WO Number],WorkOrdersDatabase[Priority],"")) ->  | E70: =IF($A70="","",_xlfn.XLOOKUP($A70,WorkOrdersDatabase[WO Number],WorkOrdersDatabase[Asset ID],"")) ->  | F70: =IF($A70="","",_xlfn.XLOOKUP($A70,WorkOrdersDatabase[WO Number],WorkOrdersDatabase[Asset Name],"")) ->  | G70: =IF($A70="","",_xlfn.LET(_xlpm.v,_xlfn.XLOOKUP($A70,WorkOrdersDatabase[WO Number],WorkOrdersDatabase[Location],""),IF(OR(_xlpm.v=0,_xlpm.v=""),"",_xlpm.v))) ->  | H70: =IF($A70="","",_xlfn.LET(_xlpm.v,_xlfn.XLOOKUP($A70,WorkOrdersDatabase[WO Number],WorkOrdersDatabase[Problem Description],""),IF(OR(_xlpm.v=0,_xlpm.v=""),"",_xlpm.v))) ->  | I70: =IF($A70="","",_xlfn.LET(_xlpm.v,_xlfn.XLOOKUP($A70,WorkOrdersDatabase[WO Number],WorkOrdersDatabase[Parts Used],""),IF(OR(_xlpm.v=0,_xlpm.v=""),"",_xlpm.v))) ->  | J70: =IF($A70="","",IF(OR(I70="",I70=0,I70="0"),"Not Required",IFERROR(_xlfn.XLOOKUP(I70,'Parts List'!A:A,'Parts List'!F:F,"Check Parts List"),"Check Parts List"))) ->  | K70: =IF($A70="","",_xlfn.LET(_xlpm.v,_xlfn.XLOOKUP($A70,WorkOrdersDatabase[WO Number],WorkOrdersDatabase[Labour Hours],""),IF(OR(_xlpm.v=0,_xlpm.v=""),"",_xlpm.v))) ->  | L70: =IF($A70="","",_xlfn.LET(_xlpm.v,_xlfn.XLOOKUP($A70,WorkOrdersDatabase[WO Number],WorkOrdersDatabase[Assigned To],""),IF(OR(_xlpm.v=0,_xlpm.v=""),"",_xlpm.v))) ->  | T70: =IF($A70="","",_xlfn.LET(_xlpm.miss,_xlfn.TEXTJOIN(", ",TRUE,IF($J70="OUT OF STOCK","Parts out of stock",""),IF($J70="Check Parts List","Check parts master",""),IF($L70="","Assign technician",""),IF($M70="","Add start time",""),IF($K70="","Add labour hours","")),IF($R70="Completed","Completed",IF($R70="Cancelled","Cancelled",IF($R70="Scheduled","Scheduled",IF(_xlpm.miss="","Ready to schedule",_xlpm.miss)))))) -> 
B71: =IF($A71="","",_xlfn.XLOOKUP($A71,WorkOrdersDatabase[WO Number],WorkOrdersDatabase[Work Type],"")) ->  | C71: =IF($A71="","",_xlfn.XLOOKUP($A71,WorkOrdersDatabase[WO Number],WorkOrdersDatabase[Status],"")) ->  | D71: =IF($A71="","",_xlfn.XLOOKUP($A71,WorkOrdersDatabase[WO Number],WorkOrdersDatabase[Priority],"")) ->  | E71: =IF($A71="","",_xlfn.XLOOKUP($A71,WorkOrdersDatabase[WO Number],WorkOrdersDatabase[Asset ID],"")) ->  | F71: =IF($A71="","",_xlfn.XLOOKUP($A71,WorkOrdersDatabase[WO Number],WorkOrdersDatabase[Asset Name],"")) ->  | G71: =IF($A71="","",_xlfn.LET(_xlpm.v,_xlfn.XLOOKUP($A71,WorkOrdersDatabase[WO Number],WorkOrdersDatabase[Location],""),IF(OR(_xlpm.v=0,_xlpm.v=""),"",_xlpm.v))) ->  | H71: =IF($A71="","",_xlfn.LET(_xlpm.v,_xlfn.XLOOKUP($A71,WorkOrdersDatabase[WO Number],WorkOrdersDatabase[Problem Description],""),IF(OR(_xlpm.v=0,_xlpm.v=""),"",_xlpm.v))) ->  | I71: =IF($A71="","",_xlfn.LET(_xlpm.v,_xlfn.XLOOKUP($A71,WorkOrdersDatabase[WO Number],WorkOrdersDatabase[Parts Used],""),IF(OR(_xlpm.v=0,_xlpm.v=""),"",_xlpm.v))) ->  | J71: =IF($A71="","",IF(OR(I71="",I71=0,I71="0"),"Not Required",IFERROR(_xlfn.XLOOKUP(I71,'Parts List'!A:A,'Parts List'!F:F,"Check Parts List"),"Check Parts List"))) ->  | K71: =IF($A71="","",_xlfn.LET(_xlpm.v,_xlfn.XLOOKUP($A71,WorkOrdersDatabase[WO Number],WorkOrdersDatabase[Labour Hours],""),IF(OR(_xlpm.v=0,_xlpm.v=""),"",_xlpm.v))) ->  | L71: =IF($A71="","",_xlfn.LET(_xlpm.v,_xlfn.XLOOKUP($A71,WorkOrdersDatabase[WO Number],WorkOrdersDatabase[Assigned To],""),IF(OR(_xlpm.v=0,_xlpm.v=""),"",_xlpm.v))) ->  | T71: =IF($A71="","",_xlfn.LET(_xlpm.miss,_xlfn.TEXTJOIN(", ",TRUE,IF($J71="OUT OF STOCK","Parts out of stock",""),IF($J71="Check Parts List","Check parts master",""),IF($L71="","Assign technician",""),IF($M71="","Add start time",""),IF($K71="","Add labour hours","")),IF($R71="Completed","Completed",IF($R71="Cancelled","Cancelled",IF($R71="Scheduled","Scheduled",IF(_xlpm.miss="","Ready to schedule",_xlpm.miss)))))) -> 
B72: =IF($A72="","",_xlfn.XLOOKUP($A72,WorkOrdersDatabase[WO Number],WorkOrdersDatabase[Work Type],"")) ->  | C72: =IF($A72="","",_xlfn.XLOOKUP($A72,WorkOrdersDatabase[WO Number],WorkOrdersDatabase[Status],"")) ->  | D72: =IF($A72="","",_xlfn.XLOOKUP($A72,WorkOrdersDatabase[WO Number],WorkOrdersDatabase[Priority],"")) ->  | E72: =IF($A72="","",_xlfn.XLOOKUP($A72,WorkOrdersDatabase[WO Number],WorkOrdersDatabase[Asset ID],"")) ->  | F72: =IF($A72="","",_xlfn.XLOOKUP($A72,WorkOrdersDatabase[WO Number],WorkOrdersDatabase[Asset Name],"")) ->  | G72: =IF($A72="","",_xlfn.LET(_xlpm.v,_xlfn.XLOOKUP($A72,WorkOrdersDatabase[WO Number],WorkOrdersDatabase[Location],""),IF(OR(_xlpm.v=0,_xlpm.v=""),"",_xlpm.v))) ->  | H72: =IF($A72="","",_xlfn.LET(_xlpm.v,_xlfn.XLOOKUP($A72,WorkOrdersDatabase[WO Number],WorkOrdersDatabase[Problem Description],""),IF(OR(_xlpm.v=0,_xlpm.v=""),"",_xlpm.v))) ->  | I72: =IF($A72="","",_xlfn.LET(_xlpm.v,_xlfn.XLOOKUP($A72,WorkOrdersDatabase[WO Number],WorkOrdersDatabase[Parts Used],""),IF(OR(_xlpm.v=0,_xlpm.v=""),"",_xlpm.v))) ->  | J72: =IF($A72="","",IF(OR(I72="",I72=0,I72="0"),"Not Required",IFERROR(_xlfn.XLOOKUP(I72,'Parts List'!A:A,'Parts List'!F:F,"Check Parts List"),"Check Parts List"))) ->  | K72: =IF($A72="","",_xlfn.LET(_xlpm.v,_xlfn.XLOOKUP($A72,WorkOrdersDatabase[WO Number],WorkOrdersDatabase[Labour Hours],""),IF(OR(_xlpm.v=0,_xlpm.v=""),"",_xlpm.v))) ->  | L72: =IF($A72="","",_xlfn.LET(_xlpm.v,_xlfn.XLOOKUP($A72,WorkOrdersDatabase[WO Number],WorkOrdersDatabase[Assigned To],""),IF(OR(_xlpm.v=0,_xlpm.v=""),"",_xlpm.v))) ->  | T72: =IF($A72="","",_xlfn.LET(_xlpm.miss,_xlfn.TEXTJOIN(", ",TRUE,IF($J72="OUT OF STOCK","Parts out of stock",""),IF($J72="Check Parts List","Check parts master",""),IF($L72="","Assign technician",""),IF($M72="","Add start time",""),IF($K72="","Add labour hours","")),IF($R72="Completed","Completed",IF($R72="Cancelled","Cancelled",IF($R72="Scheduled","Scheduled",IF(_xlpm.miss="","Ready to schedule",_xlpm.miss)))))) -> 
B73: =IF($A73="","",_xlfn.XLOOKUP($A73,WorkOrdersDatabase[WO Number],WorkOrdersDatabase[Work Type],"")) ->  | C73: =IF($A73="","",_xlfn.XLOOKUP($A73,WorkOrdersDatabase[WO Number],WorkOrdersDatabase[Status],"")) ->  | D73: =IF($A73="","",_xlfn.XLOOKUP($A73,WorkOrdersDatabase[WO Number],WorkOrdersDatabase[Priority],"")) ->  | E73: =IF($A73="","",_xlfn.XLOOKUP($A73,WorkOrdersDatabase[WO Number],WorkOrdersDatabase[Asset ID],"")) ->  | F73: =IF($A73="","",_xlfn.XLOOKUP($A73,WorkOrdersDatabase[WO Number],WorkOrdersDatabase[Asset Name],"")) ->  | G73: =IF($A73="","",_xlfn.LET(_xlpm.v,_xlfn.XLOOKUP($A73,WorkOrdersDatabase[WO Number],WorkOrdersDatabase[Location],""),IF(OR(_xlpm.v=0,_xlpm.v=""),"",_xlpm.v))) ->  | H73: =IF($A73="","",_xlfn.LET(_xlpm.v,_xlfn.XLOOKUP($A73,WorkOrdersDatabase[WO Number],WorkOrdersDatabase[Problem Description],""),IF(OR(_xlpm.v=0,_xlpm.v=""),"",_xlpm.v))) ->  | I73: =IF($A73="","",_xlfn.LET(_xlpm.v,_xlfn.XLOOKUP($A73,WorkOrdersDatabase[WO Number],WorkOrdersDatabase[Parts Used],""),IF(OR(_xlpm.v=0,_xlpm.v=""),"",_xlpm.v))) ->  | J73: =IF($A73="","",IF(OR(I73="",I73=0,I73="0"),"Not Required",IFERROR(_xlfn.XLOOKUP(I73,'Parts List'!A:A,'Parts List'!F:F,"Check Parts List"),"Check Parts List"))) ->  | K73: =IF($A73="","",_xlfn.LET(_xlpm.v,_xlfn.XLOOKUP($A73,WorkOrdersDatabase[WO Number],WorkOrdersDatabase[Labour Hours],""),IF(OR(_xlpm.v=0,_xlpm.v=""),"",_xlpm.v))) ->  | L73: =IF($A73="","",_xlfn.LET(_xlpm.v,_xlfn.XLOOKUP($A73,WorkOrdersDatabase[WO Number],WorkOrdersDatabase[Assigned To],""),IF(OR(_xlpm.v=0,_xlpm.v=""),"",_xlpm.v))) ->  | T73: =IF($A73="","",_xlfn.LET(_xlpm.miss,_xlfn.TEXTJOIN(", ",TRUE,IF($J73="OUT OF STOCK","Parts out of stock",""),IF($J73="Check Parts List","Check parts master",""),IF($L73="","Assign technician",""),IF($M73="","Add start time",""),IF($K73="","Add labour hours","")),IF($R73="Completed","Completed",IF($R73="Cancelled","Cancelled",IF($R73="Scheduled","Scheduled",IF(_xlpm.miss="","Ready to schedule",_xlpm.miss)))))) -> 
B74: =IF($A74="","",_xlfn.XLOOKUP($A74,WorkOrdersDatabase[WO Number],WorkOrdersDatabase[Work Type],"")) ->  | C74: =IF($A74="","",_xlfn.XLOOKUP($A74,WorkOrdersDatabase[WO Number],WorkOrdersDatabase[Status],"")) ->  | D74: =IF($A74="","",_xlfn.XLOOKUP($A74,WorkOrdersDatabase[WO Number],WorkOrdersDatabase[Priority],"")) ->  | E74: =IF($A74="","",_xlfn.XLOOKUP($A74,WorkOrdersDatabase[WO Number],WorkOrdersDatabase[Asset ID],"")) ->  | F74: =IF($A74="","",_xlfn.XLOOKUP($A74,WorkOrdersDatabase[WO Number],WorkOrdersDatabase[Asset Name],"")) ->  | G74: =IF($A74="","",_xlfn.LET(_xlpm.v,_xlfn.XLOOKUP($A74,WorkOrdersDatabase[WO Number],WorkOrdersDatabase[Location],""),IF(OR(_xlpm.v=0,_xlpm.v=""),"",_xlpm.v))) ->  | H74: =IF($A74="","",_xlfn.LET(_xlpm.v,_xlfn.XLOOKUP($A74,WorkOrdersDatabase[WO Number],WorkOrdersDatabase[Problem Description],""),IF(OR(_xlpm.v=0,_xlpm.v=""),"",_xlpm.v))) ->  | I74: =IF($A74="","",_xlfn.LET(_xlpm.v,_xlfn.XLOOKUP($A74,WorkOrdersDatabase[WO Number],WorkOrdersDatabase[Parts Used],""),IF(OR(_xlpm.v=0,_xlpm.v=""),"",_xlpm.v))) ->  | J74: =IF($A74="","",IF(OR(I74="",I74=0,I74="0"),"Not Required",IFERROR(_xlfn.XLOOKUP(I74,'Parts List'!A:A,'Parts List'!F:F,"Check Parts List"),"Check Parts List"))) ->  | K74: =IF($A74="","",_xlfn.LET(_xlpm.v,_xlfn.XLOOKUP($A74,WorkOrdersDatabase[WO Number],WorkOrdersDatabase[Labour Hours],""),IF(OR(_xlpm.v=0,_xlpm.v=""),"",_xlpm.v))) ->  | L74: =IF($A74="","",_xlfn.LET(_xlpm.v,_xlfn.XLOOKUP($A74,WorkOrdersDatabase[WO Number],WorkOrdersDatabase[Assigned To],""),IF(OR(_xlpm.v=0,_xlpm.v=""),"",_xlpm.v))) ->  | T74: =IF($A74="","",_xlfn.LET(_xlpm.miss,_xlfn.TEXTJOIN(", ",TRUE,IF($J74="OUT OF STOCK","Parts out of stock",""),IF($J74="Check Parts List","Check parts master",""),IF($L74="","Assign technician",""),IF($M74="","Add start time",""),IF($K74="","Add labour hours","")),IF($R74="Completed","Completed",IF($R74="Cancelled","Cancelled",IF($R74="Scheduled","Scheduled",IF(_xlpm.miss="","Ready to schedule",_xlpm.miss)))))) -> 
B75: =IF($A75="","",_xlfn.XLOOKUP($A75,WorkOrdersDatabase[WO Number],WorkOrdersDatabase[Work Type],"")) ->  | C75: =IF($A75="","",_xlfn.XLOOKUP($A75,WorkOrdersDatabase[WO Number],WorkOrdersDatabase[Status],"")) ->  | D75: =IF($A75="","",_xlfn.XLOOKUP($A75,WorkOrdersDatabase[WO Number],WorkOrdersDatabase[Priority],"")) ->  | E75: =IF($A75="","",_xlfn.XLOOKUP($A75,WorkOrdersDatabase[WO Number],WorkOrdersDatabase[Asset ID],"")) ->  | F75: =IF($A75="","",_xlfn.XLOOKUP($A75,WorkOrdersDatabase[WO Number],WorkOrdersDatabase[Asset Name],"")) ->  | G75: =IF($A75="","",_xlfn.LET(_xlpm.v,_xlfn.XLOOKUP($A75,WorkOrdersDatabase[WO Number],WorkOrdersDatabase[Location],""),IF(OR(_xlpm.v=0,_xlpm.v=""),"",_xlpm.v))) ->  | H75: =IF($A75="","",_xlfn.LET(_xlpm.v,_xlfn.XLOOKUP($A75,WorkOrdersDatabase[WO Number],WorkOrdersDatabase[Problem Description],""),IF(OR(_xlpm.v=0,_xlpm.v=""),"",_xlpm.v))) ->  | I75: =IF($A75="","",_xlfn.LET(_xlpm.v,_xlfn.XLOOKUP($A75,WorkOrdersDatabase[WO Number],WorkOrdersDatabase[Parts Used],""),IF(OR(_xlpm.v=0,_xlpm.v=""),"",_xlpm.v))) ->  | J75: =IF($A75="","",IF(OR(I75="",I75=0,I75="0"),"Not Required",IFERROR(_xlfn.XLOOKUP(I75,'Parts List'!A:A,'Parts List'!F:F,"Check Parts List"),"Check Parts List"))) ->  | K75: =IF($A75="","",_xlfn.LET(_xlpm.v,_xlfn.XLOOKUP($A75,WorkOrdersDatabase[WO Number],WorkOrdersDatabase[Labour Hours],""),IF(OR(_xlpm.v=0,_xlpm.v=""),"",_xlpm.v))) ->  | L75: =IF($A75="","",_xlfn.LET(_xlpm.v,_xlfn.XLOOKUP($A75,WorkOrdersDatabase[WO Number],WorkOrdersDatabase[Assigned To],""),IF(OR(_xlpm.v=0,_xlpm.v=""),"",_xlpm.v))) ->  | T75: =IF($A75="","",_xlfn.LET(_xlpm.miss,_xlfn.TEXTJOIN(", ",TRUE,IF($J75="OUT OF STOCK","Parts out of stock",""),IF($J75="Check Parts List","Check parts master",""),IF($L75="","Assign technician",""),IF($M75="","Add start time",""),IF($K75="","Add labour hours","")),IF($R75="Completed","Completed",IF($R75="Cancelled","Cancelled",IF($R75="Scheduled","Scheduled",IF(_xlpm.miss="","Ready to schedule",_xlpm.miss)))))) -> 
B76: =IF($A76="","",_xlfn.XLOOKUP($A76,WorkOrdersDatabase[WO Number],WorkOrdersDatabase[Work Type],"")) ->  | C76: =IF($A76="","",_xlfn.XLOOKUP($A76,WorkOrdersDatabase[WO Number],WorkOrdersDatabase[Status],"")) ->  | D76: =IF($A76="","",_xlfn.XLOOKUP($A76,WorkOrdersDatabase[WO Number],WorkOrdersDatabase[Priority],"")) ->  | E76: =IF($A76="","",_xlfn.XLOOKUP($A76,WorkOrdersDatabase[WO Number],WorkOrdersDatabase[Asset ID],"")) ->  | F76: =IF($A76="","",_xlfn.XLOOKUP($A76,WorkOrdersDatabase[WO Number],WorkOrdersDatabase[Asset Name],"")) ->  | G76: =IF($A76="","",_xlfn.LET(_xlpm.v,_xlfn.XLOOKUP($A76,WorkOrdersDatabase[WO Number],WorkOrdersDatabase[Location],""),IF(OR(_xlpm.v=0,_xlpm.v=""),"",_xlpm.v))) ->  | H76: =IF($A76="","",_xlfn.LET(_xlpm.v,_xlfn.XLOOKUP($A76,WorkOrdersDatabase[WO Number],WorkOrdersDatabase[Problem Description],""),IF(OR(_xlpm.v=0,_xlpm.v=""),"",_xlpm.v))) ->  | I76: =IF($A76="","",_xlfn.LET(_xlpm.v,_xlfn.XLOOKUP($A76,WorkOrdersDatabase[WO Number],WorkOrdersDatabase[Parts Used],""),IF(OR(_xlpm.v=0,_xlpm.v=""),"",_xlpm.v))) ->  | J76: =IF($A76="","",IF(OR(I76="",I76=0,I76="0"),"Not Required",IFERROR(_xlfn.XLOOKUP(I76,'Parts List'!A:A,'Parts List'!F:F,"Check Parts List"),"Check Parts List"))) ->  | K76: =IF($A76="","",_xlfn.LET(_xlpm.v,_xlfn.XLOOKUP($A76,WorkOrdersDatabase[WO Number],WorkOrdersDatabase[Labour Hours],""),IF(OR(_xlpm.v=0,_xlpm.v=""),"",_xlpm.v))) ->  | L76: =IF($A76="","",_xlfn.LET(_xlpm.v,_xlfn.XLOOKUP($A76,WorkOrdersDatabase[WO Number],WorkOrdersDatabase[Assigned To],""),IF(OR(_xlpm.v=0,_xlpm.v=""),"",_xlpm.v))) ->  | T76: =IF($A76="","",_xlfn.LET(_xlpm.miss,_xlfn.TEXTJOIN(", ",TRUE,IF($J76="OUT OF STOCK","Parts out of stock",""),IF($J76="Check Parts List","Check parts master",""),IF($L76="","Assign technician",""),IF($M76="","Add start time",""),IF($K76="","Add labour hours","")),IF($R76="Completed","Completed",IF($R76="Cancelled","Cancelled",IF($R76="Scheduled","Scheduled",IF(_xlpm.miss="","Ready to schedule",_xlpm.miss)))))) -> 
B77: =IF($A77="","",_xlfn.XLOOKUP($A77,WorkOrdersDatabase[WO Number],WorkOrdersDatabase[Work Type],"")) ->  | C77: =IF($A77="","",_xlfn.XLOOKUP($A77,WorkOrdersDatabase[WO Number],WorkOrdersDatabase[Status],"")) ->  | D77: =IF($A77="","",_xlfn.XLOOKUP($A77,WorkOrdersDatabase[WO Number],WorkOrdersDatabase[Priority],"")) ->  | E77: =IF($A77="","",_xlfn.XLOOKUP($A77,WorkOrdersDatabase[WO Number],WorkOrdersDatabase[Asset ID],"")) ->  | F77: =IF($A77="","",_xlfn.XLOOKUP($A77,WorkOrdersDatabase[WO Number],WorkOrdersDatabase[Asset Name],"")) ->  | G77: =IF($A77="","",_xlfn.LET(_xlpm.v,_xlfn.XLOOKUP($A77,WorkOrdersDatabase[WO Number],WorkOrdersDatabase[Location],""),IF(OR(_xlpm.v=0,_xlpm.v=""),"",_xlpm.v))) ->  | H77: =IF($A77="","",_xlfn.LET(_xlpm.v,_xlfn.XLOOKUP($A77,WorkOrdersDatabase[WO Number],WorkOrdersDatabase[Problem Description],""),IF(OR(_xlpm.v=0,_xlpm.v=""),"",_xlpm.v))) ->  | I77: =IF($A77="","",_xlfn.LET(_xlpm.v,_xlfn.XLOOKUP($A77,WorkOrdersDatabase[WO Number],WorkOrdersDatabase[Parts Used],""),IF(OR(_xlpm.v=0,_xlpm.v=""),"",_xlpm.v))) ->  | J77: =IF($A77="","",IF(OR(I77="",I77=0,I77="0"),"Not Required",IFERROR(_xlfn.XLOOKUP(I77,'Parts List'!A:A,'Parts List'!F:F,"Check Parts List"),"Check Parts List"))) ->  | K77: =IF($A77="","",_xlfn.LET(_xlpm.v,_xlfn.XLOOKUP($A77,WorkOrdersDatabase[WO Number],WorkOrdersDatabase[Labour Hours],""),IF(OR(_xlpm.v=0,_xlpm.v=""),"",_xlpm.v))) ->  | L77: =IF($A77="","",_xlfn.LET(_xlpm.v,_xlfn.XLOOKUP($A77,WorkOrdersDatabase[WO Number],WorkOrdersDatabase[Assigned To],""),IF(OR(_xlpm.v=0,_xlpm.v=""),"",_xlpm.v))) ->  | T77: =IF($A77="","",_xlfn.LET(_xlpm.miss,_xlfn.TEXTJOIN(", ",TRUE,IF($J77="OUT OF STOCK","Parts out of stock",""),IF($J77="Check Parts List","Check parts master",""),IF($L77="","Assign technician",""),IF($M77="","Add start time",""),IF($K77="","Add labour hours","")),IF($R77="Completed","Completed",IF($R77="Cancelled","Cancelled",IF($R77="Scheduled","Scheduled",IF(_xlpm.miss="","Ready to schedule",_xlpm.miss)))))) -> 
B78: =IF($A78="","",_xlfn.XLOOKUP($A78,WorkOrdersDatabase[WO Number],WorkOrdersDatabase[Work Type],"")) ->  | C78: =IF($A78="","",_xlfn.XLOOKUP($A78,WorkOrdersDatabase[WO Number],WorkOrdersDatabase[Status],"")) ->  | D78: =IF($A78="","",_xlfn.XLOOKUP($A78,WorkOrdersDatabase[WO Number],WorkOrdersDatabase[Priority],"")) ->  | E78: =IF($A78="","",_xlfn.XLOOKUP($A78,WorkOrdersDatabase[WO Number],WorkOrdersDatabase[Asset ID],"")) ->  | F78: =IF($A78="","",_xlfn.XLOOKUP($A78,WorkOrdersDatabase[WO Number],WorkOrdersDatabase[Asset Name],"")) ->  | G78: =IF($A78="","",_xlfn.LET(_xlpm.v,_xlfn.XLOOKUP($A78,WorkOrdersDatabase[WO Number],WorkOrdersDatabase[Location],""),IF(OR(_xlpm.v=0,_xlpm.v=""),"",_xlpm.v))) ->  | H78: =IF($A78="","",_xlfn.LET(_xlpm.v,_xlfn.XLOOKUP($A78,WorkOrdersDatabase[WO Number],WorkOrdersDatabase[Problem Description],""),IF(OR(_xlpm.v=0,_xlpm.v=""),"",_xlpm.v))) ->  | I78: =IF($A78="","",_xlfn.LET(_xlpm.v,_xlfn.XLOOKUP($A78,WorkOrdersDatabase[WO Number],WorkOrdersDatabase[Parts Used],""),IF(OR(_xlpm.v=0,_xlpm.v=""),"",_xlpm.v))) ->  | J78: =IF($A78="","",IF(OR(I78="",I78=0,I78="0"),"Not Required",IFERROR(_xlfn.XLOOKUP(I78,'Parts List'!A:A,'Parts List'!F:F,"Check Parts List"),"Check Parts List"))) ->  | K78: =IF($A78="","",_xlfn.LET(_xlpm.v,_xlfn.XLOOKUP($A78,WorkOrdersDatabase[WO Number],WorkOrdersDatabase[Labour Hours],""),IF(OR(_xlpm.v=0,_xlpm.v=""),"",_xlpm.v))) ->  | L78: =IF($A78="","",_xlfn.LET(_xlpm.v,_xlfn.XLOOKUP($A78,WorkOrdersDatabase[WO Number],WorkOrdersDatabase[Assigned To],""),IF(OR(_xlpm.v=0,_xlpm.v=""),"",_xlpm.v))) ->  | T78: =IF($A78="","",_xlfn.LET(_xlpm.miss,_xlfn.TEXTJOIN(", ",TRUE,IF($J78="OUT OF STOCK","Parts out of stock",""),IF($J78="Check Parts List","Check parts master",""),IF($L78="","Assign technician",""),IF($M78="","Add start time",""),IF($K78="","Add labour hours","")),IF($R78="Completed","Completed",IF($R78="Cancelled","Cancelled",IF($R78="Scheduled","Scheduled",IF(_xlpm.miss="","Ready to schedule",_xlpm.miss)))))) -> 
B79: =IF($A79="","",_xlfn.XLOOKUP($A79,WorkOrdersDatabase[WO Number],WorkOrdersDatabase[Work Type],"")) ->  | C79: =IF($A79="","",_xlfn.XLOOKUP($A79,WorkOrdersDatabase[WO Number],WorkOrdersDatabase[Status],"")) ->  | D79: =IF($A79="","",_xlfn.XLOOKUP($A79,WorkOrdersDatabase[WO Number],WorkOrdersDatabase[Priority],"")) ->  | E79: =IF($A79="","",_xlfn.XLOOKUP($A79,WorkOrdersDatabase[WO Number],WorkOrdersDatabase[Asset ID],"")) ->  | F79: =IF($A79="","",_xlfn.XLOOKUP($A79,WorkOrdersDatabase[WO Number],WorkOrdersDatabase[Asset Name],"")) ->  | G79: =IF($A79="","",_xlfn.LET(_xlpm.v,_xlfn.XLOOKUP($A79,WorkOrdersDatabase[WO Number],WorkOrdersDatabase[Location],""),IF(OR(_xlpm.v=0,_xlpm.v=""),"",_xlpm.v))) ->  | H79: =IF($A79="","",_xlfn.LET(_xlpm.v,_xlfn.XLOOKUP($A79,WorkOrdersDatabase[WO Number],WorkOrdersDatabase[Problem Description],""),IF(OR(_xlpm.v=0,_xlpm.v=""),"",_xlpm.v))) ->  | I79: =IF($A79="","",_xlfn.LET(_xlpm.v,_xlfn.XLOOKUP($A79,WorkOrdersDatabase[WO Number],WorkOrdersDatabase[Parts Used],""),IF(OR(_xlpm.v=0,_xlpm.v=""),"",_xlpm.v))) ->  | J79: =IF($A79="","",IF(OR(I79="",I79=0,I79="0"),"Not Required",IFERROR(_xlfn.XLOOKUP(I79,'Parts List'!A:A,'Parts List'!F:F,"Check Parts List"),"Check Parts List"))) ->  | K79: =IF($A79="","",_xlfn.LET(_xlpm.v,_xlfn.XLOOKUP($A79,WorkOrdersDatabase[WO Number],WorkOrdersDatabase[Labour Hours],""),IF(OR(_xlpm.v=0,_xlpm.v=""),"",_xlpm.v))) ->  | L79: =IF($A79="","",_xlfn.LET(_xlpm.v,_xlfn.XLOOKUP($A79,WorkOrdersDatabase[WO Number],WorkOrdersDatabase[Assigned To],""),IF(OR(_xlpm.v=0,_xlpm.v=""),"",_xlpm.v))) ->  | T79: =IF($A79="","",_xlfn.LET(_xlpm.miss,_xlfn.TEXTJOIN(", ",TRUE,IF($J79="OUT OF STOCK","Parts out of stock",""),IF($J79="Check Parts List","Check parts master",""),IF($L79="","Assign technician",""),IF($M79="","Add start time",""),IF($K79="","Add labour hours","")),IF($R79="Completed","Completed",IF($R79="Cancelled","Cancelled",IF($R79="Scheduled","Scheduled",IF(_xlpm.miss="","Ready to schedule",_xlpm.miss)))))) -> 
B80: =IF($A80="","",_xlfn.XLOOKUP($A80,WorkOrdersDatabase[WO Number],WorkOrdersDatabase[Work Type],"")) ->  | C80: =IF($A80="","",_xlfn.XLOOKUP($A80,WorkOrdersDatabase[WO Number],WorkOrdersDatabase[Status],"")) ->  | D80: =IF($A80="","",_xlfn.XLOOKUP($A80,WorkOrdersDatabase[WO Number],WorkOrdersDatabase[Priority],"")) ->  | E80: =IF($A80="","",_xlfn.XLOOKUP($A80,WorkOrdersDatabase[WO Number],WorkOrdersDatabase[Asset ID],"")) ->  | F80: =IF($A80="","",_xlfn.XLOOKUP($A80,WorkOrdersDatabase[WO Number],WorkOrdersDatabase[Asset Name],"")) ->  | G80: =IF($A80="","",_xlfn.LET(_xlpm.v,_xlfn.XLOOKUP($A80,WorkOrdersDatabase[WO Number],WorkOrdersDatabase[Location],""),IF(OR(_xlpm.v=0,_xlpm.v=""),"",_xlpm.v))) ->  | H80: =IF($A80="","",_xlfn.LET(_xlpm.v,_xlfn.XLOOKUP($A80,WorkOrdersDatabase[WO Number],WorkOrdersDatabase[Problem Description],""),IF(OR(_xlpm.v=0,_xlpm.v=""),"",_xlpm.v))) ->  | I80: =IF($A80="","",_xlfn.LET(_xlpm.v,_xlfn.XLOOKUP($A80,WorkOrdersDatabase[WO Number],WorkOrdersDatabase[Parts Used],""),IF(OR(_xlpm.v=0,_xlpm.v=""),"",_xlpm.v))) ->  | J80: =IF($A80="","",IF(OR(I80="",I80=0,I80="0"),"Not Required",IFERROR(_xlfn.XLOOKUP(I80,'Parts List'!A:A,'Parts List'!F:F,"Check Parts List"),"Check Parts List"))) ->  | K80: =IF($A80="","",_xlfn.LET(_xlpm.v,_xlfn.XLOOKUP($A80,WorkOrdersDatabase[WO Number],WorkOrdersDatabase[Labour Hours],""),IF(OR(_xlpm.v=0,_xlpm.v=""),"",_xlpm.v))) ->  | L80: =IF($A80="","",_xlfn.LET(_xlpm.v,_xlfn.XLOOKUP($A80,WorkOrdersDatabase[WO Number],WorkOrdersDatabase[Assigned To],""),IF(OR(_xlpm.v=0,_xlpm.v=""),"",_xlpm.v))) ->  | T80: =IF($A80="","",_xlfn.LET(_xlpm.miss,_xlfn.TEXTJOIN(", ",TRUE,IF($J80="OUT OF STOCK","Parts out of stock",""),IF($J80="Check Parts List","Check parts master",""),IF($L80="","Assign technician",""),IF($M80="","Add start time",""),IF($K80="","Add labour hours","")),IF($R80="Completed","Completed",IF($R80="Cancelled","Cancelled",IF($R80="Scheduled","Scheduled",IF(_xlpm.miss="","Ready to schedule",_xlpm.miss)))))) -> 
B81: =IF($A81="","",_xlfn.XLOOKUP($A81,WorkOrdersDatabase[WO Number],WorkOrdersDatabase[Work Type],"")) ->  | C81: =IF($A81="","",_xlfn.XLOOKUP($A81,WorkOrdersDatabase[WO Number],WorkOrdersDatabase[Status],"")) ->  | D81: =IF($A81="","",_xlfn.XLOOKUP($A81,WorkOrdersDatabase[WO Number],WorkOrdersDatabase[Priority],"")) ->  | E81: =IF($A81="","",_xlfn.XLOOKUP($A81,WorkOrdersDatabase[WO Number],WorkOrdersDatabase[Asset ID],"")) ->  | F81: =IF($A81="","",_xlfn.XLOOKUP($A81,WorkOrdersDatabase[WO Number],WorkOrdersDatabase[Asset Name],"")) ->  | G81: =IF($A81="","",_xlfn.LET(_xlpm.v,_xlfn.XLOOKUP($A81,WorkOrdersDatabase[WO Number],WorkOrdersDatabase[Location],""),IF(OR(_xlpm.v=0,_xlpm.v=""),"",_xlpm.v))) ->  | H81: =IF($A81="","",_xlfn.LET(_xlpm.v,_xlfn.XLOOKUP($A81,WorkOrdersDatabase[WO Number],WorkOrdersDatabase[Problem Description],""),IF(OR(_xlpm.v=0,_xlpm.v=""),"",_xlpm.v))) ->  | I81: =IF($A81="","",_xlfn.LET(_xlpm.v,_xlfn.XLOOKUP($A81,WorkOrdersDatabase[WO Number],WorkOrdersDatabase[Parts Used],""),IF(OR(_xlpm.v=0,_xlpm.v=""),"",_xlpm.v))) ->  | J81: =IF($A81="","",IF(OR(I81="",I81=0,I81="0"),"Not Required",IFERROR(_xlfn.XLOOKUP(I81,'Parts List'!A:A,'Parts List'!F:F,"Check Parts List"),"Check Parts List"))) ->  | K81: =IF($A81="","",_xlfn.LET(_xlpm.v,_xlfn.XLOOKUP($A81,WorkOrdersDatabase[WO Number],WorkOrdersDatabase[Labour Hours],""),IF(OR(_xlpm.v=0,_xlpm.v=""),"",_xlpm.v))) ->  | L81: =IF($A81="","",_xlfn.LET(_xlpm.v,_xlfn.XLOOKUP($A81,WorkOrdersDatabase[WO Number],WorkOrdersDatabase[Assigned To],""),IF(OR(_xlpm.v=0,_xlpm.v=""),"",_xlpm.v))) ->  | T81: =IF($A81="","",_xlfn.LET(_xlpm.miss,_xlfn.TEXTJOIN(", ",TRUE,IF($J81="OUT OF STOCK","Parts out of stock",""),IF($J81="Check Parts List","Check parts master",""),IF($L81="","Assign technician",""),IF($M81="","Add start time",""),IF($K81="","Add labour hours","")),IF($R81="Completed","Completed",IF($R81="Cancelled","Cancelled",IF($R81="Scheduled","Scheduled",IF(_xlpm.miss="","Ready to schedule",_xlpm.miss)))))) -> 
B82: =IF($A82="","",_xlfn.XLOOKUP($A82,WorkOrdersDatabase[WO Number],WorkOrdersDatabase[Work Type],"")) ->  | C82: =IF($A82="","",_xlfn.XLOOKUP($A82,WorkOrdersDatabase[WO Number],WorkOrdersDatabase[Status],"")) ->  | D82: =IF($A82="","",_xlfn.XLOOKUP($A82,WorkOrdersDatabase[WO Number],WorkOrdersDatabase[Priority],"")) ->  | E82: =IF($A82="","",_xlfn.XLOOKUP($A82,WorkOrdersDatabase[WO Number],WorkOrdersDatabase[Asset ID],"")) ->  | F82: =IF($A82="","",_xlfn.XLOOKUP($A82,WorkOrdersDatabase[WO Number],WorkOrdersDatabase[Asset Name],"")) ->  | G82: =IF($A82="","",_xlfn.LET(_xlpm.v,_xlfn.XLOOKUP($A82,WorkOrdersDatabase[WO Number],WorkOrdersDatabase[Location],""),IF(OR(_xlpm.v=0,_xlpm.v=""),"",_xlpm.v))) ->  | H82: =IF($A82="","",_xlfn.LET(_xlpm.v,_xlfn.XLOOKUP($A82,WorkOrdersDatabase[WO Number],WorkOrdersDatabase[Problem Description],""),IF(OR(_xlpm.v=0,_xlpm.v=""),"",_xlpm.v))) ->  | I82: =IF($A82="","",_xlfn.LET(_xlpm.v,_xlfn.XLOOKUP($A82,WorkOrdersDatabase[WO Number],WorkOrdersDatabase[Parts Used],""),IF(OR(_xlpm.v=0,_xlpm.v=""),"",_xlpm.v))) ->  | J82: =IF($A82="","",IF(OR(I82="",I82=0,I82="0"),"Not Required",IFERROR(_xlfn.XLOOKUP(I82,'Parts List'!A:A,'Parts List'!F:F,"Check Parts List"),"Check Parts List"))) ->  | K82: =IF($A82="","",_xlfn.LET(_xlpm.v,_xlfn.XLOOKUP($A82,WorkOrdersDatabase[WO Number],WorkOrdersDatabase[Labour Hours],""),IF(OR(_xlpm.v=0,_xlpm.v=""),"",_xlpm.v))) ->  | L82: =IF($A82="","",_xlfn.LET(_xlpm.v,_xlfn.XLOOKUP($A82,WorkOrdersDatabase[WO Number],WorkOrdersDatabase[Assigned To],""),IF(OR(_xlpm.v=0,_xlpm.v=""),"",_xlpm.v))) ->  | T82: =IF($A82="","",_xlfn.LET(_xlpm.miss,_xlfn.TEXTJOIN(", ",TRUE,IF($J82="OUT OF STOCK","Parts out of stock",""),IF($J82="Check Parts List","Check parts master",""),IF($L82="","Assign technician",""),IF($M82="","Add start time",""),IF($K82="","Add labour hours","")),IF($R82="Completed","Completed",IF($R82="Cancelled","Cancelled",IF($R82="Scheduled","Scheduled",IF(_xlpm.miss="","Ready to schedule",_xlpm.miss)))))) -> 
B83: =IF($A83="","",_xlfn.XLOOKUP($A83,WorkOrdersDatabase[WO Number],WorkOrdersDatabase[Work Type],"")) ->  | C83: =IF($A83="","",_xlfn.XLOOKUP($A83,WorkOrdersDatabase[WO Number],WorkOrdersDatabase[Status],"")) ->  | D83: =IF($A83="","",_xlfn.XLOOKUP($A83,WorkOrdersDatabase[WO Number],WorkOrdersDatabase[Priority],"")) ->  | E83: =IF($A83="","",_xlfn.XLOOKUP($A83,WorkOrdersDatabase[WO Number],WorkOrdersDatabase[Asset ID],"")) ->  | F83: =IF($A83="","",_xlfn.XLOOKUP($A83,WorkOrdersDatabase[WO Number],WorkOrdersDatabase[Asset Name],"")) ->  | G83: =IF($A83="","",_xlfn.LET(_xlpm.v,_xlfn.XLOOKUP($A83,WorkOrdersDatabase[WO Number],WorkOrdersDatabase[Location],""),IF(OR(_xlpm.v=0,_xlpm.v=""),"",_xlpm.v))) ->  | H83: =IF($A83="","",_xlfn.LET(_xlpm.v,_xlfn.XLOOKUP($A83,WorkOrdersDatabase[WO Number],WorkOrdersDatabase[Problem Description],""),IF(OR(_xlpm.v=0,_xlpm.v=""),"",_xlpm.v))) ->  | I83: =IF($A83="","",_xlfn.LET(_xlpm.v,_xlfn.XLOOKUP($A83,WorkOrdersDatabase[WO Number],WorkOrdersDatabase[Parts Used],""),IF(OR(_xlpm.v=0,_xlpm.v=""),"",_xlpm.v))) ->  | J83: =IF($A83="","",IF(OR(I83="",I83=0,I83="0"),"Not Required",IFERROR(_xlfn.XLOOKUP(I83,'Parts List'!A:A,'Parts List'!F:F,"Check Parts List"),"Check Parts List"))) ->  | K83: =IF($A83="","",_xlfn.LET(_xlpm.v,_xlfn.XLOOKUP($A83,WorkOrdersDatabase[WO Number],WorkOrdersDatabase[Labour Hours],""),IF(OR(_xlpm.v=0,_xlpm.v=""),"",_xlpm.v))) ->  | L83: =IF($A83="","",_xlfn.LET(_xlpm.v,_xlfn.XLOOKUP($A83,WorkOrdersDatabase[WO Number],WorkOrdersDatabase[Assigned To],""),IF(OR(_xlpm.v=0,_xlpm.v=""),"",_xlpm.v))) ->  | T83: =IF($A83="","",_xlfn.LET(_xlpm.miss,_xlfn.TEXTJOIN(", ",TRUE,IF($J83="OUT OF STOCK","Parts out of stock",""),IF($J83="Check Parts List","Check parts master",""),IF($L83="","Assign technician",""),IF($M83="","Add start time",""),IF($K83="","Add labour hours","")),IF($R83="Completed","Completed",IF($R83="Cancelled","Cancelled",IF($R83="Scheduled","Scheduled",IF(_xlpm.miss="","Ready to schedule",_xlpm.miss)))))) -> 
B84: =IF($A84="","",_xlfn.XLOOKUP($A84,WorkOrdersDatabase[WO Number],WorkOrdersDatabase[Work Type],"")) ->  | C84: =IF($A84="","",_xlfn.XLOOKUP($A84,WorkOrdersDatabase[WO Number],WorkOrdersDatabase[Status],"")) ->  | D84: =IF($A84="","",_xlfn.XLOOKUP($A84,WorkOrdersDatabase[WO Number],WorkOrdersDatabase[Priority],"")) ->  | E84: =IF($A84="","",_xlfn.XLOOKUP($A84,WorkOrdersDatabase[WO Number],WorkOrdersDatabase[Asset ID],"")) ->  | F84: =IF($A84="","",_xlfn.XLOOKUP($A84,WorkOrdersDatabase[WO Number],WorkOrdersDatabase[Asset Name],"")) ->  | G84: =IF($A84="","",_xlfn.LET(_xlpm.v,_xlfn.XLOOKUP($A84,WorkOrdersDatabase[WO Number],WorkOrdersDatabase[Location],""),IF(OR(_xlpm.v=0,_xlpm.v=""),"",_xlpm.v))) ->  | H84: =IF($A84="","",_xlfn.LET(_xlpm.v,_xlfn.XLOOKUP($A84,WorkOrdersDatabase[WO Number],WorkOrdersDatabase[Problem Description],""),IF(OR(_xlpm.v=0,_xlpm.v=""),"",_xlpm.v))) ->  | I84: =IF($A84="","",_xlfn.LET(_xlpm.v,_xlfn.XLOOKUP($A84,WorkOrdersDatabase[WO Number],WorkOrdersDatabase[Parts Used],""),IF(OR(_xlpm.v=0,_xlpm.v=""),"",_xlpm.v))) ->  | J84: =IF($A84="","",IF(OR(I84="",I84=0,I84="0"),"Not Required",IFERROR(_xlfn.XLOOKUP(I84,'Parts List'!A:A,'Parts List'!F:F,"Check Parts List"),"Check Parts List"))) ->  | K84: =IF($A84="","",_xlfn.LET(_xlpm.v,_xlfn.XLOOKUP($A84,WorkOrdersDatabase[WO Number],WorkOrdersDatabase[Labour Hours],""),IF(OR(_xlpm.v=0,_xlpm.v=""),"",_xlpm.v))) ->  | L84: =IF($A84="","",_xlfn.LET(_xlpm.v,_xlfn.XLOOKUP($A84,WorkOrdersDatabase[WO Number],WorkOrdersDatabase[Assigned To],""),IF(OR(_xlpm.v=0,_xlpm.v=""),"",_xlpm.v))) ->  | T84: =IF($A84="","",_xlfn.LET(_xlpm.miss,_xlfn.TEXTJOIN(", ",TRUE,IF($J84="OUT OF STOCK","Parts out of stock",""),IF($J84="Check Parts List","Check parts master",""),IF($L84="","Assign technician",""),IF($M84="","Add start time",""),IF($K84="","Add labour hours","")),IF($R84="Completed","Completed",IF($R84="Cancelled","Cancelled",IF($R84="Scheduled","Scheduled",IF(_xlpm.miss="","Ready to schedule",_xlpm.miss)))))) -> 
B85: =IF($A85="","",_xlfn.XLOOKUP($A85,WorkOrdersDatabase[WO Number],WorkOrdersDatabase[Work Type],"")) ->  | C85: =IF($A85="","",_xlfn.XLOOKUP($A85,WorkOrdersDatabase[WO Number],WorkOrdersDatabase[Status],"")) ->  | D85: =IF($A85="","",_xlfn.XLOOKUP($A85,WorkOrdersDatabase[WO Number],WorkOrdersDatabase[Priority],"")) ->  | E85: =IF($A85="","",_xlfn.XLOOKUP($A85,WorkOrdersDatabase[WO Number],WorkOrdersDatabase[Asset ID],"")) ->  | F85: =IF($A85="","",_xlfn.XLOOKUP($A85,WorkOrdersDatabase[WO Number],WorkOrdersDatabase[Asset Name],"")) ->  | G85: =IF($A85="","",_xlfn.LET(_xlpm.v,_xlfn.XLOOKUP($A85,WorkOrdersDatabase[WO Number],WorkOrdersDatabase[Location],""),IF(OR(_xlpm.v=0,_xlpm.v=""),"",_xlpm.v))) ->  | H85: =IF($A85="","",_xlfn.LET(_xlpm.v,_xlfn.XLOOKUP($A85,WorkOrdersDatabase[WO Number],WorkOrdersDatabase[Problem Description],""),IF(OR(_xlpm.v=0,_xlpm.v=""),"",_xlpm.v))) ->  | I85: =IF($A85="","",_xlfn.LET(_xlpm.v,_xlfn.XLOOKUP($A85,WorkOrdersDatabase[WO Number],WorkOrdersDatabase[Parts Used],""),IF(OR(_xlpm.v=0,_xlpm.v=""),"",_xlpm.v))) ->  | J85: =IF($A85="","",IF(OR(I85="",I85=0,I85="0"),"Not Required",IFERROR(_xlfn.XLOOKUP(I85,'Parts List'!A:A,'Parts List'!F:F,"Check Parts List"),"Check Parts List"))) ->  | K85: =IF($A85="","",_xlfn.LET(_xlpm.v,_xlfn.XLOOKUP($A85,WorkOrdersDatabase[WO Number],WorkOrdersDatabase[Labour Hours],""),IF(OR(_xlpm.v=0,_xlpm.v=""),"",_xlpm.v))) ->  | L85: =IF($A85="","",_xlfn.LET(_xlpm.v,_xlfn.XLOOKUP($A85,WorkOrdersDatabase[WO Number],WorkOrdersDatabase[Assigned To],""),IF(OR(_xlpm.v=0,_xlpm.v=""),"",_xlpm.v))) ->  | T85: =IF($A85="","",_xlfn.LET(_xlpm.miss,_xlfn.TEXTJOIN(", ",TRUE,IF($J85="OUT OF STOCK","Parts out of stock",""),IF($J85="Check Parts List","Check parts master",""),IF($L85="","Assign technician",""),IF($M85="","Add start time",""),IF($K85="","Add labour hours","")),IF($R85="Completed","Completed",IF($R85="Cancelled","Cancelled",IF($R85="Scheduled","Scheduled",IF(_xlpm.miss="","Ready to schedule",_xlpm.miss)))))) -> 
B86: =IF($A86="","",_xlfn.XLOOKUP($A86,WorkOrdersDatabase[WO Number],WorkOrdersDatabase[Work Type],"")) ->  | C86: =IF($A86="","",_xlfn.XLOOKUP($A86,WorkOrdersDatabase[WO Number],WorkOrdersDatabase[Status],"")) ->  | D86: =IF($A86="","",_xlfn.XLOOKUP($A86,WorkOrdersDatabase[WO Number],WorkOrdersDatabase[Priority],"")) ->  | E86: =IF($A86="","",_xlfn.XLOOKUP($A86,WorkOrdersDatabase[WO Number],WorkOrdersDatabase[Asset ID],"")) ->  | F86: =IF($A86="","",_xlfn.XLOOKUP($A86,WorkOrdersDatabase[WO Number],WorkOrdersDatabase[Asset Name],"")) ->  | G86: =IF($A86="","",_xlfn.LET(_xlpm.v,_xlfn.XLOOKUP($A86,WorkOrdersDatabase[WO Number],WorkOrdersDatabase[Location],""),IF(OR(_xlpm.v=0,_xlpm.v=""),"",_xlpm.v))) ->  | H86: =IF($A86="","",_xlfn.LET(_xlpm.v,_xlfn.XLOOKUP($A86,WorkOrdersDatabase[WO Number],WorkOrdersDatabase[Problem Description],""),IF(OR(_xlpm.v=0,_xlpm.v=""),"",_xlpm.v))) ->  | I86: =IF($A86="","",_xlfn.LET(_xlpm.v,_xlfn.XLOOKUP($A86,WorkOrdersDatabase[WO Number],WorkOrdersDatabase[Parts Used],""),IF(OR(_xlpm.v=0,_xlpm.v=""),"",_xlpm.v))) ->  | J86: =IF($A86="","",IF(OR(I86="",I86=0,I86="0"),"Not Required",IFERROR(_xlfn.XLOOKUP(I86,'Parts List'!A:A,'Parts List'!F:F,"Check Parts List"),"Check Parts List"))) ->  | K86: =IF($A86="","",_xlfn.LET(_xlpm.v,_xlfn.XLOOKUP($A86,WorkOrdersDatabase[WO Number],WorkOrdersDatabase[Labour Hours],""),IF(OR(_xlpm.v=0,_xlpm.v=""),"",_xlpm.v))) ->  | L86: =IF($A86="","",_xlfn.LET(_xlpm.v,_xlfn.XLOOKUP($A86,WorkOrdersDatabase[WO Number],WorkOrdersDatabase[Assigned To],""),IF(OR(_xlpm.v=0,_xlpm.v=""),"",_xlpm.v))) ->  | T86: =IF($A86="","",_xlfn.LET(_xlpm.miss,_xlfn.TEXTJOIN(", ",TRUE,IF($J86="OUT OF STOCK","Parts out of stock",""),IF($J86="Check Parts List","Check parts master",""),IF($L86="","Assign technician",""),IF($M86="","Add start time",""),IF($K86="","Add labour hours","")),IF($R86="Completed","Completed",IF($R86="Cancelled","Cancelled",IF($R86="Scheduled","Scheduled",IF(_xlpm.miss="","Ready to schedule",_xlpm.miss)))))) -> 
B87: =IF($A87="","",_xlfn.XLOOKUP($A87,WorkOrdersDatabase[WO Number],WorkOrdersDatabase[Work Type],"")) ->  | C87: =IF($A87="","",_xlfn.XLOOKUP($A87,WorkOrdersDatabase[WO Number],WorkOrdersDatabase[Status],"")) ->  | D87: =IF($A87="","",_xlfn.XLOOKUP($A87,WorkOrdersDatabase[WO Number],WorkOrdersDatabase[Priority],"")) ->  | E87: =IF($A87="","",_xlfn.XLOOKUP($A87,WorkOrdersDatabase[WO Number],WorkOrdersDatabase[Asset ID],"")) ->  | F87: =IF($A87="","",_xlfn.XLOOKUP($A87,WorkOrdersDatabase[WO Number],WorkOrdersDatabase[Asset Name],"")) ->  | G87: =IF($A87="","",_xlfn.LET(_xlpm.v,_xlfn.XLOOKUP($A87,WorkOrdersDatabase[WO Number],WorkOrdersDatabase[Location],""),IF(OR(_xlpm.v=0,_xlpm.v=""),"",_xlpm.v))) ->  | H87: =IF($A87="","",_xlfn.LET(_xlpm.v,_xlfn.XLOOKUP($A87,WorkOrdersDatabase[WO Number],WorkOrdersDatabase[Problem Description],""),IF(OR(_xlpm.v=0,_xlpm.v=""),"",_xlpm.v))) ->  | I87: =IF($A87="","",_xlfn.LET(_xlpm.v,_xlfn.XLOOKUP($A87,WorkOrdersDatabase[WO Number],WorkOrdersDatabase[Parts Used],""),IF(OR(_xlpm.v=0,_xlpm.v=""),"",_xlpm.v))) ->  | J87: =IF($A87="","",IF(OR(I87="",I87=0,I87="0"),"Not Required",IFERROR(_xlfn.XLOOKUP(I87,'Parts List'!A:A,'Parts List'!F:F,"Check Parts List"),"Check Parts List"))) ->  | K87: =IF($A87="","",_xlfn.LET(_xlpm.v,_xlfn.XLOOKUP($A87,WorkOrdersDatabase[WO Number],WorkOrdersDatabase[Labour Hours],""),IF(OR(_xlpm.v=0,_xlpm.v=""),"",_xlpm.v))) ->  | L87: =IF($A87="","",_xlfn.LET(_xlpm.v,_xlfn.XLOOKUP($A87,WorkOrdersDatabase[WO Number],WorkOrdersDatabase[Assigned To],""),IF(OR(_xlpm.v=0,_xlpm.v=""),"",_xlpm.v))) ->  | T87: =IF($A87="","",_xlfn.LET(_xlpm.miss,_xlfn.TEXTJOIN(", ",TRUE,IF($J87="OUT OF STOCK","Parts out of stock",""),IF($J87="Check Parts List","Check parts master",""),IF($L87="","Assign technician",""),IF($M87="","Add start time",""),IF($K87="","Add labour hours","")),IF($R87="Completed","Completed",IF($R87="Cancelled","Cancelled",IF($R87="Scheduled","Scheduled",IF(_xlpm.miss="","Ready to schedule",_xlpm.miss)))))) -> 
B88: =IF($A88="","",_xlfn.XLOOKUP($A88,WorkOrdersDatabase[WO Number],WorkOrdersDatabase[Work Type],"")) ->  | C88: =IF($A88="","",_xlfn.XLOOKUP($A88,WorkOrdersDatabase[WO Number],WorkOrdersDatabase[Status],"")) ->  | D88: =IF($A88="","",_xlfn.XLOOKUP($A88,WorkOrdersDatabase[WO Number],WorkOrdersDatabase[Priority],"")) ->  | E88: =IF($A88="","",_xlfn.XLOOKUP($A88,WorkOrdersDatabase[WO Number],WorkOrdersDatabase[Asset ID],"")) ->  | F88: =IF($A88="","",_xlfn.XLOOKUP($A88,WorkOrdersDatabase[WO Number],WorkOrdersDatabase[Asset Name],"")) ->  | G88: =IF($A88="","",_xlfn.LET(_xlpm.v,_xlfn.XLOOKUP($A88,WorkOrdersDatabase[WO Number],WorkOrdersDatabase[Location],""),IF(OR(_xlpm.v=0,_xlpm.v=""),"",_xlpm.v))) ->  | H88: =IF($A88="","",_xlfn.LET(_xlpm.v,_xlfn.XLOOKUP($A88,WorkOrdersDatabase[WO Number],WorkOrdersDatabase[Problem Description],""),IF(OR(_xlpm.v=0,_xlpm.v=""),"",_xlpm.v))) ->  | I88: =IF($A88="","",_xlfn.LET(_xlpm.v,_xlfn.XLOOKUP($A88,WorkOrdersDatabase[WO Number],WorkOrdersDatabase[Parts Used],""),IF(OR(_xlpm.v=0,_xlpm.v=""),"",_xlpm.v))) ->  | J88: =IF($A88="","",IF(OR(I88="",I88=0,I88="0"),"Not Required",IFERROR(_xlfn.XLOOKUP(I88,'Parts List'!A:A,'Parts List'!F:F,"Check Parts List"),"Check Parts List"))) ->  | K88: =IF($A88="","",_xlfn.LET(_xlpm.v,_xlfn.XLOOKUP($A88,WorkOrdersDatabase[WO Number],WorkOrdersDatabase[Labour Hours],""),IF(OR(_xlpm.v=0,_xlpm.v=""),"",_xlpm.v))) ->  | L88: =IF($A88="","",_xlfn.LET(_xlpm.v,_xlfn.XLOOKUP($A88,WorkOrdersDatabase[WO Number],WorkOrdersDatabase[Assigned To],""),IF(OR(_xlpm.v=0,_xlpm.v=""),"",_xlpm.v))) ->  | T88: =IF($A88="","",_xlfn.LET(_xlpm.miss,_xlfn.TEXTJOIN(", ",TRUE,IF($J88="OUT OF STOCK","Parts out of stock",""),IF($J88="Check Parts List","Check parts master",""),IF($L88="","Assign technician",""),IF($M88="","Add start time",""),IF($K88="","Add labour hours","")),IF($R88="Completed","Completed",IF($R88="Cancelled","Cancelled",IF($R88="Scheduled","Scheduled",IF(_xlpm.miss="","Ready to schedule",_xlpm.miss)))))) -> 
B89: =IF($A89="","",_xlfn.XLOOKUP($A89,WorkOrdersDatabase[WO Number],WorkOrdersDatabase[Work Type],"")) ->  | C89: =IF($A89="","",_xlfn.XLOOKUP($A89,WorkOrdersDatabase[WO Number],WorkOrdersDatabase[Status],"")) ->  | D89: =IF($A89="","",_xlfn.XLOOKUP($A89,WorkOrdersDatabase[WO Number],WorkOrdersDatabase[Priority],"")) ->  | E89: =IF($A89="","",_xlfn.XLOOKUP($A89,WorkOrdersDatabase[WO Number],WorkOrdersDatabase[Asset ID],"")) ->  | F89: =IF($A89="","",_xlfn.XLOOKUP($A89,WorkOrdersDatabase[WO Number],WorkOrdersDatabase[Asset Name],"")) ->  | G89: =IF($A89="","",_xlfn.LET(_xlpm.v,_xlfn.XLOOKUP($A89,WorkOrdersDatabase[WO Number],WorkOrdersDatabase[Location],""),IF(OR(_xlpm.v=0,_xlpm.v=""),"",_xlpm.v))) ->  | H89: =IF($A89="","",_xlfn.LET(_xlpm.v,_xlfn.XLOOKUP($A89,WorkOrdersDatabase[WO Number],WorkOrdersDatabase[Problem Description],""),IF(OR(_xlpm.v=0,_xlpm.v=""),"",_xlpm.v))) ->  | I89: =IF($A89="","",_xlfn.LET(_xlpm.v,_xlfn.XLOOKUP($A89,WorkOrdersDatabase[WO Number],WorkOrdersDatabase[Parts Used],""),IF(OR(_xlpm.v=0,_xlpm.v=""),"",_xlpm.v))) ->  | J89: =IF($A89="","",IF(OR(I89="",I89=0,I89="0"),"Not Required",IFERROR(_xlfn.XLOOKUP(I89,'Parts List'!A:A,'Parts List'!F:F,"Check Parts List"),"Check Parts List"))) ->  | K89: =IF($A89="","",_xlfn.LET(_xlpm.v,_xlfn.XLOOKUP($A89,WorkOrdersDatabase[WO Number],WorkOrdersDatabase[Labour Hours],""),IF(OR(_xlpm.v=0,_xlpm.v=""),"",_xlpm.v))) ->  | L89: =IF($A89="","",_xlfn.LET(_xlpm.v,_xlfn.XLOOKUP($A89,WorkOrdersDatabase[WO Number],WorkOrdersDatabase[Assigned To],""),IF(OR(_xlpm.v=0,_xlpm.v=""),"",_xlpm.v))) ->  | T89: =IF($A89="","",_xlfn.LET(_xlpm.miss,_xlfn.TEXTJOIN(", ",TRUE,IF($J89="OUT OF STOCK","Parts out of stock",""),IF($J89="Check Parts List","Check parts master",""),IF($L89="","Assign technician",""),IF($M89="","Add start time",""),IF($K89="","Add labour hours","")),IF($R89="Completed","Completed",IF($R89="Cancelled","Cancelled",IF($R89="Scheduled","Scheduled",IF(_xlpm.miss="","Ready to schedule",_xlpm.miss)))))) -> 
B90: =IF($A90="","",_xlfn.XLOOKUP($A90,WorkOrdersDatabase[WO Number],WorkOrdersDatabase[Work Type],"")) ->  | C90: =IF($A90="","",_xlfn.XLOOKUP($A90,WorkOrdersDatabase[WO Number],WorkOrdersDatabase[Status],"")) ->  | D90: =IF($A90="","",_xlfn.XLOOKUP($A90,WorkOrdersDatabase[WO Number],WorkOrdersDatabase[Priority],"")) ->  | E90: =IF($A90="","",_xlfn.XLOOKUP($A90,WorkOrdersDatabase[WO Number],WorkOrdersDatabase[Asset ID],"")) ->  | F90: =IF($A90="","",_xlfn.XLOOKUP($A90,WorkOrdersDatabase[WO Number],WorkOrdersDatabase[Asset Name],"")) ->  | G90: =IF($A90="","",_xlfn.LET(_xlpm.v,_xlfn.XLOOKUP($A90,WorkOrdersDatabase[WO Number],WorkOrdersDatabase[Location],""),IF(OR(_xlpm.v=0,_xlpm.v=""),"",_xlpm.v))) ->  | H90: =IF($A90="","",_xlfn.LET(_xlpm.v,_xlfn.XLOOKUP($A90,WorkOrdersDatabase[WO Number],WorkOrdersDatabase[Problem Description],""),IF(OR(_xlpm.v=0,_xlpm.v=""),"",_xlpm.v))) ->  | I90: =IF($A90="","",_xlfn.LET(_xlpm.v,_xlfn.XLOOKUP($A90,WorkOrdersDatabase[WO Number],WorkOrdersDatabase[Parts Used],""),IF(OR(_xlpm.v=0,_xlpm.v=""),"",_xlpm.v))) ->  | J90: =IF($A90="","",IF(OR(I90="",I90=0,I90="0"),"Not Required",IFERROR(_xlfn.XLOOKUP(I90,'Parts List'!A:A,'Parts List'!F:F,"Check Parts List"),"Check Parts List"))) ->  | K90: =IF($A90="","",_xlfn.LET(_xlpm.v,_xlfn.XLOOKUP($A90,WorkOrdersDatabase[WO Number],WorkOrdersDatabase[Labour Hours],""),IF(OR(_xlpm.v=0,_xlpm.v=""),"",_xlpm.v))) ->  | L90: =IF($A90="","",_xlfn.LET(_xlpm.v,_xlfn.XLOOKUP($A90,WorkOrdersDatabase[WO Number],WorkOrdersDatabase[Assigned To],""),IF(OR(_xlpm.v=0,_xlpm.v=""),"",_xlpm.v))) ->  | T90: =IF($A90="","",_xlfn.LET(_xlpm.miss,_xlfn.TEXTJOIN(", ",TRUE,IF($J90="OUT OF STOCK","Parts out of stock",""),IF($J90="Check Parts List","Check parts master",""),IF($L90="","Assign technician",""),IF($M90="","Add start time",""),IF($K90="","Add labour hours","")),IF($R90="Completed","Completed",IF($R90="Cancelled","Cancelled",IF($R90="Scheduled","Scheduled",IF(_xlpm.miss="","Ready to schedule",_xlpm.miss)))))) -> 
B91: =IF($A91="","",_xlfn.XLOOKUP($A91,WorkOrdersDatabase[WO Number],WorkOrdersDatabase[Work Type],"")) ->  | C91: =IF($A91="","",_xlfn.XLOOKUP($A91,WorkOrdersDatabase[WO Number],WorkOrdersDatabase[Status],"")) ->  | D91: =IF($A91="","",_xlfn.XLOOKUP($A91,WorkOrdersDatabase[WO Number],WorkOrdersDatabase[Priority],"")) ->  | E91: =IF($A91="","",_xlfn.XLOOKUP($A91,WorkOrdersDatabase[WO Number],WorkOrdersDatabase[Asset ID],"")) ->  | F91: =IF($A91="","",_xlfn.XLOOKUP($A91,WorkOrdersDatabase[WO Number],WorkOrdersDatabase[Asset Name],"")) ->  | G91: =IF($A91="","",_xlfn.LET(_xlpm.v,_xlfn.XLOOKUP($A91,WorkOrdersDatabase[WO Number],WorkOrdersDatabase[Location],""),IF(OR(_xlpm.v=0,_xlpm.v=""),"",_xlpm.v))) ->  | H91: =IF($A91="","",_xlfn.LET(_xlpm.v,_xlfn.XLOOKUP($A91,WorkOrdersDatabase[WO Number],WorkOrdersDatabase[Problem Description],""),IF(OR(_xlpm.v=0,_xlpm.v=""),"",_xlpm.v))) ->  | I91: =IF($A91="","",_xlfn.LET(_xlpm.v,_xlfn.XLOOKUP($A91,WorkOrdersDatabase[WO Number],WorkOrdersDatabase[Parts Used],""),IF(OR(_xlpm.v=0,_xlpm.v=""),"",_xlpm.v))) ->  | J91: =IF($A91="","",IF(OR(I91="",I91=0,I91="0"),"Not Required",IFERROR(_xlfn.XLOOKUP(I91,'Parts List'!A:A,'Parts List'!F:F,"Check Parts List"),"Check Parts List"))) ->  | K91: =IF($A91="","",_xlfn.LET(_xlpm.v,_xlfn.XLOOKUP($A91,WorkOrdersDatabase[WO Number],WorkOrdersDatabase[Labour Hours],""),IF(OR(_xlpm.v=0,_xlpm.v=""),"",_xlpm.v))) ->  | L91: =IF($A91="","",_xlfn.LET(_xlpm.v,_xlfn.XLOOKUP($A91,WorkOrdersDatabase[WO Number],WorkOrdersDatabase[Assigned To],""),IF(OR(_xlpm.v=0,_xlpm.v=""),"",_xlpm.v))) ->  | T91: =IF($A91="","",_xlfn.LET(_xlpm.miss,_xlfn.TEXTJOIN(", ",TRUE,IF($J91="OUT OF STOCK","Parts out of stock",""),IF($J91="Check Parts List","Check parts master",""),IF($L91="","Assign technician",""),IF($M91="","Add start time",""),IF($K91="","Add labour hours","")),IF($R91="Completed","Completed",IF($R91="Cancelled","Cancelled",IF($R91="Scheduled","Scheduled",IF(_xlpm.miss="","Ready to schedule",_xlpm.miss)))))) -> 
B92: =IF($A92="","",_xlfn.XLOOKUP($A92,WorkOrdersDatabase[WO Number],WorkOrdersDatabase[Work Type],"")) ->  | C92: =IF($A92="","",_xlfn.XLOOKUP($A92,WorkOrdersDatabase[WO Number],WorkOrdersDatabase[Status],"")) ->  | D92: =IF($A92="","",_xlfn.XLOOKUP($A92,WorkOrdersDatabase[WO Number],WorkOrdersDatabase[Priority],"")) ->  | E92: =IF($A92="","",_xlfn.XLOOKUP($A92,WorkOrdersDatabase[WO Number],WorkOrdersDatabase[Asset ID],"")) ->  | F92: =IF($A92="","",_xlfn.XLOOKUP($A92,WorkOrdersDatabase[WO Number],WorkOrdersDatabase[Asset Name],"")) ->  | G92: =IF($A92="","",_xlfn.LET(_xlpm.v,_xlfn.XLOOKUP($A92,WorkOrdersDatabase[WO Number],WorkOrdersDatabase[Location],""),IF(OR(_xlpm.v=0,_xlpm.v=""),"",_xlpm.v))) ->  | H92: =IF($A92="","",_xlfn.LET(_xlpm.v,_xlfn.XLOOKUP($A92,WorkOrdersDatabase[WO Number],WorkOrdersDatabase[Problem Description],""),IF(OR(_xlpm.v=0,_xlpm.v=""),"",_xlpm.v))) ->  | I92: =IF($A92="","",_xlfn.LET(_xlpm.v,_xlfn.XLOOKUP($A92,WorkOrdersDatabase[WO Number],WorkOrdersDatabase[Parts Used],""),IF(OR(_xlpm.v=0,_xlpm.v=""),"",_xlpm.v))) ->  | J92: =IF($A92="","",IF(OR(I92="",I92=0,I92="0"),"Not Required",IFERROR(_xlfn.XLOOKUP(I92,'Parts List'!A:A,'Parts List'!F:F,"Check Parts List"),"Check Parts List"))) ->  | K92: =IF($A92="","",_xlfn.LET(_xlpm.v,_xlfn.XLOOKUP($A92,WorkOrdersDatabase[WO Number],WorkOrdersDatabase[Labour Hours],""),IF(OR(_xlpm.v=0,_xlpm.v=""),"",_xlpm.v))) ->  | L92: =IF($A92="","",_xlfn.LET(_xlpm.v,_xlfn.XLOOKUP($A92,WorkOrdersDatabase[WO Number],WorkOrdersDatabase[Assigned To],""),IF(OR(_xlpm.v=0,_xlpm.v=""),"",_xlpm.v))) ->  | T92: =IF($A92="","",_xlfn.LET(_xlpm.miss,_xlfn.TEXTJOIN(", ",TRUE,IF($J92="OUT OF STOCK","Parts out of stock",""),IF($J92="Check Parts List","Check parts master",""),IF($L92="","Assign technician",""),IF($M92="","Add start time",""),IF($K92="","Add labour hours","")),IF($R92="Completed","Completed",IF($R92="Cancelled","Cancelled",IF($R92="Scheduled","Scheduled",IF(_xlpm.miss="","Ready to schedule",_xlpm.miss)))))) -> 
B93: =IF($A93="","",_xlfn.XLOOKUP($A93,WorkOrdersDatabase[WO Number],WorkOrdersDatabase[Work Type],"")) ->  | C93: =IF($A93="","",_xlfn.XLOOKUP($A93,WorkOrdersDatabase[WO Number],WorkOrdersDatabase[Status],"")) ->  | D93: =IF($A93="","",_xlfn.XLOOKUP($A93,WorkOrdersDatabase[WO Number],WorkOrdersDatabase[Priority],"")) ->  | E93: =IF($A93="","",_xlfn.XLOOKUP($A93,WorkOrdersDatabase[WO Number],WorkOrdersDatabase[Asset ID],"")) ->  | F93: =IF($A93="","",_xlfn.XLOOKUP($A93,WorkOrdersDatabase[WO Number],WorkOrdersDatabase[Asset Name],"")) ->  | G93: =IF($A93="","",_xlfn.LET(_xlpm.v,_xlfn.XLOOKUP($A93,WorkOrdersDatabase[WO Number],WorkOrdersDatabase[Location],""),IF(OR(_xlpm.v=0,_xlpm.v=""),"",_xlpm.v))) ->  | H93: =IF($A93="","",_xlfn.LET(_xlpm.v,_xlfn.XLOOKUP($A93,WorkOrdersDatabase[WO Number],WorkOrdersDatabase[Problem Description],""),IF(OR(_xlpm.v=0,_xlpm.v=""),"",_xlpm.v))) ->  | I93: =IF($A93="","",_xlfn.LET(_xlpm.v,_xlfn.XLOOKUP($A93,WorkOrdersDatabase[WO Number],WorkOrdersDatabase[Parts Used],""),IF(OR(_xlpm.v=0,_xlpm.v=""),"",_xlpm.v))) ->  | J93: =IF($A93="","",IF(OR(I93="",I93=0,I93="0"),"Not Required",IFERROR(_xlfn.XLOOKUP(I93,'Parts List'!A:A,'Parts List'!F:F,"Check Parts List"),"Check Parts List"))) ->  | K93: =IF($A93="","",_xlfn.LET(_xlpm.v,_xlfn.XLOOKUP($A93,WorkOrdersDatabase[WO Number],WorkOrdersDatabase[Labour Hours],""),IF(OR(_xlpm.v=0,_xlpm.v=""),"",_xlpm.v))) ->  | L93: =IF($A93="","",_xlfn.LET(_xlpm.v,_xlfn.XLOOKUP($A93,WorkOrdersDatabase[WO Number],WorkOrdersDatabase[Assigned To],""),IF(OR(_xlpm.v=0,_xlpm.v=""),"",_xlpm.v))) ->  | T93: =IF($A93="","",_xlfn.LET(_xlpm.miss,_xlfn.TEXTJOIN(", ",TRUE,IF($J93="OUT OF STOCK","Parts out of stock",""),IF($J93="Check Parts List","Check parts master",""),IF($L93="","Assign technician",""),IF($M93="","Add start time",""),IF($K93="","Add labour hours","")),IF($R93="Completed","Completed",IF($R93="Cancelled","Cancelled",IF($R93="Scheduled","Scheduled",IF(_xlpm.miss="","Ready to schedule",_xlpm.miss)))))) -> 
B94: =IF($A94="","",_xlfn.XLOOKUP($A94,WorkOrdersDatabase[WO Number],WorkOrdersDatabase[Work Type],"")) ->  | C94: =IF($A94="","",_xlfn.XLOOKUP($A94,WorkOrdersDatabase[WO Number],WorkOrdersDatabase[Status],"")) ->  | D94: =IF($A94="","",_xlfn.XLOOKUP($A94,WorkOrdersDatabase[WO Number],WorkOrdersDatabase[Priority],"")) ->  | E94: =IF($A94="","",_xlfn.XLOOKUP($A94,WorkOrdersDatabase[WO Number],WorkOrdersDatabase[Asset ID],"")) ->  | F94: =IF($A94="","",_xlfn.XLOOKUP($A94,WorkOrdersDatabase[WO Number],WorkOrdersDatabase[Asset Name],"")) ->  | G94: =IF($A94="","",_xlfn.LET(_xlpm.v,_xlfn.XLOOKUP($A94,WorkOrdersDatabase[WO Number],WorkOrdersDatabase[Location],""),IF(OR(_xlpm.v=0,_xlpm.v=""),"",_xlpm.v))) ->  | H94: =IF($A94="","",_xlfn.LET(_xlpm.v,_xlfn.XLOOKUP($A94,WorkOrdersDatabase[WO Number],WorkOrdersDatabase[Problem Description],""),IF(OR(_xlpm.v=0,_xlpm.v=""),"",_xlpm.v))) ->  | I94: =IF($A94="","",_xlfn.LET(_xlpm.v,_xlfn.XLOOKUP($A94,WorkOrdersDatabase[WO Number],WorkOrdersDatabase[Parts Used],""),IF(OR(_xlpm.v=0,_xlpm.v=""),"",_xlpm.v))) ->  | J94: =IF($A94="","",IF(OR(I94="",I94=0,I94="0"),"Not Required",IFERROR(_xlfn.XLOOKUP(I94,'Parts List'!A:A,'Parts List'!F:F,"Check Parts List"),"Check Parts List"))) ->  | K94: =IF($A94="","",_xlfn.LET(_xlpm.v,_xlfn.XLOOKUP($A94,WorkOrdersDatabase[WO Number],WorkOrdersDatabase[Labour Hours],""),IF(OR(_xlpm.v=0,_xlpm.v=""),"",_xlpm.v))) ->  | L94: =IF($A94="","",_xlfn.LET(_xlpm.v,_xlfn.XLOOKUP($A94,WorkOrdersDatabase[WO Number],WorkOrdersDatabase[Assigned To],""),IF(OR(_xlpm.v=0,_xlpm.v=""),"",_xlpm.v))) ->  | T94: =IF($A94="","",_xlfn.LET(_xlpm.miss,_xlfn.TEXTJOIN(", ",TRUE,IF($J94="OUT OF STOCK","Parts out of stock",""),IF($J94="Check Parts List","Check parts master",""),IF($L94="","Assign technician",""),IF($M94="","Add start time",""),IF($K94="","Add labour hours","")),IF($R94="Completed","Completed",IF($R94="Cancelled","Cancelled",IF($R94="Scheduled","Scheduled",IF(_xlpm.miss="","Ready to schedule",_xlpm.miss)))))) -> 
B95: =IF($A95="","",_xlfn.XLOOKUP($A95,WorkOrdersDatabase[WO Number],WorkOrdersDatabase[Work Type],"")) ->  | C95: =IF($A95="","",_xlfn.XLOOKUP($A95,WorkOrdersDatabase[WO Number],WorkOrdersDatabase[Status],"")) ->  | D95: =IF($A95="","",_xlfn.XLOOKUP($A95,WorkOrdersDatabase[WO Number],WorkOrdersDatabase[Priority],"")) ->  | E95: =IF($A95="","",_xlfn.XLOOKUP($A95,WorkOrdersDatabase[WO Number],WorkOrdersDatabase[Asset ID],"")) ->  | F95: =IF($A95="","",_xlfn.XLOOKUP($A95,WorkOrdersDatabase[WO Number],WorkOrdersDatabase[Asset Name],"")) ->  | G95: =IF($A95="","",_xlfn.LET(_xlpm.v,_xlfn.XLOOKUP($A95,WorkOrdersDatabase[WO Number],WorkOrdersDatabase[Location],""),IF(OR(_xlpm.v=0,_xlpm.v=""),"",_xlpm.v))) ->  | H95: =IF($A95="","",_xlfn.LET(_xlpm.v,_xlfn.XLOOKUP($A95,WorkOrdersDatabase[WO Number],WorkOrdersDatabase[Problem Description],""),IF(OR(_xlpm.v=0,_xlpm.v=""),"",_xlpm.v))) ->  | I95: =IF($A95="","",_xlfn.LET(_xlpm.v,_xlfn.XLOOKUP($A95,WorkOrdersDatabase[WO Number],WorkOrdersDatabase[Parts Used],""),IF(OR(_xlpm.v=0,_xlpm.v=""),"",_xlpm.v))) ->  | J95: =IF($A95="","",IF(OR(I95="",I95=0,I95="0"),"Not Required",IFERROR(_xlfn.XLOOKUP(I95,'Parts List'!A:A,'Parts List'!F:F,"Check Parts List"),"Check Parts List"))) ->  | K95: =IF($A95="","",_xlfn.LET(_xlpm.v,_xlfn.XLOOKUP($A95,WorkOrdersDatabase[WO Number],WorkOrdersDatabase[Labour Hours],""),IF(OR(_xlpm.v=0,_xlpm.v=""),"",_xlpm.v))) ->  | L95: =IF($A95="","",_xlfn.LET(_xlpm.v,_xlfn.XLOOKUP($A95,WorkOrdersDatabase[WO Number],WorkOrdersDatabase[Assigned To],""),IF(OR(_xlpm.v=0,_xlpm.v=""),"",_xlpm.v))) ->  | T95: =IF($A95="","",_xlfn.LET(_xlpm.miss,_xlfn.TEXTJOIN(", ",TRUE,IF($J95="OUT OF STOCK","Parts out of stock",""),IF($J95="Check Parts List","Check parts master",""),IF($L95="","Assign technician",""),IF($M95="","Add start time",""),IF($K95="","Add labour hours","")),IF($R95="Completed","Completed",IF($R95="Cancelled","Cancelled",IF($R95="Scheduled","Scheduled",IF(_xlpm.miss="","Ready to schedule",_xlpm.miss)))))) -> 
B96: =IF($A96="","",_xlfn.XLOOKUP($A96,WorkOrdersDatabase[WO Number],WorkOrdersDatabase[Work Type],"")) ->  | C96: =IF($A96="","",_xlfn.XLOOKUP($A96,WorkOrdersDatabase[WO Number],WorkOrdersDatabase[Status],"")) ->  | D96: =IF($A96="","",_xlfn.XLOOKUP($A96,WorkOrdersDatabase[WO Number],WorkOrdersDatabase[Priority],"")) ->  | E96: =IF($A96="","",_xlfn.XLOOKUP($A96,WorkOrdersDatabase[WO Number],WorkOrdersDatabase[Asset ID],"")) ->  | F96: =IF($A96="","",_xlfn.XLOOKUP($A96,WorkOrdersDatabase[WO Number],WorkOrdersDatabase[Asset Name],"")) ->  | G96: =IF($A96="","",_xlfn.LET(_xlpm.v,_xlfn.XLOOKUP($A96,WorkOrdersDatabase[WO Number],WorkOrdersDatabase[Location],""),IF(OR(_xlpm.v=0,_xlpm.v=""),"",_xlpm.v))) ->  | H96: =IF($A96="","",_xlfn.LET(_xlpm.v,_xlfn.XLOOKUP($A96,WorkOrdersDatabase[WO Number],WorkOrdersDatabase[Problem Description],""),IF(OR(_xlpm.v=0,_xlpm.v=""),"",_xlpm.v))) ->  | I96: =IF($A96="","",_xlfn.LET(_xlpm.v,_xlfn.XLOOKUP($A96,WorkOrdersDatabase[WO Number],WorkOrdersDatabase[Parts Used],""),IF(OR(_xlpm.v=0,_xlpm.v=""),"",_xlpm.v))) ->  | J96: =IF($A96="","",IF(OR(I96="",I96=0,I96="0"),"Not Required",IFERROR(_xlfn.XLOOKUP(I96,'Parts List'!A:A,'Parts List'!F:F,"Check Parts List"),"Check Parts List"))) ->  | K96: =IF($A96="","",_xlfn.LET(_xlpm.v,_xlfn.XLOOKUP($A96,WorkOrdersDatabase[WO Number],WorkOrdersDatabase[Labour Hours],""),IF(OR(_xlpm.v=0,_xlpm.v=""),"",_xlpm.v))) ->  | L96: =IF($A96="","",_xlfn.LET(_xlpm.v,_xlfn.XLOOKUP($A96,WorkOrdersDatabase[WO Number],WorkOrdersDatabase[Assigned To],""),IF(OR(_xlpm.v=0,_xlpm.v=""),"",_xlpm.v))) ->  | T96: =IF($A96="","",_xlfn.LET(_xlpm.miss,_xlfn.TEXTJOIN(", ",TRUE,IF($J96="OUT OF STOCK","Parts out of stock",""),IF($J96="Check Parts List","Check parts master",""),IF($L96="","Assign technician",""),IF($M96="","Add start time",""),IF($K96="","Add labour hours","")),IF($R96="Completed","Completed",IF($R96="Cancelled","Cancelled",IF($R96="Scheduled","Scheduled",IF(_xlpm.miss="","Ready to schedule",_xlpm.miss)))))) -> 
B97: =IF($A97="","",_xlfn.XLOOKUP($A97,WorkOrdersDatabase[WO Number],WorkOrdersDatabase[Work Type],"")) ->  | C97: =IF($A97="","",_xlfn.XLOOKUP($A97,WorkOrdersDatabase[WO Number],WorkOrdersDatabase[Status],"")) ->  | D97: =IF($A97="","",_xlfn.XLOOKUP($A97,WorkOrdersDatabase[WO Number],WorkOrdersDatabase[Priority],"")) ->  | E97: =IF($A97="","",_xlfn.XLOOKUP($A97,WorkOrdersDatabase[WO Number],WorkOrdersDatabase[Asset ID],"")) ->  | F97: =IF($A97="","",_xlfn.XLOOKUP($A97,WorkOrdersDatabase[WO Number],WorkOrdersDatabase[Asset Name],"")) ->  | G97: =IF($A97="","",_xlfn.LET(_xlpm.v,_xlfn.XLOOKUP($A97,WorkOrdersDatabase[WO Number],WorkOrdersDatabase[Location],""),IF(OR(_xlpm.v=0,_xlpm.v=""),"",_xlpm.v))) ->  | H97: =IF($A97="","",_xlfn.LET(_xlpm.v,_xlfn.XLOOKUP($A97,WorkOrdersDatabase[WO Number],WorkOrdersDatabase[Problem Description],""),IF(OR(_xlpm.v=0,_xlpm.v=""),"",_xlpm.v))) ->  | I97: =IF($A97="","",_xlfn.LET(_xlpm.v,_xlfn.XLOOKUP($A97,WorkOrdersDatabase[WO Number],WorkOrdersDatabase[Parts Used],""),IF(OR(_xlpm.v=0,_xlpm.v=""),"",_xlpm.v))) ->  | J97: =IF($A97="","",IF(OR(I97="",I97=0,I97="0"),"Not Required",IFERROR(_xlfn.XLOOKUP(I97,'Parts List'!A:A,'Parts List'!F:F,"Check Parts List"),"Check Parts List"))) ->  | K97: =IF($A97="","",_xlfn.LET(_xlpm.v,_xlfn.XLOOKUP($A97,WorkOrdersDatabase[WO Number],WorkOrdersDatabase[Labour Hours],""),IF(OR(_xlpm.v=0,_xlpm.v=""),"",_xlpm.v))) ->  | L97: =IF($A97="","",_xlfn.LET(_xlpm.v,_xlfn.XLOOKUP($A97,WorkOrdersDatabase[WO Number],WorkOrdersDatabase[Assigned To],""),IF(OR(_xlpm.v=0,_xlpm.v=""),"",_xlpm.v))) ->  | T97: =IF($A97="","",_xlfn.LET(_xlpm.miss,_xlfn.TEXTJOIN(", ",TRUE,IF($J97="OUT OF STOCK","Parts out of stock",""),IF($J97="Check Parts List","Check parts master",""),IF($L97="","Assign technician",""),IF($M97="","Add start time",""),IF($K97="","Add labour hours","")),IF($R97="Completed","Completed",IF($R97="Cancelled","Cancelled",IF($R97="Scheduled","Scheduled",IF(_xlpm.miss="","Ready to schedule",_xlpm.miss)))))) -> 
B98: =IF($A98="","",_xlfn.XLOOKUP($A98,WorkOrdersDatabase[WO Number],WorkOrdersDatabase[Work Type],"")) ->  | C98: =IF($A98="","",_xlfn.XLOOKUP($A98,WorkOrdersDatabase[WO Number],WorkOrdersDatabase[Status],"")) ->  | D98: =IF($A98="","",_xlfn.XLOOKUP($A98,WorkOrdersDatabase[WO Number],WorkOrdersDatabase[Priority],"")) ->  | E98: =IF($A98="","",_xlfn.XLOOKUP($A98,WorkOrdersDatabase[WO Number],WorkOrdersDatabase[Asset ID],"")) ->  | F98: =IF($A98="","",_xlfn.XLOOKUP($A98,WorkOrdersDatabase[WO Number],WorkOrdersDatabase[Asset Name],"")) ->  | G98: =IF($A98="","",_xlfn.LET(_xlpm.v,_xlfn.XLOOKUP($A98,WorkOrdersDatabase[WO Number],WorkOrdersDatabase[Location],""),IF(OR(_xlpm.v=0,_xlpm.v=""),"",_xlpm.v))) ->  | H98: =IF($A98="","",_xlfn.LET(_xlpm.v,_xlfn.XLOOKUP($A98,WorkOrdersDatabase[WO Number],WorkOrdersDatabase[Problem Description],""),IF(OR(_xlpm.v=0,_xlpm.v=""),"",_xlpm.v))) ->  | I98: =IF($A98="","",_xlfn.LET(_xlpm.v,_xlfn.XLOOKUP($A98,WorkOrdersDatabase[WO Number],WorkOrdersDatabase[Parts Used],""),IF(OR(_xlpm.v=0,_xlpm.v=""),"",_xlpm.v))) ->  | J98: =IF($A98="","",IF(OR(I98="",I98=0,I98="0"),"Not Required",IFERROR(_xlfn.XLOOKUP(I98,'Parts List'!A:A,'Parts List'!F:F,"Check Parts List"),"Check Parts List"))) ->  | K98: =IF($A98="","",_xlfn.LET(_xlpm.v,_xlfn.XLOOKUP($A98,WorkOrdersDatabase[WO Number],WorkOrdersDatabase[Labour Hours],""),IF(OR(_xlpm.v=0,_xlpm.v=""),"",_xlpm.v))) ->  | L98: =IF($A98="","",_xlfn.LET(_xlpm.v,_xlfn.XLOOKUP($A98,WorkOrdersDatabase[WO Number],WorkOrdersDatabase[Assigned To],""),IF(OR(_xlpm.v=0,_xlpm.v=""),"",_xlpm.v))) ->  | T98: =IF($A98="","",_xlfn.LET(_xlpm.miss,_xlfn.TEXTJOIN(", ",TRUE,IF($J98="OUT OF STOCK","Parts out of stock",""),IF($J98="Check Parts List","Check parts master",""),IF($L98="","Assign technician",""),IF($M98="","Add start time",""),IF($K98="","Add labour hours","")),IF($R98="Completed","Completed",IF($R98="Cancelled","Cancelled",IF($R98="Scheduled","Scheduled",IF(_xlpm.miss="","Ready to schedule",_xlpm.miss)))))) -> 
B99: =IF($A99="","",_xlfn.XLOOKUP($A99,WorkOrdersDatabase[WO Number],WorkOrdersDatabase[Work Type],"")) ->  | C99: =IF($A99="","",_xlfn.XLOOKUP($A99,WorkOrdersDatabase[WO Number],WorkOrdersDatabase[Status],"")) ->  | D99: =IF($A99="","",_xlfn.XLOOKUP($A99,WorkOrdersDatabase[WO Number],WorkOrdersDatabase[Priority],"")) ->  | E99: =IF($A99="","",_xlfn.XLOOKUP($A99,WorkOrdersDatabase[WO Number],WorkOrdersDatabase[Asset ID],"")) ->  | F99: =IF($A99="","",_xlfn.XLOOKUP($A99,WorkOrdersDatabase[WO Number],WorkOrdersDatabase[Asset Name],"")) ->  | G99: =IF($A99="","",_xlfn.LET(_xlpm.v,_xlfn.XLOOKUP($A99,WorkOrdersDatabase[WO Number],WorkOrdersDatabase[Location],""),IF(OR(_xlpm.v=0,_xlpm.v=""),"",_xlpm.v))) ->  | H99: =IF($A99="","",_xlfn.LET(_xlpm.v,_xlfn.XLOOKUP($A99,WorkOrdersDatabase[WO Number],WorkOrdersDatabase[Problem Description],""),IF(OR(_xlpm.v=0,_xlpm.v=""),"",_xlpm.v))) ->  | I99: =IF($A99="","",_xlfn.LET(_xlpm.v,_xlfn.XLOOKUP($A99,WorkOrdersDatabase[WO Number],WorkOrdersDatabase[Parts Used],""),IF(OR(_xlpm.v=0,_xlpm.v=""),"",_xlpm.v))) ->  | J99: =IF($A99="","",IF(OR(I99="",I99=0,I99="0"),"Not Required",IFERROR(_xlfn.XLOOKUP(I99,'Parts List'!A:A,'Parts List'!F:F,"Check Parts List"),"Check Parts List"))) ->  | K99: =IF($A99="","",_xlfn.LET(_xlpm.v,_xlfn.XLOOKUP($A99,WorkOrdersDatabase[WO Number],WorkOrdersDatabase[Labour Hours],""),IF(OR(_xlpm.v=0,_xlpm.v=""),"",_xlpm.v))) ->  | L99: =IF($A99="","",_xlfn.LET(_xlpm.v,_xlfn.XLOOKUP($A99,WorkOrdersDatabase[WO Number],WorkOrdersDatabase[Assigned To],""),IF(OR(_xlpm.v=0,_xlpm.v=""),"",_xlpm.v))) ->  | T99: =IF($A99="","",_xlfn.LET(_xlpm.miss,_xlfn.TEXTJOIN(", ",TRUE,IF($J99="OUT OF STOCK","Parts out of stock",""),IF($J99="Check Parts List","Check parts master",""),IF($L99="","Assign technician",""),IF($M99="","Add start time",""),IF($K99="","Add labour hours","")),IF($R99="Completed","Completed",IF($R99="Cancelled","Cancelled",IF($R99="Scheduled","Scheduled",IF(_xlpm.miss="","Ready to schedule",_xlpm.miss)))))) -> 
B100: =IF($A100="","",_xlfn.XLOOKUP($A100,WorkOrdersDatabase[WO Number],WorkOrdersDatabase[Work Type],"")) ->  | C100: =IF($A100="","",_xlfn.XLOOKUP($A100,WorkOrdersDatabase[WO Number],WorkOrdersDatabase[Status],"")) ->  | D100: =IF($A100="","",_xlfn.XLOOKUP($A100,WorkOrdersDatabase[WO Number],WorkOrdersDatabase[Priority],"")) ->  | E100: =IF($A100="","",_xlfn.XLOOKUP($A100,WorkOrdersDatabase[WO Number],WorkOrdersDatabase[Asset ID],"")) ->  | F100: =IF($A100="","",_xlfn.XLOOKUP($A100,WorkOrdersDatabase[WO Number],WorkOrdersDatabase[Asset Name],"")) ->  | G100: =IF($A100="","",_xlfn.LET(_xlpm.v,_xlfn.XLOOKUP($A100,WorkOrdersDatabase[WO Number],WorkOrdersDatabase[Location],""),IF(OR(_xlpm.v=0,_xlpm.v=""),"",_xlpm.v))) ->  | H100: =IF($A100="","",_xlfn.LET(_xlpm.v,_xlfn.XLOOKUP($A100,WorkOrdersDatabase[WO Number],WorkOrdersDatabase[Problem Description],""),IF(OR(_xlpm.v=0,_xlpm.v=""),"",_xlpm.v))) ->  | I100: =IF($A100="","",_xlfn.LET(_xlpm.v,_xlfn.XLOOKUP($A100,WorkOrdersDatabase[WO Number],WorkOrdersDatabase[Parts Used],""),IF(OR(_xlpm.v=0,_xlpm.v=""),"",_xlpm.v))) ->  | J100: =IF($A100="","",IF(OR(I100="",I100=0,I100="0"),"Not Required",IFERROR(_xlfn.XLOOKUP(I100,'Parts List'!A:A,'Parts List'!F:F,"Check Parts List"),"Check Parts List"))) ->  | K100: =IF($A100="","",_xlfn.LET(_xlpm.v,_xlfn.XLOOKUP($A100,WorkOrdersDatabase[WO Number],WorkOrdersDatabase[Labour Hours],""),IF(OR(_xlpm.v=0,_xlpm.v=""),"",_xlpm.v))) ->  | L100: =IF($A100="","",_xlfn.LET(_xlpm.v,_xlfn.XLOOKUP($A100,WorkOrdersDatabase[WO Number],WorkOrdersDatabase[Assigned To],""),IF(OR(_xlpm.v=0,_xlpm.v=""),"",_xlpm.v))) ->  | T100: =IF($A100="","",_xlfn.LET(_xlpm.miss,_xlfn.TEXTJOIN(", ",TRUE,IF($J100="OUT OF STOCK","Parts out of stock",""),IF($J100="Check Parts List","Check parts master",""),IF($L100="","Assign technician",""),IF($M100="","Add start time",""),IF($K100="","Add labour hours","")),IF($R100="Completed","Completed",IF($R100="Cancelled","Cancelled",IF($R100="Scheduled","Scheduled",IF(_xlpm.miss="","Ready to schedule",_xlpm.miss)))))) -> 
B101: =IF($A101="","",_xlfn.XLOOKUP($A101,WorkOrdersDatabase[WO Number],WorkOrdersDatabase[Work Type],"")) ->  | C101: =IF($A101="","",_xlfn.XLOOKUP($A101,WorkOrdersDatabase[WO Number],WorkOrdersDatabase[Status],"")) ->  | D101: =IF($A101="","",_xlfn.XLOOKUP($A101,WorkOrdersDatabase[WO Number],WorkOrdersDatabase[Priority],"")) ->  | E101: =IF($A101="","",_xlfn.XLOOKUP($A101,WorkOrdersDatabase[WO Number],WorkOrdersDatabase[Asset ID],"")) ->  | F101: =IF($A101="","",_xlfn.XLOOKUP($A101,WorkOrdersDatabase[WO Number],WorkOrdersDatabase[Asset Name],"")) ->  | G101: =IF($A101="","",_xlfn.LET(_xlpm.v,_xlfn.XLOOKUP($A101,WorkOrdersDatabase[WO Number],WorkOrdersDatabase[Location],""),IF(OR(_xlpm.v=0,_xlpm.v=""),"",_xlpm.v))) ->  | H101: =IF($A101="","",_xlfn.LET(_xlpm.v,_xlfn.XLOOKUP($A101,WorkOrdersDatabase[WO Number],WorkOrdersDatabase[Problem Description],""),IF(OR(_xlpm.v=0,_xlpm.v=""),"",_xlpm.v))) ->  | I101: =IF($A101="","",_xlfn.LET(_xlpm.v,_xlfn.XLOOKUP($A101,WorkOrdersDatabase[WO Number],WorkOrdersDatabase[Parts Used],""),IF(OR(_xlpm.v=0,_xlpm.v=""),"",_xlpm.v))) ->  | J101: =IF($A101="","",IF(OR(I101="",I101=0,I101="0"),"Not Required",IFERROR(_xlfn.XLOOKUP(I101,'Parts List'!A:A,'Parts List'!F:F,"Check Parts List"),"Check Parts List"))) ->  | K101: =IF($A101="","",_xlfn.LET(_xlpm.v,_xlfn.XLOOKUP($A101,WorkOrdersDatabase[WO Number],WorkOrdersDatabase[Labour Hours],""),IF(OR(_xlpm.v=0,_xlpm.v=""),"",_xlpm.v))) ->  | L101: =IF($A101="","",_xlfn.LET(_xlpm.v,_xlfn.XLOOKUP($A101,WorkOrdersDatabase[WO Number],WorkOrdersDatabase[Assigned To],""),IF(OR(_xlpm.v=0,_xlpm.v=""),"",_xlpm.v))) ->  | T101: =IF($A101="","",_xlfn.LET(_xlpm.miss,_xlfn.TEXTJOIN(", ",TRUE,IF($J101="OUT OF STOCK","Parts out of stock",""),IF($J101="Check Parts List","Check parts master",""),IF($L101="","Assign technician",""),IF($M101="","Add start time",""),IF($K101="","Add labour hours","")),IF($R101="Completed","Completed",IF($R101="Cancelled","Cancelled",IF($R101="Scheduled","Scheduled",IF(_xlpm.miss="","Ready to schedule",_xlpm.miss)))))) -> 
B102: =IF($A102="","",_xlfn.XLOOKUP($A102,WorkOrdersDatabase[WO Number],WorkOrdersDatabase[Work Type],"")) ->  | C102: =IF($A102="","",_xlfn.XLOOKUP($A102,WorkOrdersDatabase[WO Number],WorkOrdersDatabase[Status],"")) ->  | D102: =IF($A102="","",_xlfn.XLOOKUP($A102,WorkOrdersDatabase[WO Number],WorkOrdersDatabase[Priority],"")) ->  | E102: =IF($A102="","",_xlfn.XLOOKUP($A102,WorkOrdersDatabase[WO Number],WorkOrdersDatabase[Asset ID],"")) ->  | F102: =IF($A102="","",_xlfn.XLOOKUP($A102,WorkOrdersDatabase[WO Number],WorkOrdersDatabase[Asset Name],"")) ->  | G102: =IF($A102="","",_xlfn.LET(_xlpm.v,_xlfn.XLOOKUP($A102,WorkOrdersDatabase[WO Number],WorkOrdersDatabase[Location],""),IF(OR(_xlpm.v=0,_xlpm.v=""),"",_xlpm.v))) ->  | H102: =IF($A102="","",_xlfn.LET(_xlpm.v,_xlfn.XLOOKUP($A102,WorkOrdersDatabase[WO Number],WorkOrdersDatabase[Problem Description],""),IF(OR(_xlpm.v=0,_xlpm.v=""),"",_xlpm.v))) ->  | I102: =IF($A102="","",_xlfn.LET(_xlpm.v,_xlfn.XLOOKUP($A102,WorkOrdersDatabase[WO Number],WorkOrdersDatabase[Parts Used],""),IF(OR(_xlpm.v=0,_xlpm.v=""),"",_xlpm.v))) ->  | J102: =IF($A102="","",IF(OR(I102="",I102=0,I102="0"),"Not Required",IFERROR(_xlfn.XLOOKUP(I102,'Parts List'!A:A,'Parts List'!F:F,"Check Parts List"),"Check Parts List"))) ->  | K102: =IF($A102="","",_xlfn.LET(_xlpm.v,_xlfn.XLOOKUP($A102,WorkOrdersDatabase[WO Number],WorkOrdersDatabase[Labour Hours],""),IF(OR(_xlpm.v=0,_xlpm.v=""),"",_xlpm.v))) ->  | L102: =IF($A102="","",_xlfn.LET(_xlpm.v,_xlfn.XLOOKUP($A102,WorkOrdersDatabase[WO Number],WorkOrdersDatabase[Assigned To],""),IF(OR(_xlpm.v=0,_xlpm.v=""),"",_xlpm.v))) ->  | T102: =IF($A102="","",_xlfn.LET(_xlpm.miss,_xlfn.TEXTJOIN(", ",TRUE,IF($J102="OUT OF STOCK","Parts out of stock",""),IF($J102="Check Parts List","Check parts master",""),IF($L102="","Assign technician",""),IF($M102="","Add start time",""),IF($K102="","Add labour hours","")),IF($R102="Completed","Completed",IF($R102="Cancelled","Cancelled",IF($R102="Scheduled","Scheduled",IF(_xlpm.miss="","Ready to schedule",_xlpm.miss)))))) -> 
B103: =IF($A103="","",_xlfn.XLOOKUP($A103,WorkOrdersDatabase[WO Number],WorkOrdersDatabase[Work Type],"")) ->  | C103: =IF($A103="","",_xlfn.XLOOKUP($A103,WorkOrdersDatabase[WO Number],WorkOrdersDatabase[Status],"")) ->  | D103: =IF($A103="","",_xlfn.XLOOKUP($A103,WorkOrdersDatabase[WO Number],WorkOrdersDatabase[Priority],"")) ->  | E103: =IF($A103="","",_xlfn.XLOOKUP($A103,WorkOrdersDatabase[WO Number],WorkOrdersDatabase[Asset ID],"")) ->  | F103: =IF($A103="","",_xlfn.XLOOKUP($A103,WorkOrdersDatabase[WO Number],WorkOrdersDatabase[Asset Name],"")) ->  | G103: =IF($A103="","",_xlfn.LET(_xlpm.v,_xlfn.XLOOKUP($A103,WorkOrdersDatabase[WO Number],WorkOrdersDatabase[Location],""),IF(OR(_xlpm.v=0,_xlpm.v=""),"",_xlpm.v))) ->  | H103: =IF($A103="","",_xlfn.LET(_xlpm.v,_xlfn.XLOOKUP($A103,WorkOrdersDatabase[WO Number],WorkOrdersDatabase[Problem Description],""),IF(OR(_xlpm.v=0,_xlpm.v=""),"",_xlpm.v))) ->  | I103: =IF($A103="","",_xlfn.LET(_xlpm.v,_xlfn.XLOOKUP($A103,WorkOrdersDatabase[WO Number],WorkOrdersDatabase[Parts Used],""),IF(OR(_xlpm.v=0,_xlpm.v=""),"",_xlpm.v))) ->  | J103: =IF($A103="","",IF(OR(I103="",I103=0,I103="0"),"Not Required",IFERROR(_xlfn.XLOOKUP(I103,'Parts List'!A:A,'Parts List'!F:F,"Check Parts List"),"Check Parts List"))) ->  | K103: =IF($A103="","",_xlfn.LET(_xlpm.v,_xlfn.XLOOKUP($A103,WorkOrdersDatabase[WO Number],WorkOrdersDatabase[Labour Hours],""),IF(OR(_xlpm.v=0,_xlpm.v=""),"",_xlpm.v))) ->  | L103: =IF($A103="","",_xlfn.LET(_xlpm.v,_xlfn.XLOOKUP($A103,WorkOrdersDatabase[WO Number],WorkOrdersDatabase[Assigned To],""),IF(OR(_xlpm.v=0,_xlpm.v=""),"",_xlpm.v))) ->  | T103: =IF($A103="","",_xlfn.LET(_xlpm.miss,_xlfn.TEXTJOIN(", ",TRUE,IF($J103="OUT OF STOCK","Parts out of stock",""),IF($J103="Check Parts List","Check parts master",""),IF($L103="","Assign technician",""),IF($M103="","Add start time",""),IF($K103="","Add labour hours","")),IF($R103="Completed","Completed",IF($R103="Cancelled","Cancelled",IF($R103="Scheduled","Scheduled",IF(_xlpm.miss="","Ready to schedule",_xlpm.miss)))))) -> 
B104: =IF($A104="","",_xlfn.XLOOKUP($A104,WorkOrdersDatabase[WO Number],WorkOrdersDatabase[Work Type],"")) ->  | C104: =IF($A104="","",_xlfn.XLOOKUP($A104,WorkOrdersDatabase[WO Number],WorkOrdersDatabase[Status],"")) ->  | D104: =IF($A104="","",_xlfn.XLOOKUP($A104,WorkOrdersDatabase[WO Number],WorkOrdersDatabase[Priority],"")) ->  | E104: =IF($A104="","",_xlfn.XLOOKUP($A104,WorkOrdersDatabase[WO Number],WorkOrdersDatabase[Asset ID],"")) ->  | F104: =IF($A104="","",_xlfn.XLOOKUP($A104,WorkOrdersDatabase[WO Number],WorkOrdersDatabase[Asset Name],"")) ->  | G104: =IF($A104="","",_xlfn.LET(_xlpm.v,_xlfn.XLOOKUP($A104,WorkOrdersDatabase[WO Number],WorkOrdersDatabase[Location],""),IF(OR(_xlpm.v=0,_xlpm.v=""),"",_xlpm.v))) ->  | H104: =IF($A104="","",_xlfn.LET(_xlpm.v,_xlfn.XLOOKUP($A104,WorkOrdersDatabase[WO Number],WorkOrdersDatabase[Problem Description],""),IF(OR(_xlpm.v=0,_xlpm.v=""),"",_xlpm.v))) ->  | I104: =IF($A104="","",_xlfn.LET(_xlpm.v,_xlfn.XLOOKUP($A104,WorkOrdersDatabase[WO Number],WorkOrdersDatabase[Parts Used],""),IF(OR(_xlpm.v=0,_xlpm.v=""),"",_xlpm.v))) ->  | J104: =IF($A104="","",IF(OR(I104="",I104=0,I104="0"),"Not Required",IFERROR(_xlfn.XLOOKUP(I104,'Parts List'!A:A,'Parts List'!F:F,"Check Parts List"),"Check Parts List"))) ->  | K104: =IF($A104="","",_xlfn.LET(_xlpm.v,_xlfn.XLOOKUP($A104,WorkOrdersDatabase[WO Number],WorkOrdersDatabase[Labour Hours],""),IF(OR(_xlpm.v=0,_xlpm.v=""),"",_xlpm.v))) ->  | L104: =IF($A104="","",_xlfn.LET(_xlpm.v,_xlfn.XLOOKUP($A104,WorkOrdersDatabase[WO Number],WorkOrdersDatabase[Assigned To],""),IF(OR(_xlpm.v=0,_xlpm.v=""),"",_xlpm.v))) ->  | T104: =IF($A104="","",_xlfn.LET(_xlpm.miss,_xlfn.TEXTJOIN(", ",TRUE,IF($J104="OUT OF STOCK","Parts out of stock",""),IF($J104="Check Parts List","Check parts master",""),IF($L104="","Assign technician",""),IF($M104="","Add start time",""),IF($K104="","Add labour hours","")),IF($R104="Completed","Completed",IF($R104="Cancelled","Cancelled",IF($R104="Scheduled","Scheduled",IF(_xlpm.miss="","Ready to schedule",_xlpm.miss)))))) -> 
B105: =IF($A105="","",_xlfn.XLOOKUP($A105,WorkOrdersDatabase[WO Number],WorkOrdersDatabase[Work Type],"")) ->  | C105: =IF($A105="","",_xlfn.XLOOKUP($A105,WorkOrdersDatabase[WO Number],WorkOrdersDatabase[Status],"")) ->  | D105: =IF($A105="","",_xlfn.XLOOKUP($A105,WorkOrdersDatabase[WO Number],WorkOrdersDatabase[Priority],"")) ->  | E105: =IF($A105="","",_xlfn.XLOOKUP($A105,WorkOrdersDatabase[WO Number],WorkOrdersDatabase[Asset ID],"")) ->  | F105: =IF($A105="","",_xlfn.XLOOKUP($A105,WorkOrdersDatabase[WO Number],WorkOrdersDatabase[Asset Name],"")) ->  | G105: =IF($A105="","",_xlfn.LET(_xlpm.v,_xlfn.XLOOKUP($A105,WorkOrdersDatabase[WO Number],WorkOrdersDatabase[Location],""),IF(OR(_xlpm.v=0,_xlpm.v=""),"",_xlpm.v))) ->  | H105: =IF($A105="","",_xlfn.LET(_xlpm.v,_xlfn.XLOOKUP($A105,WorkOrdersDatabase[WO Number],WorkOrdersDatabase[Problem Description],""),IF(OR(_xlpm.v=0,_xlpm.v=""),"",_xlpm.v))) ->  | I105: =IF($A105="","",_xlfn.LET(_xlpm.v,_xlfn.XLOOKUP($A105,WorkOrdersDatabase[WO Number],WorkOrdersDatabase[Parts Used],""),IF(OR(_xlpm.v=0,_xlpm.v=""),"",_xlpm.v))) ->  | J105: =IF($A105="","",IF(OR(I105="",I105=0,I105="0"),"Not Required",IFERROR(_xlfn.XLOOKUP(I105,'Parts List'!A:A,'Parts List'!F:F,"Check Parts List"),"Check Parts List"))) ->  | K105: =IF($A105="","",_xlfn.LET(_xlpm.v,_xlfn.XLOOKUP($A105,WorkOrdersDatabase[WO Number],WorkOrdersDatabase[Labour Hours],""),IF(OR(_xlpm.v=0,_xlpm.v=""),"",_xlpm.v))) ->  | L105: =IF($A105="","",_xlfn.LET(_xlpm.v,_xlfn.XLOOKUP($A105,WorkOrdersDatabase[WO Number],WorkOrdersDatabase[Assigned To],""),IF(OR(_xlpm.v=0,_xlpm.v=""),"",_xlpm.v))) ->  | T105: =IF($A105="","",_xlfn.LET(_xlpm.miss,_xlfn.TEXTJOIN(", ",TRUE,IF($J105="OUT OF STOCK","Parts out of stock",""),IF($J105="Check Parts List","Check parts master",""),IF($L105="","Assign technician",""),IF($M105="","Add start time",""),IF($K105="","Add labour hours","")),IF($R105="Completed","Completed",IF($R105="Cancelled","Cancelled",IF($R105="Scheduled","Scheduled",IF(_xlpm.miss="","Ready to schedule",_xlpm.miss)))))) -> 
B106: =IF($A106="","",_xlfn.XLOOKUP($A106,WorkOrdersDatabase[WO Number],WorkOrdersDatabase[Work Type],"")) ->  | C106: =IF($A106="","",_xlfn.XLOOKUP($A106,WorkOrdersDatabase[WO Number],WorkOrdersDatabase[Status],"")) ->  | D106: =IF($A106="","",_xlfn.XLOOKUP($A106,WorkOrdersDatabase[WO Number],WorkOrdersDatabase[Priority],"")) ->  | E106: =IF($A106="","",_xlfn.XLOOKUP($A106,WorkOrdersDatabase[WO Number],WorkOrdersDatabase[Asset ID],"")) ->  | F106: =IF($A106="","",_xlfn.XLOOKUP($A106,WorkOrdersDatabase[WO Number],WorkOrdersDatabase[Asset Name],"")) ->  | G106: =IF($A106="","",_xlfn.LET(_xlpm.v,_xlfn.XLOOKUP($A106,WorkOrdersDatabase[WO Number],WorkOrdersDatabase[Location],""),IF(OR(_xlpm.v=0,_xlpm.v=""),"",_xlpm.v))) ->  | H106: =IF($A106="","",_xlfn.LET(_xlpm.v,_xlfn.XLOOKUP($A106,WorkOrdersDatabase[WO Number],WorkOrdersDatabase[Problem Description],""),IF(OR(_xlpm.v=0,_xlpm.v=""),"",_xlpm.v))) ->  | I106: =IF($A106="","",_xlfn.LET(_xlpm.v,_xlfn.XLOOKUP($A106,WorkOrdersDatabase[WO Number],WorkOrdersDatabase[Parts Used],""),IF(OR(_xlpm.v=0,_xlpm.v=""),"",_xlpm.v))) ->  | J106: =IF($A106="","",IF(OR(I106="",I106=0,I106="0"),"Not Required",IFERROR(_xlfn.XLOOKUP(I106,'Parts List'!A:A,'Parts List'!F:F,"Check Parts List"),"Check Parts List"))) ->  | K106: =IF($A106="","",_xlfn.LET(_xlpm.v,_xlfn.XLOOKUP($A106,WorkOrdersDatabase[WO Number],WorkOrdersDatabase[Labour Hours],""),IF(OR(_xlpm.v=0,_xlpm.v=""),"",_xlpm.v))) ->  | L106: =IF($A106="","",_xlfn.LET(_xlpm.v,_xlfn.XLOOKUP($A106,WorkOrdersDatabase[WO Number],WorkOrdersDatabase[Assigned To],""),IF(OR(_xlpm.v=0,_xlpm.v=""),"",_xlpm.v))) ->  | T106: =IF($A106="","",_xlfn.LET(_xlpm.miss,_xlfn.TEXTJOIN(", ",TRUE,IF($J106="OUT OF STOCK","Parts out of stock",""),IF($J106="Check Parts List","Check parts master",""),IF($L106="","Assign technician",""),IF($M106="","Add start time",""),IF($K106="","Add labour hours","")),IF($R106="Completed","Completed",IF($R106="Cancelled","Cancelled",IF($R106="Scheduled","Scheduled",IF(_xlpm.miss="","Ready to schedule",_xlpm.miss)))))) -> 
B107: =IF($A107="","",_xlfn.XLOOKUP($A107,WorkOrdersDatabase[WO Number],WorkOrdersDatabase[Work Type],"")) ->  | C107: =IF($A107="","",_xlfn.XLOOKUP($A107,WorkOrdersDatabase[WO Number],WorkOrdersDatabase[Status],"")) ->  | D107: =IF($A107="","",_xlfn.XLOOKUP($A107,WorkOrdersDatabase[WO Number],WorkOrdersDatabase[Priority],"")) ->  | E107: =IF($A107="","",_xlfn.XLOOKUP($A107,WorkOrdersDatabase[WO Number],WorkOrdersDatabase[Asset ID],"")) ->  | F107: =IF($A107="","",_xlfn.XLOOKUP($A107,WorkOrdersDatabase[WO Number],WorkOrdersDatabase[Asset Name],"")) ->  | G107: =IF($A107="","",_xlfn.LET(_xlpm.v,_xlfn.XLOOKUP($A107,WorkOrdersDatabase[WO Number],WorkOrdersDatabase[Location],""),IF(OR(_xlpm.v=0,_xlpm.v=""),"",_xlpm.v))) ->  | H107: =IF($A107="","",_xlfn.LET(_xlpm.v,_xlfn.XLOOKUP($A107,WorkOrdersDatabase[WO Number],WorkOrdersDatabase[Problem Description],""),IF(OR(_xlpm.v=0,_xlpm.v=""),"",_xlpm.v))) ->  | I107: =IF($A107="","",_xlfn.LET(_xlpm.v,_xlfn.XLOOKUP($A107,WorkOrdersDatabase[WO Number],WorkOrdersDatabase[Parts Used],""),IF(OR(_xlpm.v=0,_xlpm.v=""),"",_xlpm.v))) ->  | J107: =IF($A107="","",IF(OR(I107="",I107=0,I107="0"),"Not Required",IFERROR(_xlfn.XLOOKUP(I107,'Parts List'!A:A,'Parts List'!F:F,"Check Parts List"),"Check Parts List"))) ->  | K107: =IF($A107="","",_xlfn.LET(_xlpm.v,_xlfn.XLOOKUP($A107,WorkOrdersDatabase[WO Number],WorkOrdersDatabase[Labour Hours],""),IF(OR(_xlpm.v=0,_xlpm.v=""),"",_xlpm.v))) ->  | L107: =IF($A107="","",_xlfn.LET(_xlpm.v,_xlfn.XLOOKUP($A107,WorkOrdersDatabase[WO Number],WorkOrdersDatabase[Assigned To],""),IF(OR(_xlpm.v=0,_xlpm.v=""),"",_xlpm.v))) ->  | T107: =IF($A107="","",_xlfn.LET(_xlpm.miss,_xlfn.TEXTJOIN(", ",TRUE,IF($J107="OUT OF STOCK","Parts out of stock",""),IF($J107="Check Parts List","Check parts master",""),IF($L107="","Assign technician",""),IF($M107="","Add start time",""),IF($K107="","Add labour hours","")),IF($R107="Completed","Completed",IF($R107="Cancelled","Cancelled",IF($R107="Scheduled","Scheduled",IF(_xlpm.miss="","Ready to schedule",_xlpm.miss)))))) -> 
B108: =IF($A108="","",_xlfn.XLOOKUP($A108,WorkOrdersDatabase[WO Number],WorkOrdersDatabase[Work Type],"")) ->  | C108: =IF($A108="","",_xlfn.XLOOKUP($A108,WorkOrdersDatabase[WO Number],WorkOrdersDatabase[Status],"")) ->  | D108: =IF($A108="","",_xlfn.XLOOKUP($A108,WorkOrdersDatabase[WO Number],WorkOrdersDatabase[Priority],"")) ->  | E108: =IF($A108="","",_xlfn.XLOOKUP($A108,WorkOrdersDatabase[WO Number],WorkOrdersDatabase[Asset ID],"")) ->  | F108: =IF($A108="","",_xlfn.XLOOKUP($A108,WorkOrdersDatabase[WO Number],WorkOrdersDatabase[Asset Name],"")) ->  | G108: =IF($A108="","",_xlfn.LET(_xlpm.v,_xlfn.XLOOKUP($A108,WorkOrdersDatabase[WO Number],WorkOrdersDatabase[Location],""),IF(OR(_xlpm.v=0,_xlpm.v=""),"",_xlpm.v))) ->  | H108: =IF($A108="","",_xlfn.LET(_xlpm.v,_xlfn.XLOOKUP($A108,WorkOrdersDatabase[WO Number],WorkOrdersDatabase[Problem Description],""),IF(OR(_xlpm.v=0,_xlpm.v=""),"",_xlpm.v))) ->  | I108: =IF($A108="","",_xlfn.LET(_xlpm.v,_xlfn.XLOOKUP($A108,WorkOrdersDatabase[WO Number],WorkOrdersDatabase[Parts Used],""),IF(OR(_xlpm.v=0,_xlpm.v=""),"",_xlpm.v))) ->  | J108: =IF($A108="","",IF(OR(I108="",I108=0,I108="0"),"Not Required",IFERROR(_xlfn.XLOOKUP(I108,'Parts List'!A:A,'Parts List'!F:F,"Check Parts List"),"Check Parts List"))) ->  | K108: =IF($A108="","",_xlfn.LET(_xlpm.v,_xlfn.XLOOKUP($A108,WorkOrdersDatabase[WO Number],WorkOrdersDatabase[Labour Hours],""),IF(OR(_xlpm.v=0,_xlpm.v=""),"",_xlpm.v))) ->  | L108: =IF($A108="","",_xlfn.LET(_xlpm.v,_xlfn.XLOOKUP($A108,WorkOrdersDatabase[WO Number],WorkOrdersDatabase[Assigned To],""),IF(OR(_xlpm.v=0,_xlpm.v=""),"",_xlpm.v))) ->  | T108: =IF($A108="","",_xlfn.LET(_xlpm.miss,_xlfn.TEXTJOIN(", ",TRUE,IF($J108="OUT OF STOCK","Parts out of stock",""),IF($J108="Check Parts List","Check parts master",""),IF($L108="","Assign technician",""),IF($M108="","Add start time",""),IF($K108="","Add labour hours","")),IF($R108="Completed","Completed",IF($R108="Cancelled","Cancelled",IF($R108="Scheduled","Scheduled",IF(_xlpm.miss="","Ready to schedule",_xlpm.miss)))))) -> 
B109: =IF($A109="","",_xlfn.XLOOKUP($A109,WorkOrdersDatabase[WO Number],WorkOrdersDatabase[Work Type],"")) ->  | C109: =IF($A109="","",_xlfn.XLOOKUP($A109,WorkOrdersDatabase[WO Number],WorkOrdersDatabase[Status],"")) ->  | D109: =IF($A109="","",_xlfn.XLOOKUP($A109,WorkOrdersDatabase[WO Number],WorkOrdersDatabase[Priority],"")) ->  | E109: =IF($A109="","",_xlfn.XLOOKUP($A109,WorkOrdersDatabase[WO Number],WorkOrdersDatabase[Asset ID],"")) ->  | F109: =IF($A109="","",_xlfn.XLOOKUP($A109,WorkOrdersDatabase[WO Number],WorkOrdersDatabase[Asset Name],"")) ->  | G109: =IF($A109="","",_xlfn.LET(_xlpm.v,_xlfn.XLOOKUP($A109,WorkOrdersDatabase[WO Number],WorkOrdersDatabase[Location],""),IF(OR(_xlpm.v=0,_xlpm.v=""),"",_xlpm.v))) ->  | H109: =IF($A109="","",_xlfn.LET(_xlpm.v,_xlfn.XLOOKUP($A109,WorkOrdersDatabase[WO Number],WorkOrdersDatabase[Problem Description],""),IF(OR(_xlpm.v=0,_xlpm.v=""),"",_xlpm.v))) ->  | I109: =IF($A109="","",_xlfn.LET(_xlpm.v,_xlfn.XLOOKUP($A109,WorkOrdersDatabase[WO Number],WorkOrdersDatabase[Parts Used],""),IF(OR(_xlpm.v=0,_xlpm.v=""),"",_xlpm.v))) ->  | J109: =IF($A109="","",IF(OR(I109="",I109=0,I109="0"),"Not Required",IFERROR(_xlfn.XLOOKUP(I109,'Parts List'!A:A,'Parts List'!F:F,"Check Parts List"),"Check Parts List"))) ->  | K109: =IF($A109="","",_xlfn.LET(_xlpm.v,_xlfn.XLOOKUP($A109,WorkOrdersDatabase[WO Number],WorkOrdersDatabase[Labour Hours],""),IF(OR(_xlpm.v=0,_xlpm.v=""),"",_xlpm.v))) ->  | L109: =IF($A109="","",_xlfn.LET(_xlpm.v,_xlfn.XLOOKUP($A109,WorkOrdersDatabase[WO Number],WorkOrdersDatabase[Assigned To],""),IF(OR(_xlpm.v=0,_xlpm.v=""),"",_xlpm.v))) ->  | T109: =IF($A109="","",_xlfn.LET(_xlpm.miss,_xlfn.TEXTJOIN(", ",TRUE,IF($J109="OUT OF STOCK","Parts out of stock",""),IF($J109="Check Parts List","Check parts master",""),IF($L109="","Assign technician",""),IF($M109="","Add start time",""),IF($K109="","Add labour hours","")),IF($R109="Completed","Completed",IF($R109="Cancelled","Cancelled",IF($R109="Scheduled","Scheduled",IF(_xlpm.miss="","Ready to schedule",_xlpm.miss)))))) -> 
B110: =IF($A110="","",_xlfn.XLOOKUP($A110,WorkOrdersDatabase[WO Number],WorkOrdersDatabase[Work Type],"")) ->  | C110: =IF($A110="","",_xlfn.XLOOKUP($A110,WorkOrdersDatabase[WO Number],WorkOrdersDatabase[Status],"")) ->  | D110: =IF($A110="","",_xlfn.XLOOKUP($A110,WorkOrdersDatabase[WO Number],WorkOrdersDatabase[Priority],"")) ->  | E110: =IF($A110="","",_xlfn.XLOOKUP($A110,WorkOrdersDatabase[WO Number],WorkOrdersDatabase[Asset ID],"")) ->  | F110: =IF($A110="","",_xlfn.XLOOKUP($A110,WorkOrdersDatabase[WO Number],WorkOrdersDatabase[Asset Name],"")) ->  | G110: =IF($A110="","",_xlfn.LET(_xlpm.v,_xlfn.XLOOKUP($A110,WorkOrdersDatabase[WO Number],WorkOrdersDatabase[Location],""),IF(OR(_xlpm.v=0,_xlpm.v=""),"",_xlpm.v))) ->  | H110: =IF($A110="","",_xlfn.LET(_xlpm.v,_xlfn.XLOOKUP($A110,WorkOrdersDatabase[WO Number],WorkOrdersDatabase[Problem Description],""),IF(OR(_xlpm.v=0,_xlpm.v=""),"",_xlpm.v))) ->  | I110: =IF($A110="","",_xlfn.LET(_xlpm.v,_xlfn.XLOOKUP($A110,WorkOrdersDatabase[WO Number],WorkOrdersDatabase[Parts Used],""),IF(OR(_xlpm.v=0,_xlpm.v=""),"",_xlpm.v))) ->  | J110: =IF($A110="","",IF(OR(I110="",I110=0,I110="0"),"Not Required",IFERROR(_xlfn.XLOOKUP(I110,'Parts List'!A:A,'Parts List'!F:F,"Check Parts List"),"Check Parts List"))) ->  | K110: =IF($A110="","",_xlfn.LET(_xlpm.v,_xlfn.XLOOKUP($A110,WorkOrdersDatabase[WO Number],WorkOrdersDatabase[Labour Hours],""),IF(OR(_xlpm.v=0,_xlpm.v=""),"",_xlpm.v))) ->  | L110: =IF($A110="","",_xlfn.LET(_xlpm.v,_xlfn.XLOOKUP($A110,WorkOrdersDatabase[WO Number],WorkOrdersDatabase[Assigned To],""),IF(OR(_xlpm.v=0,_xlpm.v=""),"",_xlpm.v))) ->  | T110: =IF($A110="","",_xlfn.LET(_xlpm.miss,_xlfn.TEXTJOIN(", ",TRUE,IF($J110="OUT OF STOCK","Parts out of stock",""),IF($J110="Check Parts List","Check parts master",""),IF($L110="","Assign technician",""),IF($M110="","Add start time",""),IF($K110="","Add labour hours","")),IF($R110="Completed","Completed",IF($R110="Cancelled","Cancelled",IF($R110="Scheduled","Scheduled",IF(_xlpm.miss="","Ready to schedule",_xlpm.miss)))))) -> 
G111: =IF($A111="","",_xlfn.LET(_xlpm.v,_xlfn.XLOOKUP($A111,WorkOrdersDatabase[WO Number],WorkOrdersDatabase[Location],""),IF(OR(_xlpm.v=0,_xlpm.v=""),"",_xlpm.v))) ->  | H111: =IF($A111="","",_xlfn.LET(_xlpm.v,_xlfn.XLOOKUP($A111,WorkOrdersDatabase[WO Number],WorkOrdersDatabase[Problem Description],""),IF(OR(_xlpm.v=0,_xlpm.v=""),"",_xlpm.v))) ->  | I111: =IF($A111="","",_xlfn.LET(_xlpm.v,_xlfn.XLOOKUP($A111,WorkOrdersDatabase[WO Number],WorkOrdersDatabase[Parts Used],""),IF(OR(_xlpm.v=0,_xlpm.v=""),"",_xlpm.v))) ->  | K111: =IF($A111="","",_xlfn.LET(_xlpm.v,_xlfn.XLOOKUP($A111,WorkOrdersDatabase[WO Number],WorkOrdersDatabase[Labour Hours],""),IF(OR(_xlpm.v=0,_xlpm.v=""),"",_xlpm.v))) ->  | L111: =IF($A111="","",_xlfn.LET(_xlpm.v,_xlfn.XLOOKUP($A111,WorkOrdersDatabase[WO Number],WorkOrdersDatabase[Assigned To],""),IF(OR(_xlpm.v=0,_xlpm.v=""),"",_xlpm.v))) ->  | S111: =IF($A111="","",IF(AND(OR($J111="IN STOCK",$J111="Not Required"),$L111<>"",$M111<>"",$O111<>"",$R111<>"Completed",$R111<>"Cancelled"),"READY","NOT READY")) ->  | T111: =IF($A111="","",_xlfn.LET(_xlpm.miss,_xlfn.TEXTJOIN(", ",TRUE,IF($J111="OUT OF STOCK","Parts out of stock",""),IF($J111="Check Parts List","Check parts master",""),IF($L111="","Assign technician",""),IF($M111="","Add start time",""),IF($K111="","Add labour hours","")),IF($R111="Completed","Completed",IF($R111="Cancelled","Cancelled",IF($R111="Scheduled","Scheduled",IF(_xlpm.miss="","Ready to schedule",_xlpm.miss)))))) -> 

Sheet Weekly Schedule
A1: Week Starting | B1: 2026-06-01 | D1: Double-click a WO # to open its completion form | N1: THIS WEEK | O1: Total Scheduled Hours | P1: =SUM(K3:K500) -> 16.5 | S1: Capacity Assumptions
A2: Date | B2: Start Time | C2: Finish Time | D2: WO Number | E2: Asset | F2: Work Type | G2: Priority | H2: Technician | I2: Job Description | J2: Parts Status | K2: Est. Hours | L2: Production Impact | M2: Status | O2: Total Scheduled Jobs | P2: =COUNTA(D3:D500) -> 9 | S2: Full capacity (hrs/wk per tech) | T2: 40
A3: =IFERROR(_xlfn.SORTBY(_xlfn._xlws.FILTER(CHOOSE({1,2,3,4,5,6,7,8,9,10,11,12},INT(Planner!$O$2:$O$500),Planner!$M$2:$M$500,Planner!$N$2:$N$500,Planner!$A$2:$A$500,Planner!$F$2:$F$500,Planner!$B$2:$B$500,Planner!$D$2:$D$500,Planner!$L$2:$L$500,Planner!$H$2:$H$500,Planner!$J$2:$J$500,Planner!$K$2:$K$500,Planner!$Q$2:$Q$500),(Planner!$R$2:$R$500="Scheduled")*(INT(Planner!$O$2:$O$500)>=$B$1)*(INT(Planner!$O$2:$O$500)<=$B$1+6)),_xlfn._xlws.FILTER(INT(Planner!$O$2:$O$500),(Planner!$R$2:$R$500="Scheduled")*(INT(Planner!$O$2:$O$500)>=$B$1)*(INT(Planner!$O$2:$O$500)<=$B$1+6)),1,_xlfn._xlws.FILTER(Planner!$M$2:$M$500,(Planner!$R$2:$R$500="Scheduled")*(INT(Planner!$O$2:$O$500)>=$B$1)*(INT(Planner!$O$2:$O$500)<=$B$1+6)),1),"No scheduled work for this week") -> 2026-06-01 | B3: 07:00:00 | C3: 09:00:00 | D3: WO-000008 | E3: Oven | F3: Corrective | G3: P1 - Emergency | H3: Adam Smith | I3: Overheating always. | J3: IN STOCK | K3: 2 | L3: Low | M3: =IFERROR(_xlfn.XLOOKUP(INDEX(_xlfn.ANCHORARRAY($A$3),0,4),Database!$A:$A,Database!$C:$C,"—"),"") -> Completed | S3: Amber threshold (hrs/wk) | T3: 32
A4: 2026-06-03 | B4: 06:00:00 | C4: 07:30:00 | D4: WO-000014 | E4: Oven | F4: Preventive | G4: P5 - 45 Days | I4: Weekly Oven Conveyor Inspection & Lubrication PM ID: PM-00001 Instructions: Inspect belts, chains, bearings, lubrication points, guards, and abnormal vibration/noise. | J4: LOW STOCK | K4: 1.5 | L4: None | M4: Completed | O4: Technician | P4: Weekly Hours | Q4: Jobs | R4: Utilization
A5: 2026-06-04 | B5: 08:00:00 | C5: 11:00:00 | D5: WO-000015 | E5: Puller | F5: Inspection | G5: P5 - 45 Days | I5: Monthly Electrical Puller PM PM ID: PM-00002 Instructions: Perform thermography of cabinets | J5: IN STOCK | K5: 3 | L5: Shutdown Required | M5: Completed | O5: =_xlfn._xlws.FILTER('Technicians List'!A2:A100,'Technicians List'!A2:A100<>"") -> Adam Smith | P5: =SUMIF($H$3:$H$500,_xlfn.ANCHORARRAY(O5),$K$3:$K$500) -> 8 | Q5: =COUNTIF($H$3:$H$500,_xlfn.ANCHORARRAY(O5)) -> 5 | R5: =_xlfn.ANCHORARRAY(P5)/$T$2 -> 0.2 | S5: Technicians | T5: =COUNTA(_xlfn.ANCHORARRAY(O5)) -> 6
A6: 2026-06-05 | B6: 06:00:00 | C6: 08:00:00 | D6: WO-000017 | E6: Saw | F6: Preventive | G6: P5 - 45 Days | H6: Celine Doing | I6: Bi-Weekly Mechanical Saw PM PM ID: PM-00001 Instructions: | J6: Not Required | K6: 2 | L6: None | M6: Open | O6: Celine Doing | P6: 4 | Q6: 2 | R6: 0.1 | S6: Team capacity (hrs/wk) | T6: =T5*T2 -> 240
A7: 2026-06-05 | B7: 07:00:00 | C7: 09:00:00 | D7: WO-000021 | E7: Saw | F7: Preventive | G7: P5 - 45 Days | H7: Celine Doing | I7: Bi-Weekly Mechanical Saw PM PM ID: PM-00003 Instructions: 1. Inspect saw blade condition 2. Check blade guard 3. Inspect drive belt tension | J7: IN STOCK | K7: 2 | L7: Shutdown Required | M7: Completed | O7: King Kong | P7: 0 | Q7: 0 | R7: 0 | S7: Utilization | T7: =P1/T6 -> 0.06875
A8: 2026-06-05 | B8: 14:00:00 | C8: 15:30:00 | D8: WO-000018 | E8: Oven | F8: Preventive | G8: P5 - 45 Days | H8: Adam Smith | I8: Weekly Oven Conveyor Inspection & Lubrication PM ID: PM-00001 Instructions: | J8: LOW STOCK | K8: 1.5 | L8: Shutdown Required | M8: Completed | O8: Rest Exter | P8: 0 | Q8: 0 | R8: 0
A9: 2026-06-06 | B9: 10:00:00 | C9: 11:30:00 | D9: WO-000016 | E9: Oven | F9: Preventive | G9: P5 - 45 Days | H9: Adam Smith | I9: Weekly Oven Conveyor Inspection & Lubrication PM ID: PM-00001 Instructions: | J9: Check Parts List | K9: 1.5 | L9: Medium | M9: Completed | O9: Kyle Lowry | P9: 0 | Q9: 0 | R9: 0
A10: 2026-06-06 | B10: 12:00:00 | C10: 13:30:00 | D10: WO-000020 | E10: Oven | F10: Preventive | G10: P5 - 45 Days | H10: Adam Smith | I10: Weekly Oven Conveyor Inspection & Lubrication PM ID: PM-00001 Instructions: 1. Inspect conveyor belts 2. Inspect chains 3. Lubricate bearings | J10: IN STOCK | K10: 1.5 | L10: Shutdown Required | M10: Completed | O10: Dame Time | P10: 0 | Q10: 0 | R10: 0
A11: 2026-06-06 | B11: 16:00:00 | C11: 17:30:00 | D11: WO-000019 | E11: Oven | F11: Preventive | G11: P5 - 45 Days | H11: Adam Smith | I11: Weekly Oven Conveyor Inspection & Lubrication PM ID: PM-00001 Instructions: 1. Inspect belts 2. Inspect roller chains 3. Lubricate bearings | J11: Not Required | K11: 1.5 | L11: Shutdown Required | M11: Completed

Sheet Tech Load
A1: Technician | B1: Monday | C1: Tuesday | D1: Wednesday | E1: Thursday | F1: Friday | G1: Total Hours | H1: Capacity | I1: Load % | J1: Load Status | L1: Weekly Capacity (hrs/tech)
B2: ='Weekly Schedule'!$B$1 -> 2026-06-01 | C2: =B2+1 -> 2026-06-02 | D2: =C2+1 -> 2026-06-03 | E2: =D2+1 -> 2026-06-04 | F2: =E2+1 -> 2026-06-05 | L2: 40
A3: =_xlfn._xlws.FILTER('Technicians List'!$A$2:$A$100,'Technicians List'!$A$2:$A$100<>"") -> Adam Smith | B3: =IF($A3="","",SUMIFS(Planner!$K:$K,Planner!$L:$L,$A3,Planner!$O:$O,B$2,Planner!$R:$R,"Scheduled")) -> 2 | C3: =IF($A3="","",SUMIFS(Planner!$K:$K,Planner!$L:$L,$A3,Planner!$O:$O,C$2,Planner!$R:$R,"Scheduled")) -> 0 | D3: =IF($A3="","",SUMIFS(Planner!$K:$K,Planner!$L:$L,$A3,Planner!$O:$O,D$2,Planner!$R:$R,"Scheduled")) -> 0 | E3: =IF($A3="","",SUMIFS(Planner!$K:$K,Planner!$L:$L,$A3,Planner!$O:$O,E$2,Planner!$R:$R,"Scheduled")) -> 0 | F3: =IF($A3="","",SUMIFS(Planner!$K:$K,Planner!$L:$L,$A3,Planner!$O:$O,F$2,Planner!$R:$R,"Scheduled")) -> 1.5 | G3: =IF($A3="","",SUM(B3:F3)) -> 3.5 | H3: =IF($A3="","",$L$2) -> 40 | I3: =IF($A3="","",IF($H3=0,"",$G3/$H3)) -> 0.0875 | J3: =IF($A3="","",IF($I3>1,"OVERLOADED",IF($I3=1,"FULL",IF($I3>=0.85,"NEARLY FULL","AVAILABLE")))) -> AVAILABLE
A4: Celine Doing | B4: =IF($A4="","",SUMIFS(Planner!$K:$K,Planner!$L:$L,$A4,Planner!$O:$O,B$2,Planner!$R:$R,"Scheduled")) -> 0 | C4: =IF($A4="","",SUMIFS(Planner!$K:$K,Planner!$L:$L,$A4,Planner!$O:$O,C$2,Planner!$R:$R,"Scheduled")) -> 0 | D4: =IF($A4="","",SUMIFS(Planner!$K:$K,Planner!$L:$L,$A4,Planner!$O:$O,D$2,Planner!$R:$R,"Scheduled")) -> 0 | E4: =IF($A4="","",SUMIFS(Planner!$K:$K,Planner!$L:$L,$A4,Planner!$O:$O,E$2,Planner!$R:$R,"Scheduled")) -> 0 | F4: =IF($A4="","",SUMIFS(Planner!$K:$K,Planner!$L:$L,$A4,Planner!$O:$O,F$2,Planner!$R:$R,"Scheduled")) -> 4 | G4: =IF($A4="","",SUM(B4:F4)) -> 4 | H4: =IF($A4="","",$L$2) -> 40 | I4: =IF($A4="","",IF($H4=0,"",$G4/$H4)) -> 0.1 | J4: =IF($A4="","",IF($I4>1,"OVERLOADED",IF($I4=1,"FULL",IF($I4>=0.85,"NEARLY FULL","AVAILABLE")))) -> AVAILABLE
A5: King Kong | B5: =IF($A5="","",SUMIFS(Planner!$K:$K,Planner!$L:$L,$A5,Planner!$O:$O,B$2,Planner!$R:$R,"Scheduled")) -> 0 | C5: =IF($A5="","",SUMIFS(Planner!$K:$K,Planner!$L:$L,$A5,Planner!$O:$O,C$2,Planner!$R:$R,"Scheduled")) -> 0 | D5: =IF($A5="","",SUMIFS(Planner!$K:$K,Planner!$L:$L,$A5,Planner!$O:$O,D$2,Planner!$R:$R,"Scheduled")) -> 0 | E5: =IF($A5="","",SUMIFS(Planner!$K:$K,Planner!$L:$L,$A5,Planner!$O:$O,E$2,Planner!$R:$R,"Scheduled")) -> 0 | F5: =IF($A5="","",SUMIFS(Planner!$K:$K,Planner!$L:$L,$A5,Planner!$O:$O,F$2,Planner!$R:$R,"Scheduled")) -> 0 | G5: =IF($A5="","",SUM(B5:F5)) -> 0 | H5: =IF($A5="","",$L$2) -> 40 | I5: =IF($A5="","",IF($H5=0,"",$G5/$H5)) -> 0 | J5: =IF($A5="","",IF($I5>1,"OVERLOADED",IF($I5=1,"FULL",IF($I5>=0.85,"NEARLY FULL","AVAILABLE")))) -> AVAILABLE
A6: Rest Exter | B6: =IF($A6="","",SUMIFS(Planner!$K:$K,Planner!$L:$L,$A6,Planner!$O:$O,B$2,Planner!$R:$R,"Scheduled")) -> 0 | C6: =IF($A6="","",SUMIFS(Planner!$K:$K,Planner!$L:$L,$A6,Planner!$O:$O,C$2,Planner!$R:$R,"Scheduled")) -> 0 | D6: =IF($A6="","",SUMIFS(Planner!$K:$K,Planner!$L:$L,$A6,Planner!$O:$O,D$2,Planner!$R:$R,"Scheduled")) -> 0 | E6: =IF($A6="","",SUMIFS(Planner!$K:$K,Planner!$L:$L,$A6,Planner!$O:$O,E$2,Planner!$R:$R,"Scheduled")) -> 0 | F6: =IF($A6="","",SUMIFS(Planner!$K:$K,Planner!$L:$L,$A6,Planner!$O:$O,F$2,Planner!$R:$R,"Scheduled")) -> 0 | G6: =IF($A6="","",SUM(B6:F6)) -> 0 | H6: =IF($A6="","",$L$2) -> 40 | I6: =IF($A6="","",IF($H6=0,"",$G6/$H6)) -> 0 | J6: =IF($A6="","",IF($I6>1,"OVERLOADED",IF($I6=1,"FULL",IF($I6>=0.85,"NEARLY FULL","AVAILABLE")))) -> AVAILABLE
A7: Kyle Lowry | B7: =IF($A7="","",SUMIFS(Planner!$K:$K,Planner!$L:$L,$A7,Planner!$O:$O,B$2,Planner!$R:$R,"Scheduled")) -> 0 | C7: =IF($A7="","",SUMIFS(Planner!$K:$K,Planner!$L:$L,$A7,Planner!$O:$O,C$2,Planner!$R:$R,"Scheduled")) -> 0 | D7: =IF($A7="","",SUMIFS(Planner!$K:$K,Planner!$L:$L,$A7,Planner!$O:$O,D$2,Planner!$R:$R,"Scheduled")) -> 0 | E7: =IF($A7="","",SUMIFS(Planner!$K:$K,Planner!$L:$L,$A7,Planner!$O:$O,E$2,Planner!$R:$R,"Scheduled")) -> 0 | F7: =IF($A7="","",SUMIFS(Planner!$K:$K,Planner!$L:$L,$A7,Planner!$O:$O,F$2,Planner!$R:$R,"Scheduled")) -> 0 | G7: =IF($A7="","",SUM(B7:F7)) -> 0 | H7: =IF($A7="","",$L$2) -> 40 | I7: =IF($A7="","",IF($H7=0,"",$G7/$H7)) -> 0 | J7: =IF($A7="","",IF($I7>1,"OVERLOADED",IF($I7=1,"FULL",IF($I7>=0.85,"NEARLY FULL","AVAILABLE")))) -> AVAILABLE
A8: Dame Time | B8: =IF($A8="","",SUMIFS(Planner!$K:$K,Planner!$L:$L,$A8,Planner!$O:$O,B$2,Planner!$R:$R,"Scheduled")) -> 0 | C8: =IF($A8="","",SUMIFS(Planner!$K:$K,Planner!$L:$L,$A8,Planner!$O:$O,C$2,Planner!$R:$R,"Scheduled")) -> 0 | D8: =IF($A8="","",SUMIFS(Planner!$K:$K,Planner!$L:$L,$A8,Planner!$O:$O,D$2,Planner!$R:$R,"Scheduled")) -> 0 | E8: =IF($A8="","",SUMIFS(Planner!$K:$K,Planner!$L:$L,$A8,Planner!$O:$O,E$2,Planner!$R:$R,"Scheduled")) -> 0 | F8: =IF($A8="","",SUMIFS(Planner!$K:$K,Planner!$L:$L,$A8,Planner!$O:$O,F$2,Planner!$R:$R,"Scheduled")) -> 0 | G8: =IF($A8="","",SUM(B8:F8)) -> 0 | H8: =IF($A8="","",$L$2) -> 40 | I8: =IF($A8="","",IF($H8=0,"",$G8/$H8)) -> 0 | J8: =IF($A8="","",IF($I8>1,"OVERLOADED",IF($I8=1,"FULL",IF($I8>=0.85,"NEARLY FULL","AVAILABLE")))) -> AVAILABLE
B9: =IF($A9="","",SUMIFS(Planner!$K:$K,Planner!$L:$L,$A9,Planner!$O:$O,B$2,Planner!$R:$R,"Scheduled")) ->  | C9: =IF($A9="","",SUMIFS(Planner!$K:$K,Planner!$L:$L,$A9,Planner!$O:$O,C$2,Planner!$R:$R,"Scheduled")) ->  | D9: =IF($A9="","",SUMIFS(Planner!$K:$K,Planner!$L:$L,$A9,Planner!$O:$O,D$2,Planner!$R:$R,"Scheduled")) ->  | E9: =IF($A9="","",SUMIFS(Planner!$K:$K,Planner!$L:$L,$A9,Planner!$O:$O,E$2,Planner!$R:$R,"Scheduled")) ->  | F9: =IF($A9="","",SUMIFS(Planner!$K:$K,Planner!$L:$L,$A9,Planner!$O:$O,F$2,Planner!$R:$R,"Scheduled")) ->  | G9: =IF($A9="","",SUM(B9:F9)) ->  | H9: =IF($A9="","",$L$2) ->  | I9: =IF($A9="","",IF($H9=0,"",$G9/$H9)) ->  | J9: =IF($A9="","",IF($I9>1,"OVERLOADED",IF($I9=1,"FULL",IF($I9>=0.85,"NEARLY FULL","AVAILABLE")))) -> 
B10: =IF($A10="","",SUMIFS(Planner!$K:$K,Planner!$L:$L,$A10,Planner!$O:$O,B$2,Planner!$R:$R,"Scheduled")) ->  | C10: =IF($A10="","",SUMIFS(Planner!$K:$K,Planner!$L:$L,$A10,Planner!$O:$O,C$2,Planner!$R:$R,"Scheduled")) ->  | D10: =IF($A10="","",SUMIFS(Planner!$K:$K,Planner!$L:$L,$A10,Planner!$O:$O,D$2,Planner!$R:$R,"Scheduled")) ->  | E10: =IF($A10="","",SUMIFS(Planner!$K:$K,Planner!$L:$L,$A10,Planner!$O:$O,E$2,Planner!$R:$R,"Scheduled")) ->  | F10: =IF($A10="","",SUMIFS(Planner!$K:$K,Planner!$L:$L,$A10,Planner!$O:$O,F$2,Planner!$R:$R,"Scheduled")) ->  | G10: =IF($A10="","",SUM(B10:F10)) ->  | H10: =IF($A10="","",$L$2) ->  | I10: =IF($A10="","",IF($H10=0,"",$G10/$H10)) ->  | J10: =IF($A10="","",IF($I10>1,"OVERLOADED",IF($I10=1,"FULL",IF($I10>=0.85,"NEARLY FULL","AVAILABLE")))) -> 
B11: =IF($A11="","",SUMIFS(Planner!$K:$K,Planner!$L:$L,$A11,Planner!$O:$O,B$2,Planner!$R:$R,"Scheduled")) ->  | C11: =IF($A11="","",SUMIFS(Planner!$K:$K,Planner!$L:$L,$A11,Planner!$O:$O,C$2,Planner!$R:$R,"Scheduled")) ->  | D11: =IF($A11="","",SUMIFS(Planner!$K:$K,Planner!$L:$L,$A11,Planner!$O:$O,D$2,Planner!$R:$R,"Scheduled")) ->  | E11: =IF($A11="","",SUMIFS(Planner!$K:$K,Planner!$L:$L,$A11,Planner!$O:$O,E$2,Planner!$R:$R,"Scheduled")) ->  | F11: =IF($A11="","",SUMIFS(Planner!$K:$K,Planner!$L:$L,$A11,Planner!$O:$O,F$2,Planner!$R:$R,"Scheduled")) ->  | G11: =IF($A11="","",SUM(B11:F11)) ->  | H11: =IF($A11="","",$L$2) ->  | I11: =IF($A11="","",IF($H11=0,"",$G11/$H11)) ->  | J11: =IF($A11="","",IF($I11>1,"OVERLOADED",IF($I11=1,"FULL",IF($I11>=0.85,"NEARLY FULL","AVAILABLE")))) -> 
B12: =IF($A12="","",SUMIFS(Planner!$K:$K,Planner!$L:$L,$A12,Planner!$O:$O,B$2,Planner!$R:$R,"Scheduled")) ->  | C12: =IF($A12="","",SUMIFS(Planner!$K:$K,Planner!$L:$L,$A12,Planner!$O:$O,C$2,Planner!$R:$R,"Scheduled")) ->  | D12: =IF($A12="","",SUMIFS(Planner!$K:$K,Planner!$L:$L,$A12,Planner!$O:$O,D$2,Planner!$R:$R,"Scheduled")) ->  | E12: =IF($A12="","",SUMIFS(Planner!$K:$K,Planner!$L:$L,$A12,Planner!$O:$O,E$2,Planner!$R:$R,"Scheduled")) ->  | F12: =IF($A12="","",SUMIFS(Planner!$K:$K,Planner!$L:$L,$A12,Planner!$O:$O,F$2,Planner!$R:$R,"Scheduled")) ->  | G12: =IF($A12="","",SUM(B12:F12)) ->  | H12: =IF($A12="","",$L$2) ->  | I12: =IF($A12="","",IF($H12=0,"",$G12/$H12)) ->  | J12: =IF($A12="","",IF($I12>1,"OVERLOADED",IF($I12=1,"FULL",IF($I12>=0.85,"NEARLY FULL","AVAILABLE")))) -> 

Sheet Parts List
A1: Part ID | B1: Part Description | C1: Unit Cost | D1: Qty | E1: MOQ | F1: Status | G1: Location | H1: Manufacturer | I1: MFG Part # | J1: Supplier
A2: BR-6201 | B2: Ball bearing 6201 | C2: 25 | D2: 9 | E2: 10 | F2: =IF(D2<=0,"OUT OF STOCK",IF(D2<=E2,"LOW STOCK","IN STOCK")) -> LOW STOCK | G2: ST01-A01-R01-B01-S01-BIN01 | H2: SKF | J2: McMasterCarr
A3: VB-B65 | B3: V-Belt B65 | C3: 10 | D3: 3 | E3: 6 | F3: =IF(D3<=0,"OUT OF STOCK",IF(D3<=E3,"LOW STOCK","IN STOCK")) -> LOW STOCK | G3: ST01-A01-R01-B01-S01-BIN02 | H3: Goodyear | J3: McMasterCarr
A4: BR-6210-001 | B4: Ball bearing 6210 | C4: 5 | D4: 0 | E4: 5 | F4: OUT OF STOCK | G4: ST01-A01-R01-B01-S01-BIN03 | H4: SKF | J4: McMasterCarr
A5: BR-6205-001 | B5: Ball bearing 6205 | C5: 6 | D5: 0 | E5: 5 | F5: OUT OF STOCK | G5: ST01-A01-R01-B01-S02-BIN01 | H5: SKF | J5: McMasterCarr
A6: VB-B65-001 | B6: 5VX Cogged V-Belt 65 | C6: 12 | D6: 5 | E6: 2 | F6: IN STOCK | G6: ST01-A01-R01-B01-S02-BIN02 | H6: Goodyear | J6: McMasterCarr
A7: VB-5VX850-001 | B7: 5VX Cogged V-Belt 850 | C7: 15 | D7: 8 | E7: 2 | F7: IN STOCK | G7: ST01-A01-R01-B01-S02-BIN03 | H7: Goodyear | J7: McMasterCarr
A8: CH-40-001 | B8: Roller Chain #40 | C8: 150 | D8: 16 | E8: 5 | F8: IN STOCK | G8: ST01-A01-R01-B02-S01-BIN01 | H8: Subaki | J8: McMasterCarr
A9: SP-40B18-001 | B9: #40 Chain Sprocket, 18-Tooth | C9: 120 | D9: 0 | E9: 5 | F9: OUT OF STOCK | G9: ST01-A01-R01-B02-S01-BIN02 | H9: Subaki | J9: McMasterCarr
A10: MTR-1HP-575V-001 | B10: Electric Motor, 1 HP, 575 V | C10: 1500 | D10: 1 | E10: 1 | F10: LOW STOCK | G10: ST01-A01-R01-B02-S01-BIN03 | H10: Tecktop | J10: McMasterCarr
A11: SNS-PROX-M12-001 | B11: M12 Proximity Sensor | C11: 450 | D11: 2 | E11: 1 | F11: IN STOCK | G11: ST01-A01-R01-B02-S02-BIN01 | H11: Kayence | J11: McMasterCarr
A12: VLV-SOL-24VDC-001 | B12: Solenoid Valve, 24 VDC | C12: 350 | D12: 3 | E12: 1 | F12: IN STOCK | G12: ST01-A01-R01-B02-S02-BIN02 | H12: Kayence | J12: McMasterCarr
A13: HSE-AIR-3/8-001 | B13: Air Hose, 3/8 in. | C13: 450 | D13: 4 | E13: 5 | F13: LOW STOCK | G13: ST01-A01-R01-B02-S02-BIN03 | H13: Goodyear | J13: McMasterCarr
A14: LUB-EP2-001 | B14: EP2 Grease | C14: 750 | D14: 1 | E14: 3 | F14: LOW STOCK | G14: ST01-A01-R01-B03-S01-BIN01 | H14: Shell | J14: McMasterCarr

Sheet Database
A1: WO Number | B1: Date Created | C1: Status | D1: Work Type | E1: Priority | F1: Requested By | G1: Assigned To | H1: Due Date | I1: Asset ID | J1: Asset Name | K1: Area/Line | L1: Location | M1: Department | N1: Criticality | O1: Parent Asset ID | P1: Hierarchy Level | Q1: Problem Description | R1: Parts Used | S1: Part Description | T1: Qty | U1: Part Unit Cost | V1: Total Parts Cost | W1: Labour Hours | X1: Labour Rate | Y1: Total Labour Cost | Z1: Total WO Cost | AA1: Work Done/Completion Notes | AB1: Completed By | AC1: Date Completed | AD1: Failure Type | AE1: Failure Code | AF1: Failed Component | AG1: Failure Mode | AH1: Cause Code | AI1: Remedy Code | AJ1: Downtime
A2: WO-000011 | B2: 2026-05-21 | C2: Completed | D2: Preventive | E2: P1 - Emergency | F2: Plant Manager | G2: Adam Smith | H2: =IF(OR(WorkOrdersDatabase[[#This Row],[Date Created]]="",WorkOrdersDatabase[[#This Row],[Priority]]=""),"",IFERROR(WorkOrdersDatabase[[#This Row],[Date Created]]+VLOOKUP(WorkOrdersDatabase[[#This Row],[Priority]],'Priority List'!$A:$B,2,FALSE),"")) -> 2026-05-21 | I2: OVN-001 | J2: Oven | L2: Building 1 | M2: Shipping | Q2: It isi not working | R2: LUB-EP2-001 | T2: 2 | W2: 2 | AA2: Lubricated the bearings | AB2: Technician | AC2: 2026-05-22T20:19:15 | AD2: MECH | AE2: LUBE | AF2: BRG | AG2: NOISY | AH2: LUB-LOW | AI2: LUBRICATE
A3: WO-000002 | B3: 2026-05-22 | C3: Open | D3: Emergency | E3: P2 - 1 day | F3: Process Manager | G3: Rest Exter | H3: =IF(OR(WorkOrdersDatabase[[#This Row],[Date Created]]="",WorkOrdersDatabase[[#This Row],[Priority]]=""),"",IFERROR(WorkOrdersDatabase[[#This Row],[Date Created]]+VLOOKUP(WorkOrdersDatabase[[#This Row],[Priority]],'Priority List'!$A:$B,2,FALSE),"")) -> 2026-05-23 | I3: PRF-201 | J3: Proofer 1 | L3: Building 2 | M3: Receiving | Q3: Sensor not sensing | R3: SNS-PROX-M12-001 | T3: 1 | U3: 450 | V3: 0 | W3: 2 | X3: 85 | Y3: 0 | Z3: 0 | AA3: Aligned the motor, replaced sensor [Re-opened 2026-06-14] | AD3: MECH | AE3: Power Transmission | AF3: PUL | AG3: MISALIGNED | AH3: INSTALL-ERR | AI3: ALIGN
A4: WO-000005 | B4: 2026-05-23 | C4: Completed | D4: Compliance / Safety | E4: P3 - 7 Days | F4: Ava Reynolds | G4: Kyle owry | H4: =IF(OR(WorkOrdersDatabase[[#This Row],[Date Created]]="",WorkOrdersDatabase[[#This Row],[Priority]]=""),"",IFERROR(WorkOrdersDatabase[[#This Row],[Date Created]]+VLOOKUP(WorkOrdersDatabase[[#This Row],[Priority]],'Priority List'!$A:$B,2,FALSE),"")) -> 2026-05-30 | I4: PUL-201 | J4: Puller | L4: Building 1 | M4: Shipping | Q4: Puller is slipping | R4: BR-6210-001 | T4: 10 | W4: 2 | AA4: Replaced bearings | AB4: Rest Exter | AC4: 2026-05-24T20:08:44 | AD4: MECH | AE4: Power Transmission | AF4: FILTER | AG4: CLEANING-ISSUE | AH4: FILTER-PLUG | AI4: REPLACE
A5: WO-000004 | B5: 2026-05-24 | C5: Completed | D5: Shutdown | E5: P2 - 1 day | F5: Daniel Hayes | G5: Celine Doing | H5: =IF(OR(WorkOrdersDatabase[[#This Row],[Date Created]]="",WorkOrdersDatabase[[#This Row],[Priority]]=""),"",IFERROR(WorkOrdersDatabase[[#This Row],[Date Created]]+VLOOKUP(WorkOrdersDatabase[[#This Row],[Priority]],'Priority List'!$A:$B,2,FALSE),"")) -> 2026-05-25 | I5: PUL-201 | J5: Puller | L5: Building 1 | M5: Injection Molding | Q5: Belt is broken | R5: CH-40-001 | S5: Roller Chain #40 | T5: 2 | U5: 150 | V5: 300 | W5: 2 | X5: 85 | Y5: 170 | Z5: 470 | AA5: Replaced the chain with new | AB5: Celine Doing | AC5: 2026-05-30T16:03:21 | AD5: ELEC | AE5: Devices & Sensors | AF5: ESTOP | AG5: NO-RESET | AH5: DAMAGED | AI5: REPLACE
A6: WO-000005 | B6: 2026-05-25 | C6: Open | D6: Corrective | E6: P3 - 7 Days | F6: Amelia Turner | G6: Celine Doing | H6: =IF(OR(WorkOrdersDatabase[[#This Row],[Date Created]]="",WorkOrdersDatabase[[#This Row],[Priority]]=""),"",IFERROR(WorkOrdersDatabase[[#This Row],[Date Created]]+VLOOKUP(WorkOrdersDatabase[[#This Row],[Priority]],'Priority List'!$A:$B,2,FALSE),"")) -> 2026-06-01 | I6: OVN-001 | J6: Oven | L6: Building 3 | M6: Receiving | Q6: abcc def | R6: CH-40-001 | S6: Roller Chain #40 | T6: 2 | W6: 2 | AA6: def def def | AB6: Adam Smith | AC6: 2026-05-25T16:11:13 | AD6: HYD | AE6: Power Transmission | AF6: GBX | AG6: LEAKING | AH6: LUB-WRONG | AI6: RESTORE-POWER
A7: WO-000006 | B7: 2026-05-25 | C7: Open | D7: Corrective | E7: P5 - 45 Days | F7: Olivia Carter | G7: Celine Doing | H7: =IF(OR(WorkOrdersDatabase[[#This Row],[Date Created]]="",WorkOrdersDatabase[[#This Row],[Priority]]=""),"",IFERROR(WorkOrdersDatabase[[#This Row],[Date Created]]+VLOOKUP(WorkOrdersDatabase[[#This Row],[Priority]],'Priority List'!$A:$B,2,FALSE),"")) -> 2026-07-09 | I7: OVN-001 | J7: Oven | L7: Building 2 | M7: Receiving | Q7: fd v fewf f rerer regef fdgsdfds | R7: VB-5VX850-001 | S7: 5VX Cogged V-Belt 850 | T7: 2 | W7: 1 | AA7: dfd efe f dfdsaf | AB7: Rest Exter | AC7: 2026-05-25T18:30:37 | AD7: MECH | AE7: Power Transmission | AF7: BLT | AG7: LOOSE | AH7: MISALIGN | AI7: REPLACE
A8: WO-000007 | B8: 2026-05-25 | C8: Closed | D8: Corrective | E8: P2 - 1 day | F8: Olivia Carter | G8: Celine Doing | H8: =IF(OR(WorkOrdersDatabase[[#This Row],[Date Created]]="",WorkOrdersDatabase[[#This Row],[Priority]]=""),"",IFERROR(WorkOrdersDatabase[[#This Row],[Date Created]]+VLOOKUP(WorkOrdersDatabase[[#This Row],[Priority]],'Priority List'!$A:$B,2,FALSE),"")) -> 2026-05-26 | I8: PUL-201 | J8: Puller | L8: Building 2 | M8: Extrusion | Q8: Pulling very slowly and jerky | R8: VB-5VX850-001 | S8: 5VX Cogged V-Belt 850 | T8: 2 | W8: 1 | AA8: Replalced drive belt, changed fan bearing too. | AC8: 2026-05-31T19:25:57 | AD8: MECH | AE8: Rotating Equipment | AF8: FAN | AG8: NOISY | AH8: BRG-WORN | AI8: REPLACE
A9: WO-000008 | B9: 2026-05-25 | C9: Completed | D9: Corrective | E9: P1 - Emergency | F9: Lucas Foster | G9: Adam Smith | H9: =IF(OR(WorkOrdersDatabase[[#This Row],[Date Created]]="",WorkOrdersDatabase[[#This Row],[Priority]]=""),"",IFERROR(WorkOrdersDatabase[[#This Row],[Date Created]]+VLOOKUP(WorkOrdersDatabase[[#This Row],[Priority]],'Priority List'!$A:$B,2,FALSE),"")) -> 2026-05-25 | I9: OVN-001 | J9: Oven | L9: Building 2 | M9: Extrusion | Q9: Overheating always. | R9: VLV-SOL-24VDC-001 | S9: Solenoid Valve, 24 VDC | T9: 1 | W9: 2 | AA9: Replaced solenoid valve | AB9: Rest Exter | AC9: 2026-06-03T20:00:52 | AD9: CTRL | AE9: HMI & Interface | AF9: HMI | AG9: HMI-BLANK | AH9: POWER-SUPPLY | AI9: REPLACE
A10: WO-000009 | B10: 2026-05-25 | C10: Open | D10: Corrective | E10: P1 - Emergency | F10: Ethan Brooks | G10: Adam Smith | H10: =IF(OR(WorkOrdersDatabase[[#This Row],[Date Created]]="",WorkOrdersDatabase[[#This Row],[Priority]]=""),"",IFERROR(WorkOrdersDatabase[[#This Row],[Date Created]]+VLOOKUP(WorkOrdersDatabase[[#This Row],[Priority]],'Priority List'!$A:$B,2,FALSE),"")) -> 2026-05-25 | I10: PUL-201 | J10: Puller | L10: Building 3 | M10: Receiving | Q10: Chain broken, again | AC10: 2026-05-26T20:46:45
A11: WO-000010 | B11: 2026-05-26 | C11: Completed | D11: Corrective | E11: P4 - 30 Days | F11: Ava Reynolds | G11: Kyle owry | H11: =IF(OR(WorkOrdersDatabase[[#This Row],[Date Created]]="",WorkOrdersDatabase[[#This Row],[Priority]]=""),"",IFERROR(WorkOrdersDatabase[[#This Row],[Date Created]]+VLOOKUP(WorkOrdersDatabase[[#This Row],[Priority]],'Priority List'!$A:$B,2,FALSE),"")) -> 2026-06-25 | I11: PRF-411 | J11: Proofer | L11: Building 3 | M11: Packaging | Q11: Not raising fast enough | R11: CH-40-001 | S11: Roller Chain #40 | T11: 2 | W11: 2 | AA11: REplaced the chain. | AB11: Technician | AC11: 2026-05-26T20:49:09
A12: WO-000011 | B12: 2026-05-26 | C12: Completed | D12: Emergency | E12: P1 - Emergency | F12: Ethan Brooks | G12: King Kong | H12: =IF(OR(WorkOrdersDatabase[[#This Row],[Date Created]]="",WorkOrdersDatabase[[#This Row],[Priority]]=""),"",IFERROR(WorkOrdersDatabase[[#This Row],[Date Created]]+VLOOKUP(WorkOrdersDatabase[[#This Row],[Priority]],'Priority List'!$A:$B,2,FALSE),"")) -> 2026-05-26 | I12: PUL-201 | J12: Puller | L12: Building 2 | M12: Packaging | Q12: Puller is making a screeching noise | R12: BR-6205-001 | S12: Ball bearing 6205 | T12: 2 | U12: 6 | V12: 12 | W12: 4 | X12: 85 | Y12: 340 | Z12: 352 | AA12: Replaced both drive bearings | AB12: King Kong | AC12: 2026-06-06T08:26:12 | AD12: MECH | AE12: Power Transmission | AF12: BRG | AG12: NOISY | AH12: LUB-CONTAM | AI12: LUBRICATE
A13: WO-000012 | B13: 2026-05-27 | C13: Completed | D13: Corrective | E13: P2 - 1 day | F13: Mia Parker | G13: King Kong | H13: =IF(OR(WorkOrdersDatabase[[#This Row],[Date Created]]="",WorkOrdersDatabase[[#This Row],[Priority]]=""),"",IFERROR(WorkOrdersDatabase[[#This Row],[Date Created]]+VLOOKUP(WorkOrdersDatabase[[#This Row],[Priority]],'Priority List'!$A:$B,2,FALSE),"")) -> 2026-05-28 | I13: EXT-311 | J13: Extruder | L13: Building 1 | M13: Injection Molding | Q13: Not extruding product | R13: MTR-1HP-575V-001 | S13: Electric Motor, 1 HP, 575 V | T13: 1 | U13: 1500 | V13: 1500 | W13: 2 | X13: 85 | Y13: 170 | Z13: 1670 | AA13: Reset but ended up replacing motor | AB13: Rest Exter | AC13: 2026-05-27T20:26:10 | AD13: ELEC | AE13: Motor Control | AF13: OLR | AG13: TRIPPED | AH13: OVERLOAD | AI13: RESET
A14: WO-000013 | B14: 2026-05-27 | C14: Open | D14: Corrective | E14: P1 - Emergency | F14: Olivia Carter | G14: Celine Doing | H14: =IF(OR(WorkOrdersDatabase[[#This Row],[Date Created]]="",WorkOrdersDatabase[[#This Row],[Priority]]=""),"",IFERROR(WorkOrdersDatabase[[#This Row],[Date Created]]+VLOOKUP(WorkOrdersDatabase[[#This Row],[Priority]],'Priority List'!$A:$B,2,FALSE),"")) -> 2026-05-27 | I14: OVN-001 | J14: Oven | L14: Building 2 | M14: Shipping | Q14: not heating fast enough | U14: 0 | V14: 0 | X14: 85 | Y14: 0 | Z14: 0 | AC14: 2026-05-28T21:25:08
A15: WO-000014 | B15: 2026-06-03 | C15: Completed | D15: Preventive | E15: P5 - 45 Days | F15: PM Auto Generator | H15: =IF(OR(WorkOrdersDatabase[[#This Row],[Date Created]]="",WorkOrdersDatabase[[#This Row],[Priority]]=""),"",IFERROR(WorkOrdersDatabase[[#This Row],[Date Created]]+VLOOKUP(WorkOrdersDatabase[[#This Row],[Priority]],'Priority List'!$A:$B,2,FALSE),"")) -> 2026-07-18 | I15: OVN-001 | J15: Oven | Q15: Weekly Oven Conveyor Inspection & Lubrication PM ID: PM-00001 Instructions: Inspect belts, chains, bearings, lubrication points, guards, and abnormal vibration/noise. | R15: BR-6201 | S15: Ball bearing 6201 | T15: 3 | U15: 25 | V15: 75 | W15: 1.5 | X15: 85 | Y15: 127.5 | Z15: 202.5 | AA15: This was just a regular PM | AB15: Celine Doing | AC15: 2026-06-06T13:49:13 | AD15: MECH | AE15: Power Transmission | AF15: BLT | AG15: SEIZED | AH15: LUB-CONTAM | AI15: LUBRICATE
A16: WO-000015 | B16: 2026-06-03 | C16: Completed | D16: Inspection | E16: P5 - 45 Days | F16: PM Auto Generator | H16: =IF(OR(WorkOrdersDatabase[[#This Row],[Date Created]]="",WorkOrdersDatabase[[#This Row],[Priority]]=""),"",IFERROR(WorkOrdersDatabase[[#This Row],[Date Created]]+VLOOKUP(WorkOrdersDatabase[[#This Row],[Priority]],'Priority List'!$A:$B,2,FALSE),"")) -> 2026-07-18 | I16: PUL-201 | J16: Puller | Q16: Monthly Electrical Puller PM PM ID: PM-00002 Instructions: Perform thermography of cabinets | R16: VLV-SOL-24VDC-001 | T16: 1 | W16: 3 | AA16: Inspection only | AC16: 2026-06-03T20:19:52 | AD16: CTRL | AE16: Rotating Equipment | AF16: CHN | AG16: NOISY | AH16: LUB-CONTAM | AI16: LUBRICATE
A17: WO-000016 | B17: 2026-06-04 | C17: Completed | D17: Preventive | E17: P5 - 45 Days | F17: PM Auto Generator | G17: Adam Smith | H17: =IF(OR(WorkOrdersDatabase[[#This Row],[Date Created]]="",WorkOrdersDatabase[[#This Row],[Priority]]=""),"",IFERROR(WorkOrdersDatabase[[#This Row],[Date Created]]+VLOOKUP(WorkOrdersDatabase[[#This Row],[Priority]],'Priority List'!$A:$B,2,FALSE),"")) -> 2026-07-19 | I17: OVN-001 | J17: Oven | Q17: Weekly Oven Conveyor Inspection & Lubrication PM ID: PM-00001 Instructions: | R17: VB-B65 x2 | S17: V-Belt B65 | T17: 2 | U17: 10 | V17: 20 | W17: 1.5 | X17: 85 | Y17: 127.5 | Z17: 147.5 | AA17: Replaced v-belt | AB17: Celine Doing | AC17: 2026-06-14 | AD17: PM | AE17: WEAR | AF17: Belt | AG17: Cracked/Worn | AH17: Normal Wear | AI17: Replace | AJ17: 3
A18: WO-000017 | B18: 2026-06-04 | C18: Open | D18: Preventive | E18: P5 - 45 Days | F18: PM Auto Generator | G18: Celine Doing | H18: =IF(OR(WorkOrdersDatabase[[#This Row],[Date Created]]="",WorkOrdersDatabase[[#This Row],[Priority]]=""),"",IFERROR(WorkOrdersDatabase[[#This Row],[Date Created]]+VLOOKUP(WorkOrdersDatabase[[#This Row],[Priority]],'Priority List'!$A:$B,2,FALSE),"")) -> 2026-07-19 | I18: SAW-211 | J18: Saw | Q18: Bi-Weekly Mechanical Saw PM PM ID: PM-00001 Instructions: | W18: 2 | AC18: 2026-06-04T17:39:48
A19: WO-000018 | B19: 2026-06-04 | C19: Completed | D19: Preventive | E19: P5 - 45 Days | F19: PM Auto Generator | G19: Adam Smith | H19: =IF(OR(WorkOrdersDatabase[[#This Row],[Date Created]]="",WorkOrdersDatabase[[#This Row],[Priority]]=""),"",IFERROR(WorkOrdersDatabase[[#This Row],[Date Created]]+VLOOKUP(WorkOrdersDatabase[[#This Row],[Priority]],'Priority List'!$A:$B,2,FALSE),"")) -> 2026-07-19 | I19: OVN-001 | J19: Oven | Q19: Weekly Oven Conveyor Inspection & Lubrication PM ID: PM-00001 Instructions: | R19: LUB-EP2-001 | T19: 1 | W19: 1.5 | AA19: Lubricated beraing. Noise gone. | AC19: 2026-06-06T09:48:01 | AD19: PM | AE19: LUBE | AF19: Bearing | AG19: Dry/Noisy | AH19: Lack of Lubrication | AI19: Lubricate
A20: WO-000019 | B20: 2026-06-04 | C20: Completed | D20: Preventive | E20: P5 - 45 Days | F20: PM Auto Generator | G20: Adam Smith | H20: =IF(OR(WorkOrdersDatabase[[#This Row],[Date Created]]="",WorkOrdersDatabase[[#This Row],[Priority]]=""),"",IFERROR(WorkOrdersDatabase[[#This Row],[Date Created]]+VLOOKUP(WorkOrdersDatabase[[#This Row],[Priority]],'Priority List'!$A:$B,2,FALSE),"")) -> 2026-07-19 | I20: OVN-001 | J20: Oven | Q20: Weekly Oven Conveyor Inspection & Lubrication PM ID: PM-00001 Instructions: 1. Inspect belts 2. Inspect roller chains 3. Lubricate bearings | W20: 1.5 | AA20: All okay. No issues found | AC20: 2026-06-06T09:50:16
A21: WO-000020 | B21: 2026-06-06 | C21: Completed | D21: Preventive | E21: P5 - 45 Days | F21: PM Auto Generator | G21: Adam Smith | H21: =IF(OR(WorkOrdersDatabase[[#This Row],[Date Created]]="",WorkOrdersDatabase[[#This Row],[Priority]]=""),"",IFERROR(WorkOrdersDatabase[[#This Row],[Date Created]]+VLOOKUP(WorkOrdersDatabase[[#This Row],[Priority]],'Priority List'!$A:$B,2,FALSE),"")) -> 2026-07-21 | I21: OVN-001 | J21: Oven | Q21: Weekly Oven Conveyor Inspection & Lubrication PM ID: PM-00001 Instructions: 1. Inspect conveyor belts 2. Inspect chains 3. Lubricate bearings | R21: CH-40-001 | T21: 2 | U21: 150 | V21: 300 | W21: 1.5 | X21: 85 | Y21: 127.5 | Z21: 427.5 | AA21: Lube chains | AC21: 2026-06-06T13:17:23
A22: WO-000021 | B22: 2026-06-06 | C22: Completed | D22: Preventive | E22: P5 - 45 Days | F22: PM Auto Generator | G22: Celine Doing | H22: =IF(OR(WorkOrdersDatabase[[#This Row],[Date Created]]="",WorkOrdersDatabase[[#This Row],[Priority]]=""),"",IFERROR(WorkOrdersDatabase[[#This Row],[Date Created]]+VLOOKUP(WorkOrdersDatabase[[#This Row],[Priority]],'Priority List'!$A:$B,2,FALSE),"")) -> 2026-07-21 | I22: SAW-211 | J22: Saw | Q22: Bi-Weekly Mechanical Saw PM PM ID: PM-00003 Instructions: 1. Inspect saw blade condition 2. Check blade guard 3. Inspect drive belt tension | R22: VB-5VX850-001 | S22: 5VX Cogged V-Belt 850 | T22: 2 | U22: 15 | V22: 30 | W22: 2 | X22: 85 | Y22: 170 | Z22: 200 | AA22: replaced leaking seal | AB22: Adam Smith | AC22: 2026-06-06T14:08:38 | AD22: PM | AE22: LEAK | AF22: Gearbox | AG22: Oil Leak | AH22: Seal Wear | AI22: Replace Seal
A23: WO-000022 | B23: 2026-06-06 | C23: Completed | D23: Corrective | E23: P1 - Emergency | F23: Ethan Brooks | G23: Adam Smith | H23: =IF(OR(WorkOrdersDatabase[[#This Row],[Date Created]]="",WorkOrdersDatabase[[#This Row],[Priority]]=""),"",IFERROR(WorkOrdersDatabase[[#This Row],[Date Created]]+VLOOKUP(WorkOrdersDatabase[[#This Row],[Priority]],'Priority List'!$A:$B,2,FALSE),"")) -> 2026-06-06 | I23: OVN-001 | J23: Oven | L23: Building 1 | M23: Shipping | Q23: Oven not heating up fast enough | T23: 0 | U23: 0 | V23: 0 | W23: 2 | X23: 85 | Y23: 170 | Z23: 170 | AA23: Wrong setting used, corrected. | AB23: Kyle Lowry | AC23: 2026-06-12 | AD23: CTRL | AE23: Software & Logic | AF23: RECIPE | AG23: RECIPE-ERR | AH23: WRONG-SETTING | AI23: CORRECT-SETTING | AJ23: 3
A24: WO-000023 | B24: 2026-06-08 | C24: Open | D24: Corrective | E24: P1 - Emergency | F24: Marcus Bennett | H24: =IF(OR(WorkOrdersDatabase[[#This Row],[Date Created]]="",WorkOrdersDatabase[[#This Row],[Priority]]=""),"",IFERROR(WorkOrdersDatabase[[#This Row],[Date Created]]+VLOOKUP(WorkOrdersDatabase[[#This Row],[Priority]],'Priority List'!$A:$B,2,FALSE),"")) -> 2026-06-08 | I24: EXT-WH-004 | J24: Overhead Crane | K24: Warehouse | L24: Production / Yard | M24: Maintenance | N24: Low | O24: EXT-AREA-010 | P24: Equipment
A25: WO-000024 | B25: 2026-06-08 | C25: Open | D25: Installation | E25: P4 - 30 Days | F25: Olivia Carter | G25: Adam Smith | H25: =IF(OR(WorkOrdersDatabase[[#This Row],[Date Created]]="",WorkOrdersDatabase[[#This Row],[Priority]]=""),"",IFERROR(WorkOrdersDatabase[[#This Row],[Date Created]]+VLOOKUP(WorkOrdersDatabase[[#This Row],[Priority]],'Priority List'!$A:$B,2,FALSE),"")) -> 2026-07-08 | I25: EXT-WH-003 | J25: Pipe Rack System | K25: Warehouse | L25: Yard | M25: Warehouse | N25: High | O25: EXT-AREA-010 | P25: System
A26: WO-000025 | B26: 2026-06-12 | C26: Open | D26: Shutdown | E26: P5 - 45 Days | F26: Sophia Mitchell | G26: King Kong | H26: =IF(OR(WorkOrdersDatabase[[#This Row],[Date Created]]="",WorkOrdersDatabase[[#This Row],[Priority]]=""),"",IFERROR(WorkOrdersDatabase[[#This Row],[Date Created]]+VLOOKUP(WorkOrdersDatabase[[#This Row],[Priority]],'Priority List'!$A:$B,2,FALSE),"")) -> 2026-07-27 | I26: EXT-WH-005 | J26: Dock Door 1 | K26: Warehouse | L26: Shipping Dock | M26: Warehouse | N26: EXT-AREA-010 | O26: Equipment | P26: High | Q26: Door is not closing. Seems like the v-belt is broken. | U26: 0 | V26: 0 | W26: 0 | X26: 85 | Y26: 0 | Z26: 0
A27: WO-000026 | B27: 2026-06-12 | C27: Open | D27: Calibration | E27: P3 - 7 Days | F27: Daniel Hayes | G27: Adam Smith | H27: =IF(OR(WorkOrdersDatabase[[#This Row],[Date Created]]="",WorkOrdersDatabase[[#This Row],[Priority]]=""),"",IFERROR(WorkOrdersDatabase[[#This Row],[Date Created]]+VLOOKUP(WorkOrdersDatabase[[#This Row],[Priority]],'Priority List'!$A:$B,2,FALSE),"")) -> 2026-06-19 | I27: EXT-WH-003 | J27: Pipe Rack System | K27: Warehouse | L27: Yard | M27: Warehouse | N27: High | O27: EXT-AREA-010 | P27: System | Q27: Racking needs re-anchoring. | T27: 0 | U27: 0 | V27: 0 | W27: 0 | X27: 85 | Y27: 0 | Z27: 0
A28: PM-000001 | B28: 2026-06-14 | C28: Open | D28: Preventive | E28: P5 - Planned | F28: PM Generator | G28: Adam Smith | H28: 2026-06-13 | I28: OVN-001 | Q28: Weekly Oven Conveyor Inspection & Lubrication PM ID: PM-00001 Instructions: Inspect belts, chains, bearings, lubrication points, guards, and abnormal vibration/noise. | T28: 0 | U28: 0 | V28: 0 | W28: 0 | X28: 85 | Y28: 0 | Z28: 0
A29: PM-000002 | B29: 2026-06-14 | C29: Open | D29: Inspection | E29: P5 - Planned | F29: PM Generator | G29: King Kong | H29: 2026-05-31 | I29: PUL-201 | Q29: Monthly Electrical Puller PM PM ID: PM-00006 Instructions: Perform thermography of cabinets | T29: 0 | U29: 0 | V29: 0 | W29: 0 | X29: 85 | Y29: 0 | Z29: 0
A30: PM-000003 | B30: 2026-06-14 | C30: Open | D30: Preventive | E30: P5 - Planned | F30: PM Generator | G30: Celine Doing | H30: 2026-06-20 | I30: SAW-211 | Q30: Bi-Weekly Mechanical Saw PM PM ID: PM-00003 Instructions: Replace blade, replace drive belts | T30: 0 | U30: 0 | V30: 0 | W30: 0 | X30: 85 | Y30: 0 | Z30: 0
A31: PM-000004 | B31: 2026-06-14 | C31: Open | D31: Inspection | E31: P5 - Planned | F31: PM Generator | G31: Kyle Lowry | H31: 2026-06-13 | I31: EXT-WH-001 | J31: Forklift 1 | K31: Warehouse | L31: Warehouse / Yard | M31: Warehouse | N31: Medium | O31: EXT-AREA-010 | P31: Mobile Equipment | Q31: Daily Forklift Inspection PM ID: PM-00002 Instructions: 1. Inspect mast weld for crack 2. Check hydraulic fittings and cylinders for leaks 3. Inspect tires for excessive wear | T31: 0 | U31: 0 | V31: 0 | W31: 0 | X31: 85 | Y31: 0 | Z31: 0
A32: PM-000005 | B32: 2026-06-14 | C32: Open | D32: Inspection | E32: P5 - Planned | F32: PM Generator | G32: Adam Smith | H32: 2026-06-18 | I32: EXT-311 | J32: Extruder | K32: Extrusion Line 1 | L32: Building 1 | M32: Production | N32: High | O32: EXT-AREA-010 | P32: Machine | Q32: Weekly Extruder PM PM ID: PM-00101 Instructions: 1. Check barrel/die temperatures and cooling water flow 2. Inspect for leaks, abnormal noise, and vibration 3. Clean die face and screw drive area | T32: 0 | U32: 0 | V32: 0 | W32: 0 | X32: 85 | Y32: 0 | Z32: 0
A33: PM-000006 | B33: 2026-06-14 | C33: Open | D33: Inspection | E33: P5 - Planned | F33: PM Generator | G33: King Kong | H33: 2026-06-19 | I33: PUL-201 | J33: Puller | K33: Extrusion Line 1 | L33: Building 1 | M33: Production | N33: High | O33: EXT-AREA-010 | P33: Machine | Q33: Weekly Puller PM PM ID: PM-00104 Instructions: 1. Inspect belts/tracks for wear and tension 2. Check guarding, E-stops, and operator controls 3. Verify speed control and smooth operation | T33: 0 | U33: 0 | V33: 0 | W33: 0 | X33: 85 | Y33: 0 | Z33: 0
A34: PM-000007 | B34: 2026-06-14 | C34: Open | D34: Inspection | E34: P5 - Planned | F34: PM Generator | G34: Celine Doing | H34: 2026-06-20 | I34: SAW-211 | J34: Saw | K34: Extrusion Line 1 | L34: Building 1 | M34: Production | N34: Medium | O34: EXT-AREA-010 | P34: Machine | Q34: Weekly Saw PM PM ID: PM-00107 Instructions: 1. Inspect blade condition, sharpness, and secure mounting 2. Check blade guard, clamps, and safety covers 3. Verify cut quality and smooth travel | T34: 0 | U34: 0 | V34: 0 | W34: 0 | X34: 85 | Y34: 0 | Z34: 0
A35: PM-000008 | B35: 2026-06-14 | C35: Open | D35: Inspection | E35: P5 - Planned | F35: PM Generator | G35: Adam Smith | H35: 2026-06-21 | I35: DIE-311 | J35: Die Head | K35: Extrusion Line 1 | L35: Building 1 | M35: Production | N35: Medium | O35: EXT-AREA-010 | P35: Component | Q35: Weekly Die Head PM PM ID: PM-00110 Instructions: 1. Inspect die face and land for buildup or damage 2. Check heater bands and thermocouple readings | T35: 0 | U35: 0 | V35: 0 | W35: 0 | X35: 85 | Y35: 0 | Z35: 0
A36: PM-000009 | B36: 2026-06-14 | C36: Open | D36: Inspection | E36: P5 - Planned | F36: PM Generator | G36: Dame Time | H36: 2026-06-18 | I36: CNV-311 | J36: Take-off Conveyor | K36: Extrusion Line 1 | L36: Building 1 | M36: Production | N36: Low | O36: EXT-AREA-010 | P36: Equipment | Q36: Weekly Conveyor PM PM ID: PM-00119 Instructions: 1. Inspect belt tracking, tension, and surface 2. Check for abnormal noise at rollers/bearings | T36: 0 | U36: 0 | V36: 0 | W36: 0 | X36: 85 | Y36: 0 | Z36: 0
A37: PM-000010 | B37: 2026-06-14 | C37: Open | D37: Inspection | E37: P5 - Planned | F37: PM Generator | G37: Adam Smith | H37: 2026-06-19 | I37: OVN-001 | J37: Oven | K37: Baking | L37: Production | M37: Manufacturing | N37: High | O37: EXT-AREA-010 | P37: Machine | Q37: Weekly Oven PM PM ID: PM-00122 Instructions: 1. Inspect conveyor belt for wear, tracking, and tension 2. Check burners/elements and temperature uniformity 3. Inspect chains, sprockets, and guards | T37: 0 | U37: 0 | V37: 0 | W37: 0 | X37: 85 | Y37: 0 | Z37: 0
A38: PM-000011 | B38: 2026-06-14 | C38: Open | D38: Inspection | E38: P5 - Planned | F38: PM Generator | G38: Rest Exter | H38: 2026-06-20 | I38: PRF-201 | J38: Proofer 1 | K38: Proofing | L38: Building 2 | M38: Manufacturing | N38: High | O38: BAKE-AREA-020 | P38: Machine | Q38: Weekly Proofer PM PM ID: PM-00125 Instructions: 1. Inspect panels, doors, seals, and hinges 2. Check humidity/temperature readings and water lines 3. Inspect interior cleanliness and drains | T38: 0 | U38: 0 | V38: 0 | W38: 0 | X38: 85 | Y38: 0 | Z38: 0
A39: PM-000012 | B39: 2026-06-14 | C39: Open | D39: Inspection | E39: P5 - Planned | F39: PM Generator | G39: Celine Doing | H39: 2026-06-21 | I39: DEP-201 | J39: Depositor | K39: Baking | L39: Building 2 | M39: Manufacturing | N39: Medium | O39: BAKE-AREA-020 | P39: Equipment | Q39: Weekly Depositor PM PM ID: PM-00128 Instructions: 1. Inspect nozzles, pistons, and hopper for wear/buildup 2. Check for leaks and deposit accuracy | T39: 0 | U39: 0 | V39: 0 | W39: 0 | X39: 85 | Y39: 0 | Z39: 0
A40: PM-000013 | B40: 2026-06-14 | C40: Open | D40: Inspection | E40: P5 - Planned | F40: PM Generator | G40: Rest Exter | H40: 2026-06-18 | I40: CHL-001 | J40: Chiller 1 | K40: Utilities | L40: Roof | M40: Facilities | N40: High | O40: UTIL-AREA-030 | P40: Machine | Q40: Weekly Chiller PM PM ID: PM-00137 Instructions: 1. Check refrigerant pressures and temperatures 2. Inspect for leaks and unusual noise | T40: 0 | U40: 0 | V40: 0 | W40: 0 | X40: 85 | Y40: 0 | Z40: 0
A41: PM-000014 | B41: 2026-06-14 | C41: Open | D41: Inspection | E41: P5 - Planned | F41: PM Generator | G41: Adam Smith | H41: 2026-06-19 | I41: BLR-001 | J41: Boiler 1 | K41: Utilities | L41: Mechanical Room | M41: Facilities | N41: High | O41: UTIL-AREA-030 | P41: Machine | Q41: Weekly Boiler PM PM ID: PM-00140 Instructions: 1. Check water level, pressure, and blowdown 2. Inspect burner flame and safety controls | T41: 0 | U41: 0 | V41: 0 | W41: 0 | X41: 85 | Y41: 0 | Z41: 0
A42: PM-000015 | B42: 2026-06-14 | C42: Open | D42: Inspection | E42: P5 - Planned | F42: PM Generator | G42: Dame Time | H42: 2026-06-20 | I42: CLT-TWR-001 | J42: Cooling Tower 1 | K42: Utilities | L42: Roof | M42: Facilities | N42: Medium | O42: UTIL-AREA-030 | P42: Equipment | Q42: Weekly Cooling Tower PM PM ID: PM-00143 Instructions: 1. Check water level, flow, and basin cleanliness 2. Inspect fan and drift eliminators | T42: 0 | U42: 0 | V42: 0 | W42: 0 | X42: 85 | Y42: 0 | Z42: 0
A43: PM-000016 | B43: 2026-06-14 | C43: Open | D43: Inspection | E43: P5 - Planned | F43: PM Generator | G43: Celine Doing | H43: 2026-06-21 | I43: PMP-001 | J43: Process Water Pump | K43: Utilities | L43: Mechanical Room | M43: Facilities | N43: Medium | O43: UTIL-AREA-030 | P43: Equipment | Q43: Weekly Pump PM PM ID: PM-00146 Instructions: 1. Check for leaks, noise, and vibration 2. Verify flow/pressure and seal condition | T43: 0 | U43: 0 | V43: 0 | W43: 0 | X43: 85 | Y43: 0 | Z43: 0
A44: PM-000017 | B44: 2026-06-14 | C44: Open | D44: Inspection | E44: P5 - Planned | F44: PM Generator | G44: Dame Time | H44: 2026-06-18 | I44: HVAC-001 | J44: HVAC Unit 1 | K44: Facilities | L44: Roof | M44: Facilities | N44: Low | O44: FAC-AREA-060 | P44: Equipment | Q44: Weekly HVAC Unit PM PM ID: PM-00155 Instructions: 1. Check operation, airflow, and unusual noise | T44: 0 | U44: 0 | V44: 0 | W44: 0 | X44: 85 | Y44: 0 | Z44: 0
A45: PM-000018 | B45: 2026-06-14 | C45: Open | D45: Inspection | E45: P5 - Planned | F45: PM Generator | G45: Rest Exter | H45: 2026-06-19 | I45: GEN-001 | J45: Standby Generator | K45: Facilities | L45: Yard | M45: Facilities | N45: High | O45: FAC-AREA-060 | P45: Machine | Q45: Weekly Generator PM PM ID: PM-00158 Instructions: 1. Check fuel, oil, and coolant levels 2. Inspect battery and run no-load test | T45: 0 | U45: 0 | V45: 0 | W45: 0 | X45: 85 | Y45: 0 | Z45: 0
A46: PM-000019 | B46: 2026-06-14 | C46: Open | D46: Inspection | E46: P5 - Planned | F46: PM Generator | G46: Kyle Lowry | H46: 2026-06-20 | I46: XFMR-001 | J46: Main Transformer | K46: Facilities | L46: Yard | M46: Facilities | N46: High | O46: FAC-AREA-060 | P46: System | Q46: Weekly Transformer PM PM ID: PM-00161 Instructions: 1. Visual check for alarms, leaks, and abnormal temperature | T46: 0 | U46: 0 | V46: 0 | W46: 0 | X46: 85 | Y46: 0 | Z46: 0
A47: PM-000020 | B47: 2026-06-14 | C47: Open | D47: Inspection | E47: P5 - Planned | F47: PM Generator | G47: Adam Smith | H47: 2026-06-21 | I47: FP-001 | J47: Fire Pump | K47: Facilities | L47: Mechanical Room | M47: Facilities | N47: High | O47: FAC-AREA-060 | P47: Equipment | Q47: Weekly Fire Pump PM PM ID: PM-00164 Instructions: 1. Run weekly no-flow test and check pressure 2. Inspect for leaks and valve positions | T47: 0 | U47: 0 | V47: 0 | W47: 0 | X47: 85 | Y47: 0 | Z47: 0
A48: PM-000021 | B48: 2026-06-14 | C48: Open | D48: Inspection | E48: P5 - Planned | F48: PM Generator | G48: King Kong | H48: 2026-06-18 | I48: CHK-001 | J48: Checkweigher | K48: Packaging | L48: Building 3 | M48: Quality | N48: Medium | O48: PKG-AREA-050 | P48: Equipment | Q48: Weekly Checkweigher PM PM ID: PM-00173 Instructions: 1. Verify calibration with test weights 2. Inspect belt and reject mechanism | T48: 0 | U48: 0 | V48: 0 | W48: 0 | X48: 85 | Y48: 0 | Z48: 0
A49: PM-000022 | B49: 2026-06-14 | C49: Open | D49: Inspection | E49: P5 - Planned | F49: PM Generator | G49: Rest Exter | H49: 2026-06-19 | I49: MD-001 | J49: Metal Detector | K49: Packaging | L49: Building 3 | M49: Quality | N49: High | O49: PKG-AREA-050 | P49: Equipment | Q49: Weekly Metal Detector PM PM ID: PM-00176 Instructions: 1. Test with ferrous/non-ferrous/stainless samples 2. Verify reject and fail-safe operation | T49: 0 | U49: 0 | V49: 0 | W49: 0 | X49: 85 | Y49: 0 | Z49: 0
A50: PM-000023 | B50: 2026-06-14 | C50: Open | D50: Inspection | E50: P5 - Planned | F50: PM Generator | G50: Kyle Lowry | H50: 2026-06-20 | I50: EXT-WH-001 | J50: Forklift 1 | K50: Warehouse | L50: Warehouse / Yard | M50: Warehouse | N50: Medium | O50: EXT-AREA-010 | P50: Mobile Equipment | Q50: Weekly Forklift / Mobile Equipment PM PM ID: PM-00179 Instructions: 1. Walk-around: tires, forks, mast, leaks 2. Check hydraulics, brakes, horn, and lights 3. Inspect battery/fuel and operator controls | T50: 0 | U50: 0 | V50: 0 | W50: 0 | X50: 85 | Y50: 0 | Z50: 0
A51: PM-000024 | B51: 2026-06-14 | C51: Open | D51: Inspection | E51: P5 - Planned | F51: PM Generator | G51: Adam Smith | H51: 2026-06-21 | I51: EXT-WH-004 | J51: Overhead Crane | K51: Warehouse | L51: Production / Yard | M51: Maintenance | N51: Low | O51: EXT-AREA-010 | P51: Equipment | Q51: Weekly Crane / Hoist PM PM ID: PM-00182 Instructions: 1. Inspect hook, chain/wire rope, and limit switches 2. Test controls, brakes, and E-stop | T51: 0 | U51: 0 | V51: 0 | W51: 0 | X51: 85 | Y51: 0 | Z51: 0

Sheet Dashboard
B1: MAINTENANCE KPI DASHBOARD
B2: ="Live metrics from Work Order Database | Latest activity: "&TEXT(MAX(WorkOrdersDatabase[Date Created]),"mmm d, yyyy") -> Live metrics from Work Order Database | Latest activity: Jun 14, 2026
B5: TOTAL WORK ORDERS | D5: OPEN BACKLOG | F5: OVERDUE | H5: COMPLETED | J5: TOTAL MAINT. COST | L5: AVG MTTR (DAYS) | N5: AVG MTBF (DAYS) | P5: PM COMPLIANCE
B6: =COUNTA(WorkOrdersDatabase[WO Number]) -> 50 | D6: =COUNTIF(WorkOrdersDatabase[Status],"Open") -> 34 | F6: =SUMPRODUCT((WorkOrdersDatabase[Status]="Open")*ISNUMBER(WorkOrdersDatabase[Due Date])*(WorkOrdersDatabase[Due Date]<TODAY())) -> 8 | H6: =COUNTIF(WorkOrdersDatabase[Status],"Completed") -> 15 | J6: =SUM(WorkOrdersDatabase[Total WO Cost]) -> 3639.5 | L6: =IFERROR(SUMPRODUCT((WorkOrdersDatabase[Status]="Completed")*((WorkOrdersDatabase[Work Type]="Corrective")+(WorkOrdersDatabase[Work Type]="Emergency")+(WorkOrdersDatabase[Work Type]="Breakdown")+(WorkOrdersDatabase[Work Type]="Repair"))*ISNUMBER(WorkOrdersDatabase[Date Completed])*ISNUMBER(WorkOrdersDatabase[Date Created])*(WorkOrdersDatabase[Date Completed]-WorkOrdersDatabase[Date Created]))/MAX(1,SUMPRODUCT((WorkOrdersDatabase[Status]="Completed")*((WorkOrdersDatabase[Work Type]="Corrective")+(WorkOrdersDatabase[Work Type]="Emergency")+(WorkOrdersDatabase[Work Type]="Breakdown")+(WorkOrdersDatabase[Work Type]="Repair"))*ISNUMBER(WorkOrdersDatabase[Date Completed])*ISNUMBER(WorkOrdersDatabase[Date Created]))),0) -> 5.780886574 | N6: =IFERROR((MAX(WorkOrdersDatabase[Date Created])-MIN(WorkOrdersDatabase[Date Created]))/MAX(1,SUMPRODUCT((WorkOrdersDatabase[Work Type]="Corrective")+(WorkOrdersDatabase[Work Type]="Emergency")+(WorkOrdersDatabase[Work Type]="Breakdown")+(WorkOrdersDatabase[Work Type]="Repair"))),0) -> 2 | P6: =IFERROR((COUNTIF('PM Master'!$V$2:$V$200,"YES")-COUNTIFS('PM Master'!$V$2:$V$200,"YES",'PM Master'!$P$2:$P$200,"OVERDUE"))/COUNTIF('PM Master'!$V$2:$V$200,"YES"),0) -> 0.9791666667
B9: OPEN BACKLOG BY PRIORITY | F9: WORK ORDERS BY STATUS | J9: FAILURE TYPE DISTRIBUTION | N9: PM PROGRAM HEALTH
B10: Priority | C10: Open | D10: % of Backlog | E10: Bar | F10: Status | G10: Count | H10: % of Total | I10: Bar | J10: Type | K10: Count | L10: % of Coded | M10: Bar | N10: Metric | O10: Count | P10: % of Active | Q10: Bar | T10: Status (non-zero) | U10: Count
B11: P1 - Emergency | C11: =COUNTIFS(WorkOrdersDatabase[Status],"Open",WorkOrdersDatabase[Priority],B11) -> 3 | D11: =IFERROR(C11/$C$16,0) -> 0.3 | E11: =REPT("█",ROUND(D11*20,0)) -> ██████ | F11: Open | G11: =COUNTIF(WorkOrdersDatabase[Status],F11) -> 34 | H11: =IFERROR(G11/$G$16,0) -> 0.68 | I11: =REPT("█",ROUND(H11*20,0)) -> ██████████████ | J11: MECH | K11: =COUNTIF(WorkOrdersDatabase[Failure Type],J11) -> 7 | L11: =IFERROR(K11/$K$16,0) -> 0.4375 | M11: =REPT("█",ROUND(L11*20,0)) -> █████████ | N11: Active PMs | O11: =COUNTIF('PM Master'!$V$2:$V$200,"YES") -> 96 | T11: =_xlfn._xlws.FILTER(F11:G15,G11:G15>0,"None") -> Open | U11: 34
B12: P2 - 1 day | C12: =COUNTIFS(WorkOrdersDatabase[Status],"Open",WorkOrdersDatabase[Priority],B12) -> 1 | D12: =IFERROR(C12/$C$16,0) -> 0.1 | E12: =REPT("█",ROUND(D12*20,0)) -> ██ | F12: In Progress | G12: =COUNTIF(WorkOrdersDatabase[Status],F12) -> 0 | H12: =IFERROR(G12/$G$16,0) -> 0 | I12: =REPT("█",ROUND(H12*20,0)) ->  | J12: ELEC | K12: =COUNTIF(WorkOrdersDatabase[Failure Type],J12) -> 2 | L12: =IFERROR(K12/$K$16,0) -> 0.125 | M12: =REPT("█",ROUND(L12*20,0)) -> ███ | N12: Overdue | O12: =COUNTIFS('PM Master'!$V$2:$V$200,"YES",'PM Master'!$P$2:$P$200,"OVERDUE") -> 2 | P12: =IFERROR(O12/$O$11,0) -> 0.02083333333 | Q12: =REPT("█",ROUND(P12*20,0)) ->  | T12: Completed | U12: 15
B13: P3 - 7 Days | C13: =COUNTIFS(WorkOrdersDatabase[Status],"Open",WorkOrdersDatabase[Priority],B13) -> 2 | D13: =IFERROR(C13/$C$16,0) -> 0.2 | E13: =REPT("█",ROUND(D13*20,0)) -> ████ | F13: Completed | G13: =COUNTIF(WorkOrdersDatabase[Status],F13) -> 15 | H13: =IFERROR(G13/$G$16,0) -> 0.3 | I13: =REPT("█",ROUND(H13*20,0)) -> ██████ | J13: CTRL | K13: =COUNTIF(WorkOrdersDatabase[Failure Type],J13) -> 3 | L13: =IFERROR(K13/$K$16,0) -> 0.1875 | M13: =REPT("█",ROUND(L13*20,0)) -> ████ | N13: Due Soon | O13: =COUNTIFS('PM Master'!$V$2:$V$200,"YES",'PM Master'!$P$2:$P$200,"DUE SOON") -> 27 | P13: =IFERROR(O13/$O$11,0) -> 0.28125 | Q13: =REPT("█",ROUND(P13*20,0)) -> ██████ | T13: Closed | U13: 1
B14: P4 - 30 Days | C14: =COUNTIFS(WorkOrdersDatabase[Status],"Open",WorkOrdersDatabase[Priority],B14) -> 1 | D14: =IFERROR(C14/$C$16,0) -> 0.1 | E14: =REPT("█",ROUND(D14*20,0)) -> ██ | F14: Closed | G14: =COUNTIF(WorkOrdersDatabase[Status],F14) -> 1 | H14: =IFERROR(G14/$G$16,0) -> 0.02 | I14: =REPT("█",ROUND(H14*20,0)) ->  | J14: HYD | K14: =COUNTIF(WorkOrdersDatabase[Failure Type],J14) -> 1 | L14: =IFERROR(K14/$K$16,0) -> 0.0625 | M14: =REPT("█",ROUND(L14*20,0)) -> █ | N14: On Schedule | O14: =COUNTIFS('PM Master'!$V$2:$V$200,"YES",'PM Master'!$P$2:$P$200,"OK") -> 67 | P14: =IFERROR(O14/$O$11,0) -> 0.6979166667 | Q14: =REPT("█",ROUND(P14*20,0)) -> ██████████████
B15: P5 - 45 Days | C15: =COUNTIFS(WorkOrdersDatabase[Status],"Open",WorkOrdersDatabase[Priority],B15) -> 3 | D15: =IFERROR(C15/$C$16,0) -> 0.3 | E15: =REPT("█",ROUND(D15*20,0)) -> ██████ | F15: On Hold | G15: =COUNTIF(WorkOrdersDatabase[Status],F15) -> 0 | H15: =IFERROR(G15/$G$16,0) -> 0 | I15: =REPT("█",ROUND(H15*20,0)) ->  | J15: PM | K15: =COUNTIF(WorkOrdersDatabase[Failure Type],J15) -> 3 | L15: =IFERROR(K15/$K$16,0) -> 0.1875 | M15: =REPT("█",ROUND(L15*20,0)) -> ████ | N15: Compliance Rate | O15: =IFERROR((O11-O12)/O11,0) -> 0.9791666667
B16: TOTAL OPEN | C16: =SUM(C11:C15) -> 10 | F16: TOTAL | G16: =SUM(G11:G15) -> 50 | J16: TOTAL CODED | K16: =SUM(K11:K15) -> 16
B18: MAINTENANCE BY ASSET | G18: COST BREAKDOWN | K18: REACTIVE vs PLANNED | O18: OPEN WO AGING
B19: Asset Name | C19: Asset ID | D19: # WOs | E19: Total Cost | F19: Downtime (h) | G19: Category | H19: Amount | I19: % of Total | J19: Bar | K19: Category | L19: Count | M19: % of Total | N19: Bar | O19: Bucket | P19: Count | Q19: Bar | T19: Asset (chart src) | U19: # WOs
B20: =IFERROR(_xlfn.XLOOKUP(_xlfn.ANCHORARRAY(C20),WorkOrdersDatabase[Asset ID],WorkOrdersDatabase[Asset Name],""),"") -> Oven | C20: =_xlfn.TAKE(_xlfn.LET(_xlpm.ids,_xlfn.UNIQUE(_xlfn._xlws.FILTER(WorkOrdersDatabase[Asset ID],WorkOrdersDatabase[Asset ID]<>"")),_xlpm.cnts,COUNTIF(WorkOrdersDatabase[Asset ID],_xlpm.ids),_xlfn.SORTBY(_xlpm.ids,_xlpm.cnts,-1)),10) -> OVN-001 | D20: =COUNTIF(WorkOrdersDatabase[Asset ID],_xlfn.ANCHORARRAY(C20)) -> 13 | E20: =SUMIF(WorkOrdersDatabase[Asset ID],_xlfn.ANCHORARRAY(C20),WorkOrdersDatabase[Total WO Cost]) -> 947.5 | F20: =SUMIF(WorkOrdersDatabase[Asset ID],_xlfn.ANCHORARRAY(C20),WorkOrdersDatabase[Downtime]) -> 6 | G20: Parts | H20: =SUM(WorkOrdersDatabase[Total Parts Cost]) -> 2237 | I20: =IFERROR(H20/$H$22,0) -> 0.6146448688 | J20: =REPT("█",ROUND(I20*20,0)) -> ████████████ | K20: Reactive | L20: =COUNTIF(WorkOrdersDatabase[Work Type],"Corrective")+COUNTIF(WorkOrdersDatabase[Work Type],"Emergency")+COUNTIF(WorkOrdersDatabase[Work Type],"Breakdown")+COUNTIF(WorkOrdersDatabase[Work Type],"Repair") -> 12 | M20: =IFERROR(L20/$L$22,0) -> 0.24 | N20: =REPT("█",ROUND(M20*20,0)) -> █████ | O20: Overdue | P20: =SUMPRODUCT((WorkOrdersDatabase[Status]="Open")*ISNUMBER(WorkOrdersDatabase[Due Date])*(WorkOrdersDatabase[Due Date]<TODAY())) -> 8 | Q20: =IF(P20=0,"",REPT("█",MAX(1,ROUND(P20/MAX($P$20:$P$24)*12,0)))) -> ████ | T20: =_xlfn.ANCHORARRAY(B20) -> Oven | U20: =_xlfn.ANCHORARRAY(D20) -> 13
B21: Puller | C21: PUL-201 | D21: 8 | E21: 822 | F21: 0 | G21: Labour | H21: =SUM(WorkOrdersDatabase[Total Labour Cost]) -> 1402.5 | I21: =IFERROR(H21/$H$22,0) -> 0.3853551312 | J21: =REPT("█",ROUND(I21*20,0)) -> ████████ | K21: Planned | L21: =COUNTIF(WorkOrdersDatabase[Work Type],"Preventive")+COUNTIF(WorkOrdersDatabase[Work Type],"Inspection")+COUNTIF(WorkOrdersDatabase[Work Type],"Shutdown")+COUNTIF(WorkOrdersDatabase[Work Type],"Compliance / Safety")+COUNTIF(WorkOrdersDatabase[Work Type],"Installation")+COUNTIF(WorkOrdersDatabase[Work Type],"Calibration") -> 38 | M21: =IFERROR(L21/$L$22,0) -> 0.76 | N21: =REPT("█",ROUND(M21*20,0)) -> ███████████████ | O21: Due 0-7 days | P21: =SUMPRODUCT((WorkOrdersDatabase[Status]="Open")*ISNUMBER(WorkOrdersDatabase[Due Date])*(WorkOrdersDatabase[Due Date]>=TODAY())*(WorkOrdersDatabase[Due Date]<=TODAY()+7)) -> 22 | Q21: =IF(P21=0,"",REPT("█",MAX(1,ROUND(P21/MAX($P$20:$P$24)*12,0)))) -> ████████████ | T21: Puller | U21: 8
B22: Saw | C22: SAW-211 | D22: 4 | E22: 200 | F22: 0 | G22: TOTAL | H22: =H20+H21 -> 3639.5 | K22: TOTAL | L22: =L20+L21 -> 50 | O22: Due 8-30 days | P22: =SUMPRODUCT((WorkOrdersDatabase[Status]="Open")*ISNUMBER(WorkOrdersDatabase[Due Date])*(WorkOrdersDatabase[Due Date]>TODAY()+7)*(WorkOrdersDatabase[Due Date]<=TODAY()+30)) -> 2 | Q22: =IF(P22=0,"",REPT("█",MAX(1,ROUND(P22/MAX($P$20:$P$24)*12,0)))) -> █ | T22: Saw | U22: 4
B23: Proofer 1 | C23: PRF-201 | D23: 2 | E23: 0 | F23: 0 | O23: Due >30 days | P23: =SUMPRODUCT((WorkOrdersDatabase[Status]="Open")*ISNUMBER(WorkOrdersDatabase[Due Date])*(WorkOrdersDatabase[Due Date]>TODAY()+30)) -> 2 | Q23: =IF(P23=0,"",REPT("█",MAX(1,ROUND(P23/MAX($P$20:$P$24)*12,0)))) -> █ | T23: Proofer 1 | U23: 2
B24: Extruder | C24: EXT-311 | D24: 2 | E24: 1670 | F24: 0 | G24: PM Cost ($) | H24: =SUMIF(WorkOrdersDatabase[Work Type],"Preventive",WorkOrdersDatabase[Total WO Cost])+SUMIF(WorkOrdersDatabase[Work Type],"Inspection",WorkOrdersDatabase[Total WO Cost]) -> 977.5 | K24: Reactive % | L24: =IFERROR(L20/L22,0) -> 0.24 | O24: No due date | P24: =SUMPRODUCT((WorkOrdersDatabase[Status]="Open")*(NOT(ISNUMBER(WorkOrdersDatabase[Due Date])))) -> 0 | Q24: =IF(P24=0,"",REPT("█",MAX(1,ROUND(P24/MAX($P$20:$P$24)*12,0)))) ->  | T24: Extruder | U24: 2
B25: Overhead Crane | C25: EXT-WH-004 | D25: 2 | E25: 0 | F25: 0 | G25: Corrective Cost ($) | H25: =SUMIF(WorkOrdersDatabase[Work Type],"Corrective",WorkOrdersDatabase[Total WO Cost])+SUMIF(WorkOrdersDatabase[Work Type],"Emergency",WorkOrdersDatabase[Total WO Cost])+SUMIF(WorkOrdersDatabase[Work Type],"Breakdown",WorkOrdersDatabase[Total WO Cost]) -> 2192 | K25: Planned % | L25: =IFERROR(L21/L22,0) -> 0.76 | O25: TOTAL OPEN | P25: =SUM(P20:P24) -> 34 | T25: Overhead Crane | U25: 2
B26: Pipe Rack System | C26: EXT-WH-003 | D26: 2 | E26: 0 | F26: 0 | G26: Avg Cost / WO | H26: =IFERROR(SUM(WorkOrdersDatabase[Total WO Cost])/COUNTIF(WorkOrdersDatabase[Status],"Completed"),0) -> 242.6333333 | K26: Target Planned % | L26: 0.8 | T26: Pipe Rack System | U26: 2
B27: Forklift 1 | C27: EXT-WH-001 | D27: 2 | E27: 0 | F27: 0 | T27: Forklift 1 | U27: 2
B28: Proofer | C28: PRF-411 | D28: 1 | E28: 0 | F28: 0 | T28: Proofer | U28: 1
B29: Dock Door 1 | C29: EXT-WH-005 | D29: 1 | E29: 0 | F29: 0 | T29: Dock Door 1 | U29: 1
B30: ="TOTAL" -> TOTAL | D30: =COUNTA(WorkOrdersDatabase[WO Number]) -> 50 | E30: =SUM(WorkOrdersDatabase[Total WO Cost]) -> 3639.5 | F30: =SUM(WorkOrdersDatabase[Downtime]) -> 6
B31: VISUAL INSIGHTS

Sheet Work Type List (hidden)
A1: Work Type | B1: Short Description
A2: Corrective | B2: Repair work done to fix a known defect or equipment issue before or after failure.
A3: Preventive | B3: Planned maintenance done at set intervals to prevent failures, such as inspections, lubrication, adjustments, or replacements.
A4: Emergency | B4: Urgent work required immediately due to safety risk, production stoppage, or major equipment failure.
A5: Predictive | B5: Condition-based work triggered by inspections, vibration, thermography, oil analysis, or other monitoring results.
A6: Inspection | B6: Check or assessment work used to identify equipment condition, defects, or follow-up needs.
A7: Improvement | B7: Work done to improve reliability, safety, maintainability, efficiency, or equipment performance.
A8: Shutdown | B8: Planned work completed during a scheduled outage or production shutdown.
A9: Installation | B9: Work related to installing new equipment, components, guards, sensors, or systems.
A10: Modification | B10: Changes made to existing equipment, layout, controls, guarding, or process setup.
A11: Calibration | B11: Adjustment or verification of instruments, sensors, scales, meters, or control devices.
A12: Compliance / Safety | B12: Work required for safety, regulatory, audit, guarding, LOTO, or inspection compliance.
A13: Follow-Up | B13: Additional work created from a previous work order, inspection, temporary repair, or unresolved issue.

Sheet Priority List (hidden)
A1: Priority | B1: Due in | C1: Meaning
A2: P1 - Emergency | B2: 0 | C2: Safety issue, production stopped, or major quality risk.
A3: P2 - 1 day | B3: 1 | C3: Production impacted or likely to stop soon.
A4: P3 - 7 Days | B4: 7 | C4: Planned corrective work that should be addressed within a week.
A5: P4 - 30 Days | B5: 30 | C5: Reliability, safety, or maintainability improvement.
A6: P5 - 45 Days | B6: 45 | C6: Minor issue, cosmetic work, or low-risk improvement.

Sheet Technicians List (hidden)
A1: Technician | B1: Trade
A2: Adam Smith | B2: Millwright
A3: Celine Doing | B3: Millwright
A4: King Kong | B4: Millwright
A5: Rest Exter | B5: Electrician
A6: Kyle Lowry | B6: Electrician
A7: Dame Time | B7: Electrician

Sheet Requester List (hidden)
A1: Requester | B1: Position
A2: Marcus Bennett | B2: Maintenance Planner
A3: Olivia Carter | B3: Production Supervisor
A4: Ethan Brooks | B4: Reliability Technician
A5: Sophia Mitchell | B5: Inventory Coordinator
A6: Daniel Hayes | B6: Mechanical Technician
A7: Ava Reynolds | B7: Operations Manager
A8: Lucas Foster | B8: Electrical Technician
A9: Mia Parker | B9: Quality Control Inspector
A10: Noah Sullivan | B10: Warehouse Lead
A11: Amelia Turner | B11: Health & Safety Coordinator

Sheet Asset Master List
A1: Asset ID | B1: Asset Name | C1: Area / Line | D1: Location | E1: Department | F1: Parent Asset ID | G1: Hierarchy Level | H1: Criticality | I1: PM Required | J1: Status | K1: Notes
A2: EXT-WH-001 | B2: Forklift 1 | C2: Warehouse | D2: Warehouse / Yard | E2: Warehouse | F2: EXT-AREA-010 | G2: Mobile Equipment | H2: Medium | I2: Yes | J2: Active | K2: Material handling
A3: EXT-WH-002 | B3: Forklift 2 | C3: Warehouse | D3: Warehouse / Yard | E3: Warehouse | F3: EXT-AREA-010 | G3: Mobile Equipment | H3: Medium | I3: Yes | J3: Active | K3: Material handling
A4: EXT-WH-003 | B4: Pipe Rack System | C4: Warehouse | D4: Yard | E4: Warehouse | F4: EXT-AREA-010 | G4: System | H4: High | I4: Yes | J4: Active | K4: Finished pipe storage
A5: EXT-WH-004 | B5: Overhead Crane | C5: Warehouse | D5: Production / Yard | E5: Maintenance | F5: EXT-AREA-010 | G5: Equipment | H5: Low | I5: Yes | J5: Active | K5: Lifting heavy tooling/pipe
A6: EXT-WH-005 | B6: Dock Door 1 | C6: Warehouse | D6: Shipping Dock | E6: Warehouse | F6: EXT-AREA-010 | G6: Equipment | H6: High | I6: Yes | J6: Active | K6: Shipping dock door
A7: EXT-WH-006 | B7: Dock Leveler 1 | C7: Warehouse | D7: Shipping Dock | E7: Warehouse | F7: EXT-AREA-010 | G7: Equipment | H7: Medium | I7: Yes | J7: Active | K7: Loading dock equipment
A8: OVN-001 | B8: Oven | C8: Baking | D8: Production | E8: Manufacturing | F8: EXT-AREA-010 | G8: Machine | H8: High | I8: Yes | J8: Active | K8: Baking equipment
A9: EXT-311 | B9: Extruder | C9: Extrusion Line 1 | D9: Building 1 | E9: Production | F9: EXT-AREA-010 | G9: Machine | H9: High | I9: Yes | J9: Active | K9: Twin-screw extruder
A10: PUL-201 | B10: Puller | C10: Extrusion Line 1 | D10: Building 1 | E10: Production | F10: EXT-AREA-010 | G10: Machine | H10: High | I10: Yes | J10: Active | K10: Caterpillar belt puller
A11: SAW-211 | B11: Saw | C11: Extrusion Line 1 | D11: Building 1 | E11: Production | F11: EXT-AREA-010 | G11: Machine | H11: Medium | I11: Yes | J11: Active | K11: Cut-off saw
